Workbook

Sheet ACS_Notes (hidden)
A1: NOTES:
A4: Data are based on a sample and are subject to sampling variability. The degree of uncertainty for an estimate arising from sampling variability is represented through the use of a margin of error. The value shown here is the 90 percent margin of error. The margin of error can be interpreted roughly as providing a 90 percent probability that the interval defined by the estimate minus the margin of error and the estimate plus the margin of error (the lower and upper confidence bounds) contains the true value. In addition to sampling variability, the ACS estimates are subject to noncamping error (for a discussion of noncamping variability, see Accuracy of the Data). The effect of noncamping error is not represented in these tables.
A8: In addition to sampling variability, the ACS estimates are subject to noncamping error (for a discussion of noncamping variability, see Accuracy of the Data. The link is located at the end of this worksheet.). The effect of noncamping error is not represented in these tables.
A11: While the 2005-2009 American Community Survey (ACS) data generally reflect the November 2008 Office of Management and Budget (OMB) definitions of metropolitan and micropolitan statistical areas; in certain instances the names, codes, and boundaries of the principal cities shown in ACS tables may differ from the OMB definitions due to differences in the effective dates of the geographic entities.
A15: Estimates of urban and rural population, housing units, and characteristics reflect boundaries of urban areas defined based on Census 2000 data. Boundaries for urban areas have not been updated since Census 2000. As a result, data for urban and rural areas from the ACS do not necessarily reflect the results of ongoing urbanization.
A17: Explanation of Symbols:
A19: 1. An '**' entry in the margin of error column indicates that either no sample observations or too few sample observations were available to compute a standard error and thus the margin of error. A statistical test is not appropriate.
A21: 2. An '-' entry in the estimate column indicates that either no sample observations or too few sample observations were available to compute an estimate, or a ratio of medians cannot be calculated because one or both of the median estimates falls in the lowest interval or upper interval of an open-ended distribution.
A23: 3. An '-' following a median estimate means the median falls in the lowest interval of an open-ended distribution.
A24: 4. An '+' following a median estimate means the median falls in the upper interval of an open-ended distribution.
A25: 5. An '***' entry in the margin of error column indicates that the median falls in the lowest interval or upper interval of an open-ended distribution. A statistical test is not appropriate.
A26: 6. An '*****' entry in the margin of error column indicates that the estimate is controlled. A statistical test for sampling variability is not appropriate.
A28: Accuracy of Data

Sheet StartInstruction
A1: Demographic Profiles for Municipalities in Coos County
A3: To view or print a Demographic Profile follow the steps below
A7: Step 1. | C7: Select the municipality you wish to
C8: Profile from the drop down box below.
A13: Step 2. | C13: Click one of the profile topic buttons below to review or print
C14: the information for the selected geography.
C15: Don't forget to adjust the axis on charts as necessary.
O30: Updated: | Q30: 2023-12-11
O32: Next Update: | Q32: Spring 2024 Annual Employment Date

Sheet ACS_Table_B08303 (hidden)
B1: B08303: TRAVEL TIME TO WORK
B2: Universe: Workers 16 years and over who did not work at home
B3: Data Set: 2006-2010 American Community Survey 3-Year Estimates
C5: Atkinson and Gilmanton Grant | E5: Bean's Grant | G5: Bean's Purchase | I5: Berlin | K5: Cambridge | M5: Carroll | O5: Chandler's Purchase | Q5: Clarksville | S5: Colebrook | U5: Columbia | W5: Crawford's Purchase | Y5: Cutt's Grant | AA5: Dalton | AC5: Dix's Grant | AE5: Dixville Township | AG5: Dummer | AI5: Errol | AK5: Erving's Location | AM5: Gorham | AO5: Greens Grant | AQ5: Hadley's Purchase | AS5: Jefferson | AU5: Kilkenny Township | AW5: Lancaster | AY5: Low and Burbank's Grant | BA5: Martin's Location | BC5: Milan | BE5: Millsfield Township | BG5: Northumberland | BI5: Odell Township | BK5: Pinkham's Grant | BM5: Pittsburg | BO5: Randolph | BQ5: Sargent's Purchase | BS5: Second College Grant | BU5: Shelburne | BW5: Stark | BY5: Stewartstown | CA5: Stratford | CC5: Success Township | CE5: Thompson and Meserves Purchase | CG5: Wentworth's Location | CI5: Whitefield
C6: Esitimate | D6: Margin Of Error | E6: Esitimate | F6: Margin Of Error | G6: Esitimate | H6: Margin Of Error | I6: Esitimate | J6: Margin Of Error | K6: Esitimate | L6: Margin Of Error | M6: Esitimate | N6: Margin Of Error | O6: Esitimate | P6: Margin Of Error | Q6: Esitimate | R6: Margin Of Error | S6: Esitimate | T6: Margin Of Error | U6: Esitimate | V6: Margin Of Error | W6: Esitimate | X6: Margin Of Error | Y6: Esitimate | Z6: Margin Of Error | AA6: Esitimate | AB6: Margin Of Error | AC6: Esitimate | AD6: Margin Of Error | AE6: Esitimate | AF6: Margin Of Error | AG6: Esitimate | AH6: Margin Of Error | AI6: Esitimate | AJ6: Margin Of Error | AK6: Esitimate | AL6: Margin Of Error | AM6: Esitimate | AN6: Margin Of Error | AO6: Esitimate | AP6: Margin Of Error | AQ6: Esitimate | AR6: Margin Of Error | AS6: Esitimate | AT6: Margin Of Error | AU6: Esitimate | AV6: Margin Of Error | AW6: Esitimate | AX6: Margin Of Error | AY6: Esitimate | AZ6: Margin Of Error | BA6: Esitimate | BB6: Margin Of Error | BC6: Esitimate | BD6: Margin Of Error | BE6: Esitimate | BF6: Margin Of Error | BG6: Esitimate | BH6: Margin Of Error | BI6: Esitimate | BJ6: Margin Of Error | BK6: Esitimate | BL6: Margin Of Error | BM6: Esitimate | BN6: Margin Of Error | BO6: Esitimate | BP6: Margin Of Error | BQ6: Esitimate | BR6: Margin Of Error | BS6: Esitimate | BT6: Margin Of Error | BU6: Esitimate | BV6: Margin Of Error | BW6: Esitimate | BX6: Margin Of Error | BY6: Esitimate | BZ6: Margin Of Error | CA6: Esitimate | CB6: Margin Of Error | CC6: Esitimate | CD6: Margin Of Error | CE6: Esitimate | CF6: Margin Of Error | CG6: Esitimate | CH6: Margin Of Error | CI6: Esitimate | CJ6: Margin Of Error
B7: Population Older than 16 not working at hom | C7: 0 | D7: 12 | E7: 0 | F7: 12 | G7: 0 | H7: 12 | I7: 3517 | J7: 315 | K7: 0 | L7: 12 | M7: 381 | N7: 104 | O7: 0 | P7: 12 | Q7: 139 | R7: 52 | S7: 857 | T7: 208 | U7: 283 | V7: 67 | W7: 0 | X7: 12 | Y7: 0 | Z7: 12 | AA7: 502 | AB7: 161 | AC7: 0 | AD7: 12 | AE7: 4 | AF7: 9 | AG7: 125 | AH7: 46 | AI7: 93 | AJ7: 39 | AK7: 0 | AL7: 12 | AM7: 1345 | AN7: 159 | AO7: 0 | AP7: 12 | AQ7: 0 | AR7: 12 | AS7: 421 | AT7: 80 | AU7: 0 | AV7: 12 | AW7: 1379 | AX7: 174 | AY7: 0 | AZ7: 12 | BA7: 0 | BB7: 12 | BC7: 653 | BD7: 92 | BE7: 2 | BF7: 3 | BG7: 704 | BH7: 117 | BI7: 0 | BJ7: 12 | BK7: 11 | BL7: 14 | BM7: 212 | BN7: 67 | BO7: 160 | BP7: 42 | BQ7: 0 | BR7: 12 | BS7: 0 | BT7: 12 | BU7: 249 | BV7: 87 | BW7: 161 | BX7: 73 | BY7: 433 | BZ7: 147 | CA7: 276 | CB7: 106 | CC7: 0 | CD7: 12 | CE7: 0 | CF7: 12 | CG7: 2 | CH7: 3 | CI7: 1072 | CJ7: 122
B8: Less than 5 minutes | C8: 0 | D8: 12 | E8: 0 | F8: 12 | G8: 0 | H8: 12 | I8: 428 | J8: 142 | K8: 0 | L8: 12 | M8: 46 | N8: 29 | O8: 0 | P8: 12 | Q8: 0 | R8: 12 | S8: 125 | T8: 53 | U8: 13 | V8: 10 | W8: 0 | X8: 12 | Y8: 0 | Z8: 12 | AA8: 9 | AB8: 11 | AC8: 0 | AD8: 12 | AE8: 0 | AF8: 12 | AG8: 9 | AH8: 8 | AI8: 11 | AJ8: 9 | AK8: 0 | AL8: 12 | AM8: 128 | AN8: 69 | AO8: 0 | AP8: 12 | AQ8: 0 | AR8: 12 | AS8: 4 | AT8: 6 | AU8: 0 | AV8: 12 | AW8: 179 | AX8: 69 | AY8: 0 | AZ8: 12 | BA8: 0 | BB8: 12 | BC8: 47 | BD8: 27 | BE8: 0 | BF8: 12 | BG8: 72 | BH8: 43 | BI8: 0 | BJ8: 12 | BK8: 4 | BL8: 8 | BM8: 6 | BN8: 6 | BO8: 19 | BP8: 14 | BQ8: 0 | BR8: 12 | BS8: 0 | BT8: 12 | BU8: 9 | BV8: 10 | BW8: 3 | BX8: 4 | BY8: 15 | BZ8: 17 | CA8: 3 | CB8: 4 | CC8: 0 | CD8: 12 | CE8: 0 | CF8: 12 | CG8: 0 | CH8: 12 | CI8: 27 | CJ8: 18
B9: 5 to 9 minutes | C9: 0 | D9: 12 | E9: 0 | F9: 12 | G9: 0 | H9: 12 | I9: 984 | J9: 181 | K9: 0 | L9: 12 | M9: 52 | N9: 46 | O9: 0 | P9: 12 | Q9: 25 | R9: 28 | S9: 310 | T9: 102 | U9: 43 | V9: 29 | W9: 0 | X9: 12 | Y9: 0 | Z9: 12 | AA9: 77 | AB9: 95 | AC9: 0 | AD9: 12 | AE9: 1 | AF9: 2 | AG9: 0 | AH9: 12 | AI9: 41 | AJ9: 27 | AK9: 0 | AL9: 12 | AM9: 226 | AN9: 91 | AO9: 0 | AP9: 12 | AQ9: 0 | AR9: 12 | AS9: 52 | AT9: 23 | AU9: 0 | AV9: 12 | AW9: 170 | AX9: 78 | AY9: 0 | AZ9: 12 | BA9: 0 | BB9: 12 | BC9: 80 | BD9: 38 | BE9: 0 | BF9: 12 | BG9: 94 | BH9: 47 | BI9: 0 | BJ9: 12 | BK9: 4 | BL9: 8 | BM9: 17 | BN9: 15 | BO9: 8 | BP9: 8 | BQ9: 0 | BR9: 12 | BS9: 0 | BT9: 12 | BU9: 13 | BV9: 12 | BW9: 0 | BX9: 12 | BY9: 59 | BZ9: 28 | CA9: 18 | CB9: 11 | CC9: 0 | CD9: 12 | CE9: 0 | CF9: 12 | CG9: 0 | CH9: 12 | CI9: 93 | CJ9: 50
B10: 10 to 14 minutes | C10: 0 | D10: 12 | E10: 0 | F10: 12 | G10: 0 | H10: 12 | I10: 808 | J10: 204 | K10: 0 | L10: 12 | M10: 44 | N10: 26 | O10: 0 | P10: 12 | Q10: 39 | R10: 34 | S10: 104 | T10: 42 | U10: 52 | V10: 27 | W10: 0 | X10: 12 | Y10: 0 | Z10: 12 | AA10: 28 | AB10: 17 | AC10: 0 | AD10: 12 | AE10: 0 | AF10: 12 | AG10: 3 | AH10: 4 | AI10: 7 | AJ10: 9 | AK10: 0 | AL10: 12 | AM10: 224 | AN10: 89 | AO10: 0 | AP10: 12 | AQ10: 0 | AR10: 12 | AS10: 48 | AT10: 28 | AU10: 0 | AV10: 12 | AW10: 197 | AX10: 84 | AY10: 0 | AZ10: 12 | BA10: 0 | BB10: 12 | BC10: 78 | BD10: 27 | BE10: 0 | BF10: 12 | BG10: 97 | BH10: 53 | BI10: 0 | BJ10: 12 | BK10: 0 | BL10: 11 | BM10: 17 | BN10: 12 | BO10: 14 | BP10: 14 | BQ10: 0 | BR10: 12 | BS10: 0 | BT10: 12 | BU10: 13 | BV10: 9 | BW10: 0 | BX10: 12 | BY10: 122 | BZ10: 69 | CA10: 95 | CB10: 88 | CC10: 0 | CD10: 12 | CE10: 0 | CF10: 12 | CG10: 2 | CH10: 3 | CI10: 120 | CJ10: 58
B11: 15 to 19 minutes | C11: 0 | D11: 12 | E11: 0 | F11: 12 | G11: 0 | H11: 12 | I11: 480 | J11: 158 | K11: 0 | L11: 12 | M11: 35 | N11: 23 | O11: 0 | P11: 12 | Q11: 25 | R11: 18 | S11: 97 | T11: 61 | U11: 52 | V11: 23 | W11: 0 | X11: 12 | Y11: 0 | Z11: 12 | AA11: 81 | AB11: 50 | AC11: 0 | AD11: 12 | AE11: 0 | AF11: 12 | AG11: 26 | AH11: 30 | AI11: 0 | AJ11: 12 | AK11: 0 | AL11: 12 | AM11: 146 | AN11: 71 | AO11: 0 | AP11: 12 | AQ11: 0 | AR11: 12 | AS11: 53 | AT11: 24 | AU11: 0 | AV11: 12 | AW11: 197 | AX11: 96 | AY11: 0 | AZ11: 12 | BA11: 0 | BB11: 12 | BC11: 126 | BD11: 39 | BE11: 0 | BF11: 12 | BG11: 95 | BH11: 35 | BI11: 0 | BJ11: 12 | BK11: 0 | BL11: 11 | BM11: 49 | BN11: 27 | BO11: 15 | BP11: 8 | BQ11: 0 | BR11: 12 | BS11: 0 | BT11: 12 | BU11: 28 | BV11: 19 | BW11: 4 | BX11: 4 | BY11: 53 | BZ11: 54 | CA11: 40 | CB11: 32 | CC11: 0 | CD11: 12 | CE11: 0 | CF11: 12 | CG11: 0 | CH11: 12 | CI11: 162 | CJ11: 88
B12: 20 to 24 minutes | C12: 0 | D12: 12 | E12: 0 | F12: 12 | G12: 0 | H12: 12 | I12: 135 | J12: 66 | K12: 0 | L12: 12 | M12: 35 | N12: 20 | O12: 0 | P12: 12 | Q12: 28 | R12: 15 | S12: 38 | T12: 23 | U12: 52 | V12: 25 | W12: 0 | X12: 12 | Y12: 0 | Z12: 12 | AA12: 102 | AB12: 41 | AC12: 0 | AD12: 12 | AE12: 0 | AF12: 12 | AG12: 14 | AH12: 8 | AI12: 0 | AJ12: 12 | AK12: 0 | AL12: 12 | AM12: 127 | AN12: 54 | AO12: 0 | AP12: 12 | AQ12: 0 | AR12: 12 | AS12: 79 | AT12: 28 | AU12: 0 | AV12: 12 | AW12: 176 | AX12: 88 | AY12: 0 | AZ12: 12 | BA12: 0 | BB12: 12 | BC12: 155 | BD12: 47 | BE12: 0 | BF12: 12 | BG12: 164 | BH12: 65 | BI12: 0 | BJ12: 12 | BK12: 0 | BL12: 11 | BM12: 43 | BN12: 20 | BO12: 19 | BP12: 12 | BQ12: 0 | BR12: 12 | BS12: 0 | BT12: 12 | BU12: 48 | BV12: 35 | BW12: 40 | BX12: 20 | BY12: 20 | BZ12: 12 | CA12: 24 | CB12: 16 | CC12: 0 | CD12: 12 | CE12: 0 | CF12: 12 | CG12: 0 | CH12: 12 | CI12: 233 | CJ12: 77
B13: 25 to 29 minutes | C13: 0 | D13: 12 | E13: 0 | F13: 12 | G13: 0 | H13: 12 | I13: 87 | J13: 46 | K13: 0 | L13: 12 | M13: 84 | N13: 54 | O13: 0 | P13: 12 | Q13: 0 | R13: 12 | S13: 5 | T13: 7 | U13: 6 | V13: 7 | W13: 0 | X13: 12 | Y13: 0 | Z13: 12 | AA13: 65 | AB13: 52 | AC13: 0 | AD13: 12 | AE13: 0 | AF13: 12 | AG13: 20 | AH13: 15 | AI13: 0 | AJ13: 12 | AK13: 0 | AL13: 12 | AM13: 90 | AN13: 97 | AO13: 0 | AP13: 12 | AQ13: 0 | AR13: 12 | AS13: 12 | AT13: 21 | AU13: 0 | AV13: 12 | AW13: 74 | AX13: 70 | AY13: 0 | AZ13: 12 | BA13: 0 | BB13: 12 | BC13: 13 | BD13: 9 | BE13: 0 | BF13: 12 | BG13: 28 | BH13: 29 | BI13: 0 | BJ13: 12 | BK13: 0 | BL13: 11 | BM13: 15 | BN13: 15 | BO13: 24 | BP13: 16 | BQ13: 0 | BR13: 12 | BS13: 0 | BT13: 12 | BU13: 54 | BV13: 48 | BW13: 20 | BX13: 14 | BY13: 49 | BZ13: 35 | CA13: 2 | CB13: 3 | CC13: 0 | CD13: 12 | CE13: 0 | CF13: 12 | CG13: 0 | CH13: 12 | CI13: 89 | CJ13: 55
B14: 30 to 34 minutes | C14: 0 | D14: 12 | E14: 0 | F14: 12 | G14: 0 | H14: 12 | I14: 96 | J14: 69 | K14: 0 | L14: 12 | M14: 36 | N14: 15 | O14: 0 | P14: 12 | Q14: 3 | R14: 6 | S14: 51 | T14: 45 | U14: 9 | V14: 7 | W14: 0 | X14: 12 | Y14: 0 | Z14: 12 | AA14: 79 | AB14: 45 | AC14: 0 | AD14: 12 | AE14: 0 | AF14: 12 | AG14: 12 | AH14: 8 | AI14: 10 | AJ14: 12 | AK14: 0 | AL14: 12 | AM14: 106 | AN14: 74 | AO14: 0 | AP14: 12 | AQ14: 0 | AR14: 12 | AS14: 82 | AT14: 28 | AU14: 0 | AV14: 12 | AW14: 83 | AX14: 52 | AY14: 0 | AZ14: 12 | BA14: 0 | BB14: 12 | BC14: 34 | BD14: 19 | BE14: 0 | BF14: 12 | BG14: 30 | BH14: 24 | BI14: 0 | BJ14: 12 | BK14: 3 | BL14: 7 | BM14: 6 | BN14: 8 | BO14: 16 | BP14: 17 | BQ14: 0 | BR14: 12 | BS14: 0 | BT14: 12 | BU14: 51 | BV14: 23 | BW14: 25 | BX14: 19 | BY14: 33 | BZ14: 25 | CA14: 60 | CB14: 33 | CC14: 0 | CD14: 12 | CE14: 0 | CF14: 12 | CG14: 0 | CH14: 12 | CI14: 121 | CJ14: 56
B15: 35 to 39 minutes | C15: 0 | D15: 12 | E15: 0 | F15: 12 | G15: 0 | H15: 12 | I15: 16 | J15: 19 | K15: 0 | L15: 12 | M15: 14 | N15: 13 | O15: 0 | P15: 12 | Q15: 0 | R15: 12 | S15: 45 | T15: 40 | U15: 2 | V15: 4 | W15: 0 | X15: 12 | Y15: 0 | Z15: 12 | AA15: 15 | AB15: 13 | AC15: 0 | AD15: 12 | AE15: 0 | AF15: 12 | AG15: 0 | AH15: 12 | AI15: 0 | AJ15: 12 | AK15: 0 | AL15: 12 | AM15: 8 | AN15: 13 | AO15: 0 | AP15: 12 | AQ15: 0 | AR15: 12 | AS15: 0 | AT15: 12 | AU15: 0 | AV15: 12 | AW15: 53 | AX15: 46 | AY15: 0 | AZ15: 12 | BA15: 0 | BB15: 12 | BC15: 18 | BD15: 19 | BE15: 0 | BF15: 12 | BG15: 10 | BH15: 9 | BI15: 0 | BJ15: 12 | BK15: 0 | BL15: 11 | BM15: 10 | BN15: 12 | BO15: 0 | BP15: 12 | BQ15: 0 | BR15: 12 | BS15: 0 | BT15: 12 | BU15: 2 | BV15: 3 | BW15: 2 | BX15: 3 | BY15: 2 | BZ15: 4 | CA15: 3 | CB15: 5 | CC15: 0 | CD15: 12 | CE15: 0 | CF15: 12 | CG15: 0 | CH15: 12 | CI15: 60 | CJ15: 49
B16: 40 to 44 minutes | C16: 0 | D16: 12 | E16: 0 | F16: 12 | G16: 0 | H16: 12 | I16: 60 | J16: 36 | K16: 0 | L16: 12 | M16: 7 | N16: 6 | O16: 0 | P16: 12 | Q16: 10 | R16: 11 | S16: 8 | T16: 12 | U16: 7 | V16: 9 | W16: 0 | X16: 12 | Y16: 0 | Z16: 12 | AA16: 39 | AB16: 35 | AC16: 0 | AD16: 12 | AE16: 0 | AF16: 12 | AG16: 0 | AH16: 12 | AI16: 6 | AJ16: 7 | AK16: 0 | AL16: 12 | AM16: 57 | AN16: 41 | AO16: 0 | AP16: 12 | AQ16: 0 | AR16: 12 | AS16: 24 | AT16: 23 | AU16: 0 | AV16: 12 | AW16: 50 | AX16: 46 | AY16: 0 | AZ16: 12 | BA16: 0 | BB16: 12 | BC16: 13 | BD16: 10 | BE16: 0 | BF16: 12 | BG16: 24 | BH16: 17 | BI16: 0 | BJ16: 12 | BK16: 0 | BL16: 11 | BM16: 8 | BN16: 13 | BO16: 10 | BP16: 6 | BQ16: 0 | BR16: 12 | BS16: 0 | BT16: 12 | BU16: 2 | BV16: 4 | BW16: 4 | BX16: 6 | BY16: 0 | BZ16: 12 | CA16: 0 | CB16: 12 | CC16: 0 | CD16: 12 | CE16: 0 | CF16: 12 | CG16: 0 | CH16: 12 | CI16: 23 | CJ16: 26
B17: 45 to 59 minutes | C17: 0 | D17: 12 | E17: 0 | F17: 12 | G17: 0 | H17: 12 | I17: 119 | J17: 52 | K17: 0 | L17: 12 | M17: 16 | N17: 13 | O17: 0 | P17: 12 | Q17: 2 | R17: 3 | S17: 0 | T17: 12 | U17: 20 | V17: 15 | W17: 0 | X17: 12 | Y17: 0 | Z17: 12 | AA17: 7 | AB17: 8 | AC17: 0 | AD17: 12 | AE17: 0 | AF17: 12 | AG17: 19 | AH17: 13 | AI17: 18 | AJ17: 19 | AK17: 0 | AL17: 12 | AM17: 110 | AN17: 81 | AO17: 0 | AP17: 12 | AQ17: 0 | AR17: 12 | AS17: 35 | AT17: 22 | AU17: 0 | AV17: 12 | AW17: 122 | AX17: 63 | AY17: 0 | AZ17: 12 | BA17: 0 | BB17: 12 | BC17: 7 | BD17: 7 | BE17: 2 | BF17: 3 | BG17: 73 | BH17: 35 | BI17: 0 | BJ17: 12 | BK17: 0 | BL17: 11 | BM17: 2 | BN17: 4 | BO17: 7 | BP17: 6 | BQ17: 0 | BR17: 12 | BS17: 0 | BT17: 12 | BU17: 12 | BV17: 10 | BW17: 52 | BX17: 40 | BY17: 49 | BZ17: 53 | CA17: 11 | CB17: 9 | CC17: 0 | CD17: 12 | CE17: 0 | CF17: 12 | CG17: 0 | CH17: 12 | CI17: 90 | CJ17: 49
B18: 60 to 89 minutes | C18: 0 | D18: 12 | E18: 0 | F18: 12 | G18: 0 | H18: 12 | I18: 225 | J18: 116 | K18: 0 | L18: 12 | M18: 7 | N18: 7 | O18: 0 | P18: 12 | Q18: 6 | R18: 6 | S18: 61 | T18: 33 | U18: 15 | V18: 14 | W18: 0 | X18: 12 | Y18: 0 | Z18: 12 | AA18: 0 | AB18: 12 | AC18: 0 | AD18: 12 | AE18: 0 | AF18: 12 | AG18: 17 | AH18: 9 | AI18: 0 | AJ18: 12 | AK18: 0 | AL18: 12 | AM18: 76 | AN18: 55 | AO18: 0 | AP18: 12 | AQ18: 0 | AR18: 12 | AS18: 5 | AT18: 5 | AU18: 0 | AV18: 12 | AW18: 65 | AX18: 69 | AY18: 0 | AZ18: 12 | BA18: 0 | BB18: 12 | BC18: 46 | BD18: 22 | BE18: 0 | BF18: 12 | BG18: 5 | BH18: 7 | BI18: 0 | BJ18: 12 | BK18: 0 | BL18: 11 | BM18: 1 | BN18: 2 | BO18: 13 | BP18: 8 | BQ18: 0 | BR18: 12 | BS18: 0 | BT18: 12 | BU18: 14 | BV18: 11 | BW18: 6 | BX18: 6 | BY18: 9 | BZ18: 9 | CA18: 6 | CB18: 6 | CC18: 0 | CD18: 12 | CE18: 0 | CF18: 12 | CG18: 0 | CH18: 12 | CI18: 18 | CJ18: 16
B19: 90 or more minutes | C19: 0 | D19: 12 | E19: 0 | F19: 12 | G19: 0 | H19: 12 | I19: 79 | J19: 47 | K19: 0 | L19: 12 | M19: 5 | N19: 5 | O19: 0 | P19: 12 | Q19: 1 | R19: 2 | S19: 13 | T19: 12 | U19: 12 | V19: 11 | W19: 0 | X19: 12 | Y19: 0 | Z19: 12 | AA19: 0 | AB19: 12 | AC19: 0 | AD19: 12 | AE19: 3 | AF19: 9 | AG19: 5 | AH19: 5 | AI19: 0 | AJ19: 12 | AK19: 0 | AL19: 12 | AM19: 47 | AN19: 42 | AO19: 0 | AP19: 12 | AQ19: 0 | AR19: 12 | AS19: 27 | AT19: 20 | AU19: 0 | AV19: 12 | AW19: 13 | AX19: 17 | AY19: 0 | AZ19: 12 | BA19: 0 | BB19: 12 | BC19: 36 | BD19: 23 | BE19: 0 | BF19: 12 | BG19: 12 | BH19: 12 | BI19: 0 | BJ19: 12 | BK19: 0 | BL19: 11 | BM19: 38 | BN19: 46 | BO19: 15 | BP19: 10 | BQ19: 0 | BR19: 12 | BS19: 0 | BT19: 12 | BU19: 3 | BV19: 5 | BW19: 5 | BX19: 4 | BY19: 22 | BZ19: 30 | CA19: 14 | CB19: 14 | CC19: 0 | CD19: 12 | CE19: 0 | CF19: 12 | CG19: 0 | CH19: 12 | CI19: 36 | CJ19: 32
C39: 642668 | D39: 3466 | E39: 28483 | F39: 1018 | G39: 21150 | H39: 846 | I39: 36744 | J39: 934 | K39: 14089 | L39: 645 | M39: 42727 | N39: 1151 | O39: 197866 | P39: 2634 | Q39: 70876 | R39: 1467 | S39: 148355 | T39: 1823 | U39: 61589 | V39: 1595 | W39: 20789 | X39: 620
C40: Estimate

Sheet PopulationCharacteristics (hidden)
B2: =CntyDataLink!A35 -> Berlin
G3: Land Area: | I3: =((CntyDataLink!F35*10.764)/43560)/640 -> 61.72695809 | K3: Water Area: | L3: =((CntyDataLink!G35*10.764)/43560)/640 -> 0.7343403706
B4: POPULATION CHARACTERISTICS
B19: Population | C19: ="Source: US Census; Office of Planning and Development, NH BEA; "& L20&", "&P20&", and "&S20&" American Community Survey Table B01001" -> Source: US Census; Office of Planning and Development, NH BEA; 2008-2012, 2013-2017, and 2018-2022 American Community Survey Table B01001 | N19: Population by Age | P19: ="Source: "& L20&", "&P20&", and "&S20&" American Community Survey Tables B01001 and B01002" -> Source: 2008-2012, 2013-2017, and 2018-2022 American Community Survey Tables B01001 and B01002
L20: 2008-2012 | P20: 2013-2017 | S20: 2018-2022
C21: 1990 | D21: 2000 | E21: 2010 | F21: 2020 | G21: 2018-2022 | H21: 2025 | I21: 2030 | L21: Estimate | N21: Margin of Error | O21: Percent Change | P21: Estimate | Q21: Margin of Error | R21: Percent Change | S21: Estimate | T21: Margin of Error | V21: Percent Change | W21: Statistically Significant Change
C22: =CntyDataLink!$F$20 -> 11824 | D22: =CntyDataLink!$G$20 -> 10331 | E22: =CntyDataLink!$H$20 -> 10051 | F22: =CntyDataLink!$I$20 -> 9425 | G22: =CntyDataLink!$B$132 -> 9710 | H22: =CntyDataLink!$J$20 -> 9427 | I22: =CntyDataLink!$K$20 -> 9358 | K22: Under 15 yrs. | L22: =CntyDataLinkPrior10YearEstimate!$D$132 -> 1493 | N22: =CntyDataLinkPrior10YearEstimate!$E$132 -> 192.2914455 | O22: =L22/SUM($L$22:$L$29) -> 0.1474422279 | P22: =CntyDataLinkPrior5YearEstimates!$D$132 -> 1385 | Q22: =CntyDataLinkPrior5YearEstimates!$E$132 -> 171.4088679 | R22: =P22/SUM($P$22:$P$29) -> 0.1383754621 | S22: =CntyDataLink!$D$132 -> 1232 | T22: =CntyDataLink!$E$132 -> 240.5015592 | U22: =S22/SUM($S$22:$S$29) -> 0.1268795057 | V22: =(S22-P22)/P22 -> -0.1104693141 | W22: =StatisticallySignificantCalcs!$A3 -> Y
K23: 15 to 24 yrs. | L23: =CntyDataLinkPrior10YearEstimate!$F$132 -> 1139 | N23: =CntyDataLinkPrior10YearEstimate!$G$132 -> 180.5740845 | O23: =L23/SUM($L$22:$L$29) -> 0.1124827178 | P23: =CntyDataLinkPrior5YearEstimates!$F$132 -> 1165 | Q23: =CntyDataLinkPrior5YearEstimates!$G$132 -> 178.670087 | R23: 0.1163952443 | S23: =CntyDataLink!$F$132 -> 907 | T23: =CntyDataLink!$G$132 -> 182.6362505 | U23: 0.09340885685 | V23: -0.2214592275 | W23: =StatisticallySignificantCalcs!$A4 -> Y
B24: Percent Change | K24: 25 to 34 yrs. | L24: =CntyDataLinkPrior10YearEstimate!$H$132 -> 1124 | N24: =CntyDataLinkPrior10YearEstimate!$I$132 -> 145.1034114 | O24: =L24/SUM($L$22:$L$29) -> 0.1110013826 | P24: =CntyDataLinkPrior5YearEstimates!$H$132 -> 1175 | Q24: =CntyDataLinkPrior5YearEstimates!$I$132 -> 150.059988 | R24: 0.1173943451 | S24: =CntyDataLink!$H$132 -> 1540 | T24: =CntyDataLink!$I$132 -> 197.3170038 | U24: 0.1585993821 | V24: 0.3106382979 | W24: =StatisticallySignificantCalcs!$A5 -> Y
D25: 1990-2020 | E25: 2000-2020 | F25: 2010-2020 | G25: 2020-2030 | H25: 2018-2022-2025 | I25: 2025-2030 | K25: 35 to 44 yrs. | L25: =CntyDataLinkPrior10YearEstimate!$J$132 -> 1277 | N25: =CntyDataLinkPrior10YearEstimate!$K$132 -> 177.4908448 | O25: 0.1261110014 | P25: =CntyDataLinkPrior5YearEstimates!$J$132 -> 1327 | Q25: =CntyDataLinkPrior5YearEstimates!$K$132 -> 187.2057691 | R25: 0.1325806774 | S25: =CntyDataLink!$J$132 -> 1288 | T25: =CntyDataLink!$K$132 -> 231.5124187 | U25: 0.1326467559 | V25: -0.0293896006 | W25: =StatisticallySignificantCalcs!$A6 -> Y
D26: =(D22-C22)/C22 -> -0.1262686062 | E26: -0.0271028942 | F26: -0.06228235996 | G26: 0.03023872679 | H26: -0.02914521112 | I26: -0.007319401718 | K26: 45 to 54 yrs. | L26: =CntyDataLinkPrior10YearEstimate!$L$132 -> 1676 | N26: =CntyDataLinkPrior10YearEstimate!$M$132 -> 177.7048114 | O26: 0.1655145171 | P26: =CntyDataLinkPrior5YearEstimates!$L$132 -> 1573 | Q26: =CntyDataLinkPrior5YearEstimates!$M$132 -> 187.4326546 | R26: 0.1571585573 | S26: =CntyDataLink!$L$132 -> 1588 | T26: =CntyDataLink!$M$132 -> 225.2887037 | U26: 0.1635427394 | V26: 0.009535918627 | W26: =StatisticallySignificantCalcs!$A7 -> Y
K27: 55 to 64 yrs. | L27: =CntyDataLinkPrior10YearEstimate!$N$132 -> 1297 | N27: =CntyDataLinkPrior10YearEstimate!$O$132 -> 185.8816828 | O27: 0.128086115 | P27: =CntyDataLinkPrior5YearEstimates!$N$132 -> 1297 | Q27: =CntyDataLinkPrior5YearEstimates!$O$132 -> 173.7181626 | R27: 0.129583375 | S27: =CntyDataLink!$N$132 -> 1331 | T27: =CntyDataLink!$O$132 -> 238.1029189 | U27: 0.1370751802 | V27: 0.02621434079 | W27: =StatisticallySignificantCalcs!$A8 -> Y
K28: 65 to 74 yrs. | L28: =CntyDataLinkPrior10YearEstimate!$P$132 -> 962 | N28: =CntyDataLinkPrior10YearEstimate!$Q$132 -> 148.8220414 | O28: 0.09500296267 | P28: =CntyDataLinkPrior5YearEstimates!$P$132 -> 949 | Q28: =CntyDataLinkPrior5YearEstimates!$Q$132 -> 144.4645285 | R28: 0.0948146668 | S28: =CntyDataLink!$P$132 -> 1039 | T28: =CntyDataLink!$Q$132 -> 208.2378448 | U28: 0.1070030896 | V28: 0.09483667018 | W28: =StatisticallySignificantCalcs!$A9 -> Y
K29: Over 74 yrs. | L29: =CntyDataLinkPrior10YearEstimate!$R$132 -> 1158 | N29: =CntyDataLinkPrior10YearEstimate!$S$132 -> 176.1306333 | O29: 0.1143590756 | P29: =CntyDataLinkPrior5YearEstimates!$R$132 -> 1138 | Q29: =CntyDataLinkPrior5YearEstimates!$S$132 -> 155.7754795 | R29: 0.1136976721 | S29: =CntyDataLink!$R$132 -> 785 | T29: =CntyDataLink!$S$132 -> 151.4826723 | U29: 0.08084449022 | V29: -0.3101933216 | W29: =StatisticallySignificantCalcs!$A10 -> Y
K30: Median Age (years) | L30: =CntyDataLinkPrior10YearEstimate!$AX$132 -> 44.5 | N30: =CntyDataLinkPrior10YearEstimate!$AY$132 -> 1.8 | P30: =CntyDataLinkPrior5YearEstimates!$AX132 -> 42.3 | Q30: =CntyDataLinkPrior5YearEstimates!$AY$132 -> 1.5 | S30: =CntyDataLink!$AX$132 -> 43.9 | T30: =CntyDataLink!$AY$132 -> 2.9
B32: Population By Race | M32: Statistically Significant Change
M33: =IF(L36="","-",StatisticallySignificantCalcs!A20) -> Y
C34: =L20 -> 2008-2012 | F34: =P20 -> 2013-2017 | I34: =S20 -> 2018-2022 | L34: Statistically Significant Change
C35: Estimate | D35: Margin of Error | F35: Estimate | G35: Margin of Error | I35: Estimate | J35: Margin of Error | L35: 2012-2022 | M35: 2017-2022
B36: White | C36: =CntyDataLinkPrior10YearEstimate!$AL$132 -> 9573 | D36: =CntyDataLinkPrior10YearEstimate!$AM$132 -> 131 | E36: =IF(C$36="-","-",VALUE(C36/$C$41)) -> 0.9453881098 | F36: =CntyDataLinkPrior5YearEstimates!$AL$132 -> 9114 | G36: =CntyDataLinkPrior5YearEstimates!$AM$132 -> 235 | H36: =IF(F$36="-","-",VALUE(F36/$F$41)) -> 0.9105804776 | I36: =CntyDataLink!$AL$132 -> 8599 | J36: =CntyDataLink!$AM$132 -> 200 | K36: =IF(I$36="-","-",VALUE(I36/$I$41)) -> 0.8855818744 | L36: =StatisticallySignificantCalcs!A20 -> Y | M36: =StatisticallySignificantCalcs!J20 -> Y
B37: Black | C37: =CntyDataLinkPrior10YearEstimate!$AN132 -> 88 | D37: =CntyDataLinkPrior10YearEstimate!$AO$132 -> 42 | E37: =IF(C$37="-","-",VALUE(C37/$C$41)) -> 0.008690499704 | F37: =CntyDataLinkPrior5YearEstimates!$AN132 -> 577 | G37: =CntyDataLinkPrior5YearEstimates!$AO$132 -> 217 | H37: =IF(F$37="-","-",VALUE(F37/$F$41)) -> 0.05764811669 | I37: =CntyDataLink!$AN$132 -> 581 | J37: =CntyDataLink!$AO$132 -> 223 | K37: =IF(I$37="-","-",VALUE(I37/$I$41)) -> 0.05983522142 | L37: =StatisticallySignificantCalcs!A21 -> Y | M37: =StatisticallySignificantCalcs!J21 -> N
B38: American Indian | C38: =CntyDataLinkPrior10YearEstimate!$AP$132 -> 57 | D38: =CntyDataLinkPrior10YearEstimate!$AQ$132 -> 47 | E38: =IF(C$38="-","-",VALUE(C38/$C$41)) -> 0.005629073672 | F38: =CntyDataLinkPrior5YearEstimates!$AP$132 -> 32 | G38: =CntyDataLinkPrior5YearEstimates!$AQ$132 -> 36 | H38: =IF(F$38="-","-",VALUE(F38/$F$41)) -> 0.00319712259 | I38: =CntyDataLink!$AP$132 -> 1 | J38: =CntyDataLink!$AQ$132 -> 5 | K38: =IF(I$38="-","-",VALUE(I38/$I$41)) -> 0.0001029866117 | L38: =StatisticallySignificantCalcs!A22 -> Y | M38: =StatisticallySignificantCalcs!J22 -> N
B39: Asian &Pacific Is. | C39: =CntyDataLinkPrior10YearEstimate!$AR$132 -> 47 | D39: =CntyDataLinkPrior10YearEstimate!$AS$132 -> 48.70318265 | E39: =IF(C$39="-","-",VALUE(C39/$C$41)) -> 0.004641516887 | F39: =CntyDataLinkPrior5YearEstimates!$AR$132 -> 52 | G39: =CntyDataLinkPrior5YearEstimates!$AS$132 -> 54.20332093 | H39: =IF(F$39="-","-",VALUE(F39/$F$41)) -> 0.005195324208 | I39: =CntyDataLink!$AR$132 -> 31 | J39: =CntyDataLink!$AS$132 -> 39.05124838 | K39: =IF(I$39="-","-",VALUE(I39/$I$41)) -> 0.003192584964 | L39: =StatisticallySignificantCalcs!A23 -> N | M39: =StatisticallySignificantCalcs!J23 -> N
B40: Other* | C40: =CntyDataLinkPrior10YearEstimate!$AT$132 -> 131 | D40: =CntyDataLinkPrior10YearEstimate!$AU$132 -> 68.0661443 | E40: =IF(C$40="-","-",VALUE(C40/$C$41)) -> 0.01293699388 | F40: =CntyDataLinkPrior5YearEstimates!$AT$132 -> 99 | G40: =CntyDataLinkPrior5YearEstimates!$AU$132 -> 47.16990566 | H40: =IF(F$40="-","-",VALUE(F40/$F$41)) -> 0.009891098012 | I40: =CntyDataLink!$AT$132 -> 130 | J40: =CntyDataLink!$AU$132 -> 72.03471385 | K40: =IF(I$40="-","-",VALUE(I40/$I$41)) -> 0.01338825953 | L40: =StatisticallySignificantCalcs!A24 -> N | M40: =StatisticallySignificantCalcs!J24 -> N
B41: Total Population | C41: =CntyDataLinkPrior10YearEstimate!$B$132 -> 10126 | D41: =CntyDataLinkPrior10YearEstimate!$C$132 -> 24 | F41: =CntyDataLinkPrior5YearEstimates!$B$132 -> 10009 | G41: =CntyDataLinkPrior5YearEstimates!$C$132 -> 32 | I41: =CntyDataLink!$B$132 -> 9710 | J41: =CntyDataLink!$C$132 -> 32
B42: Hispanic | C42: =CntyDataLinkPrior10YearEstimate!$AV$132 -> 113 | D42: =CntyDataLinkPrior10YearEstimate!$AW$132 -> 65 | E42: =IF(C$42="-","-",VALUE(C42/$C$41)) -> 0.01115939167 | F42: =CntyDataLinkPrior5YearEstimates!$AV132 -> 399 | G42: =CntyDataLinkPrior5YearEstimates!$AW$132 -> 111 | H42: =IF(F$42="-","-",VALUE(F42/$F$41)) -> 0.03986412229 | I42: =CntyDataLink!$AV$132 -> 368 | J42: =CntyDataLink!$AW$132 -> 77 | K42: =IF(I$42="-","-",VALUE(I42/$I$41)) -> 0.03789907312 | L42: =StatisticallySignificantCalcs!A26 -> Y | M42: =StatisticallySignificantCalcs!J26 -> Y
B44: * | C44: Other includes population of 2 or more races
B46: ="Source: "& L20&", "&P20&", and "&S20&" American Community Survey Table B03002" -> Source: 2008-2012, 2013-2017, and 2018-2022 American Community Survey Table B03002
C48: Households and Families
D49: =L20 -> 2008-2012 | G49: =P20 -> 2013-2017 | J49: =S20 -> 2018-2022 | N49: Percent Change | P49: Percent Change
D50: Estimate | E50: Margin of Error | G50: Estimate | H50: Margin of Error | J50: Estimate | K50: Margin of Error | N50: =L35 -> 2012-2022 | P50: =M35 -> 2017-2022
C51: Total Households | D51: =CntyDataLinkPrior10YearEstimate!$T$132 -> 9136 | E51: =CntyDataLinkPrior10YearEstimate!$U$132 -> 184 | G51: =CntyDataLinkPrior5YearEstimates!$T$132 -> 3941 | H51: =CntyDataLinkPrior5YearEstimates!$U$132 -> 217 | J51: =CntyDataLink!$T$132 -> 3759 | K51: =CntyDataLink!$U$132 -> 250 | N51: =(J51-D51)/D51 -> -0.5885507881 | P51: =(J51-G51)/G51 -> -0.04618117229
C52: Persons per Household | D52: =CntyDataLinkPrior10YearEstimate!$BD$132 -> 2.040196516 | E52: =CntyDataLinkPrior10YearEstimate!$BE$132 -> 0.09705845873 | G52: =CntyDataLinkPrior5YearEstimates!$BD$132 -> 2.167216443 | H52: =CntyDataLinkPrior5YearEstimates!$BE$132 -> 0.161479386 | J52: =CntyDataLink!$BD$132 -> 2.15216813 | K52: =CntyDataLink!$BE$132 -> 0.161479386 | N52: 0.0548827589 | P52: -0.006943613204
C53: Family Households | D53: =CntyDataLinkPrior10YearEstimate!$V$132 -> 6991 | E53: =CntyDataLinkPrior10YearEstimate!$U$132 -> 184 | G53: =CntyDataLinkPrior5YearEstimates!$V$132 -> 2402 | H53: =CntyDataLinkPrior5YearEstimates!$U$132 -> 217 | J53: =CntyDataLink!$V$132 -> 2263 | K53: =CntyDataLink!$U$132 -> 250 | N53: -0.6762980976 | P53: -0.05786844296
C54: Persons per Family Household | D54: =CntyDataLinkPrior10YearEstimate!$BF$132 -> 2.719175418 | E54: =CntyDataLinkPrior10YearEstimate!$BG$132 -> 0.1858934721 | G54: =CntyDataLinkPrior5YearEstimates!$BF$132 -> 2.825978351 | H54: =CntyDataLinkPrior5YearEstimates!$BG$132 -> 0.2536393058 | J54: =CntyDataLink!$BF$132 -> 2.840919134 | K54: =CntyDataLink!$BG$132 -> 0.2536393058 | N54: 0.04477229198 | P54: 0.005286941604
C55: Married-Couple Family Hh | D55: =CntyDataLinkPrior10YearEstimate!$X$132 -> 5199 | E55: =CntyDataLinkPrior10YearEstimate!$Y$132 -> 419 | G55: =CntyDataLinkPrior5YearEstimates!$X$132 -> 1709 | H55: =CntyDataLinkPrior5YearEstimates!$Y$132 -> 160 | J55: =CntyDataLink!$X$132 -> 1583 | K55: =CntyDataLink!$Y$132 -> 197 | N55: -0.6955183689 | P55: -0.07372732592
C56: Single-Parent Family Hh | D56: =CntyDataLinkPrior10YearEstimate!$Z$132 -> 5149 | E56: =CntyDataLinkPrior10YearEstimate!$AA$132 -> 417 | G56: =CntyDataLinkPrior5YearEstimates!$Z$132 -> 693 | H56: =CntyDataLinkPrior5YearEstimates!$AA$132 -> 135 | J56: =CntyDataLink!$Z$132 -> 680 | K56: =CntyDataLink!$AA$132 -> 183 | N56: -0.8679355215 | P56: -0.01875901876
C57: Non-Family Households* | D57: =CntyDataLinkPrior10YearEstimate!$AF$132 -> 624 | E57: =CntyDataLinkPrior10YearEstimate!$AG$132 -> 247 | G57: =CntyDataLinkPrior5YearEstimates!$AF$132 -> 1539 | H57: =CntyDataLinkPrior5YearEstimates!$AG$132 -> 221 | J57: =CntyDataLink!$AF$132 -> 1496 | K57: =CntyDataLink!$AG$132 -> 249 | N57: 1.397435897 | P57: -0.02794022092
C58: Persons per Non-Family Hh | D58: =CntyDataLinkPrior10YearEstimate!$BH$132 -> 1.124803356 | E58: =CntyDataLinkPrior10YearEstimate!$BI$132 -> 0.1889612235 | G58: =CntyDataLinkPrior5YearEstimates!$BH$132 -> 1.139051332 | H58: =CntyDataLinkPrior5YearEstimates!$BI$132 -> 0.2683079812 | J58: =CntyDataLink!$BH$132 -> 1.110294118 | K58: =CntyDataLink!$BI$132 -> 0.2683079812 | N58: -0.01289935555 | P58: -0.02524663602
B61: As a result of changes in the American Community Survey, direct comparisons between the data should be made with caution.
B63: ="Source: "&L20&", "&P20&", and "&S20&" American Community Survey Table B11001" -> Source: 2008-2012, 2013-2017, and 2018-2022 American Community Survey Table B11001
B64: POPULATION CHARACTERISTICS

Sheet SchoolEnrolEduAttain (hidden)
C2: =CntyDataLink!A50 -> Berlin
C3: SOCIAL CHARACTERISTICS
C21: School Enrollment | F21: 2008-2012 | I21: 2013-2017 | L21: 2018-2022 | P21: Statistically Significant Change
F22: Estimate | G22: Margin of Error | H22: Percent of Population | I22: Estimate | J22: Margin of Error | K22: Percent of Population | L22: Estimate | M22: Margin of Error | N22: Percent of Population | P22: 2012-2022 | Q22: 2017-2022
C23: Population 3 years and over | F23: =CntyDataLinkPrior10YearEstimate!$B$140 -> 9734 | G23: =CntyDataLinkPrior10YearEstimate!$C$140 -> 96 | I23: =CntyDataLinkPrior5YearEstimates!$B$140 -> 10028 | J23: =CntyDataLinkPrior5YearEstimates!$C$140 -> 83 | L23: =CntyDataLink!$B$140 -> 9487 | M23: =CntyDataLink!$C$140 -> 106 | P23: =StatisticallySignificantCalcs!$A$45 -> Y | Q23: =StatisticallySignificantCalcs!$J$45 -> Y
C24: Population 3 years & over enrolled in school | F24: =CntyDataLinkPrior10YearEstimate!$D$140 -> 1784 | G24: =CntyDataLinkPrior10YearEstimate!$E$140 -> 189 | H24: =F24/$F$23 -> 0.1832751181 | I24: =CntyDataLinkPrior5YearEstimates!$D$140 -> 1862 | J24: =CntyDataLinkPrior5YearEstimates!$E$140 -> 232 | K24: =I24/$I$23 -> 0.1856800957 | L24: =CntyDataLink!$D$140 -> 1498 | M24: =CntyDataLink!$E$140 -> 226 | N24: =L24/$L$23 -> 0.1579002846 | P24: =StatisticallySignificantCalcs!$A$46 -> N | Q24: =StatisticallySignificantCalcs!$J$46 -> Y
C25: Preprimary (Nursery, Preschool, Kindergarten) | F25: =CntyDataLinkPrior10YearEstimate!$F$140 -> 201 | G25: =CntyDataLinkPrior10YearEstimate!$G$140 -> 69.8140387 | H25: 0.0206492706 | I25: =CntyDataLinkPrior5YearEstimates!$F$140 -> 264 | J25: =CntyDataLinkPrior5YearEstimates!$G$140 -> 110.2088926 | K25: =I25/$I$23 -> 0.0263262864 | L25: =CntyDataLink!$F$140 -> 155 | M25: =CntyDataLink!$G$140 -> 81.43709229 | N25: =L25/$L$23 -> 0.01633814694 | P25: =StatisticallySignificantCalcs!$A$47 -> N | Q25: =StatisticallySignificantCalcs!$J$47 -> N
C26: Nursery school and Preschool | F26: =CntyDataLinkPrior10YearEstimate!$H$140 -> 120 | G26: =CntyDataLinkPrior10YearEstimate!$I$140 -> 43 | H26: 0.01232792275 | I26: =CntyDataLinkPrior5YearEstimates!$H$140 -> 164 | J26: =CntyDataLinkPrior5YearEstimates!$I$140 -> 89 | K26: 0.01635420822 | L26: =CntyDataLink!$H$140 -> 10 | M26: =CntyDataLink!$I$140 -> 12 | N26: 0.001054073996 | P26: =StatisticallySignificantCalcs!$A$48 -> Y | Q26: =StatisticallySignificantCalcs!$J$48 -> Y
C27: Kindergarten | F27: =CntyDataLinkPrior10YearEstimate!$J$140 -> 81 | G27: =CntyDataLinkPrior10YearEstimate!$K$140 -> 55 | H27: 0.008321347853 | I27: =CntyDataLinkPrior5YearEstimates!$J$140 -> 100 | J27: =CntyDataLinkPrior5YearEstimates!$K$140 -> 65 | K27: 0.009972078181 | L27: =CntyDataLink!$J$140 -> 4 | M27: =CntyDataLink!$K$140 -> 6 | N27: 0.0004216295984 | P27: =StatisticallySignificantCalcs!$A$49 -> Y | Q27: =StatisticallySignificantCalcs!$J$49 -> Y
C28: Elementary through High school | F28: =CntyDataLinkPrior10YearEstimate!$P$140 -> 1203 | G28: =CntyDataLinkPrior10YearEstimate!$Q$140 -> 179.4380116 | H28: 0.1235874255 | I28: =CntyDataLinkPrior5YearEstimates!$P$140 -> 1185 | J28: =CntyDataLinkPrior5YearEstimates!$Q$140 -> 206.5260274 | K28: 0.1181691264 | L28: =CntyDataLink!$P$140 -> 1099 | M28: =CntyDataLink!$Q$140 -> 226.903063 | N28: 0.1158427322 | P28: =StatisticallySignificantCalcs!$A$50 -> N | Q28: =StatisticallySignificantCalcs!$J$50 -> N
C29: Elementary school (grades 1-8) | F29: =CntyDataLinkPrior10YearEstimate!$L$140 -> 754 | G29: =CntyDataLinkPrior10YearEstimate!$M$140 -> 141.7674152 | H29: 0.07746044791 | I29: =CntyDataLinkPrior5YearEstimates!$L$140 -> 715 | J29: =CntyDataLinkPrior5YearEstimates!$M$140 -> 158.8363938 | K29: 0.07130035899 | L29: =CntyDataLink!$L$140 -> 688 | M29: =CntyDataLink!$M$140 -> 195.0102561 | N29: 0.07252029092 | P29: =StatisticallySignificantCalcs!$A$51 -> N | Q29: =StatisticallySignificantCalcs!$J$51 -> N
C30: High school (grades 9-12) | F30: =CntyDataLinkPrior10YearEstimate!$N$140 -> 449 | G30: =CntyDataLinkPrior10YearEstimate!$O$140 -> 110 | H30: 0.0461269776 | I30: =CntyDataLinkPrior5YearEstimates!$N$140 -> 470 | J30: =CntyDataLinkPrior5YearEstimates!$O$140 -> 132 | K30: 0.04686876745 | L30: =CntyDataLink!$N$140 -> 411 | M30: =CntyDataLink!$O$140 -> 116 | N30: 0.04332244124 | P30: =StatisticallySignificantCalcs!$A$52 -> N | Q30: =StatisticallySignificantCalcs!$J$52 -> N
C31: College or Graduate School | F31: =CntyDataLinkPrior10YearEstimate!$R$140 -> 380 | G31: =CntyDataLinkPrior10YearEstimate!$S$140 -> 123.7618681 | H31: 0.03903842203 | I31: =CntyDataLinkPrior5YearEstimates!$R$140 -> 413 | J31: =CntyDataLinkPrior5YearEstimates!$S$140 -> 161.0124219 | K31: 0.04118468289 | L31: =CntyDataLink!$R$140 -> 244 | M31: =CntyDataLink!$S$140 -> 111.9866063 | N31: 0.0257194055 | P31: =StatisticallySignificantCalcs!$A$53 -> N | Q31: =StatisticallySignificantCalcs!$J$53 -> N
C33: ="Source: "&F21&", "& I21&" and "&L21&" American Community Survey Table B14001" -> Source: 2008-2012, 2013-2017 and 2018-2022 American Community Survey Table B14001
C50: Educational Attainment | F50: =F21 -> 2008-2012 | I50: =I21 -> 2013-2017 | L50: =L21 -> 2018-2022 | P50: Statistically Significant Change
F51: Estimate | G51: Margin of Error | H51: Percent of Population | I51: Estimate | J51: Margin of Error | K51: Percent of Population | L51: Estimate | M51: Margin of Error | N51: Percent of Population | P51: =P22 -> 2012-2022 | Q51: =Q22 -> 2017-2022
C52: Population 25 years and over | F52: =CntyDataLinkPrior10YearEstimate!$V$140 -> 7459 | G52: =CntyDataLinkPrior10YearEstimate!$W$140 -> 166 | I52: =CntyDataLinkPrior5YearEstimates!$V$140 -> 7838 | J52: =CntyDataLinkPrior5YearEstimates!$W$140 -> 190 | L52: =CntyDataLink!$V$140 -> 7571 | M52: =CntyDataLink!$W$140 -> 228 | P52: =StatisticallySignificantCalcs!A54 -> N | Q52: =StatisticallySignificantCalcs!$J$54 -> N
C53: Less than 9th Grade | F53: =CntyDataLinkPrior10YearEstimate!$X$140 -> 309 | G53: =CntyDataLinkPrior10YearEstimate!$Y$140 -> 90.35485598 | H53: =F53/$F$52 -> 0.04142646467 | I53: =CntyDataLinkPrior5YearEstimates!$X$140 -> 327 | J53: =CntyDataLinkPrior5YearEstimates!$Y$140 -> 119.9583261 | K53: =I53/$I$52 -> 0.04171982649 | L53: =CntyDataLink!$X$140 -> 303 | M53: =CntyDataLink!$Y$140 -> 110.2678557 | N53: =L53/$L$52 -> 0.04002113327 | P53: =StatisticallySignificantCalcs!A55 -> N | Q53: =StatisticallySignificantCalcs!$J$55 -> N
C54: 9th to 12th Grade, no Diploma | F54: =CntyDataLinkPrior10YearEstimate!$Z$140 -> 1093 | G54: =CntyDataLinkPrior10YearEstimate!$AA$140 -> 182.3814684 | H54: =F54/$F$52 -> 0.146534388 | I54: =CntyDataLinkPrior5YearEstimates!$Z$140 -> 655 | J54: =CntyDataLinkPrior5YearEstimates!$AA$140 -> 161.8054387 | K54: =I54/$I$52 -> 0.08356723654 | L54: =CntyDataLink!$Z$140 -> 660 | M54: =CntyDataLink!$AA$140 -> 171.204556 | N54: =L54/$L$52 -> 0.08717474574 | P54: =StatisticallySignificantCalcs!A56 -> N | Q54: =StatisticallySignificantCalcs!$J$56 -> N
C55: High School Graduate | F55: =CntyDataLinkPrior10YearEstimate!$AB$140 -> 2950 | G55: =CntyDataLinkPrior10YearEstimate!$AC$140 -> 267.0880005 | H55: 0.3954953747 | I55: =CntyDataLinkPrior5YearEstimates!$AB$140 -> 3687 | J55: =CntyDataLinkPrior5YearEstimates!$AC$140 -> 295.2033198 | K55: 0.4704006124 | L55: =CntyDataLink!$AB$140 -> 3052 | M55: =CntyDataLink!$AC$140 -> 354.3557534 | N55: 0.4031171576 | P55: =StatisticallySignificantCalcs!A57 -> Y | Q55: =StatisticallySignificantCalcs!$J$57 -> Y
C56: Some College, No Degree | F56: =CntyDataLinkPrior10YearEstimate!$AD$140 -> 1394 | G56: =CntyDataLinkPrior10YearEstimate!$AE$140 -> 196.7536531 | H56: 0.1868883228 | I56: =CntyDataLinkPrior5YearEstimates!$AD$140 -> 1346 | J56: =CntyDataLinkPrior5YearEstimates!$AE$140 -> 227.8222992 | K56: 0.1717274815 | L56: =CntyDataLink!$AD$140 -> 1445 | M56: =CntyDataLink!$AE$140 -> 252.0654677 | N56: 0.19085986 | P56: =StatisticallySignificantCalcs!A58 -> N | Q56: =StatisticallySignificantCalcs!$J$58 -> N
C57: Associate Degree | F57: =CntyDataLinkPrior10YearEstimate!$AF$140 -> 767 | G57: =CntyDataLinkPrior10YearEstimate!$AG$140 -> 164.7573974 | H57: 0.1028287974 | I57: =CntyDataLinkPrior5YearEstimates!$AF$140 -> 772 | J57: =CntyDataLinkPrior5YearEstimates!$AG$140 -> 164.8393157 | K57: 0.09849451391 | L57: =CntyDataLink!$AF$140 -> 916 | M57: =CntyDataLink!$AG$140 -> 204.413796 | N57: 0.1209879805 | P57: =StatisticallySignificantCalcs!A59 -> N | Q57: =StatisticallySignificantCalcs!$J$59 -> N
C58: Bachelor's Degree | F58: =CntyDataLinkPrior10YearEstimate!$AH$140 -> 579 | G58: =CntyDataLinkPrior10YearEstimate!$AI$140 -> 134.0634178 | H58: 0.07762434643 | I58: =CntyDataLinkPrior5YearEstimates!$AH$140 -> 803 | J58: =CntyDataLinkPrior5YearEstimates!$AI$140 -> 151.4001321 | K58: 0.1024496045 | L58: =CntyDataLink!$AH$140 -> 803 | M58: =CntyDataLink!$AI$140 -> 169.0118339 | N58: 0.1060626073 | P58: =StatisticallySignificantCalcs!A60 -> N | Q58: =StatisticallySignificantCalcs!$J$60 -> N
C59: Graduate or Professional Degree | F59: =CntyDataLinkPrior10YearEstimate!$AJ$140 -> 108 | G59: =CntyDataLinkPrior10YearEstimate!$AK$140 -> 64.78425735 | H59: 0.0144791527 | I59: =CntyDataLinkPrior5YearEstimates!$AJ$140 -> 184 | J59: =CntyDataLinkPrior5YearEstimates!$AK$140 -> 66.05300902 | K59: 0.02347537637 | L59: =CntyDataLink!$AJ$140 -> 335 | M59: =CntyDataLink!$AK$140 -> 147.0646117 | N59: 0.04424778761 | P59: =StatisticallySignificantCalcs!A61 -> N | Q59: =StatisticallySignificantCalcs!$J$61 -> N
C61: Percent of High School Graduate or Higher | H61: =SUM(F55:F59)/F52 -> 0.7773159941 | K61: =SUM(I55:I59)/I52 -> 0.8665475887 | N61: =SUM(L55:L59)/L52 -> 0.8652753929
C62: Percent of Bachelor's Degree or Higher | H62: =SUM(F58:F59)/F52 -> 0.09210349913 | K62: =SUM(I58:I59)/I52 -> 0.1259249809 | N62: =SUM(L58:L59)/L52 -> 0.1503103949
C64: ="Source: "&F21&", "&I21&" and "&L21&" American Community Survey Table B15002" -> Source: 2008-2012, 2013-2017 and 2018-2022 American Community Survey Table B15002 | H64: Data from the American Community Survey are estimates
C66: As a result of changes in the American Community Survey, direct comparisons between the data should be made with caution.
C67: be made with caution.
B85: Data Set: 2008-2012 American Community Survey 5-Year Estimates

Sheet HousingCharacteristics (hidden)
B2: =CntyDataLink!$A35 -> Berlin
B4: HOUSING CHARACTERISTICS
D27: ="Source: "& " "&D69&", "&G69&" and "&J69& " American Community Survey Table B25004; B25024; B25032" -> Source: 2008-2012, 2013-2017 and 2018-2022 American Community Survey Table B25004; B25024; B25032
B28: Units by Tenure & Vacancy
C30: 2008-2012 | F30: 2013-2017 | I30: 2018-2022 | L30: Percent Change | O30: Statistically Significant Change
C31: Estimate | D31: Margin of Error | E31: % | F31: Estimate | G31: Margin of Error | H31: % | I31: Estimate | J31: Margin of Error | K31: % | L31: 2012-2022 | M31: 2017-2022 | O31: =L31 -> 2012-2022 | P31: 2017-2022
B32: Total Units | C32: =CntyDataLinkPrior10YearEstimate!$B$108 -> 5040 | D32: =CntyDataLinkPrior5YearEstimates!$C$108 -> 233 | F32: =CntyDataLinkPrior5YearEstimates!$B$108 -> 4832 | G32: =CntyDataLinkPrior5YearEstimates!$C$108 -> 233 | I32: =CntyDataLink!$B$108 -> 4352 | J32: =CntyDataLink!$C$108 -> 266 | L32: =IF(I32="-","-",(I32-C32)/C32) -> -0.1365079365 | M32: =IF(I32="-","-",(I32-F32)/F32) -> -0.09933774834 | O32: =StatisticallySignificantCalcs!$A62 -> Y | P32: =StatisticallySignificantCalcs!$J62 -> Y
B33: Occupied Units | C33: =CntyDataLinkPrior10YearEstimate!$D$108 -> 4457 | D33: =CntyDataLinkPrior5YearEstimates!$E$108 -> 215 | E33: =ROUND(C33/C32,2)*100&"% of Total" -> 88% of Total | F33: =CntyDataLinkPrior5YearEstimates!$D$108 -> 4015 | G33: =CntyDataLinkPrior5YearEstimates!$E$108 -> 215 | H33: =ROUND(F33/F32,2)*100&"% of Total" -> 83% of Total | I33: =CntyDataLink!$D$108 -> 3759 | J33: =CntyDataLink!$E$108 -> 250 | K33: =ROUND(I33/I32,2)*100&"% of Total" -> 86% of Total | L33: =IF(I33="-","-",(I33-C33)/C33) -> -0.1566075836 | M33: -0.06376089664 | O33: =StatisticallySignificantCalcs!$A63 -> Y | P33: =StatisticallySignificantCalcs!$J63 -> N
B34: Owner Occupied | C34: =CntyDataLinkPrior10YearEstimate!$F$108 -> 2928 | D34: =CntyDataLinkPrior5YearEstimates!$G$108 -> 204 | E34: =ROUND(C34/C33,2)*100&"% of Occ." -> 66% of Occ. | F34: =CntyDataLinkPrior5YearEstimates!$F$108 -> 2472 | G34: =CntyDataLinkPrior5YearEstimates!$G$108 -> 204 | H34: =ROUND(F34/F33,2)*100&"% of Occ." -> 62% of Occ. | I34: =CntyDataLink!$F$108 -> 2374 | J34: =CntyDataLink!$G$108 -> 212 | K34: =ROUND(I34/I33,2)*100&"% of Occ." -> 63% of Occ. | L34: =IF(I34="-","-",(I34-C34)/C34) -> -0.1892076503 | M34: -0.03964401294 | O34: =StatisticallySignificantCalcs!$A64 -> Y | P34: =StatisticallySignificantCalcs!$J64 -> N
B35: Renter Occupied | C35: =CntyDataLinkPrior10YearEstimate!$H$108 -> 1529 | D35: =CntyDataLinkPrior5YearEstimates!$I$108 -> 212 | E35: =ROUND(C35/C33,2)*100&"% of Occ." -> 34% of Occ. | F35: =CntyDataLinkPrior5YearEstimates!$H$108 -> 1543 | G35: =CntyDataLinkPrior5YearEstimates!$I$108 -> 212 | H35: =ROUND(F35/F33,2)*100&"% of Occ." -> 38% of Occ. | I35: =CntyDataLink!$H$108 -> 1385 | J35: =CntyDataLink!$I$108 -> 243 | K35: =ROUND(I35/I33,2)*100&"% of Occ." -> 37% of Occ. | L35: =IF(I35="-","-",(I35-C35)/C35) -> -0.09417920209 | M35: -0.1023979261 | O35: =StatisticallySignificantCalcs!$A65 -> N | P35: =StatisticallySignificantCalcs!$J65 -> N
B36: Vacant Units | C36: =CntyDataLinkPrior10YearEstimate!$J$108 -> 583 | D36: =CntyDataLinkPrior5YearEstimates!$K$108 -> 160 | E36: =ROUND(C36/C32,2)*100&"% of Total" -> 12% of Total | F36: =CntyDataLinkPrior5YearEstimates!$J$108 -> 817 | G36: =CntyDataLinkPrior5YearEstimates!$K$108 -> 160 | H36: =ROUND(F36/F32,2)*100&"% of Total" -> 17% of Total | I36: =CntyDataLink!$J$108 -> 593 | J36: =CntyDataLink!$K$108 -> 158 | K36: =ROUND(I36/I32,2)*100&"% of Total" -> 14% of Total | L36: =IF(I36="-",I36,VALUE((I36-C36)/C36)) -> 0.01715265866 | M36: -0.2741738066 | O36: =StatisticallySignificantCalcs!$A66 -> N | P36: =StatisticallySignificantCalcs!$J66 -> N
B37: Vacant For Sale | C37: =CntyDataLinkPrior10YearEstimate!$P$108 -> 88 | D37: =CntyDataLinkPrior5YearEstimates!$Q$108 -> 82 | E37: =ROUND(C37/(C34+C37),3)*100&"% Vac." -> 2.9% Vac. | F37: =CntyDataLinkPrior5YearEstimates!$P$108 -> 115 | G37: =CntyDataLinkPrior5YearEstimates!$Q$108 -> 82 | H37: =ROUND(F37/(F$36),3)*100&"% Vac." -> 14.1% Vac. | I37: =CntyDataLink!$P$108 -> 57 | J37: =CntyDataLink!$Q$108 -> 52 | K37: =ROUND(I37/(I$36),3)*100&"% Vac." -> 9.6% Vac. | L37: =IF(I37="-",I37,VALUE((I37-C37)/C37)) -> -0.3522727273 | M37: -0.5043478261 | O37: =StatisticallySignificantCalcs!$A67 -> N | P37: =StatisticallySignificantCalcs!$J67 -> N
B38: Vacant For Rent | C38: =CntyDataLinkPrior10YearEstimate!$L$108 -> 92 | D38: =CntyDataLinkPrior5YearEstimates!$M$108 -> 55 | E38: =ROUND(C38/(C35+C38),3)*100&"% Vac." -> 5.7% Vac. | F38: =CntyDataLinkPrior5YearEstimates!$L$108 -> 49 | G38: =CntyDataLinkPrior5YearEstimates!$M$108 -> 55 | H38: =ROUND(F38/(F$36),3)*100&"% Vac." -> 6% Vac. | I38: =CntyDataLink!$L$108 -> 74 | J38: =CntyDataLink!$M$108 -> 70 | K38: =ROUND(I38/(I$36),3)*100&"% Vac." -> 12.5% Vac. | L38: =IF(I38="-",I38,VALUE((I38-C38)/C38)) -> -0.1956521739 | M38: 0.5102040816 | O38: =StatisticallySignificantCalcs!$A68 -> N | P38: =StatisticallySignificantCalcs!$J68 -> N
B39: Vacant Seasonal | C39: =CntyDataLinkPrior10YearEstimate!$T$108 -> 100 | D39: =CntyDataLinkPrior5YearEstimates!$U$108 -> 78 | E39: =ROUND(C39/C32,2)*100&"% of Total" -> 2% of Total | F39: =CntyDataLinkPrior5YearEstimates!$T$108 -> 119 | G39: =CntyDataLinkPrior5YearEstimates!$U$108 -> 78 | H39: =ROUND(F39/(F$36),3)*100&"% Vac." -> 14.6% Vac. | I39: =CntyDataLink!$T$108 -> 185 | J39: =CntyDataLink!$U$108 -> 103 | K39: =ROUND(I39/(I$36),3)*100&"% Vac." -> 31.2% Vac. | L39: =IF(I39="-",I39,VALUE((I39-C39)/C39)) -> 0.85 | M39: 0.5546218487 | O39: =StatisticallySignificantCalcs!$A69 -> N | P39: =StatisticallySignificantCalcs!$J69 -> N
B41: Data from the American Community Survey are estimates
B44: HOUSING CHARACTERISTICS
D65: ="Source: "& " "&D69&", "&G69&" and "&J69& " American Community Survey Table B25024; B25032" -> Source: 2008-2012, 2013-2017 and 2018-2022 American Community Survey Table B25024; B25032
C67: Units by Type
D69: =C30 -> 2008-2012 | G69: =F30 -> 2013-2017 | J69: =I30 -> 2018-2022 | M69: Percent Change | O69: Statistically Significant Change
D70: Estimate | E70: Margin of Error | F70: % of Total | G70: Estimate | H70: Margin of Error | I70: % of Total | J70: Estimate | K70: Margin of Error | L70: % of Total | M70: =L31 -> 2012-2022 | N70: =M31 -> 2017-2022 | O70: =O31 -> 2012-2022 | P70: =P31 -> 2017-2022
C71: Total Units | D71: =CntyDataLinkPrior10YearEstimate!$B$108 -> 5040 | E71: =CntyDataLinkPrior10YearEstimate!$C$108 -> 232 | G71: =CntyDataLinkPrior5YearEstimates!$B$108 -> 4832 | H71: =CntyDataLinkPrior5YearEstimates!$C$108 -> 233 | J71: =CntyDataLink!$B$108 -> 4352 | K71: =CntyDataLink!$C$108 -> 266 | O71: =StatisticallySignificantCalcs!$A70 -> Y | P71: =StatisticallySignificantCalcs!$J70 -> Y
C72: Single Family Units | D72: =CntyDataLinkPrior10YearEstimate!$AT$108 -> 2858 | E72: =CntyDataLinkPrior10YearEstimate!$AU$108 -> 237 | F72: =IF(D72="-","-",($D$72/$D$71)) -> 0.5670634921 | G72: =CntyDataLinkPrior5YearEstimates!$AT$108 -> 2767 | H72: =CntyDataLinkPrior5YearEstimates!$AU$108 -> 286 | I72: =IF(G72="-","-",($G$72/$G$71)) -> 0.5726407285 | J72: =CntyDataLink!$AT$108 -> 2505 | K72: =CntyDataLink!$AU$108 -> 215 | L72: =IF(J72="-","-",($J$72/$J$71)) -> 0.5755974265 | M72: =IF(J72="-","-",($J72-$D72)/$D72) -> -0.1235129461 | N72: =IF(J72="-","-",($J72-$G72)/$G72) -> -0.09468738706 | O72: =StatisticallySignificantCalcs!$A71 -> Y | P72: =StatisticallySignificantCalcs!$J71 -> N
C73: SF Owner Occ. | D73: =CntyDataLinkPrior10YearEstimate!$AF$108 -> 2533 | E73: =CntyDataLinkPrior10YearEstimate!$AG$108 -> 213 | G73: =CntyDataLinkPrior5YearEstimates!$AF$108 -> 2096 | H73: =CntyDataLinkPrior5YearEstimates!$AG$108 -> 186 | J73: =CntyDataLink!$AF$108 -> 2015 | K73: =CntyDataLink!$AG$108 -> 190 | O73: =StatisticallySignificantCalcs!$A72 -> Y | P73: =StatisticallySignificantCalcs!$J72 -> N
C74: SF Renter Occ. | D74: =CntyDataLinkPrior10YearEstimate!$AN$108 -> 103 | E74: =CntyDataLinkPrior10YearEstimate!$AO$108 -> 63 | G74: =CntyDataLinkPrior5YearEstimates!$AN$108 -> 170 | H74: =CntyDataLinkPrior5YearEstimates!$AO$108 -> 89 | J74: =CntyDataLink!$AN$108 -> 211 | K74: =CntyDataLink!$AO$108 -> 123 | O74: =StatisticallySignificantCalcs!$A73 -> N | P74: =StatisticallySignificantCalcs!$J73 -> N
C75: Multi-family Units | D75: =CntyDataLinkPrior10YearEstimate!$AV$108 -> 2149 | E75: =CntyDataLinkPrior10YearEstimate!$AW$108 -> 277.0866291 | F75: =IF(D75="-","-",$D$75/$D$71) -> 0.4263888889 | G75: =CntyDataLinkPrior5YearEstimates!$AV$108 -> 2202 | H75: =CntyDataLinkPrior5YearEstimates!$AW$108 -> 281.3129929 | I75: =IF(G75="-","-",$G$75/$G$71) -> 0.4557119205 | J75: =CntyDataLink!$AV$108 -> 1819 | K75: =CntyDataLink!$AW$108 -> 292.7268351 | L75: =IF(J75="-","-",$J$75/$J$71) -> 0.41796875 | M75: =IF(J75="-","-",($J75-$D75)/$D75) -> -0.1535597953 | N75: =IF(J75="-","-",($J75-$G75)/$G75) -> -0.1739327884 | O75: =StatisticallySignificantCalcs!$A74 -> N | P75: =StatisticallySignificantCalcs!$J74 -> N
C76: MF Owner Occ. | D76: =CntyDataLinkPrior10YearEstimate!$AH$108 -> 377 | E76: =CntyDataLinkPrior10YearEstimate!$AI$108 -> 185.4561943 | G76: =CntyDataLinkPrior5YearEstimates!$AH$108 -> 312 | H76: =CntyDataLinkPrior5YearEstimates!$AI$108 -> 92.67685795 | J76: =CntyDataLink!$AH$108 -> 331 | K76: =CntyDataLink!$AI$108 -> 116.8973909 | O76: =StatisticallySignificantCalcs!$A75 -> N | P76: =StatisticallySignificantCalcs!$J75 -> N
C77: MF Renter Occ. | D77: =CntyDataLinkPrior10YearEstimate!$AP$108 -> 1411 | E77: =CntyDataLinkPrior10YearEstimate!$AQ$108 -> 219.3057227 | G77: =CntyDataLinkPrior5YearEstimates!$AP$108 -> 1373 | H77: =CntyDataLinkPrior5YearEstimates!$AQ$108 -> 219.4401969 | J77: =CntyDataLink!$AP$108 -> 1174 | K77: =CntyDataLink!$AQ$108 -> 247.6812468 | O77: =StatisticallySignificantCalcs!$A76 -> N | P77: =StatisticallySignificantCalcs!$J76 -> N
C78: Mobile Home & Other | D78: =CntyDataLinkPrior10YearEstimate!$AX$108 -> 33 | E78: =CntyDataLinkPrior10YearEstimate!$AY$108 -> 90.82400564 | F78: =IF(D78="-","-",($D$78/$D$71)) -> 0.006547619048 | G78: =CntyDataLinkPrior5YearEstimates!$AX$108 -> 38 | H78: =CntyDataLinkPrior5YearEstimates!$AY$108 -> 117.6307783 | I78: =IF(G78="-","-",($G$78/$G$71)) -> 0.007864238411 | J78: =CntyDataLink!$AX$108 -> 28 | K78: =CntyDataLink!$AY$108 -> 27.80287755 | L78: =IF(J78="-","-",($J$78/$J$71)) -> 0.006433823529 | M78: =IF(J78="-","-",($J78-$D78)/$D78) -> -0.1515151515 | N78: =IF(J78="-","-",($J78-$G78)/$G78) -> -0.2631578947 | O78: =StatisticallySignificantCalcs!$A77 -> N | P78: =StatisticallySignificantCalcs!$J77 -> N
B80: Data from the American Community Survey are estimates
B83: Units by Number of Bedrooms
D84: ="Source: "& " "&D69&", "&G69&" and "&J69& " American Community Survey Table B25041" -> Source: 2008-2012, 2013-2017 and 2018-2022 American Community Survey Table B25041
C86: =C30 -> 2008-2012 | G86: =F30 -> 2013-2017 | K86: =I30 -> 2018-2022 | O86: Statistically Significant Change
B87: Bedrooms | C87: Estimate | D87: Margin of Error | E87: % of Total | G87: Estimate | H87: Margin of Error | I87: % of Total | K87: Estimate | L87: Margin of Error | M87: % of Total | O87: =O31 -> 2012-2022 | P87: =P31 -> 2017-2022
B88: No Bedrooms | C88: =CntyDataLinkPrior10YearEstimate!$BR$108 -> 69 | D88: =CntyDataLinkPrior10YearEstimate!$BS$108 -> 68 | E88: =C88/SUM($C$88:$C$92) -> 0.01369047619 | G88: =CntyDataLinkPrior5YearEstimates!$BR$108 -> 78 | H88: =CntyDataLinkPrior5YearEstimates!$BS$108 -> 65 | I88: =G88/SUM($G$88:$G$92) -> 0.01557819053 | K88: =CntyDataLink!$BT$108 -> 90 | L88: =CntyDataLink!$BU$108 -> 72 | M88: =K88/SUM($K$88:$K$92) -> 0.01750632173 | O88: =StatisticallySignificantCalcs!$A78 -> N | P88: =StatisticallySignificantCalcs!$J78 -> N
B89: 1 Bedroom | C89: =CntyDataLinkPrior10YearEstimate!$BT$108 -> 638 | D89: =CntyDataLinkPrior10YearEstimate!$BU$108 -> 145 | E89: =C89/SUM($C$88:$C$92) -> 0.1265873016 | G89: =CntyDataLinkPrior5YearEstimates!$BT$108 -> 698 | H89: =CntyDataLinkPrior5YearEstimates!$BU$108 -> 133 | I89: =G89/SUM($G$88:$G$92) -> 0.1394048332 | K89: =CntyDataLink!$BV$108 -> 703 | L89: =CntyDataLink!$BW$108 -> 156 | M89: =K89/SUM($K$88:$K$92) -> 0.1367438242 | O89: =StatisticallySignificantCalcs!$A79 -> Y | P89: =StatisticallySignificantCalcs!$J79 -> N
B90: 2 Bedrooms | C90: =CntyDataLinkPrior10YearEstimate!$BV$108 -> 1668 | D90: =CntyDataLinkPrior10YearEstimate!$BW$108 -> 227 | E90: =C90/SUM($C$88:$C$92) -> 0.330952381 | G90: =CntyDataLinkPrior5YearEstimates!$BV$108 -> 1528 | H90: =CntyDataLinkPrior5YearEstimates!$BW$108 -> 235 | I90: =G90/SUM($G$88:$G$92) -> 0.3051727581 | K90: =CntyDataLink!$BX$108 -> 1652 | L90: =CntyDataLink!$BY$108 -> 224 | M90: =K90/SUM($K$88:$K$92) -> 0.321338261 | O90: =StatisticallySignificantCalcs!$A80 -> Y | P90: =StatisticallySignificantCalcs!$J80 -> N
B91: 3 Bedrooms | C91: =CntyDataLinkPrior10YearEstimate!$BX$108 -> 1846 | D91: =CntyDataLinkPrior10YearEstimate!$BY$108 -> 235 | E91: =C91/SUM($C$88:$C$92) -> 0.3662698413 | G91: =CntyDataLinkPrior5YearEstimates!$BX$108 -> 1768 | H91: =CntyDataLinkPrior5YearEstimates!$BY$108 -> 243 | I91: =G91/SUM($G$88:$G$92) -> 0.3531056521 | K91: =CntyDataLink!$BZ$108 -> 1908 | L91: =CntyDataLink!$CA$108 -> 209 | M91: =K91/SUM($K$88:$K$92) -> 0.3711340206 | O91: =StatisticallySignificantCalcs!$A81 -> Y | P91: =StatisticallySignificantCalcs!$J81 -> N
B92: 4+ Bedrooms | C92: =CntyDataLinkPrior10YearEstimate!$BZ$108 -> 819 | D92: =CntyDataLinkPrior10YearEstimate!$CA$108 -> 163.370744 | E92: =C92/SUM($C$88:$C$92) -> 0.1625 | G92: =CntyDataLinkPrior5YearEstimates!$BZ$108 -> 935 | H92: =CntyDataLinkPrior5YearEstimates!$CA$108 -> 204.9487741 | I92: =G92/SUM($G$88:$G$92) -> 0.186738566 | K92: =CntyDataLink!$CB$108 -> 788 | L92: =CntyDataLink!$CC$108 -> 155.4155719 | M92: =K92/SUM($K$88:$K$92) -> 0.1532775725 | O92: =StatisticallySignificantCalcs!$A82 -> Y | P92: =StatisticallySignificantCalcs!$J82 -> N
B95: Data from the American Community Survey are estimates
B97: Units by Year Built
B98: ="Source: "&K86& " American Community Survey Table B25034" -> Source: 2018-2022 American Community Survey Table B25034
D100: Year Built | G100: Units | I100: % of Total | K100: Margin of Error
F101: 2020 or later | G101: =CntyDataLink!$AZ$108 -> 0 | I101: =G101/SUM($G$101:$G$110) -> 0 | K101: =CntyDataLink!$BA$108 -> 17
F102: 2010 through 2019 | G102: =CntyDataLink!$BB$108 -> 14 | I102: =G102/SUM($G$101:$G$110) -> 0.003216911765 | K102: =CntyDataLink!$BC$108 -> 16
F103: 2000 through 2009 | G103: =CntyDataLink!$BD$108 -> 99 | I103: 0.02274816176 | K103: =CntyDataLink!$BE$108 -> 97
F104: 1990 through 1999 | G104: =CntyDataLink!$BF$108 -> 60 | I104: 0.01378676471 | K104: =CntyDataLink!$BG$108 -> 40
F105: 1980 through 1989 | G105: =CntyDataLink!$BH$108 -> 169 | I105: 0.03883272059 | K105: =CntyDataLink!$BI$108 -> 76
F106: 1970 through 1979 | G106: =CntyDataLink!$BJ$108 -> 333 | I106: 0.07651654412 | K106: =CntyDataLink!$BK$108 -> 97
F107: 1960 through 1969 | G107: =CntyDataLink!$BL$108 -> 288 | I107: 0.06617647059 | K107: =CntyDataLink!$BM$108 -> 128
F108: 1950 through 1959 | G108: =CntyDataLink!$BN$108 -> 626 | I108: 0.1438419118 | K108: =CntyDataLink!$BO$108 -> 164
F109: 1940 through 1949 | G109: =CntyDataLink!$BP$108 -> 230 | I109: 0.05284926471 | K109: =CntyDataLink!$BQ$108 -> 79
F110: 1939 and earlier | G110: =CntyDataLink!$BR$108 -> 2533 | I110: 0.58203125 | K110: =CntyDataLink!$BS$108 -> 229
B112: Data from the American Community Survey are estimates

Sheet CntyDataLink (hidden)
A1: 1 | B1: =A1+1 -> 2 | C1: =B1+1 -> 3 | D1: 4 | E1: 5 | F1: 6 | G1: 7 | H1: 8 | I1: 9 | J1: 10 | K1: 11 | L1: 12 | M1: 13 | N1: 14 | O1: 15 | P1: =O1+1 -> 16 | Q1: 17 | R1: 18 | S1: 19 | T1: 20 | U1: 21 | V1: 22 | W1: 23 | X1: 24 | Y1: 25 | Z1: 26 | AA1: 27 | AB1: 28 | AC1: 29 | AD1: 30 | AE1: 31 | AF1: 32 | AG1: 33 | AH1: 34 | AI1: 35 | AJ1: 36 | AK1: 37 | AL1: 38 | AM1: 39 | AN1: 40 | AO1: 41 | AP1: 42 | AQ1: 43 | AR1: 44 | AS1: 45 | AT1: 46 | AU1: 47 | AV1: 48 | AW1: 49 | AX1: 50 | AY1: 51 | AZ1: 52 | BA1: 53 | BB1: 54 | BC1: 55 | BD1: 56 | BE1: 57 | BF1: 58 | BG1: 59 | BH1: 60 | BI1: 61 | BJ1: 62 | BK1: 63 | BL1: 64 | BM1: 65 | BN1: 66 | BO1: =BN1+1 -> 67 | BP1: 68 | BQ1: 69 | BR1: 70 | BS1: 71 | BT1: 72 | BU1: 73 | BV1: 74 | BW1: 75 | BX1: 76 | BY1: 77 | BZ1: 78 | CA1: 79 | CB1: 80 | CC1: 81 | CD1: 82 | CE1: 83 | CF1: 84 | CG1: 85 | CH1: 86 | CI1: 87 | CJ1: 88 | CK1: 89 | CL1: 90 | CM1: 91 | CN1: 92 | CO1: 93 | CP1: 94 | CQ1: 95 | CR1: 96 | CS1: 97 | CT1: 98 | CU1: 99 | CV1: 100 | CW1: 101 | CX1: 102 | CY1: 103 | CZ1: 104 | DA1: 105 | DB1: 106 | DC1: 107 | DD1: 108 | DE1: 109 | DF1: 110 | DG1: 111 | DH1: 112 | DI1: 113 | DJ1: 114 | DK1: 115 | DL1: 116 | DM1: 117 | DN1: 118 | DO1: 119 | DP1: 120 | DQ1: 121 | DR1: 122 | DS1: 123 | DT1: 124 | DU1: 125 | DV1: 126 | DW1: 127 | DX1: 128 | DY1: 129 | DZ1: 130 | EA1: =DZ1+1 -> 131 | EB1: 132 | EC1: 133 | ED1: 134 | EE1: 135 | EF1: 136 | EG1: 137 | EH1: 138 | EI1: 139 | EJ1: 140 | EK1: 141 | EL1: 142 | EM1: 143 | EN1: 144 | EO1: 145 | EP1: 146 | EQ1: 147 | ER1: 148 | ES1: 149 | ET1: 150 | EU1: 151 | EV1: 152 | EW1: 153 | EX1: 154 | EY1: 155 | EZ1: 156 | FA1: 157 | FB1: 158 | FC1: 159 | FD1: 160 | FE1: 161 | FF1: 162 | FG1: 163 | FH1: 164 | FI1: 165 | FJ1: 166 | FK1: 167 | FL1: 168 | FM1: 169 | FN1: 170 | FO1: 171 | FP1: 172 | FQ1: 173 | FR1: 174 | FS1: 175 | FT1: 176 | FU1: 177 | FV1: 178 | FW1: 179 | FX1: 180 | FY1: 181 | FZ1: 182 | GA1: 183 | GB1: 184 | GC1: 185 | GD1: 186 | GE1: 187 | GF1: 188 | GG1: 189 | GH1: 190 | GI1: 191 | GJ1: 192 | GK1: 193 | GL1: 194 | GM1: =GL1+1 -> 195 | GN1: 196 | GO1: 197 | GP1: 198 | GQ1: 199 | GR1: 200 | GS1: 201 | GT1: 202 | GU1: 203 | GV1: 204 | GW1: 205 | GX1: 206 | GY1: 207 | GZ1: 208 | HA1: 209 | HB1: 210 | HC1: 211 | HD1: 212 | HE1: 213 | HF1: 214 | HG1: 215 | HH1: 216 | HI1: 217 | HJ1: 218 | HK1: 219 | HL1: 220 | HM1: 221 | HN1: 222 | HO1: 223 | HP1: 224 | HQ1: 225 | HR1: 226 | HS1: 227 | HT1: 228 | HU1: 229 | HV1: 230 | HW1: 231 | HX1: 232 | HY1: 233 | HZ1: 234 | IA1: 235 | IB1: 236 | IC1: 237 | ID1: 238 | IE1: 239 | IF1: 240 | IG1: 241 | IH1: 242 | II1: 243 | IJ1: 244 | IK1: 245 | IL1: 246 | IM1: 247 | IN1: 248 | IO1: 249 | IP1: 250 | IQ1: 251 | IR1: 252 | IS1: 253 | IT1: 254 | IU1: 255
A3: Census 1990 Data - Query Name: DPCnty90Census
A4: TownName | B4: Cnty_Code | C4: Census_Cnty_Code | D4: LandAcres | E4: WaterAcres | F4: HousingUnits90Cen | G4: Persons90Cen | H4: Families90Cen | I4: Households90cen | J4: MalePop90cen | K4: FemalePop90cen | L4: WhitePop | M4: BlackPop | N4: AmerIndianPop | O4: AsianPIPop | P4: OtherRacePop | Q4: HispanicOrPop | R4: AgeUnder15_90cen | S4: Age15to24_90cen | T4: Age25to34_90cen | U4: Age35to44_90cen | V4: Age45to54_90cen | W4: Age55to64_90cen | X4: Age65to74_90cen | Y4: Age75andOver_90cen | Z4: PersonsInHH90cen | AA4: PersonsInFamHH90cen | AB4: PersonsInGC | AC4: PersonsPerHH90cen | AD4: PersonsPerFam90Cen | AE4: SinglePersonHH90cen | AF4: MarriedCoupleHH90cen | AG4: SingleParentHH90cen | AH4: NonFamilyHH90cen | AI4: TotalHousingUnits | AJ4: OccupiedHousingUnits | AK4: VacantHousingUnits | AL4: OwnerOccHU | AM4: RenterOccHU | AN4: VacantForRent90 | AO4: VacantForSale90 | AP4: VacantSeasonalRec | AQ4: SingFamHU90cen | AR4: MultiFamHU90cen | AS4: MobileHom90cen | AT4: SingFamOwnHU90cen | AU4: MultiFamOwnHU90cen | AV4: MobileHomOwnHU90cen | AW4: SingFamRntrHU90cen | AX4: MultiFamRntrHU90cen | AY4: MobileHomRntrHU90cen | AZ4: HU<5yrs90cen | BA4: HU5to20yrs90cen | BB4: HU20to50yrs90cen | BC4: HU>50yrs90cen | BD4: Units0Bedroom90cen | BE4: Units1Bedroom90cen | BF4: Units2Bedroom90cen | BG4: Units3Bedroom90cen | BH4: Units4+Bedroom90cen | BI4: HI<5K | BJ4: HI5Kto10K | BK4: HI10Kto15K | BL4: HI15Kto25K | BM4: HI25Kto35K | BN4: HI35Kto50K | BO4: HI50Kto75K | BP4: HI75Kto100K | BQ4: HI>100K | BR4: MedHI | BS4: HH<25HI<5K | BT4: HH<25HI5Kto10K | BU4: HH<25HI10Kto15K | BV4: HH<25HI15Kto25K | BW4: HH<25HI25Kto35K | BX4: HH<25HI35Kto50K | BY4: HH<25HI50Kto75K | BZ4: HH<25HI75Kto100K | CA4: HH<25HI>100K | CB4: HH25to34HI<5K | CC4: HH25to34HI5Kto10K | CD4: HH25to34HI10Kto15K | CE4: HH25to34HI15Kto25K | CF4: HH25to34HI25Kto35K | CG4: HH25to34HI35Kto50K | CH4: HH25to34HI50Kto75K | CI4: HH25to34HI75Kto100K | CJ4: HH25to34HI>100K | CK4: HH35to44HI<5K | CL4: HH35to44HI5Kto10K | CM4: HH35to44HI10Kto15K | CN4: HH35to44HI15Kto25K | CO4: HH35to44HI25Kto35K | CP4: HH35to44HI35Kto50K | CQ4: HH35to44HI50Kto75K | CR4: HH35to44HI75Kto100K | CS4: HH35to44HI>100K | CT4: HH45to54HI<5K | CU4: HH45to54HI5Kto10K | CV4: HH45to54HI10Kto15K | CW4: HH45to54HI15Kto25K | CX4: HH45to54HI25Kto35K | CY4: HH45to54HI35Kto50K | CZ4: HH45to54HI50Kto75K | DA4: HH45to54HI75Kto100K | DB4: HH45to54HI>100K | DC4: HH55to64HI<5K | DD4: HH55to64HI5Kto10K | DE4: HH55to64HI10Kto15K | DF4: HH55to64HI15Kto25K | DG4: HH55to64HI25Kto35K | DH4: HH55to64HI35Kto50K | DI4: HH55to64HI50Kto75K | DJ4: HH55to64HI75Kto100K | DK4: HH55to64HI>100K | DL4: HH65to74HI<5K | DM4: HH65to74HI5Kto10K | DN4: HH65to74HI10Kto15K | DO4: HH65to74HI15Kto25K | DP4: HH65to74HI25Kto35K | DQ4: HH65to74HI35Kto50K | DR4: HH65to74HI50Kto75K | DS4: HH65to74HI75Kto100K | DT4: HH65to74HI>100K | DU4: HH>75HI<5K | DV4: HH>75HI5Kto10K | DW4: HH>75HI10Kto15K | DX4: HH>75HI15Kto25K | DY4: HH>75HI25Kto35K | DZ4: HH>75HI35Kto50K | EA4: HH>75HI50Kto75K | EB4: HH>75HI75Kto100K | EC4: HH>75HI>100K | ED4: SchoolEnrollment1thru12 | EE4: Pop25andOver | EF4: HSGradorHigher | EG4: CollGradorHigher | EH4: NativePop | EI4: ForeignBornPop | EJ4: BornStateOfRes | EK4: NativePop2 | EL4: ForeignBornPop2 | EM4: DroveAlone | EN4: CarPooled | EO4: PublicTranspt | EP4: Walked | EQ4: OtherMeans | ER4: WorkedAtHome | ES4: HHInc<10K | ET4: HHInc10to15K | EU4: HHInc15to25K | EV4: HHInc25to35K | EW4: HHInc35to50K | EX4: HHInc50to75K | EY4: HHInc75to100K | EZ4: HHInc100to150K | FA4: HHInc>150K
A5: =VLOOKUP(DropDownList!$A$47,CntyQuery!$A$4:$FI$46,A1) -> Berlin | B5: =VLOOKUP(DropDownList!$A$47,CntyQuery!$A$4:$FA$46,B1) -> 7020 | C5: =VLOOKUP(DropDownList!$A$47,CntyQuery!$A$4:$FA$46,C1) -> 05140 | D5: =VLOOKUP(DropDownList!$A$47,CntyQuery!$A$4:$FA$46,D1) -> 39338.14 | E5: =VLOOKUP(DropDownList!$A$47,CntyQuery!$A$4:$FA$46,E1) -> 467.59 | F5: =VLOOKUP(DropDownList!$A$47,CntyQuery!$A$4:$FA$46,F1) -> 5416 | G5: =VLOOKUP(DropDownList!$A$47,CntyQuery!$A$4:$FA$46,G1) -> 11824 | H5: =VLOOKUP(DropDownList!$A$47,CntyQuery!$A$4:$FA$46,H1) -> 3287 | I5: =VLOOKUP(DropDownList!$A$47,CntyQuery!$A$4:$FA$46,I1) -> 4943 | J5: =VLOOKUP(DropDownList!$A$47,CntyQuery!$A$4:$FA$46,J1) -> 5617 | K5: =VLOOKUP(DropDownList!$A$47,CntyQuery!$A$4:$FA$46,K1) -> 6207 | L5: =VLOOKUP(DropDownList!$A$47,CntyQuery!$A$4:$FA$46,L1) -> 11712 | M5: =VLOOKUP(DropDownList!$A$47,CntyQuery!$A$4:$FA$46,M1) -> 15 | N5: =VLOOKUP(DropDownList!$A$47,CntyQuery!$A$4:$FA$46,N1) -> 21 | O5: =VLOOKUP(DropDownList!$A$47,CntyQuery!$A$4:$FA$46,O1) -> 57 | P5: =VLOOKUP(DropDownList!$A$47,CntyQuery!$A$4:$FA$46,P1) -> 19 | Q5: =VLOOKUP(DropDownList!$A$47,CntyQuery!$A$4:$FA$46,Q1) -> 61 | R5: =VLOOKUP(DropDownList!$A$47,CntyQuery!$A$4:$FA$46,R1) -> 2180 | S5: =VLOOKUP(DropDownList!$A$47,CntyQuery!$A$4:$FA$46,S1) -> 1478 | T5: =VLOOKUP(DropDownList!$A$47,CntyQuery!$A$4:$FA$46,T1) -> 1847 | U5: =VLOOKUP(DropDownList!$A$47,CntyQuery!$A$4:$FA$46,U1) -> 1491 | V5: =VLOOKUP(DropDownList!$A$47,CntyQuery!$A$4:$FA$46,V1) -> 1086 | W5: =VLOOKUP(DropDownList!$A$47,CntyQuery!$A$4:$FA$46,W1) -> 1368 | X5: =VLOOKUP(DropDownList!$A$47,CntyQuery!$A$4:$FA$46,X1) -> 1312 | Y5: =VLOOKUP(DropDownList!$A$47,CntyQuery!$A$4:$FA$46,Y1) -> 1062 | Z5: =VLOOKUP(DropDownList!$A$47,CntyQuery!$A$4:$FA$46,Z1) -> 11607 | AA5: =VLOOKUP(DropDownList!$A$47,CntyQuery!$A$4:$FA$46,AA1) -> 9688 | AB5: =VLOOKUP(DropDownList!$A$47,CntyQuery!$A$4:$FA$46,AB1) -> 217 | AC5: =VLOOKUP(DropDownList!$A$47,CntyQuery!$A$4:$FA$46,AC1) -> 2.348169128 | AD5: =VLOOKUP(DropDownList!$A$47,CntyQuery!$A$4:$FA$46,AD1) -> 2.947368421 | AE5: =VLOOKUP(DropDownList!$A$47,CntyQuery!$A$4:$FA$46,AE1) -> 1453 | AF5: =VLOOKUP(DropDownList!$A$47,CntyQuery!$A$4:$FA$46,AF1) -> 2698 | AG5: =VLOOKUP(DropDownList!$A$47,CntyQuery!$A$4:$FA$46,AG1) -> 589 | AH5: =VLOOKUP(DropDownList!$A$47,CntyQuery!$A$4:$FA$46,AH1) -> 203 | AI5: =VLOOKUP(DropDownList!$A$47,CntyQuery!$A$4:$FA$46,AI1) -> 5416 | AJ5: =VLOOKUP(DropDownList!$A$47,CntyQuery!$A$4:$FA$46,AJ1) -> 4943 | AK5: =VLOOKUP(DropDownList!$A$47,CntyQuery!$A$4:$FA$46,AK1) -> 473 | AL5: =VLOOKUP(DropDownList!$A$47,CntyQuery!$A$4:$FA$46,AL1) -> 2998 | AM5: =VLOOKUP(DropDownList!$A$47,CntyQuery!$A$4:$FA$46,AM1) -> 1945 | AN5: =VLOOKUP(DropDownList!$A$47,CntyQuery!$A$4:$FA$46,AN1) -> 221 | AO5: =VLOOKUP(DropDownList!$A$47,CntyQuery!$A$4:$FA$46,AO1) -> 53 | AP5: =VLOOKUP(DropDownList!$A$47,CntyQuery!$A$4:$FA$46,AP1) -> 22 | AQ5: =VLOOKUP(DropDownList!$A$47,CntyQuery!$A$4:$FA$46,AQ1) -> 2507 | AR5: =VLOOKUP(DropDownList!$A$47,CntyQuery!$A$4:$FA$46,AR1) -> 2792 | AS5: =VLOOKUP(DropDownList!$A$47,CntyQuery!$A$4:$FA$46,AS1) -> 117 | AT5: =VLOOKUP(DropDownList!$A$47,CntyQuery!$A$4:$FA$46,AT1) -> 2321 | AU5: =VLOOKUP(DropDownList!$A$47,CntyQuery!$A$4:$FA$46,AU1) -> 605 | AV5: =VLOOKUP(DropDownList!$A$47,CntyQuery!$A$4:$FA$46,AV1) -> 117 | AW5: =VLOOKUP(DropDownList!$A$47,CntyQuery!$A$4:$FA$46,AW1) -> 102 | AX5: =VLOOKUP(DropDownList!$A$47,CntyQuery!$A$4:$FA$46,AX1) -> 1809 | AY5: =VLOOKUP(DropDownList!$A$47,CntyQuery!$A$4:$FA$46,AY1) -> 34 | AZ5: =VLOOKUP(DropDownList!$A$47,CntyQuery!$A$4:$FA$46,AZ1) -> 96 | BA5: =VLOOKUP(DropDownList!$A$47,CntyQuery!$A$4:$FA$46,BA1) -> 451 | BB5: =VLOOKUP(DropDownList!$A$47,CntyQuery!$A$4:$FA$46,BB1) -> 1437 | BC5: =VLOOKUP(DropDownList!$A$47,CntyQuery!$A$4:$FA$46,BC1) -> 3441 | BD5: =VLOOKUP(DropDownList!$A$47,CntyQuery!$A$4:$FA$46,BD1) -> 71 | BE5: =VLOOKUP(DropDownList!$A$47,CntyQuery!$A$4:$FA$46,BE1) -> 640 | BF5: =VLOOKUP(DropDownList!$A$47,CntyQuery!$A$4:$FA$46,BF1) -> 2021 | BG5: =VLOOKUP(DropDownList!$A$47,CntyQuery!$A$4:$FA$46,BG1) -> 2093 | BH5: =VLOOKUP(DropDownList!$A$47,CntyQuery!$A$4:$FA$46,BH1) -> 600 | BI5: =VLOOKUP(DropDownList!$A$47,CntyQuery!$A$4:$FA$46,BI1) -> 379 | BJ5: =VLOOKUP(DropDownList!$A$47,CntyQuery!$A$4:$FA$46,BJ1) -> 708 | BK5: =VLOOKUP(DropDownList!$A$47,CntyQuery!$A$4:$FA$46,BK1) -> 531 | BL5: =VLOOKUP(DropDownList!$A$47,CntyQuery!$A$4:$FA$46,BL1) -> 871 | BM5: =VLOOKUP(DropDownList!$A$47,CntyQuery!$A$4:$FA$46,BM1) -> 753 | BN5: =VLOOKUP(DropDownList!$A$47,CntyQuery!$A$4:$FA$46,BN1) -> 1063 | BO5: =VLOOKUP(DropDownList!$A$47,CntyQuery!$A$4:$FA$46,BO1) -> 547 | BP5: =VLOOKUP(DropDownList!$A$47,CntyQuery!$A$4:$FA$46,BP1) -> 94 | BQ5: =VLOOKUP(DropDownList!$A$47,CntyQuery!$A$4:$FA$46,BQ1) -> 40 | BR5: =VLOOKUP(DropDownList!$A$47,CntyQuery!$A$4:$FA$46,BR1) -> 25040 | BS5: =VLOOKUP(DropDownList!$A$47,CntyQuery!$A$4:$FA$46,BS1) -> 60 | BT5: =VLOOKUP(DropDownList!$A$47,CntyQuery!$A$4:$FA$46,BT1) -> 30 | BU5: =VLOOKUP(DropDownList!$A$47,CntyQuery!$A$4:$FA$46,BU1) -> 60 | BV5: =VLOOKUP(DropDownList!$A$47,CntyQuery!$A$4:$FA$46,BV1) -> 67 | BW5: =VLOOKUP(DropDownList!$A$47,CntyQuery!$A$4:$FA$46,BW1) -> 74 | BX5: =VLOOKUP(DropDownList!$A$47,CntyQuery!$A$4:$FA$46,BX1) -> 21 | BY5: =VLOOKUP(DropDownList!$A$47,CntyQuery!$A$4:$FA$46,BY1) -> 8 | BZ5: =VLOOKUP(DropDownList!$A$47,CntyQuery!$A$4:$FA$46,BZ1) -> 0 | CA5: =VLOOKUP(DropDownList!$A$47,CntyQuery!$A$4:$FA$46,CA1) -> 7 | CB5: =VLOOKUP(DropDownList!$A$47,CntyQuery!$A$4:$FA$46,CB1) -> 22 | CC5: =VLOOKUP(DropDownList!$A$47,CntyQuery!$A$4:$FA$46,CC1) -> 83 | CD5: =VLOOKUP(DropDownList!$A$47,CntyQuery!$A$4:$FA$46,CD1) -> 38 | CE5: =VLOOKUP(DropDownList!$A$47,CntyQuery!$A$4:$FA$46,CE1) -> 197 | CF5: =VLOOKUP(DropDownList!$A$47,CntyQuery!$A$4:$FA$46,CF1) -> 176 | CG5: =VLOOKUP(DropDownList!$A$47,CntyQuery!$A$4:$FA$46,CG1) -> 363 | CH5: =VLOOKUP(DropDownList!$A$47,CntyQuery!$A$4:$FA$46,CH1) -> 62 | CI5: =VLOOKUP(DropDownList!$A$47,CntyQuery!$A$4:$FA$46,CI1) -> 0 | CJ5: =VLOOKUP(DropDownList!$A$47,CntyQuery!$A$4:$FA$46,CJ1) -> 0 | CK5: =VLOOKUP(DropDownList!$A$47,CntyQuery!$A$4:$FA$46,CK1) -> 33 | CL5: =VLOOKUP(DropDownList!$A$47,CntyQuery!$A$4:$FA$46,CL1) -> 30 | CM5: =VLOOKUP(DropDownList!$A$47,CntyQuery!$A$4:$FA$46,CM1) -> 62 | CN5: =VLOOKUP(DropDownList!$A$47,CntyQuery!$A$4:$FA$46,CN1) -> 99 | CO5: =VLOOKUP(DropDownList!$A$47,CntyQuery!$A$4:$FA$46,CO1) -> 109 | CP5: =VLOOKUP(DropDownList!$A$47,CntyQuery!$A$4:$FA$46,CP1) -> 266 | CQ5: =VLOOKUP(DropDownList!$A$47,CntyQuery!$A$4:$FA$46,CQ1) -> 244 | CR5: =VLOOKUP(DropDownList!$A$47,CntyQuery!$A$4:$FA$46,CR1) -> 20 | CS5: =VLOOKUP(DropDownList!$A$47,CntyQuery!$A$4:$FA$46,CS1) -> 18 | CT5: =VLOOKUP(DropDownList!$A$47,CntyQuery!$A$4:$FA$46,CT1) -> 41 | CU5: =VLOOKUP(DropDownList!$A$47,CntyQuery!$A$4:$FA$46,CU1) -> 46 | CV5: =VLOOKUP(DropDownList!$A$47,CntyQuery!$A$4:$FA$46,CV1) -> 31 | CW5: =VLOOKUP(DropDownList!$A$47,CntyQuery!$A$4:$FA$46,CW1) -> 62 | CX5: =VLOOKUP(DropDownList!$A$47,CntyQuery!$A$4:$FA$46,CX1) -> 94 | CY5: =VLOOKUP(DropDownList!$A$47,CntyQuery!$A$4:$FA$46,CY1) -> 138 | CZ5: =VLOOKUP(DropDownList!$A$47,CntyQuery!$A$4:$FA$46,CZ1) -> 118 | DA5: =VLOOKUP(DropDownList!$A$47,CntyQuery!$A$4:$FA$46,DA1) -> 36 | DB5: =VLOOKUP(DropDownList!$A$47,CntyQuery!$A$4:$FA$46,DB1) -> 9 | DC5: =VLOOKUP(DropDownList!$A$47,CntyQuery!$A$4:$FA$46,DC1) -> 48 | DD5: =VLOOKUP(DropDownList!$A$47,CntyQuery!$A$4:$FA$46,DD1) -> 37 | DE5: =VLOOKUP(DropDownList!$A$47,CntyQuery!$A$4:$FA$46,DE1) -> 30 | DF5: =VLOOKUP(DropDownList!$A$47,CntyQuery!$A$4:$FA$46,DF1) -> 165 | DG5: =VLOOKUP(DropDownList!$A$47,CntyQuery!$A$4:$FA$46,DG1) -> 129 | DH5: =VLOOKUP(DropDownList!$A$47,CntyQuery!$A$4:$FA$46,DH1) -> 220 | DI5: =VLOOKUP(DropDownList!$A$47,CntyQuery!$A$4:$FA$46,DI1) -> 94 | DJ5: =VLOOKUP(DropDownList!$A$47,CntyQuery!$A$4:$FA$46,DJ1) -> 38 | DK5: =VLOOKUP(DropDownList!$A$47,CntyQuery!$A$4:$FA$46,DK1) -> 6 | DL5: =VLOOKUP(DropDownList!$A$47,CntyQuery!$A$4:$FA$46,DL1) -> 72 | DM5: =VLOOKUP(DropDownList!$A$47,CntyQuery!$A$4:$FA$46,DM1) -> 183 | DN5: =VLOOKUP(DropDownList!$A$47,CntyQuery!$A$4:$FA$46,DN1) -> 151 | DO5: =VLOOKUP(DropDownList!$A$47,CntyQuery!$A$4:$FA$46,DO1) -> 219 | DP5: =VLOOKUP(DropDownList!$A$47,CntyQuery!$A$4:$FA$46,DP1) -> 116 | DQ5: =VLOOKUP(DropDownList!$A$47,CntyQuery!$A$4:$FA$46,DQ1) -> 40 | DR5: =VLOOKUP(DropDownList!$A$47,CntyQuery!$A$4:$FA$46,DR1) -> 21 | DS5: =VLOOKUP(DropDownList!$A$47,CntyQuery!$A$4:$FA$46,DS1) -> 0 | DT5: =VLOOKUP(DropDownList!$A$47,CntyQuery!$A$4:$FA$46,DT1) -> 0 | DU5: =VLOOKUP(DropDownList!$A$47,CntyQuery!$A$4:$FA$46,DU1) -> 103 | DV5: =VLOOKUP(DropDownList!$A$47,CntyQuery!$A$4:$FA$46,DV1) -> 299 | DW5: =VLOOKUP(DropDownList!$A$47,CntyQuery!$A$4:$FA$46,DW1) -> 159 | DX5: =VLOOKUP(DropDownList!$A$47,CntyQuery!$A$4:$FA$46,DX1) -> 62 | DY5: =VLOOKUP(DropDownList!$A$47,CntyQuery!$A$4:$FA$46,DY1) -> 55 | DZ5: =VLOOKUP(DropDownList!$A$47,CntyQuery!$A$4:$FA$46,DZ1) -> 15 | EA5: =VLOOKUP(DropDownList!$A$47,CntyQuery!$A$4:$FA$46,EA1) -> 0 | EB5: =VLOOKUP(DropDownList!$A$47,CntyQuery!$A$4:$FA$46,EB1) -> 0 | EC5: =VLOOKUP(DropDownList!$A$47,CntyQuery!$A$4:$FA$46,EC1) -> 0 | ED5: =VLOOKUP(DropDownList!$A$47,CntyQuery!$A$4:$FA$46,ED1) -> 1768 | EE5: =VLOOKUP(DropDownList!$A$47,CntyQuery!$A$4:$FA$46,EE1) -> 8174 | EF5: =VLOOKUP(DropDownList!$A$47,CntyQuery!$A$4:$FA$46,EF1) -> 5270 | EG5: =VLOOKUP(DropDownList!$A$47,CntyQuery!$A$4:$FA$46,EG1) -> 583 | EH5: =VLOOKUP(DropDownList!$A$47,CntyQuery!$A$4:$FA$46,EH1) -> 11040 | EI5: =VLOOKUP(DropDownList!$A$47,CntyQuery!$A$4:$FA$46,EI1) -> 780 | EJ5: =VLOOKUP(DropDownList!$A$47,CntyQuery!$A$4:$FA$46,EJ1) -> 9187 | EK5: =VLOOKUP(DropDownList!$A$47,CntyQuery!$A$4:$FA$46,EK1) -> 11040 | EL5: =VLOOKUP(DropDownList!$A$47,CntyQuery!$A$4:$FA$46,EL1) -> 780 | EM5: =VLOOKUP(DropDownList!$A$47,CntyQuery!$A$4:$FA$46,EM1) -> 3644 | EN5: =VLOOKUP(DropDownList!$A$47,CntyQuery!$A$4:$FA$46,EN1) -> 711 | EO5: =VLOOKUP(DropDownList!$A$47,CntyQuery!$A$4:$FA$46,EO1) -> 10 | EP5: =VLOOKUP(DropDownList!$A$47,CntyQuery!$A$4:$FA$46,EP1) -> 421 | EQ5: =VLOOKUP(DropDownList!$A$47,CntyQuery!$A$4:$FA$46,EQ1) -> 72 | ER5: =VLOOKUP(DropDownList!$A$47,CntyQuery!$A$4:$FA$46,ER1) -> 76 | ES5: =VLOOKUP(DropDownList!$A$47,CntyQuery!$A$4:$FA$46,ES1) -> 1087 | ET5: =VLOOKUP(DropDownList!$A$47,CntyQuery!$A$4:$FA$46,ET1) -> 531 | EU5: =VLOOKUP(DropDownList!$A$47,CntyQuery!$A$4:$FA$46,EU1) -> 871 | EV5: =VLOOKUP(DropDownList!$A$47,CntyQuery!$A$4:$FA$46,EV1) -> 753 | EW5: =VLOOKUP(DropDownList!$A$47,CntyQuery!$A$4:$FA$46,EW1) -> 1063 | EX5: =VLOOKUP(DropDownList!$A$47,CntyQuery!$A$4:$FA$46,EX1) -> 547 | EY5: =VLOOKUP(DropDownList!$A$47,CntyQuery!$A$4:$FA$46,EY1) -> 94 | EZ5: =VLOOKUP(DropDownList!$A$47,CntyQuery!$A$4:$FA$46,EZ1) -> 27 | FA5: =VLOOKUP(DropDownList!$A$47,CntyQuery!$A$4:$FA$46,FA1) -> 13
A8: Census 1990 Data - Query Name: TownSTF1Qry1
A9: NAME | B9: COUSUBFP | C9: Census_Cnty_Code | D9: FIPS | E9: LandAcres | F9: WaterAcres | G9: HousingUnits90Cen | H9: P01Persons90Cen | I9: P02Families90Cen | J9: P03Households90cen | K9: P05MalePop90cen | L9: P05FemalePop90cen | M9: P06WhitePop | N9: P06BlackPop | O9: P06AmerIndianPop | P9: P06AsianPIPop | Q9: P06OtherRacePop | R9: P08HispanicOrPop | S9: P11AgeUnder15_90cen | T9: P11Age15to24_90cen | U9: P11Age25to34_90cen | V9: P11Age35to44_90cen | W9: P11Age45to54_90cen | X9: P11Age55to64_90cen | Y9: P11Age65to74_90cen | Z9: P11Age75andOver_90cen | AA9: P15PersonsInHH90cen | AB9: P15PersonsInFamHH90cen | AC9: P15PersonsInGC | AD9: PersonsPerHH90cen | AE9: PersonsPerFam90Cen | AF9: P16SinglePersonHH90cen | AG9: P16MarriedCoupleHH90cen | AH9: P16SingleParentHH90cen | AI9: P16NonFamilyHH90cen | AJ9: H01TotalHousingUnits | AK9: H02OccupiedHousingUnits | AL9: H02VacantHousingUnits | AM9: H03OwnerOccHU | AN9: H03RenterOccHU | AO9: H05VacantForRent90 | AP9: H05VacantForSale90 | AQ9: H05VacantSeasonalRec | AR9: H23OOHUVal<15k | AS9: H23OOHUVal15to19k | AT9: H23OOHUVal20to24k | AU9: H23OOHUVal25to29k | AV9: H23OOHUVal30to34k | AW9: H23OOHUVal35to39k | AX9: H23OOHUVal40to44k | AY9: H23OOHUVal45to49k | AZ9: H23OOHUVal50to59k | BA9: H23OOHUVal60to74k | BB9: H23OOHUVal75to99k | BC9: H23OOHUVal100to124k | BD9: H23OOHUVal125to149k | BE9: H23OOHUVal150to174k | BF9: H23OOHUVal175to199k | BG9: H23OOHUVal200to249k | BH9: H23OOHUVal250to299k | BI9: H23OOHUVal300to399k | BJ9: H23OOHUVal400to499k | BK9: H23OOHUVal500kOrMore | BL9: H23BOOHUMedVal | BM9: H41SingFamHU90cen | BN9: H41MultiFamHU90cen | BO9: H41MobileHom90cen | BP9: H43SingFamOwnHU90cen | BQ9: H43MultiFamOwnHU90cen | BR9: H43MobileHomOwnHU90cen | BS9: H43SingFamRntrHU90cen | BT9: H43MultiFamRntrHU90cen | BU9: H43MobileHomRntrHU90cen | BV9: H41HU1UnitDet | BW9: H41HU1UnitAtt | BX9: H41HU2Unit | BY9: H41HU3to4Unit | BZ9: H41HU5to9Unit | CA9: H41HU10to19Unit | CB9: H41HU20to49Unit | CC9: H41HU50PlusUnit | CD9: H41HUMobilH | CE9: H41HUOther
A10: =VLOOKUP(DropDownList!$B$47,CntyQuery!$A$51:$CE$93,A$1) -> Berlin | B10: =VLOOKUP(DropDownList!$B$47,CntyQuery!$A$51:$CE$93,B$1) -> 401 | C10: =VLOOKUP(DropDownList!$B$47,CntyQuery!$A$51:$CE$93,C$1) -> 7020 | D10: =VLOOKUP(DropDownList!$B$47,CntyQuery!$A$51:$CE$93,D$1) -> 05140 | E10: =VLOOKUP(DropDownList!$B$47,CntyQuery!$A$51:$CE$93,E$1) -> 39338.14 | F10: =VLOOKUP(DropDownList!$B$47,CntyQuery!$A$51:$CE$93,F$1) -> 467.59 | G10: =VLOOKUP(DropDownList!$B$47,CntyQuery!$A$51:$CE$93,G$1) -> 5416 | H10: =VLOOKUP(DropDownList!$B$47,CntyQuery!$A$51:$CE$93,H$1) -> 11824 | I10: =VLOOKUP(DropDownList!$B$47,CntyQuery!$A$51:$CE$93,I$1) -> 3287 | J10: =VLOOKUP(DropDownList!$B$47,CntyQuery!$A$51:$CE$93,J$1) -> 4943 | K10: =VLOOKUP(DropDownList!$B$47,CntyQuery!$A$51:$CE$93,K$1) -> 5617 | L10: =VLOOKUP(DropDownList!$B$47,CntyQuery!$A$51:$CE$93,L$1) -> 6207 | M10: =VLOOKUP(DropDownList!$B$47,CntyQuery!$A$51:$CE$93,M$1) -> 11712 | N10: =VLOOKUP(DropDownList!$B$47,CntyQuery!$A$51:$CE$93,N$1) -> 15 | O10: =VLOOKUP(DropDownList!$B$47,CntyQuery!$A$51:$CE$93,O$1) -> 21 | P10: =VLOOKUP(DropDownList!$B$47,CntyQuery!$A$51:$CE$93,P$1) -> 57 | Q10: =VLOOKUP(DropDownList!$B$47,CntyQuery!$A$51:$CE$93,Q$1) -> 19 | R10: =VLOOKUP(DropDownList!$B$47,CntyQuery!$A$51:$CE$93,R$1) -> 61 | S10: =VLOOKUP(DropDownList!$B$47,CntyQuery!$A$51:$CE$93,S$1) -> 2180 | T10: =VLOOKUP(DropDownList!$B$47,CntyQuery!$A$51:$CE$93,T$1) -> 1478 | U10: =VLOOKUP(DropDownList!$B$47,CntyQuery!$A$51:$CE$93,U$1) -> 1847 | V10: =VLOOKUP(DropDownList!$B$47,CntyQuery!$A$51:$CE$93,V$1) -> 1491 | W10: =VLOOKUP(DropDownList!$B$47,CntyQuery!$A$51:$CE$93,W$1) -> 1086 | X10: =VLOOKUP(DropDownList!$B$47,CntyQuery!$A$51:$CE$93,X$1) -> 1368 | Y10: =VLOOKUP(DropDownList!$B$47,CntyQuery!$A$51:$CE$93,Y$1) -> 1312 | Z10: =VLOOKUP(DropDownList!$B$47,CntyQuery!$A$51:$CE$93,Z$1) -> 1062 | AA10: =VLOOKUP(DropDownList!$B$47,CntyQuery!$A$51:$CE$93,AA$1) -> 11607 | AB10: =VLOOKUP(DropDownList!$B$47,CntyQuery!$A$51:$CE$93,AB$1) -> 9688 | AC10: =VLOOKUP(DropDownList!$B$47,CntyQuery!$A$51:$CE$93,AC$1) -> 217 | AD10: =VLOOKUP(DropDownList!$B$47,CntyQuery!$A$51:$CE$93,AD$1) -> 2.348169128 | AE10: =VLOOKUP(DropDownList!$B$47,CntyQuery!$A$51:$CE$93,AE$1) -> 2.947368421 | AF10: =VLOOKUP(DropDownList!$B$47,CntyQuery!$A$51:$CE$93,AF$1) -> 1453 | AG10: =VLOOKUP(DropDownList!$B$47,CntyQuery!$A$51:$CE$93,AG$1) -> 2698 | AH10: =VLOOKUP(DropDownList!$B$47,CntyQuery!$A$51:$CE$93,AH$1) -> 589 | AI10: =VLOOKUP(DropDownList!$B$47,CntyQuery!$A$51:$CE$93,AI$1) -> 203 | AJ10: =VLOOKUP(DropDownList!$B$47,CntyQuery!$A$51:$CE$93,AJ$1) -> 5416 | AK10: =VLOOKUP(DropDownList!$B$47,CntyQuery!$A$51:$CE$93,AK$1) -> 4943 | AL10: =VLOOKUP(DropDownList!$B$47,CntyQuery!$A$51:$CE$93,AL$1) -> 473 | AM10: =VLOOKUP(DropDownList!$B$47,CntyQuery!$A$51:$CE$93,AM$1) -> 2998 | AN10: =VLOOKUP(DropDownList!$B$47,CntyQuery!$A$51:$CE$93,AN$1) -> 1945 | AO10: =VLOOKUP(DropDownList!$B$47,CntyQuery!$A$51:$CE$93,AO$1) -> 221 | AP10: =VLOOKUP(DropDownList!$B$47,CntyQuery!$A$51:$CE$93,AP$1) -> 53 | AQ10: =VLOOKUP(DropDownList!$B$47,CntyQuery!$A$51:$CE$93,AQ$1) -> 22 | AR10: =VLOOKUP(DropDownList!$B$47,CntyQuery!$A$51:$CE$93,AR$1) -> 6 | AS10: =VLOOKUP(DropDownList!$B$47,CntyQuery!$A$51:$CE$93,AS$1) -> 14 | AT10: =VLOOKUP(DropDownList!$B$47,CntyQuery!$A$51:$CE$93,AT$1) -> 34 | AU10: =VLOOKUP(DropDownList!$B$47,CntyQuery!$A$51:$CE$93,AU$1) -> 73 | AV10: =VLOOKUP(DropDownList!$B$47,CntyQuery!$A$51:$CE$93,AV$1) -> 80 | AW10: =VLOOKUP(DropDownList!$B$47,CntyQuery!$A$51:$CE$93,AW$1) -> 85 | AX10: =VLOOKUP(DropDownList!$B$47,CntyQuery!$A$51:$CE$93,AX$1) -> 145 | AY10: =VLOOKUP(DropDownList!$B$47,CntyQuery!$A$51:$CE$93,AY$1) -> 100 | AZ10: =VLOOKUP(DropDownList!$B$47,CntyQuery!$A$51:$CE$93,AZ$1) -> 279 | BA10: =VLOOKUP(DropDownList!$B$47,CntyQuery!$A$51:$CE$93,BA$1) -> 516 | BB10: =VLOOKUP(DropDownList!$B$47,CntyQuery!$A$51:$CE$93,BB$1) -> 599 | BC10: =VLOOKUP(DropDownList!$B$47,CntyQuery!$A$51:$CE$93,BC$1) -> 147 | BD10: =VLOOKUP(DropDownList!$B$47,CntyQuery!$A$51:$CE$93,BD$1) -> 54 | BE10: =VLOOKUP(DropDownList!$B$47,CntyQuery!$A$51:$CE$93,BE$1) -> 30 | BF10: =VLOOKUP(DropDownList!$B$47,CntyQuery!$A$51:$CE$93,BF$1) -> 6 | BG10: =VLOOKUP(DropDownList!$B$47,CntyQuery!$A$51:$CE$93,BG$1) -> 10 | BH10: =VLOOKUP(DropDownList!$B$47,CntyQuery!$A$51:$CE$93,BH$1) -> 1 | BI10: =VLOOKUP(DropDownList!$B$47,CntyQuery!$A$51:$CE$93,BI$1) -> 0 | BJ10: =VLOOKUP(DropDownList!$B$47,CntyQuery!$A$51:$CE$93,BJ$1) -> 0 | BK10: =VLOOKUP(DropDownList!$B$47,CntyQuery!$A$51:$CE$93,BK$1) -> 0 | BL10: =VLOOKUP(DropDownList!$B$47,CntyQuery!$A$51:$CE$93,BL$1) -> 68000 | BM10: =VLOOKUP(DropDownList!$B$47,CntyQuery!$A$51:$CE$93,BM$1) -> 2507 | BN10: =VLOOKUP(DropDownList!$B$47,CntyQuery!$A$51:$CE$93,BN$1) -> 2792 | BO10: =VLOOKUP(DropDownList!$B$47,CntyQuery!$A$51:$CE$93,BO$1) -> 117 | BP10: =VLOOKUP(DropDownList!$B$47,CntyQuery!$A$51:$CE$93,BP$1) -> 2321 | BQ10: =VLOOKUP(DropDownList!$B$47,CntyQuery!$A$51:$CE$93,BQ$1) -> 605 | BR10: =VLOOKUP(DropDownList!$B$47,CntyQuery!$A$51:$CE$93,BR$1) -> 72 | BS10: =VLOOKUP(DropDownList!$B$47,CntyQuery!$A$51:$CE$93,BS$1) -> 102 | BT10: =VLOOKUP(DropDownList!$B$47,CntyQuery!$A$51:$CE$93,BT$1) -> 1809 | BU10: =VLOOKUP(DropDownList!$B$47,CntyQuery!$A$51:$CE$93,BU$1) -> 34 | BV10: =VLOOKUP(DropDownList!$B$47,CntyQuery!$A$51:$CE$93,BV$1) -> 2507 | BW10: =VLOOKUP(DropDownList!$B$47,CntyQuery!$A$51:$CE$93,BW$1) -> 29 | BX10: =VLOOKUP(DropDownList!$B$47,CntyQuery!$A$51:$CE$93,BX$1) -> 1049 | BY10: =VLOOKUP(DropDownList!$B$47,CntyQuery!$A$51:$CE$93,BY$1) -> 994 | BZ10: =VLOOKUP(DropDownList!$B$47,CntyQuery!$A$51:$CE$93,BZ$1) -> 466 | CA10: =VLOOKUP(DropDownList!$B$47,CntyQuery!$A$51:$CE$93,CA$1) -> 150 | CB10: =VLOOKUP(DropDownList!$B$47,CntyQuery!$A$51:$CE$93,CB$1) -> 43 | CC10: =VLOOKUP(DropDownList!$B$47,CntyQuery!$A$51:$CE$93,CC$1) -> 61 | CD10: =VLOOKUP(DropDownList!$B$47,CntyQuery!$A$51:$CE$93,CD$1) -> 69 | CE10: =VLOOKUP(DropDownList!$B$47,CntyQuery!$A$51:$CE$93,CE$1) -> 48
A13: Census 1990 Data - Query Name: TownSTF3Qry1
A14: NAME | B14: FIPS | C14: COUSUBFP | D14: LandAcres | E14: WaterAcres | F14: HousingUnits90Cen | G14: P01Persons90Cen | H14: P02Families90Cen | I14: P03Households90cen | J14: H25HU<5yrs90cen | K14: H25HU5to20yrs90cen | L14: H25HU20to50yrs90cen | M14: H25HU>50yrs90cen | N14: H31Units0Bedroom90cen | O14: H31Units1Bedroom90cen | P14: H31Units2Bedroom90cen | Q14: H31Units3Bedroom90cen | R14: H31Units4Bedroom90cen | S14: H31Units5+Bedroom90cen | T14: P80HI<5K | U14: P80HI5Kto10K | V14: P80HI10Kto15K | W14: P80HI15Kto25K | X14: P80HI25Kto35K | Y14: P80HI35Kto50K | Z14: P80HI50Kto75K | AA14: P80HI75Kto100K | AB14: P80HI>100K | AC14: P80AMedHI | AD14: P86HH<25HI<5K | AE14: P86HH<25HI5Kto10K | AF14: P86HH<25HI10Kto15K | AG14: P86HH<25HI15Kto25K | AH14: P86HH<25HI25Kto35K | AI14: P86HH<25HI35Kto50K | AJ14: P86HH<25HI50Kto75K | AK14: P86HH<25HI75Kto100K | AL14: P86HH<25HI>100K | AM14: P86HH25to34HI<5K | AN14: P86HH25to34HI5Kto10K | AO14: P86HH25to34HI10Kto15K | AP14: P86HH25to34HI15Kto25K | AQ14: P86HH25to34HI25Kto35K | AR14: P86HH25to34HI35Kto50K | AS14: P86HH25to34HI50Kto75K | AT14: P86HH25to34HI75Kto100K | AU14: P86HH25to34HI>100K | AV14: P86HH35to44HI<5K | AW14: P86HH35to44HI5Kto10K | AX14: P86HH35to44HI10Kto15K | AY14: P86HH35to44HI15Kto25K | AZ14: P86HH35to44HI25Kto35K | BA14: P86HH35to44HI35Kto50K | BB14: P86HH35to44HI50Kto75K | BC14: P86HH35to44HI75Kto100K | BD14: P86HH35to44HI>100K | BE14: P86HH45to54HI<5K | BF14: P86HH45to54HI5Kto10K | BG14: P86HH45to54HI10Kto15K | BH14: P86HH45to54HI15Kto25K | BI14: P86HH45to54HI25Kto35K | BJ14: P86HH45to54HI35Kto50K | BK14: P86HH45to54HI50Kto75K | BL14: P86HH45to54HI75Kto100K | BM14: P86HH45to54HI>100K | BN14: P86HH55to64HI<5K | BO14: P86HH55to64HI5Kto10K | BP14: P86HH55to64HI10Kto15K | BQ14: P86HH55to64HI15Kto25K | BR14: P86HH55to64HI25Kto35K | BS14: P86HH55to64HI35Kto50K | BT14: P86HH55to64HI50Kto75K | BU14: P86HH55to64HI75Kto100K | BV14: P86HH55to64HI>100K | BW14: P86HH65to74HI<5K | BX14: P86HH65to74HI5Kto10K | BY14: P86HH65to74HI10Kto15K | BZ14: P86HH65to74HI15Kto25K | CA14: P86HH65to74HI25Kto35K | CB14: P86HH65to74HI35Kto50K | CC14: P86HH65to74HI50Kto75K | CD14: P86HH65to74HI75Kto100K | CE14: P86HH65to74HI>100K | CF14: P86HH>75HI<5K | CG14: P86HH>75HI5Kto10K | CH14: P86HH>75HI10Kto15K | CI14: P86HH>75HI15Kto25K | CJ14: P86HH>75HI25Kto35K | CK14: P86HH>75HI35Kto50K | CL14: P86HH>75HI50Kto75K | CM14: P86HH>75HI75Kto100K | CN14: P86HH>75HI>100K | CO14: P54SchlEnrlPrePrim | CP14: P54SchlEnrlElemThrHS | CQ14: P54SchlEnrlCollege | CR14: P54NotEnrlInSch | CS14: P57Pop25andOver | CT14: P57LessThan9thGrade | CU14: P579thto12thNoDip | CV14: P57HSGrad | CW14: P57SomeCollege | CX14: P57AssocDeg | CY14: P57BachelDeg | CZ14: P57GradorProfDeg | DA14: P57HSGradorHigher | DB14: P57CollGradorHigher | DC14: P42NativePop | DD14: P42ForeignBornPop | DE14: P42BornStateOfRes | DF14: P37NativePop2 | DG14: P37ForeignBornPop2 | DH14: P49DroveAlone | DI14: P49CarPooled | DJ14: P49PublicTranspt | DK14: P49Walked | DL14: P49OtherMeans | DM14: P49WorkedAtHome | DN14: P80HHInc<10K | DO14: P80HHInc10to15K | DP14: P80HHInc15to25K | DQ14: P80HHInc25to35K | DR14: P80HHInc35to50K | DS14: P80HHInc50to75K | DT14: P80HHInc75to100K | DU14: P80HHInc100to150K | DV14: P80HHInc>150K | DW14: H25YearStBlt89to90 | DX14: H25YearStBlt85to88 | DY14: H25YearStBlt80to84 | DZ14: H25YearStBlt70to79 | EA14: H25YearStBlt60to69 | EB14: H25YearStBlt50to59 | EC14: H25YearStBlt40to49 | ED14: H25YearStBlt39earlier | EE14: P107FamInc<10K | EF14: P107FamInc10to15K | EG14: P107FamInc15to25K | EH14: P107FamInc25to35K | EI14: P107FamInc35to50K | EJ14: P107FamInc50to75K | EK14: P107FamInc75to100K | EL14: P107FamInc100to150K | EM14: P107FamInc>150K | EN14: P107AMedFamInc | EO14: P110NonFamInc<10K | EP14: P110NonFamInc10to15K | EQ14: P110NonFamInc15to25K | ER14: P110NonFamInc25to35K | ES14: P110NonFamInc35to50K | ET14: P110NonFamInc50to75K | EU14: P110NonFamInc75to100K | EV14: P110NonFamInc100to150K | EW14: P110NonFamInc>150K | EX14: P110AMedNonFamInc | EY14: H16HU1Room | EZ14: H16HU2Room | FA14: H16HU3Room | FB14: H16HU4Room | FC14: H16HU5Room | FD14: H16HU6Room | FE14: H16HU7Room | FF14: H16HU8Room | FG14: H16HU9+Room | FH14: H43GrossRnt<100 | FI14: H43GrossRnt100to149 | FJ14: H43GrossRnt150to199 | FK14: H43GrossRnt200to249 | FL14: H43GrossRnt250to299 | FM14: H43GrossRnt300to349 | FN14: H43GrossRnt350to399 | FO14: H43GrossRnt400to449 | FP14: H43GrossRnt450to499 | FQ14: H43GrossRnt500to549 | FR14: H43GrossRnt550to599 | FS14: H43GrossRnt600to649 | FT14: H43GrossRnt650to699 | FU14: H43GrossRnt700to749 | FV14: H43GrossRnt750to999 | FW14: H43GrossRnt1000Plus | FX14: H43NoCashRent | FY14: H43MedGrossRent | FZ14: H51GrossRnt<20PctHHInc | GA14: H51GrossRnt20to24PctHHInc | GB14: H51GrossRnt25to29PctHHInc | GC14: H51GrossRnt30to34PctHHInc | GD14: H51GrossRnt35PctOrMoreHHInc | GE14: H51GrossRntAsPctHHIncNotComp | GF14: H52HUwMtgMoOwnCst<200 | GG14: H52HUwMtgMoOwnCst200to299 | GH14: H52HUwMtgMoOwnCst300to399 | GI14: H52HUwMtgMoOwnCst400to499 | GJ14: H52HUwMtgMoOwnCst500to599 | GK14: H52HUwMtgMoOwnCst600to699 | GL14: H52HUwMtgMoOwnCst700to799 | GM14: H52HUwMtgMoOwnCst800to899 | GN14: H52HUwMtgMoOwnCst900to999 | GO14: H52HUwMtgMoOwnCst1000to1249 | GP14: H52HUwMtgMoOwnCst1250to1499 | GQ14: H52HUwMtgMoOwnCst1500to1999 | GR14: H52HUwMtgMoOwnCst2000More | GS14: H52HUwNoMtgMoOwnCst<100 | GT14: H52HUwNoMtgMoOwnCst100to149 | GU14: H52HUwNoMtgMoOwnCst150to199 | GV14: H52HUwNoMtgMoOwnCst200to249 | GW14: H52HUwNoMtgMoOwnCst250to299 | GX14: H52HUwNoMtgMoOwnCst300to349 | GY14: H52HUwNoMtgMoOwnCst350to399 | GZ14: H52HUwNoMtgMoOwnCst400More | HA14: H52AMedMoOwnCstWMortg | HB14: H52AMedMoOwnCstWNoMortg | HC14: H58HUwMtgMOC<20pHHInc | HD14: H58HUwMtgMOC20to24pHHInc | HE14: H58HUwMtgMOC25to29pHHInc | HF14: H58HUwMtgMOC30to34pHHInc | HG14: H58wMtgMOC>35pHHInc | HH14: H58HUwMtgMOCNotComp | HI14: H58HUwNoMtgMOC<20pHHInc | HJ14: H58HUwNoMtgMOC20to24pHHInc | HK14: H58HUwNoMtgMOC25to29pHHInc | HL14: H58HUwNoMtgMOC30to34pHHInc | HM14: H58wNoMtgMOC>35pHHInc | HN14: H58HUwNoMtgMOCNotComp | HO14: H61OOHUVal<15k | HP14: H61OOHUVal15to19k | HQ14: H61OOHUVal20to24k | HR14: H61OOHUVal25to29k | HS14: H61OOHUVal30to34k | HT14: H61OOHUVal35to39k | HU14: H61OOHUVal40to44k | HV14: H61OOHUVal45to49k | HW14: H61OOHUVal50to59k | HX14: H61OOHUVal60to74k | HY14: H61OOHUVal75to99k | HZ14: H61OOHUVal100to124k | IA14: H61OOHUVal125to149k | IB14: H61OOHUVal150to174k | IC14: H61OOHUVal175to199k | ID14: H61OOHUVal200to249k | IE14: H61OOHUVal250to299k | IF14: H61OOHUVal300to399k | IG14: H61OOHUVal400to499k | IH14: H61OOHUVal500kOrMore | II14: H61aOOHUMedVal
A18: Other Demo Data - Query Name: QryAllTowns-ACSDemographicSheet
A19: TOWN_NAME | B19: FIPS | C19: TOWNCNTY | D19: COUSUB | E19: POP80 | F19: POP90CDCEN | G19: POP2000CEN | H19: POP2010CEN | I19: POP2020CEN | J19: POP2025-Proj | K19: POP2030-Proj | L19: POP2035-Proj | M19: SF80 | N19: MF80 | O19: MH80 | P19: SF81 | Q19: MF81 | R19: MH81 | S19: SF82 | T19: MF82 | U19: MH82 | V19: SF83 | W19: MF83 | X19: MH83 | Y19: SF84_OSP | Z19: MF84_OSP | AA19: MH84_OSP | AB19: SF85_OSP | AC19: MF85_OSP | AD19: MH85_OSP | AE19: SF86_OSP | AF19: MF86_OSP | AG19: MH86_OSP | AH19: SF87_OSP | AI19: MF87_OSP | AJ19: MH87_OSP | AK19: SF88_OSP | AL19: MF88_OSP | AM19: MH88_OSP | AN19: SF89_OSP | AO19: MF89_OSP | AP19: MH89_OSP | AQ19: SF90_OSP | AR19: MF90_OSP | AS19: MH90_OSP | AT19: SF91_OSP | AU19: MF91_OSP | AV19: MH91_OSP | AW19: SF92_OSP | AX19: MF92_OSP | AY19: MH92_OSP | AZ19: SF93_OSP | BA19: MF93_OSP | BB19: MH93_OSP | BC19: SF94_OSP | BD19: MF94_OSP | BE19: MH94_OSP | BF19: SF95_OSP | BG19: MF95_OSP | BH19: MH95_OSP | BI19: SF96_OSP | BJ19: MF96_OSP | BK19: MH96_OSP | BL19: SF97_OSP | BM19: MF97_OSP | BN19: MH97_OSP | BO19: SF98_OSP | BP19: MF98_OSP | BQ19: MH98_OSP | BR19: SF99_OSP | BS19: MF99_OSP | BT19: MH99_OSP | BU19: SF00_OSP | BV19: MF00_OSP | BW19: MH00_OSP | BX19: SF01_OSP | BY19: MF01_OSP | BZ19: MH01_OSP | CA19: SF02_OSP | CB19: MF02_OSP | CC19: MH02_OSP | CD19: SF03_OSP | CE19: MF03_OSP | CF19: MH03_OSP | CG19: SF04_OSP | CH19: MF04_OSP | CI19: MH04_OSP | CJ19: SF05_OSP | CK19: MF05_OSP | CL19: MH05_OSP | CM19: SF06_OSP | CN19: MF06_OSP | CO19: MH06_OSP | CP19: SF07_OSP | CQ19: MF07_OSP | CR19: MH07_OSP | CS19: SF08_OSP | CT19: MF08_OSP | CU19: MH08_OSP | CV19: SF09_OSP | CW19: MF09_OSP | CX19: MH09_OSP | CY19: SF10_OSP | CZ19: MF10_OSP | DA19: MH10_OSP | DB19: SF11_OSP | DC19: MF11_OSP | DD19: MH11_OSP | DE19: SF12_OSP | DF19: MF12_OSP | DG19: MH12_OSP | DH19: SF13_OSP | DI19: MF13_OSP | DJ19: MH13_OSP | DK19: SF14_OSP | DL19: MF14_OSP | DM19: MH14_OSP | DN19: SF15_OSP | DO19: MF15_OSP | DP19: MH15_OSP | DQ19: SF16_OSP | DR19: MF16_OSP | DS19: MH16_OSP | DT19: SF17_OSP | DU19: MF17_OSP | DV19: MH17_OSP | DW19: SF18_OSP | DX19: MF18_OSP | DY19: MH18_OSP | DZ19: SF19_OSP | EA19: MF19_OSP | EB19: MH19_OSP | EC19: SF20_OSP | ED19: MF20_OSP | EE19: MH20_OSP | EF19: SF20 Census_OSP | EG19: MF20 Census OSP | EH19: MH20 Census_OSP | EI19: SF21_OSP | EJ19: MF21_OSP | EK19: MH21_OSP | EL19: COMMENTS | EM19: CNTY_CODE
A20: =VLOOKUP(DropDownList!$B$47,CntyQuery!$A$118:$FZ$160,A$1) -> Berlin | B20: =VLOOKUP(DropDownList!$B$47,CntyQuery!$A$118:$FZ$160,B$1) -> 7020 | C20: =VLOOKUP(DropDownList!$B$47,CntyQuery!$A$118:$FZ$160,C$1) -> 401 | D20: =VLOOKUP(DropDownList!$B$47,CntyQuery!$A$118:$FZ$160,D$1) -> 05140 | E20: =VLOOKUP(DropDownList!$B$47,CntyQuery!$A$118:$FZ$160,E$1) -> 13084 | F20: =VLOOKUP(DropDownList!$B$47,CntyQuery!$A$118:$FZ$160,F$1) -> 11824 | G20: =VLOOKUP(DropDownList!$B$47,CntyQuery!$A$118:$FZ$160,G$1) -> 10331 | H20: =VLOOKUP(DropDownList!$B$47,CntyQuery!$A$118:$FZ$160,H$1) -> 10051 | I20: =VLOOKUP(DropDownList!$B$47,CntyQuery!$A$118:$FZ$160,I$1) -> 9425 | J20: =VLOOKUP(DropDownList!$B$47,CntyQuery!$A$118:$FZ$160,J$1) -> 9427 | K20: =VLOOKUP(DropDownList!$B$47,CntyQuery!$A$118:$FZ$160,K$1) -> 9358 | L20: =VLOOKUP(DropDownList!$B$47,CntyQuery!$A$118:$FZ$160,L$1) -> 9190 | M20: =VLOOKUP(DropDownList!$B$47,CntyQuery!$A$118:$FZ$160,M$1) -> 0 | N20: =VLOOKUP(DropDownList!$B$47,CntyQuery!$A$118:$FZ$160,N$1) -> -18 | O20: =VLOOKUP(DropDownList!$B$47,CntyQuery!$A$118:$FZ$160,O$1) -> 0 | P20: =VLOOKUP(DropDownList!$B$47,CntyQuery!$A$118:$FZ$160,P$1) -> 0 | Q20: =VLOOKUP(DropDownList!$B$47,CntyQuery!$A$118:$FZ$160,Q$1) -> -4 | R20: =VLOOKUP(DropDownList!$B$47,CntyQuery!$A$118:$FZ$160,R$1) -> 0 | S20: =VLOOKUP(DropDownList!$B$47,CntyQuery!$A$118:$FZ$160,S$1) -> 1 | T20: =VLOOKUP(DropDownList!$B$47,CntyQuery!$A$118:$FZ$160,T$1) -> -14 | U20: =VLOOKUP(DropDownList!$B$47,CntyQuery!$A$118:$FZ$160,U$1) -> 0 | V20: =VLOOKUP(DropDownList!$B$47,CntyQuery!$A$118:$FZ$160,V$1) -> 6 | W20: =VLOOKUP(DropDownList!$B$47,CntyQuery!$A$118:$FZ$160,W$1) -> -33 | X20: =VLOOKUP(DropDownList!$B$47,CntyQuery!$A$118:$FZ$160,X$1) -> 3 | Y20: =VLOOKUP(DropDownList!$B$47,CntyQuery!$A$118:$FZ$160,Y$1) -> 6 | Z20: =VLOOKUP(DropDownList!$B$47,CntyQuery!$A$118:$FZ$160,Z$1) -> -27 | AA20: =VLOOKUP(DropDownList!$B$47,CntyQuery!$A$118:$FZ$160,AA$1) -> 3 | AB20: =VLOOKUP(DropDownList!$B$47,CntyQuery!$A$118:$FZ$160,AB$1) -> 4 | AC20: =VLOOKUP(DropDownList!$B$47,CntyQuery!$A$118:$FZ$160,AC$1) -> -17 | AD20: =VLOOKUP(DropDownList!$B$47,CntyQuery!$A$118:$FZ$160,AD$1) -> 0 | AE20: =VLOOKUP(DropDownList!$B$47,CntyQuery!$A$118:$FZ$160,AE$1) -> 8 | AF20: =VLOOKUP(DropDownList!$B$47,CntyQuery!$A$118:$FZ$160,AF$1) -> -16 | AG20: =VLOOKUP(DropDownList!$B$47,CntyQuery!$A$118:$FZ$160,AG$1) -> 1 | AH20: =VLOOKUP(DropDownList!$B$47,CntyQuery!$A$118:$FZ$160,AH$1) -> 18 | AI20: =VLOOKUP(DropDownList!$B$47,CntyQuery!$A$118:$FZ$160,AI$1) -> -20 | AJ20: =VLOOKUP(DropDownList!$B$47,CntyQuery!$A$118:$FZ$160,AJ$1) -> 5 | AK20: =VLOOKUP(DropDownList!$B$47,CntyQuery!$A$118:$FZ$160,AK$1) -> 28 | AL20: =VLOOKUP(DropDownList!$B$47,CntyQuery!$A$118:$FZ$160,AL$1) -> 2 | AM20: =VLOOKUP(DropDownList!$B$47,CntyQuery!$A$118:$FZ$160,AM$1) -> 2 | AN20: =VLOOKUP(DropDownList!$B$47,CntyQuery!$A$118:$FZ$160,AN$1) -> 12 | AO20: =VLOOKUP(DropDownList!$B$47,CntyQuery!$A$118:$FZ$160,AO$1) -> -5 | AP20: =VLOOKUP(DropDownList!$B$47,CntyQuery!$A$118:$FZ$160,AP$1) -> 3 | AQ20: =VLOOKUP(DropDownList!$B$47,CntyQuery!$A$118:$FZ$160,AQ$1) -> 4 | AR20: =VLOOKUP(DropDownList!$B$47,CntyQuery!$A$118:$FZ$160,AR$1) -> -4 | AS20: =VLOOKUP(DropDownList!$B$47,CntyQuery!$A$118:$FZ$160,AS$1) -> 0 | AT20: =VLOOKUP(DropDownList!$B$47,CntyQuery!$A$118:$FZ$160,AT$1) -> 2 | AU20: =VLOOKUP(DropDownList!$B$47,CntyQuery!$A$118:$FZ$160,AU$1) -> -15 | AV20: =VLOOKUP(DropDownList!$B$47,CntyQuery!$A$118:$FZ$160,AV$1) -> 0 | AW20: =VLOOKUP(DropDownList!$B$47,CntyQuery!$A$118:$FZ$160,AW$1) -> 2 | AX20: =VLOOKUP(DropDownList!$B$47,CntyQuery!$A$118:$FZ$160,AX$1) -> 0 | AY20: =VLOOKUP(DropDownList!$B$47,CntyQuery!$A$118:$FZ$160,AY$1) -> 0 | AZ20: =VLOOKUP(DropDownList!$B$47,CntyQuery!$A$118:$FZ$160,AZ$1) -> 2 | BA20: =VLOOKUP(DropDownList!$B$47,CntyQuery!$A$118:$FZ$160,BA$1) -> -6 | BB20: =VLOOKUP(DropDownList!$B$47,CntyQuery!$A$118:$FZ$160,BB$1) -> 1 | BC20: =VLOOKUP(DropDownList!$B$47,CntyQuery!$A$118:$FZ$160,BC$1) -> 1 | BD20: =VLOOKUP(DropDownList!$B$47,CntyQuery!$A$118:$FZ$160,BD$1) -> 0 | BE20: =VLOOKUP(DropDownList!$B$47,CntyQuery!$A$118:$FZ$160,BE$1) -> -1 | BF20: =VLOOKUP(DropDownList!$B$47,CntyQuery!$A$118:$FZ$160,BF$1) -> -2 | BG20: =VLOOKUP(DropDownList!$B$47,CntyQuery!$A$118:$FZ$160,BG$1) -> -6 | BH20: =VLOOKUP(DropDownList!$B$47,CntyQuery!$A$118:$FZ$160,BH$1) -> 1 | BI20: =VLOOKUP(DropDownList!$B$47,CntyQuery!$A$118:$FZ$160,BI$1) -> -1 | BJ20: =VLOOKUP(DropDownList!$B$47,CntyQuery!$A$118:$FZ$160,BJ$1) -> -1 | BK20: =VLOOKUP(DropDownList!$B$47,CntyQuery!$A$118:$FZ$160,BK$1) -> 0 | BL20: =VLOOKUP(DropDownList!$B$47,CntyQuery!$A$118:$FZ$160,BL$1) -> -5 | BM20: =VLOOKUP(DropDownList!$B$47,CntyQuery!$A$118:$FZ$160,BM$1) -> -3 | BN20: =VLOOKUP(DropDownList!$B$47,CntyQuery!$A$118:$FZ$160,BN$1) -> 0 | BO20: =VLOOKUP(DropDownList!$B$47,CntyQuery!$A$118:$FZ$160,BO$1) -> 1 | BP20: =VLOOKUP(DropDownList!$B$47,CntyQuery!$A$118:$FZ$160,BP$1) -> -1 | BQ20: =VLOOKUP(DropDownList!$B$47,CntyQuery!$A$118:$FZ$160,BQ$1) -> 1 | BR20: =VLOOKUP(DropDownList!$B$47,CntyQuery!$A$118:$FZ$160,BR$1) -> -5 | BS20: =VLOOKUP(DropDownList!$B$47,CntyQuery!$A$118:$FZ$160,BS$1) -> -13 | BT20: =VLOOKUP(DropDownList!$B$47,CntyQuery!$A$118:$FZ$160,BT$1) -> 0 | BU20: =VLOOKUP(DropDownList!$B$47,CntyQuery!$A$118:$FZ$160,BU$1) -> -1 | BV20: =VLOOKUP(DropDownList!$B$47,CntyQuery!$A$118:$FZ$160,BV$1) -> -21 | BW20: =VLOOKUP(DropDownList!$B$47,CntyQuery!$A$118:$FZ$160,BW$1) -> 0 | BX20: =VLOOKUP(DropDownList!$B$47,CntyQuery!$A$118:$FZ$160,BX$1) -> 0 | BY20: =VLOOKUP(DropDownList!$B$47,CntyQuery!$A$118:$FZ$160,BY$1) -> -9 | BZ20: =VLOOKUP(DropDownList!$B$47,CntyQuery!$A$118:$FZ$160,BZ$1) -> -1 | CA20: =VLOOKUP(DropDownList!$B$47,CntyQuery!$A$118:$FZ$160,CA$1) -> 0 | CB20: =VLOOKUP(DropDownList!$B$47,CntyQuery!$A$118:$FZ$160,CB$1) -> 0 | CC20: =VLOOKUP(DropDownList!$B$47,CntyQuery!$A$118:$FZ$160,CC$1) -> 0 | CD20: =VLOOKUP(DropDownList!$B$47,CntyQuery!$A$118:$FZ$160,CD$1) -> -1 | CE20: =VLOOKUP(DropDownList!$B$47,CntyQuery!$A$118:$FZ$160,CE$1) -> -10 | CF20: =VLOOKUP(DropDownList!$B$47,CntyQuery!$A$118:$FZ$160,CF$1) -> 2 | CG20: =VLOOKUP(DropDownList!$B$47,CntyQuery!$A$118:$FZ$160,CG$1) -> -1 | CH20: =VLOOKUP(DropDownList!$B$47,CntyQuery!$A$118:$FZ$160,CH$1) -> 0 | CI20: =VLOOKUP(DropDownList!$B$47,CntyQuery!$A$118:$FZ$160,CI$1) -> 2 | CJ20: =VLOOKUP(DropDownList!$B$47,CntyQuery!$A$118:$FZ$160,CJ$1) -> 3 | CK20: =VLOOKUP(DropDownList!$B$47,CntyQuery!$A$118:$FZ$160,CK$1) -> -6 | CL20: =VLOOKUP(DropDownList!$B$47,CntyQuery!$A$118:$FZ$160,CL$1) -> 1 | CM20: =VLOOKUP(DropDownList!$B$47,CntyQuery!$A$118:$FZ$160,CM$1) -> -4 | CN20: =VLOOKUP(DropDownList!$B$47,CntyQuery!$A$118:$FZ$160,CN$1) -> -3 | CO20: =VLOOKUP(DropDownList!$B$47,CntyQuery!$A$118:$FZ$160,CO$1) -> 0 | CP20: =VLOOKUP(DropDownList!$B$47,CntyQuery!$A$118:$FZ$160,CP$1) -> -3 | CQ20: =VLOOKUP(DropDownList!$B$47,CntyQuery!$A$118:$FZ$160,CQ$1) -> -32 | CR20: =VLOOKUP(DropDownList!$B$47,CntyQuery!$A$118:$FZ$160,CR$1) -> 0 | CS20: =VLOOKUP(DropDownList!$B$47,CntyQuery!$A$118:$FZ$160,CS$1) -> -1 | CT20: =VLOOKUP(DropDownList!$B$47,CntyQuery!$A$118:$FZ$160,CT$1) -> -14 | CU20: =VLOOKUP(DropDownList!$B$47,CntyQuery!$A$118:$FZ$160,CU$1) -> 0 | CV20: =VLOOKUP(DropDownList!$B$47,CntyQuery!$A$118:$FZ$160,CV$1) -> -5 | CW20: =VLOOKUP(DropDownList!$B$47,CntyQuery!$A$118:$FZ$160,CW$1) -> -16 | CX20: =VLOOKUP(DropDownList!$B$47,CntyQuery!$A$118:$FZ$160,CX$1) -> 2 | CY20: =VLOOKUP(DropDownList!$B$47,CntyQuery!$A$118:$FZ$160,CY$1) -> -3 | CZ20: =VLOOKUP(DropDownList!$B$47,CntyQuery!$A$118:$FZ$160,CZ$1) -> -31 | DA20: =VLOOKUP(DropDownList!$B$47,CntyQuery!$A$118:$FZ$160,DA$1) -> 0 | DB20: =VLOOKUP(DropDownList!$B$47,CntyQuery!$A$118:$FZ$160,DB$1) -> -9 | DC20: =VLOOKUP(DropDownList!$B$47,CntyQuery!$A$118:$FZ$160,DC$1) -> -24 | DD20: =VLOOKUP(DropDownList!$B$47,CntyQuery!$A$118:$FZ$160,DD$1) -> 0 | DE20: =VLOOKUP(DropDownList!$B$47,CntyQuery!$A$118:$FZ$160,DE$1) -> -12 | DF20: =VLOOKUP(DropDownList!$B$47,CntyQuery!$A$118:$FZ$160,DF$1) -> -61 | DG20: =VLOOKUP(DropDownList!$B$47,CntyQuery!$A$118:$FZ$160,DG$1) -> 2 | DH20: =VLOOKUP(DropDownList!$B$47,CntyQuery!$A$118:$FZ$160,DH$1) -> -9 | DI20: =VLOOKUP(DropDownList!$B$47,CntyQuery!$A$118:$FZ$160,DI$1) -> -64 | DJ20: =VLOOKUP(DropDownList!$B$47,CntyQuery!$A$118:$FZ$160,DJ$1) -> 1 | DK20: =VLOOKUP(DropDownList!$B$47,CntyQuery!$A$118:$FZ$160,DK$1) -> -2 | DL20: =VLOOKUP(DropDownList!$B$47,CntyQuery!$A$118:$FZ$160,DL$1) -> -22 | DM20: =VLOOKUP(DropDownList!$B$47,CntyQuery!$A$118:$FZ$160,DM$1) -> 0 | DN20: =VLOOKUP(DropDownList!$B$47,CntyQuery!$A$118:$FZ$160,DN$1) -> -3 | DO20: =VLOOKUP(DropDownList!$B$47,CntyQuery!$A$118:$FZ$160,DO$1) -> -3 | DP20: =VLOOKUP(DropDownList!$B$47,CntyQuery!$A$118:$FZ$160,DP$1) -> 0 | DQ20: =VLOOKUP(DropDownList!$B$47,CntyQuery!$A$118:$FZ$160,DQ$1) -> -1 | DR20: =VLOOKUP(DropDownList!$B$47,CntyQuery!$A$118:$FZ$160,DR$1) -> -14 | DS20: =VLOOKUP(DropDownList!$B$47,CntyQuery!$A$118:$FZ$160,DS$1) -> 1 | DT20: =VLOOKUP(DropDownList!$B$47,CntyQuery!$A$118:$FZ$160,DT$1) -> 0 | DU20: =VLOOKUP(DropDownList!$B$47,CntyQuery!$A$118:$FZ$160,DU$1) -> 6 | DV20: =VLOOKUP(DropDownList!$B$47,CntyQuery!$A$118:$FZ$160,DV$1) -> 2 | DW20: =VLOOKUP(DropDownList!$B$47,CntyQuery!$A$118:$FZ$160,DW$1) -> 1 | DX20: =VLOOKUP(DropDownList!$B$47,CntyQuery!$A$118:$FZ$160,DX$1) -> 2 | DY20: =VLOOKUP(DropDownList!$B$47,CntyQuery!$A$118:$FZ$160,DY$1) -> 0 | DZ20: =VLOOKUP(DropDownList!$B$47,CntyQuery!$A$118:$FZ$160,DZ$1) -> 1 | EA20: =VLOOKUP(DropDownList!$B$47,CntyQuery!$A$118:$FZ$160,EA$1) -> 0 | EB20: =VLOOKUP(DropDownList!$B$47,CntyQuery!$A$118:$FZ$160,EB$1) -> -4 | EC20: =VLOOKUP(DropDownList!$B$47,CntyQuery!$A$118:$FZ$160,EC$1) -> -2 | ED20: =VLOOKUP(DropDownList!$B$47,CntyQuery!$A$118:$FZ$160,ED$1) -> -1 | EE20: =VLOOKUP(DropDownList!$B$47,CntyQuery!$A$118:$FZ$160,EE$1) -> 3 | EF20: =VLOOKUP(DropDownList!$B$47,CntyQuery!$A$118:$FZ$160,EF$1) -> 0 | EG20: =VLOOKUP(DropDownList!$B$47,CntyQuery!$A$118:$FZ$160,EG$1) -> 0 | EH20: =VLOOKUP(DropDownList!$B$47,CntyQuery!$A$118:$FZ$160,EH$1) -> 0 | EI20: =VLOOKUP(DropDownList!$B$47,CntyQuery!$A$118:$FZ$160,EI$1) -> 0 | EJ20: =VLOOKUP(DropDownList!$B$47,CntyQuery!$A$118:$FZ$160,EJ$1) -> -2 | EK20: =VLOOKUP(DropDownList!$B$47,CntyQuery!$A$118:$FZ$160,EK$1) -> 2 | EL20: =VLOOKUP(DropDownList!$B$47,CntyQuery!$A$118:$FZ$160,EL$1) -> 2002 Did not submit data to OEP. Used Census Data | EM20: =VLOOKUP(DropDownList!$B$47,CntyQuery!$A$118:$FZ$160,EM$1) -> 4
A23: NH Employment Data | B23: Query Name: DPQryEmploymentByCnty
A24: AreaName | B24: COUNTYCODE | C24: TOTP & G2001 | D24: TOT2001 | E24: GOODPRO2001 | F24: SERVICEPROMAN2001 | G24: WAGEP & G2001 | H24: WAGETOT2001 | I24: WAGEGOODPRO2001 | J24: WAGESERVICEPRO2001 | K24: TOTP & G2002 | L24: TOT2002 | M24: GOODPRO2002 | N24: SERVICEPROMAN2002 | O24: WAGEP & G2002 | P24: WAGETOT2002 | Q24: WAGEGOODPRO2002 | R24: WAGESERVICEPRO2002 | S24: TOTP & G2003 | T24: TOT2003 | U24: GOODPRO2003 | V24: SERVICEPROMAN2003 | W24: WAGEP & G2003 | X24: WAGETOT2003 | Y24: WAGEGOODPRO2003 | Z24: WAGESERVICEPRO2003 | AA24: TOTP & G2004 | AB24: TOT2004 | AC24: GOODPRO2004 | AD24: SERVICEPROMAN2004 | AE24: WAGEP & G2004 | AF24: WAGETOT2004 | AG24: WAGEGOODPRO2004 | AH24: WAGESERVICEPRO2004 | AI24: TOTP & G2005 | AJ24: TOT2005 | AK24: GOODPRO2005 | AL24: SERVICEPROMAN2005 | AM24: WAGEP & G2005 | AN24: WAGETOT2005 | AO24: WAGEGOODPRO2005 | AP24: WAGESERVICEPRO2005 | AQ24: TOTP & G2006 | AR24: TOT2006 | AS24: GOODPRO2006 | AT24: SERVICEPROMAN2006 | AU24: WAGEP & G2006 | AV24: WAGETOT2006 | AW24: WAGEGOODPRO2006 | AX24: WAGESERVICEPRO2006 | AY24: TOTP & G2007 | AZ24: TOT2007 | BA24: GOODPRO2007 | BB24: SERVICEPROMAN2007 | BC24: WAGEP & G2007 | BD24: WAGETOT2007 | BE24: WAGEGOODPRO2007 | BF24: WAGESERVICEPRO2007 | BG24: TOTP & G2008 | BH24: TOT2008 | BI24: GOODPRO2008 | BJ24: SERVICEPROMAN2008 | BK24: WAGEP & G2008 | BL24: WAGETOT2008 | BM24: WAGEGOODPRO2008 | BN24: WAGESERVICEPRO2008 | BO24: TOTP & G2009 | BP24: TOT2009 | BQ24: GOODPRO2009 | BR24: SERVICEPROMAN2009 | BS24: WAGEP & G2009 | BT24: WAGETOT2009 | BU24: WAGEGOODPRO2009 | BV24: WAGESERVICEPRO2009 | BW24: TOTP & G2010 | BX24: TOT2010 | BY24: GOODPRO2010 | BZ24: SERVICEPROMAN2010 | CA24: WAGEP & G2010 | CB24: WAGETOT2010 | CC24: WAGEGOODPRO2010 | CD24: WAGESERVICEPRO2010 | CE24: TOTP & G2011 | CF24: TOT2011 | CG24: GOODPRO2011 | CH24: SERVICEPROMAN2011 | CI24: WAGEP & G2011 | CJ24: WAGETOT2011 | CK24: WAGEGOODPRO2011 | CL24: WAGESERVICEPRO2011 | CM24: TOTP & G2012 | CN24: TOT2012 | CO24: GOODPRO2012 | CP24: SERVICEPROMAN2012 | CQ24: WAGEP & G2012 | CR24: WAGETOT2012 | CS24: WAGEGOODPRO2012 | CT24: WAGESERVICEPRO2012 | CU24: TOTP & G2013 | CV24: TOT2013 | CW24: GOODPRO2013 | CX24: SERVICEPROMAN2013 | CY24: WAGEP & G2013 | CZ24: WAGETOT2013 | DA24: WAGEGOODPRO2013 | DB24: WAGESERVICEPRO2013 | DC24: TOTP & G2014 | DD24: TOT2014 | DE24: GOODPRO2014 | DF24: SERVICEPROMAN2014 | DG24: WAGEP & G2014 | DH24: WAGETOT2014 | DI24: WAGEGOODPRO2014 | DJ24: WAGESERVICEPRO2014 | DK24: TOTP & G2015 | DL24: TOT2015 | DM24: GOODPRO2015 | DN24: SERVICEPROMAN2015 | DO24: WAGEP & G2015 | DP24: WAGETOT2015 | DQ24: WAGEGOODPRO2015 | DR24: WAGESERVICEPRO2015 | DS24: TOTP & G2016 | DT24: TOT2016 | DU24: GOODPRO2016 | DV24: SERVICEPROMAN2016 | DW24: WAGEP & G2016 | DX24: WAGETOT2016 | DY24: WAGEGOODPRO2016 | DZ24: WAGESERVICEPRO2016 | EA24: TOTP & G2017 | EB24: TOT2017 | EC24: GOODPRO2017 | ED24: SERVICEPROMAN2017 | EE24: WAGEP & G2017 | EF24: WAGETOT2017 | EG24: WAGEGOODPRO2017 | EH24: WAGESERVICEPRO2017 | EI24: TOTP & G2018 | EJ24: TOT2018 | EK24: GOODPRO2018 | EL24: SERVICEPROMAN2018 | EM24: WAGEP & G2018 | EN24: WAGETOT2018 | EO24: WAGEGOODPRO2018 | EP24: WAGESERVICEPRO2018 | EQ24: TOTP & G2019 | ER24: TOT2019 | ES24: TOTGov2019 | ET24: GOODPRO2019 | EU24: SERVICEPROMAN2019 | EV24: WAGEP & G2019 | EW24: WAGETOT2019 | EX24: WAGEGov2019 | EY24: WAGEGOODPRO2019 | EZ24: WAGESERVICEPRO2019 | FA24: TOTP & G2020 | FB24: TOT2020 | FC24: TOTGov2020 | FD24: GOODPRO2020 | FE24: SERVICEPROMAN2020 | FF24: WAGEP & G2020 | FG24: WAGETOT2020 | FH24: WAGEGov2020 | FI24: WAGEGOODPRO2020 | FJ24: WAGESERVICEPRO2020 | FK24: TOTP & G2021 | FL24: TOT2021 | FM24: TOTGov2021 | FN24: GOODPRO2021 | FO24: SERVICEPROMAN2021 | FP24: WAGEP & G2021 | FQ24: WAGETOT2021 | FR24: WAGEGov2021 | FS24: WAGEGOODPRO2021 | FT24: WAGESERVICEPRO2021 | FU24: TOTP & G2022 | FV24: TOT2022 | FW24: TOTGov2022 | FX24: GOODPRO2022 | FY24: SERVICEPROMAN2022 | FZ24: WAGEP & G2022 | GA24: WAGETOT2022 | GB24: WAGEGov2022 | GC24: WAGEGOODPRO2022 | GD24: WAGESERVICEPRO2022
A25: =VLOOKUP(DropDownList!$B$47,CntyQuery!$A$171:$GZ$213,A$1) -> Berlin | B25: =VLOOKUP(DropDownList!$B$47,CntyQuery!$A$171:$GZ$213,B$1) -> 4 | C25: =VLOOKUP(DropDownList!$B$47,CntyQuery!$A$171:$GZ$213,C$1) -> 4415 | D25: =VLOOKUP(DropDownList!$B$47,CntyQuery!$A$171:$GZ$213,D$1) -> 3186 | E25: =VLOOKUP(DropDownList!$B$47,CntyQuery!$A$171:$GZ$213,E$1) -> 1043 | F25: =VLOOKUP(DropDownList!$B$47,CntyQuery!$A$171:$GZ$213,F$1) -> 2143 | G25: =VLOOKUP(DropDownList!$B$47,CntyQuery!$A$171:$GZ$213,G$1) -> 567.58 | H25: =VLOOKUP(DropDownList!$B$47,CntyQuery!$A$171:$GZ$213,H$1) -> 578.3 | I25: =VLOOKUP(DropDownList!$B$47,CntyQuery!$A$171:$GZ$213,I$1) -> 804.81 | J25: =VLOOKUP(DropDownList!$B$47,CntyQuery!$A$171:$GZ$213,J$1) -> 468.09 | K25: =VLOOKUP(DropDownList!$B$47,CntyQuery!$A$171:$GZ$213,K$1) -> 4053 | L25: =VLOOKUP(DropDownList!$B$47,CntyQuery!$A$171:$GZ$213,L$1) -> 2774 | M25: =VLOOKUP(DropDownList!$B$47,CntyQuery!$A$171:$GZ$213,M$1) -> 748 | N25: =VLOOKUP(DropDownList!$B$47,CntyQuery!$A$171:$GZ$213,N$1) -> 2026 | O25: =VLOOKUP(DropDownList!$B$47,CntyQuery!$A$171:$GZ$213,O$1) -> 556.28 | P25: =VLOOKUP(DropDownList!$B$47,CntyQuery!$A$171:$GZ$213,P$1) -> 555.58 | Q25: =VLOOKUP(DropDownList!$B$47,CntyQuery!$A$171:$GZ$213,Q$1) -> 695.15 | R25: =VLOOKUP(DropDownList!$B$47,CntyQuery!$A$171:$GZ$213,R$1) -> 504.09 | S25: =VLOOKUP(DropDownList!$B$47,CntyQuery!$A$171:$GZ$213,S$1) -> 4301 | T25: =VLOOKUP(DropDownList!$B$47,CntyQuery!$A$171:$GZ$213,T$1) -> 3006 | U25: =VLOOKUP(DropDownList!$B$47,CntyQuery!$A$171:$GZ$213,U$1) -> 1057 | V25: =VLOOKUP(DropDownList!$B$47,CntyQuery!$A$171:$GZ$213,V$1) -> 1949 | W25: =VLOOKUP(DropDownList!$B$47,CntyQuery!$A$171:$GZ$213,W$1) -> 605.79 | X25: =VLOOKUP(DropDownList!$B$47,CntyQuery!$A$171:$GZ$213,X$1) -> 612.32 | Y25: =VLOOKUP(DropDownList!$B$47,CntyQuery!$A$171:$GZ$213,Y$1) -> 776.38 | Z25: =VLOOKUP(DropDownList!$B$47,CntyQuery!$A$171:$GZ$213,Z$1) -> 523.41 | AA25: =VLOOKUP(DropDownList!$B$47,CntyQuery!$A$171:$GZ$213,AA$1) -> 4324 | AB25: =VLOOKUP(DropDownList!$B$47,CntyQuery!$A$171:$GZ$213,AB$1) -> 3024 | AC25: =VLOOKUP(DropDownList!$B$47,CntyQuery!$A$171:$GZ$213,AC$1) -> 1102 | AD25: =VLOOKUP(DropDownList!$B$47,CntyQuery!$A$171:$GZ$213,AD$1) -> 1922 | AE25: =VLOOKUP(DropDownList!$B$47,CntyQuery!$A$171:$GZ$213,AE$1) -> 629.92 | AF25: =VLOOKUP(DropDownList!$B$47,CntyQuery!$A$171:$GZ$213,AF$1) -> 644.21 | AG25: =VLOOKUP(DropDownList!$B$47,CntyQuery!$A$171:$GZ$213,AG$1) -> 803.6 | AH25: =VLOOKUP(DropDownList!$B$47,CntyQuery!$A$171:$GZ$213,AH$1) -> 552.82 | AI25: =VLOOKUP(DropDownList!$B$47,CntyQuery!$A$171:$GZ$213,AI$1) -> 4423 | AJ25: =VLOOKUP(DropDownList!$B$47,CntyQuery!$A$171:$GZ$213,AJ$1) -> 3106 | AK25: =VLOOKUP(DropDownList!$B$47,CntyQuery!$A$171:$GZ$213,AK$1) -> 1130 | AL25: =VLOOKUP(DropDownList!$B$47,CntyQuery!$A$171:$GZ$213,AL$1) -> 1977 | AM25: =VLOOKUP(DropDownList!$B$47,CntyQuery!$A$171:$GZ$213,AM$1) -> 639.92 | AN25: =VLOOKUP(DropDownList!$B$47,CntyQuery!$A$171:$GZ$213,AN$1) -> 651.49 | AO25: =VLOOKUP(DropDownList!$B$47,CntyQuery!$A$171:$GZ$213,AO$1) -> 823.13 | AP25: =VLOOKUP(DropDownList!$B$47,CntyQuery!$A$171:$GZ$213,AP$1) -> 553.39 | AQ25: =VLOOKUP(DropDownList!$B$47,CntyQuery!$A$171:$GZ$213,AQ$1) -> 3868 | AR25: =VLOOKUP(DropDownList!$B$47,CntyQuery!$A$171:$GZ$213,AR$1) -> 2482 | AS25: =VLOOKUP(DropDownList!$B$47,CntyQuery!$A$171:$GZ$213,AS$1) -> 509 | AT25: =VLOOKUP(DropDownList!$B$47,CntyQuery!$A$171:$GZ$213,AT$1) -> 1973 | AU25: =VLOOKUP(DropDownList!$B$47,CntyQuery!$A$171:$GZ$213,AU$1) -> 611.12 | AV25: =VLOOKUP(DropDownList!$B$47,CntyQuery!$A$171:$GZ$213,AV$1) -> 606.6 | AW25: =VLOOKUP(DropDownList!$B$47,CntyQuery!$A$171:$GZ$213,AW$1) -> 684.56 | AX25: =VLOOKUP(DropDownList!$B$47,CntyQuery!$A$171:$GZ$213,AX$1) -> 586.51 | AY25: =VLOOKUP(DropDownList!$B$47,CntyQuery!$A$171:$GZ$213,AY$1) -> 3910 | AZ25: =VLOOKUP(DropDownList!$B$47,CntyQuery!$A$171:$GZ$213,AZ$1) -> 2599 | BA25: =VLOOKUP(DropDownList!$B$47,CntyQuery!$A$171:$GZ$213,BA$1) -> 519 | BB25: =VLOOKUP(DropDownList!$B$47,CntyQuery!$A$171:$GZ$213,BB$1) -> 2080 | BC25: =VLOOKUP(DropDownList!$B$47,CntyQuery!$A$171:$GZ$213,BC$1) -> 633.49 | BD25: =VLOOKUP(DropDownList!$B$47,CntyQuery!$A$171:$GZ$213,BD$1) -> 611.59 | BE25: =VLOOKUP(DropDownList!$B$47,CntyQuery!$A$171:$GZ$213,BE$1) -> 740.71 | BF25: =VLOOKUP(DropDownList!$B$47,CntyQuery!$A$171:$GZ$213,BF$1) -> 579.36 | BG25: =VLOOKUP(DropDownList!$B$47,CntyQuery!$A$171:$GZ$213,BG$1) -> 3907 | BH25: =VLOOKUP(DropDownList!$B$47,CntyQuery!$A$171:$GZ$213,BH$1) -> 2606 | BI25: =VLOOKUP(DropDownList!$B$47,CntyQuery!$A$171:$GZ$213,BI$1) -> 559 | BJ25: =VLOOKUP(DropDownList!$B$47,CntyQuery!$A$171:$GZ$213,BJ$1) -> 2048 | BK25: =VLOOKUP(DropDownList!$B$47,CntyQuery!$A$171:$GZ$213,BK$1) -> 674.64 | BL25: =VLOOKUP(DropDownList!$B$47,CntyQuery!$A$171:$GZ$213,BL$1) -> 651.79 | BM25: =VLOOKUP(DropDownList!$B$47,CntyQuery!$A$171:$GZ$213,BM$1) -> 733.47 | BN25: =VLOOKUP(DropDownList!$B$47,CntyQuery!$A$171:$GZ$213,BN$1) -> 629.51 | BO25: =VLOOKUP(DropDownList!$B$47,CntyQuery!$A$171:$GZ$213,BO$1) -> 3669 | BP25: =VLOOKUP(DropDownList!$B$47,CntyQuery!$A$171:$GZ$213,BP$1) -> 2567 | BQ25: =VLOOKUP(DropDownList!$B$47,CntyQuery!$A$171:$GZ$213,BQ$1) -> 556 | BR25: =VLOOKUP(DropDownList!$B$47,CntyQuery!$A$171:$GZ$213,BR$1) -> 2011 | BS25: =VLOOKUP(DropDownList!$B$47,CntyQuery!$A$171:$GZ$213,BS$1) -> 685.08 | BT25: =VLOOKUP(DropDownList!$B$47,CntyQuery!$A$171:$GZ$213,BT$1) -> 649.3 | BU25: =VLOOKUP(DropDownList!$B$47,CntyQuery!$A$171:$GZ$213,BU$1) -> 743.56 | BV25: =VLOOKUP(DropDownList!$B$47,CntyQuery!$A$171:$GZ$213,BV$1) -> 623.24 | BW25: =VLOOKUP(DropDownList!$B$47,CntyQuery!$A$171:$GZ$213,BW$1) -> 3558 | BX25: =VLOOKUP(DropDownList!$B$47,CntyQuery!$A$171:$GZ$213,BX$1) -> 2466 | BY25: =VLOOKUP(DropDownList!$B$47,CntyQuery!$A$171:$GZ$213,BY$1) -> 516 | BZ25: =VLOOKUP(DropDownList!$B$47,CntyQuery!$A$171:$GZ$213,BZ$1) -> 1950 | CA25: =VLOOKUP(DropDownList!$B$47,CntyQuery!$A$171:$GZ$213,CA$1) -> 712.18 | CB25: =VLOOKUP(DropDownList!$B$47,CntyQuery!$A$171:$GZ$213,CB$1) -> 687.88 | CC25: =VLOOKUP(DropDownList!$B$47,CntyQuery!$A$171:$GZ$213,CC$1) -> 801.07 | CD25: =VLOOKUP(DropDownList!$B$47,CntyQuery!$A$171:$GZ$213,CD$1) -> 657.92 | CE25: =VLOOKUP(DropDownList!$B$47,CntyQuery!$A$171:$GZ$213,CE$1) -> 3510 | CF25: =VLOOKUP(DropDownList!$B$47,CntyQuery!$A$171:$GZ$213,CF$1) -> 2442 | CG25: =VLOOKUP(DropDownList!$B$47,CntyQuery!$A$171:$GZ$213,CG$1) -> 525 | CH25: =VLOOKUP(DropDownList!$B$47,CntyQuery!$A$171:$GZ$213,CH$1) -> 1917 | CI25: =VLOOKUP(DropDownList!$B$47,CntyQuery!$A$171:$GZ$213,CI$1) -> 723.18 | CJ25: =VLOOKUP(DropDownList!$B$47,CntyQuery!$A$171:$GZ$213,CJ$1) -> 696.92 | CK25: =VLOOKUP(DropDownList!$B$47,CntyQuery!$A$171:$GZ$213,CK$1) -> 780.07 | CL25: =VLOOKUP(DropDownList!$B$47,CntyQuery!$A$171:$GZ$213,CL$1) -> 674.15 | CM25: =VLOOKUP(DropDownList!$B$47,CntyQuery!$A$171:$GZ$213,CM$1) -> 3572 | CN25: =VLOOKUP(DropDownList!$B$47,CntyQuery!$A$171:$GZ$213,CN$1) -> 2455 | CO25: =VLOOKUP(DropDownList!$B$47,CntyQuery!$A$171:$GZ$213,CO$1) -> 573 | CP25: =VLOOKUP(DropDownList!$B$47,CntyQuery!$A$171:$GZ$213,CP$1) -> 1882 | CQ25: =VLOOKUP(DropDownList!$B$47,CntyQuery!$A$171:$GZ$213,CQ$1) -> 766.7 | CR25: =VLOOKUP(DropDownList!$B$47,CntyQuery!$A$171:$GZ$213,CR$1) -> 745.79 | CS25: =VLOOKUP(DropDownList!$B$47,CntyQuery!$A$171:$GZ$213,CS$1) -> 926.41 | CT25: =VLOOKUP(DropDownList!$B$47,CntyQuery!$A$171:$GZ$213,CT$1) -> 690.85 | CU25: =VLOOKUP(DropDownList!$B$47,CntyQuery!$A$171:$GZ$213,CU$1) -> 3752 | CV25: =VLOOKUP(DropDownList!$B$47,CntyQuery!$A$171:$GZ$213,CV$1) -> 2480 | CW25: =VLOOKUP(DropDownList!$B$47,CntyQuery!$A$171:$GZ$213,CW$1) -> 652 | CX25: =VLOOKUP(DropDownList!$B$47,CntyQuery!$A$171:$GZ$213,CX$1) -> 1828 | CY25: =VLOOKUP(DropDownList!$B$47,CntyQuery!$A$171:$GZ$213,CY$1) -> 813.38 | CZ25: =VLOOKUP(DropDownList!$B$47,CntyQuery!$A$171:$GZ$213,CZ$1) -> 791.54 | DA25: =VLOOKUP(DropDownList!$B$47,CntyQuery!$A$171:$GZ$213,DA$1) -> 953.98 | DB25: =VLOOKUP(DropDownList!$B$47,CntyQuery!$A$171:$GZ$213,DB$1) -> 733.58 | DC25: =VLOOKUP(DropDownList!$B$47,CntyQuery!$A$171:$GZ$213,DC$1) -> 3379 | DD25: =VLOOKUP(DropDownList!$B$47,CntyQuery!$A$171:$GZ$213,DD$1) -> 2112 | DE25: =VLOOKUP(DropDownList!$B$47,CntyQuery!$A$171:$GZ$213,DE$1) -> 336 | DF25: =VLOOKUP(DropDownList!$B$47,CntyQuery!$A$171:$GZ$213,DF$1) -> 1775 | DG25: =VLOOKUP(DropDownList!$B$47,CntyQuery!$A$171:$GZ$213,DG$1) -> 823.91 | DH25: =VLOOKUP(DropDownList!$B$47,CntyQuery!$A$171:$GZ$213,DH$1) -> 783.07 | DI25: =VLOOKUP(DropDownList!$B$47,CntyQuery!$A$171:$GZ$213,DI$1) -> 863.87 | DJ25: =VLOOKUP(DropDownList!$B$47,CntyQuery!$A$171:$GZ$213,DJ$1) -> 767.76 | DK25: =VLOOKUP(DropDownList!$B$47,CntyQuery!$A$171:$GZ$213,DK$1) -> 3262 | DL25: =VLOOKUP(DropDownList!$B$47,CntyQuery!$A$171:$GZ$213,DL$1) -> 1997 | DM25: =VLOOKUP(DropDownList!$B$47,CntyQuery!$A$171:$GZ$213,DM$1) -> 273 | DN25: =VLOOKUP(DropDownList!$B$47,CntyQuery!$A$171:$GZ$213,DN$1) -> 1724 | DO25: =VLOOKUP(DropDownList!$B$47,CntyQuery!$A$171:$GZ$213,DO$1) -> 840.6 | DP25: =VLOOKUP(DropDownList!$B$47,CntyQuery!$A$171:$GZ$213,DP$1) -> 788.12 | DQ25: =VLOOKUP(DropDownList!$B$47,CntyQuery!$A$171:$GZ$213,DQ$1) -> 843.39 | DR25: =VLOOKUP(DropDownList!$B$47,CntyQuery!$A$171:$GZ$213,DR$1) -> 779.38 | DS25: =VLOOKUP(DropDownList!$B$47,CntyQuery!$A$171:$GZ$213,DS$1) -> 3221 | DT25: =VLOOKUP(DropDownList!$B$47,CntyQuery!$A$171:$GZ$213,DT$1) -> 1934 | DU25: =VLOOKUP(DropDownList!$B$47,CntyQuery!$A$171:$GZ$213,DU$1) -> 231 | DV25: =VLOOKUP(DropDownList!$B$47,CntyQuery!$A$171:$GZ$213,DV$1) -> 1703 | DW25: =VLOOKUP(DropDownList!$B$47,CntyQuery!$A$171:$GZ$213,DW$1) -> 845.12 | DX25: =VLOOKUP(DropDownList!$B$47,CntyQuery!$A$171:$GZ$213,DX$1) -> 797.71 | DY25: =VLOOKUP(DropDownList!$B$47,CntyQuery!$A$171:$GZ$213,DY$1) -> 869.34 | DZ25: =VLOOKUP(DropDownList!$B$47,CntyQuery!$A$171:$GZ$213,DZ$1) -> 787.99 | EA25: =VLOOKUP(DropDownList!$B$47,CntyQuery!$A$171:$GZ$213,EA$1) -> 3173 | EB25: =VLOOKUP(DropDownList!$B$47,CntyQuery!$A$171:$GZ$213,EB$1) -> 1923 | EC25: =VLOOKUP(DropDownList!$B$47,CntyQuery!$A$171:$GZ$213,EC$1) -> 213 | ED25: =VLOOKUP(DropDownList!$B$47,CntyQuery!$A$171:$GZ$213,ED$1) -> 1710 | EE25: =VLOOKUP(DropDownList!$B$47,CntyQuery!$A$171:$GZ$213,EE$1) -> 874.17 | EF25: =VLOOKUP(DropDownList!$B$47,CntyQuery!$A$171:$GZ$213,EF$1) -> 823.39 | EG25: =VLOOKUP(DropDownList!$B$47,CntyQuery!$A$171:$GZ$213,EG$1) -> 928.37 | EH25: =VLOOKUP(DropDownList!$B$47,CntyQuery!$A$171:$GZ$213,EH$1) -> 810.29 | EI25: =VLOOKUP(DropDownList!$B$47,CntyQuery!$A$171:$GZ$213,EI$1) -> 3157 | EJ25: =VLOOKUP(DropDownList!$B$47,CntyQuery!$A$171:$GZ$213,EJ$1) -> 1945 | EK25: =VLOOKUP(DropDownList!$B$47,CntyQuery!$A$171:$GZ$213,EK$1) -> 216 | EL25: =VLOOKUP(DropDownList!$B$47,CntyQuery!$A$171:$GZ$213,EL$1) -> n | EM25: =VLOOKUP(DropDownList!$B$47,CntyQuery!$A$171:$GZ$213,EM$1) -> 905.49 | EN25: =VLOOKUP(DropDownList!$B$47,CntyQuery!$A$171:$GZ$213,EN$1) -> 841.61 | EO25: =VLOOKUP(DropDownList!$B$47,CntyQuery!$A$171:$GZ$213,EO$1) -> 880.87 | EP25: =VLOOKUP(DropDownList!$B$47,CntyQuery!$A$171:$GZ$213,EP$1) -> n | EQ25: =VLOOKUP(DropDownList!$B$47,CntyQuery!$A$171:$GZ$213,EQ$1) -> 3127 | ER25: =VLOOKUP(DropDownList!$B$47,CntyQuery!$A$171:$GZ$213,ER$1) -> 1962 | ES25: =VLOOKUP(DropDownList!$B$47,CntyQuery!$A$171:$GZ$213,ES$1) -> 1164 | ET25: =VLOOKUP(DropDownList!$B$47,CntyQuery!$A$171:$GZ$213,ET$1) -> 222 | EU25: =VLOOKUP(DropDownList!$B$47,CntyQuery!$A$171:$GZ$213,EU$1) -> 1740 | EV25: =VLOOKUP(DropDownList!$B$47,CntyQuery!$A$171:$GZ$213,EV$1) -> 936.05 | EW25: =VLOOKUP(DropDownList!$B$47,CntyQuery!$A$171:$GZ$213,EW$1) -> 855.6 | EX25: =VLOOKUP(DropDownList!$B$47,CntyQuery!$A$171:$GZ$213,EX$1) -> 1071.63 | EY25: =VLOOKUP(DropDownList!$B$47,CntyQuery!$A$171:$GZ$213,EY$1) -> 945.04 | EZ25: =VLOOKUP(DropDownList!$B$47,CntyQuery!$A$171:$GZ$213,EZ$1) -> 844.19 | FA25: =VLOOKUP(DropDownList!$B$47,CntyQuery!$A$171:$GZ$213,FA$1) -> 2950 | FB25: =VLOOKUP(DropDownList!$B$47,CntyQuery!$A$171:$GZ$213,FB$1) -> 1831 | FC25: =VLOOKUP(DropDownList!$B$47,CntyQuery!$A$171:$GZ$213,FC$1) -> 1119 | FD25: =VLOOKUP(DropDownList!$B$47,CntyQuery!$A$171:$GZ$213,FD$1) -> 214 | FE25: =VLOOKUP(DropDownList!$B$47,CntyQuery!$A$171:$GZ$213,FE$1) -> 1616 | FF25: =VLOOKUP(DropDownList!$B$47,CntyQuery!$A$171:$GZ$213,FF$1) -> 1026.78 | FG25: =VLOOKUP(DropDownList!$B$47,CntyQuery!$A$171:$GZ$213,FG$1) -> 936.38 | FH25: =VLOOKUP(DropDownList!$B$47,CntyQuery!$A$171:$GZ$213,FH$1) -> 1174.62 | FI25: =VLOOKUP(DropDownList!$B$47,CntyQuery!$A$171:$GZ$213,FI$1) -> 954.62 | FJ25: =VLOOKUP(DropDownList!$B$47,CntyQuery!$A$171:$GZ$213,FJ$1) -> 933.96 | FK25: =VLOOKUP(DropDownList!$B$47,CntyQuery!$A$171:$GZ$213,FK$1) -> 2991 | FL25: =VLOOKUP(DropDownList!$B$47,CntyQuery!$A$171:$GZ$213,FL$1) -> 1863 | FM25: =VLOOKUP(DropDownList!$B$47,CntyQuery!$A$171:$GZ$213,FM$1) -> 1128 | FN25: =VLOOKUP(DropDownList!$B$47,CntyQuery!$A$171:$GZ$213,FN$1) -> 220 | FO25: =VLOOKUP(DropDownList!$B$47,CntyQuery!$A$171:$GZ$213,FO$1) -> 1643 | FP25: =VLOOKUP(DropDownList!$B$47,CntyQuery!$A$171:$GZ$213,FP$1) -> 1051.79 | FQ25: =VLOOKUP(DropDownList!$B$47,CntyQuery!$A$171:$GZ$213,FQ$1) -> 978.72 | FR25: =VLOOKUP(DropDownList!$B$47,CntyQuery!$A$171:$GZ$213,FR$1) -> 1172.43 | FS25: =VLOOKUP(DropDownList!$B$47,CntyQuery!$A$171:$GZ$213,FS$1) -> 990.65 | FT25: =VLOOKUP(DropDownList!$B$47,CntyQuery!$A$171:$GZ$213,FT$1) -> 977.13 | FU25: =VLOOKUP(DropDownList!$B$47,CntyQuery!$A$171:$GZ$213,FU$1) -> 2927 | FV25: =VLOOKUP(DropDownList!$B$47,CntyQuery!$A$171:$GZ$213,FV$1) -> 1826 | FW25: =VLOOKUP(DropDownList!$B$47,CntyQuery!$A$171:$GZ$213,FW$1) -> 1101 | FX25: =VLOOKUP(DropDownList!$B$47,CntyQuery!$A$171:$GZ$213,FX$1) -> 240 | FY25: =VLOOKUP(DropDownList!$B$47,CntyQuery!$A$171:$GZ$213,FY$1) -> 1586 | FZ25: =VLOOKUP(DropDownList!$B$47,CntyQuery!$A$171:$GZ$213,FZ$1) -> 1134 | GA25: =VLOOKUP(DropDownList!$B$47,CntyQuery!$A$171:$GZ$213,GA$1) -> 1068 | GB25: =VLOOKUP(DropDownList!$B$47,CntyQuery!$A$171:$GZ$213,GB$1) -> 1243 | GC25: =VLOOKUP(DropDownList!$B$47,CntyQuery!$A$171:$GZ$213,GC$1) -> 1234 | GD25: =VLOOKUP(DropDownList!$B$47,CntyQuery!$A$171:$GZ$213,GD$1) -> 1043
M32: =IF((CntyDataLink!$BL$25)="n",NA(),IF(VALUE(CntyDataLink!$BL$25)="",NA(),VALUE(CntyDataLink!$BL$25))) -> 651.79
A33: Census 2000 - Query Name: TownAllQuery3 | B33: 2 | C33: =B33+1 -> 3 | D33: =C33+1 -> 4 | E33: 5 | F33: 6 | G33: 7 | H33: 8 | I33: 9 | J33: 10 | K33: 11 | L33: 12 | M33: 13 | N33: 14 | O33: 15 | P33: 16 | Q33: 17 | R33: 18 | S33: 19 | T33: 20 | U33: 21 | V33: 22 | W33: 23 | X33: 24 | Y33: 25 | Z33: 26 | AA33: 27 | AB33: 28 | AC33: 29 | AD33: 30 | AE33: 31 | AF33: 32 | AG33: 33 | AH33: 34 | AI33: 35 | AJ33: 36 | AK33: 37 | AL33: 38 | AM33: 39 | AN33: 40 | AO33: 41 | AP33: 42 | AQ33: 43 | AR33: 44 | AS33: 45 | AT33: 46 | AU33: 47 | AV33: 48 | AW33: 49 | AX33: 50 | AY33: 51 | AZ33: 52 | BA33: 53 | BB33: 54 | BC33: 55 | BD33: 56 | BE33: 57 | BF33: 58 | BG33: 59 | BH33: 60 | BI33: 61 | BJ33: 62 | BK33: 63 | BL33: 64 | BM33: 65 | BN33: 66 | BO33: 67 | BP33: =BO33+1 -> 68 | BQ33: 69 | BR33: 70 | BS33: 71 | BT33: 72 | BU33: 73 | BV33: 74 | BW33: 75 | BX33: 76 | BY33: 77 | BZ33: 78 | CA33: 79 | CB33: 80 | CC33: 81 | CD33: 82 | CE33: 83 | CF33: 84 | CG33: 85 | CH33: 86 | CI33: 87 | CJ33: 88 | CK33: 89 | CL33: 90 | CM33: 91 | CN33: 92 | CO33: 93 | CP33: 94 | CQ33: 95 | CR33: 96 | CS33: 97 | CT33: 98 | CU33: 99 | CV33: 100 | CW33: 101 | CX33: 102
A34: NAME | B34: COUNTY | C34: LOGRECNO | D34: COUSUB | E34: TRACT | F34: AREALAND | G34: AREAWATR | H34: POP100 | I34: HU100 | J34: 2000Population | K34: PopOfOneRace | L34: PopWhite | M34: PopBlack | N34: PopAmIndian | O34: PopAsian | P34: PopHawaiian | Q34: PopOtherRace | R34: Pop2orMoreRaces | S34: PopHispanicLatino | T34: PopNotHispanicLatino | U34: PopMale | V34: PopMale<15 | W34: PopMale15to24 | X34: PopMale25to34 | Y34: PopMale35to44 | Z34: PopMale45to54 | AA34: PopMale55to64 | AB34: PopMale65to74 | AC34: PopMale75to84 | AD34: PopMale85andOver | AE34: PopFemale | AF34: PopFemale<15 | AG34: PopFemale15to24 | AH34: PopFemale25to34 | AI34: PopFemale35t44 | AJ34: PopFemale45to54 | AK34: PopFemale55to64 | AL34: PopFemale65to74 | AM34: PopFemale75to84 | AN34: PopFemale85andOver | AO34: Households2000 | AP34: PopInHH | AQ34: AvgHHSize | AR34: HHs1Person | AS34: HHs2orMorePerson | AT34: HHsFamily | AU34: HHMarriedCoupleFam | AV34: HHSingleParentFam | AW34: HHsNonFamily | AX34: Families | AY34: PopInFam | AZ34: AvgFamSize | BA34: TotHsUnits | BB34: OccHsUnits | BC34: OwnerOccHU | BD34: RenterOccHU | BE34: VctHsUnits | BF34: VctHUForRent | BG34: VctHUForSale | BH34: VctHUSeasonal | BI34: PopInOccHU | BJ34: PopInOwnOccHU | BK34: PopInRntOccHU | BL34: AvgHHSize2 | BM34: AvgHHSizOwnOcc | BN34: AvgHHSizRntOcc | BO34: OwnOccWhtHsHldr | BP34: OwnOccBlkHsHldr | BQ34: OwnOccAmIHsHldr | BR34: OwnOccAsnHsHldr | BS34: OwnOccPIsHsHldr | BT34: OwnOccORHsHldr | BU34: OwnOcc2RcHsHldr | BV34: RntOccWhtHsHldr | BW34: RntOccBlkHsHldr | BX34: RntOccAmIHsHldr | BY34: RntOccAsnHsHldr | BZ34: RntOccPIsHsHldr | CA34: RntOccORHsHldr | CB34: RntOcc2RcHsHldr | CC34: OwnOccHH15to24 | CD34: OwnOccHH25to34 | CE34: OwnOccHH35to44 | CF34: OwnOccHH45to54 | CG34: OwnOccHH55to64 | CH34: OwnOccHH65to74 | CI34: OwnOccHH75to84 | CJ34: OwnOccHH85Over | CK34: RntOccHH15to24 | CL34: RntOccHH25to34 | CM34: RntOccHH35to44 | CN34: RntOccHH45to54 | CO34: RntOccHH55to64 | CP34: RntOccHH65to74 | CQ34: RntOccHH75to84 | CR34: RntOccHH85Over | CS34: P27TotalPop | CT34: P27PopInHseHlds | CU34: P27PopInGrpQtrs | CV34: Median Age Total | CW34: Median Age (Male) | CX34: Median Age (Female)
A35: =VLOOKUP(DropDownList!$B$47,CntyQryCensus!$A$4:$CX$46,A$1) -> Berlin | B35: =VLOOKUP(DropDownList!$B$47,CntyQryCensus!$A$4:$CX$46,B$1) -> 007 | C35: =VLOOKUP(DropDownList!$B$47,CntyQryCensus!$A$4:$CX$46,C$1) -> 0007959 | D35: =VLOOKUP(DropDownList!$B$47,CntyQryCensus!$A$4:$CX$46,D$1) -> 05140 | E35: =VLOOKUP(DropDownList!$B$47,CntyQryCensus!$A$4:$CX$46,E$1) ->  | F35: =VLOOKUP(DropDownList!$B$47,CntyQryCensus!$A$4:$CX$46,F$1) -> 159870757 | G35: =VLOOKUP(DropDownList!$B$47,CntyQryCensus!$A$4:$CX$46,G$1) -> 1901917 | H35: =VLOOKUP(DropDownList!$B$47,CntyQryCensus!$A$4:$CX$46,H$1) -> 10331 | I35: =VLOOKUP(DropDownList!$B$47,CntyQryCensus!$A$4:$CX$46,I$1) -> 5111 | J35: =VLOOKUP(DropDownList!$B$47,CntyQryCensus!$A$4:$CX$46,J$1) -> 10331 | K35: =VLOOKUP(DropDownList!$B$47,CntyQryCensus!$A$4:$CX$46,K$1) -> 10248 | L35: =VLOOKUP(DropDownList!$B$47,CntyQryCensus!$A$4:$CX$46,L$1) -> 10150 | M35: =VLOOKUP(DropDownList!$B$47,CntyQryCensus!$A$4:$CX$46,M$1) -> 19 | N35: =VLOOKUP(DropDownList!$B$47,CntyQryCensus!$A$4:$CX$46,N$1) -> 24 | O35: =VLOOKUP(DropDownList!$B$47,CntyQryCensus!$A$4:$CX$46,O$1) -> 38 | P35: =VLOOKUP(DropDownList!$B$47,CntyQryCensus!$A$4:$CX$46,P$1) -> 1 | Q35: =VLOOKUP(DropDownList!$B$47,CntyQryCensus!$A$4:$CX$46,Q$1) -> 16 | R35: =VLOOKUP(DropDownList!$B$47,CntyQryCensus!$A$4:$CX$46,R$1) -> 83 | S35: =VLOOKUP(DropDownList!$B$47,CntyQryCensus!$A$4:$CX$46,S$1) -> 68 | T35: =VLOOKUP(DropDownList!$B$47,CntyQryCensus!$A$4:$CX$46,T$1) -> 10263 | U35: =VLOOKUP(DropDownList!$B$47,CntyQryCensus!$A$4:$CX$46,U$1) -> 4922 | V35: =VLOOKUP(DropDownList!$B$47,CntyQryCensus!$A$4:$CX$46,V$1) -> 961 | W35: =VLOOKUP(DropDownList!$B$47,CntyQryCensus!$A$4:$CX$46,W$1) -> 544 | X35: =VLOOKUP(DropDownList!$B$47,CntyQryCensus!$A$4:$CX$46,X$1) -> 560 | Y35: =VLOOKUP(DropDownList!$B$47,CntyQryCensus!$A$4:$CX$46,Y$1) -> 819 | Z35: =VLOOKUP(DropDownList!$B$47,CntyQryCensus!$A$4:$CX$46,Z$1) -> 690 | AA35: =VLOOKUP(DropDownList!$B$47,CntyQryCensus!$A$4:$CX$46,AA$1) -> 459 | AB35: =VLOOKUP(DropDownList!$B$47,CntyQryCensus!$A$4:$CX$46,AB$1) -> 502 | AC35: =VLOOKUP(DropDownList!$B$47,CntyQryCensus!$A$4:$CX$46,AC$1) -> 307 | AD35: =VLOOKUP(DropDownList!$B$47,CntyQryCensus!$A$4:$CX$46,AD$1) -> 80 | AE35: =VLOOKUP(DropDownList!$B$47,CntyQryCensus!$A$4:$CX$46,AE$1) -> 5409 | AF35: =VLOOKUP(DropDownList!$B$47,CntyQryCensus!$A$4:$CX$46,AF$1) -> 832 | AG35: =VLOOKUP(DropDownList!$B$47,CntyQryCensus!$A$4:$CX$46,AG$1) -> 539 | AH35: =VLOOKUP(DropDownList!$B$47,CntyQryCensus!$A$4:$CX$46,AH$1) -> 597 | AI35: =VLOOKUP(DropDownList!$B$47,CntyQryCensus!$A$4:$CX$46,AI$1) -> 766 | AJ35: =VLOOKUP(DropDownList!$B$47,CntyQryCensus!$A$4:$CX$46,AJ$1) -> 690 | AK35: =VLOOKUP(DropDownList!$B$47,CntyQryCensus!$A$4:$CX$46,AK$1) -> 538 | AL35: =VLOOKUP(DropDownList!$B$47,CntyQryCensus!$A$4:$CX$46,AL$1) -> 642 | AM35: =VLOOKUP(DropDownList!$B$47,CntyQryCensus!$A$4:$CX$46,AM$1) -> 537 | AN35: =VLOOKUP(DropDownList!$B$47,CntyQryCensus!$A$4:$CX$46,AN$1) -> 268 | AO35: =VLOOKUP(DropDownList!$B$47,CntyQryCensus!$A$4:$CX$46,AO$1) -> 4555 | AP35: =VLOOKUP(DropDownList!$B$47,CntyQryCensus!$A$4:$CX$46,AP$1) -> 10133 | AQ35: =VLOOKUP(DropDownList!$B$47,CntyQryCensus!$A$4:$CX$46,AQ$1) -> 2.22 | AR35: =VLOOKUP(DropDownList!$B$47,CntyQryCensus!$A$4:$CX$46,AR$1) -> 1447 | AS35: =VLOOKUP(DropDownList!$B$47,CntyQryCensus!$A$4:$CX$46,AS$1) -> 3108 | AT35: =VLOOKUP(DropDownList!$B$47,CntyQryCensus!$A$4:$CX$46,AT$1) -> 2902 | AU35: =VLOOKUP(DropDownList!$B$47,CntyQryCensus!$A$4:$CX$46,AU$1) -> 2213 | AV35: =VLOOKUP(DropDownList!$B$47,CntyQryCensus!$A$4:$CX$46,AV$1) -> 689 | AW35: =VLOOKUP(DropDownList!$B$47,CntyQryCensus!$A$4:$CX$46,AW$1) -> 206 | AX35: =VLOOKUP(DropDownList!$B$47,CntyQryCensus!$A$4:$CX$46,AX$1) -> 2902 | AY35: =VLOOKUP(DropDownList!$B$47,CntyQryCensus!$A$4:$CX$46,AY$1) -> 7956 | AZ35: =VLOOKUP(DropDownList!$B$47,CntyQryCensus!$A$4:$CX$46,AZ$1) -> 2.74 | BA35: =VLOOKUP(DropDownList!$B$47,CntyQryCensus!$A$4:$CX$46,BA$1) -> 5111 | BB35: =VLOOKUP(DropDownList!$B$47,CntyQryCensus!$A$4:$CX$46,BB$1) -> 4555 | BC35: =VLOOKUP(DropDownList!$B$47,CntyQryCensus!$A$4:$CX$46,BC$1) -> 2790 | BD35: =VLOOKUP(DropDownList!$B$47,CntyQryCensus!$A$4:$CX$46,BD$1) -> 1765 | BE35: =VLOOKUP(DropDownList!$B$47,CntyQryCensus!$A$4:$CX$46,BE$1) -> 556 | BF35: =VLOOKUP(DropDownList!$B$47,CntyQryCensus!$A$4:$CX$46,BF$1) -> 216 | BG35: =VLOOKUP(DropDownList!$B$47,CntyQryCensus!$A$4:$CX$46,BG$1) -> 87 | BH35: =VLOOKUP(DropDownList!$B$47,CntyQryCensus!$A$4:$CX$46,BH$1) -> 37 | BI35: =VLOOKUP(DropDownList!$B$47,CntyQryCensus!$A$4:$CX$46,BI$1) -> 10133 | BJ35: =VLOOKUP(DropDownList!$B$47,CntyQryCensus!$A$4:$CX$46,BJ$1) -> 6680 | BK35: =VLOOKUP(DropDownList!$B$47,CntyQryCensus!$A$4:$CX$46,BK$1) -> 3453 | BL35: =VLOOKUP(DropDownList!$B$47,CntyQryCensus!$A$4:$CX$46,BL$1) -> 2.22 | BM35: =VLOOKUP(DropDownList!$B$47,CntyQryCensus!$A$4:$CX$46,BM$1) -> 2.39 | BN35: =VLOOKUP(DropDownList!$B$47,CntyQryCensus!$A$4:$CX$46,BN$1) -> 1.96 | BO35: =VLOOKUP(DropDownList!$B$47,CntyQryCensus!$A$4:$CX$46,BO$1) -> 2768 | BP35: =VLOOKUP(DropDownList!$B$47,CntyQryCensus!$A$4:$CX$46,BP$1) -> 3 | BQ35: =VLOOKUP(DropDownList!$B$47,CntyQryCensus!$A$4:$CX$46,BQ$1) -> 5 | BR35: =VLOOKUP(DropDownList!$B$47,CntyQryCensus!$A$4:$CX$46,BR$1) -> 6 | BS35: =VLOOKUP(DropDownList!$B$47,CntyQryCensus!$A$4:$CX$46,BS$1) -> 0 | BT35: =VLOOKUP(DropDownList!$B$47,CntyQryCensus!$A$4:$CX$46,BT$1) -> 1 | BU35: =VLOOKUP(DropDownList!$B$47,CntyQryCensus!$A$4:$CX$46,BU$1) -> 7 | BV35: =VLOOKUP(DropDownList!$B$47,CntyQryCensus!$A$4:$CX$46,BV$1) -> 1722 | BW35: =VLOOKUP(DropDownList!$B$47,CntyQryCensus!$A$4:$CX$46,BW$1) -> 1 | BX35: =VLOOKUP(DropDownList!$B$47,CntyQryCensus!$A$4:$CX$46,BX$1) -> 5 | BY35: =VLOOKUP(DropDownList!$B$47,CntyQryCensus!$A$4:$CX$46,BY$1) -> 11 | BZ35: =VLOOKUP(DropDownList!$B$47,CntyQryCensus!$A$4:$CX$46,BZ$1) -> 0 | CA35: =VLOOKUP(DropDownList!$B$47,CntyQryCensus!$A$4:$CX$46,CA$1) -> 3 | CB35: =VLOOKUP(DropDownList!$B$47,CntyQryCensus!$A$4:$CX$46,CB$1) -> 23 | CC35: =VLOOKUP(DropDownList!$B$47,CntyQryCensus!$A$4:$CX$46,CC$1) -> 17 | CD35: =VLOOKUP(DropDownList!$B$47,CntyQryCensus!$A$4:$CX$46,CD$1) -> 227 | CE35: =VLOOKUP(DropDownList!$B$47,CntyQryCensus!$A$4:$CX$46,CE$1) -> 545 | CF35: =VLOOKUP(DropDownList!$B$47,CntyQryCensus!$A$4:$CX$46,CF$1) -> 578 | CG35: =VLOOKUP(DropDownList!$B$47,CntyQryCensus!$A$4:$CX$46,CG$1) -> 407 | CH35: =VLOOKUP(DropDownList!$B$47,CntyQryCensus!$A$4:$CX$46,CH$1) -> 542 | CI35: =VLOOKUP(DropDownList!$B$47,CntyQryCensus!$A$4:$CX$46,CI$1) -> 373 | CJ35: =VLOOKUP(DropDownList!$B$47,CntyQryCensus!$A$4:$CX$46,CJ$1) -> 101 | CK35: =VLOOKUP(DropDownList!$B$47,CntyQryCensus!$A$4:$CX$46,CK$1) -> 179 | CL35: =VLOOKUP(DropDownList!$B$47,CntyQryCensus!$A$4:$CX$46,CL$1) -> 369 | CM35: =VLOOKUP(DropDownList!$B$47,CntyQryCensus!$A$4:$CX$46,CM$1) -> 336 | CN35: =VLOOKUP(DropDownList!$B$47,CntyQryCensus!$A$4:$CX$46,CN$1) -> 207 | CO35: =VLOOKUP(DropDownList!$B$47,CntyQryCensus!$A$4:$CX$46,CO$1) -> 161 | CP35: =VLOOKUP(DropDownList!$B$47,CntyQryCensus!$A$4:$CX$46,CP$1) -> 199 | CQ35: =VLOOKUP(DropDownList!$B$47,CntyQryCensus!$A$4:$CX$46,CQ$1) -> 217 | CR35: =VLOOKUP(DropDownList!$B$47,CntyQryCensus!$A$4:$CX$46,CR$1) -> 97 | CS35: =VLOOKUP(DropDownList!$B$47,CntyQryCensus!$A$4:$CX$46,CS$1) -> 10331 | CT35: =VLOOKUP(DropDownList!$B$47,CntyQryCensus!$A$4:$CX$46,CT$1) -> 10133 | CU35: =VLOOKUP(DropDownList!$B$47,CntyQryCensus!$A$4:$CX$46,CU$1) -> 198 | CV35: =VLOOKUP(DropDownList!$B$47,CntyQryCensus!$A$4:$CX$46,CV$1) -> 42.5 | CW35: =VLOOKUP(DropDownList!$B$47,CntyQryCensus!$A$4:$CX$46,CW$1) -> 40.3 | CX35: =VLOOKUP(DropDownList!$B$47,CntyQryCensus!$A$4:$CX$46,CX$1) -> 44.6
A38: Census 2000 DemoProfile Sample Data Tables 2&3 - DPTab23TownQry
A39: NAME | B39: COUSUB | C39: AREANAME | D39: PopInSchool | E39: Preschool | F39: Kindergarten | G39: Elementary | H39: HighSchool | I39: College | J39: Pop25andOver | K39: HighSchoolGrad | L39: SomeCollege | M39: AssocDegree | N39: BachelDegree | O39: GradDegree | P39: HSGradorHigher | Q39: CollegeGradorHigher | R39: Pop5to20yrs | S39: Pop5to20wDis | T39: Pop21to64 | U39: Pop21to64wDis | V39: Pop65over | W39: Pop65overwDis | X39: Pop5yrsOver | Y39: SameHUin95 | Z39: DiffHUinUSin95 | AA39: HUinSameCountyin95 | AB39: HUinSameStatein95 | AC39: TotalPop | AD39: NativePop | AE39: NatPopBornUS | AF39: NatPopBornInStatRes | AG39: NatPopBornDiffState | AH39: NatPopBornOutUS | AI39: FornBornPop | AJ39: FornPopEnt90to00 | AK39: FornPopNatCit | AL39: FornPopNotCit | AM39: Households | AN39: HHIncLessThn10k | AO39: HHInc10to15K | AP39: HHInc15to25K | AQ39: HHInc25to35K | AR39: HHInc35to50K | AS39: HHInc50to75K | AT39: HHInc75to100K | AU39: HHInc100to150K | AV39: HHInc150to200K | AW39: HHIncOver200K | AX39: MedianHHInc | AY39: HHwithPubAssistInc | AZ39: MeanPubAssist | BA39: FamilyHH | BB39: FHHIncLessThn10k | BC39: FHHInc10to15K | BD39: FHHInc15to25K | BE39: FHHInc25to35K | BF39: FHHInc35to50K | BG39: FHHInc50to75K | BH39: FHHInc75to100K | BI39: FHHInc100to150K | BJ39: FHHInc150to200K | BK39: FHHIncOver200K | BL39: MedianFHHInc | BM39: PerCapitaInc | BN39: PovStatFamilies | BO39: PovStatFHHwChilUnd18 | BP39: PovStatFHHwChilUnd5 | BQ39: PovStFmalHH | BR39: DP3088 | BS39: DP3089 | BT39: PovStatIndiv | BU39: PovStatIndiv18yrOver | BV39: PovStatIndiv65yrOver | BW39: DP3093 | BX39: DP3094 | BY39: DP3095
A40: =VLOOKUP(DropDownList!$B$47,CntyQryCensus!$A$54:$BY$96,A$1) -> Berlin | B40: =VLOOKUP(DropDownList!$B$47,CntyQryCensus!$A$54:$BY$96,B$1) -> 05140 | C40: =VLOOKUP(DropDownList!$B$47,CntyQryCensus!$A$54:$BY$96,C$1) -> Berlin city, New Hampshire | D40: =VLOOKUP(DropDownList!$B$47,CntyQryCensus!$A$54:$BY$96,D$1) -> 2260 | E40: =VLOOKUP(DropDownList!$B$47,CntyQryCensus!$A$54:$BY$96,E$1) -> 147 | F40: =VLOOKUP(DropDownList!$B$47,CntyQryCensus!$A$54:$BY$96,F$1) -> 144 | G40: =VLOOKUP(DropDownList!$B$47,CntyQryCensus!$A$54:$BY$96,G$1) -> 996 | H40: =VLOOKUP(DropDownList!$B$47,CntyQryCensus!$A$54:$BY$96,H$1) -> 630 | I40: =VLOOKUP(DropDownList!$B$47,CntyQryCensus!$A$54:$BY$96,I$1) -> 343 | J40: =VLOOKUP(DropDownList!$B$47,CntyQryCensus!$A$54:$BY$96,J$1) -> 7445 | K40: =VLOOKUP(DropDownList!$B$47,CntyQryCensus!$A$54:$BY$96,K$1) -> 2987 | L40: =VLOOKUP(DropDownList!$B$47,CntyQryCensus!$A$54:$BY$96,L$1) -> 1316 | M40: =VLOOKUP(DropDownList!$B$47,CntyQryCensus!$A$54:$BY$96,M$1) -> 608 | N40: =VLOOKUP(DropDownList!$B$47,CntyQryCensus!$A$54:$BY$96,N$1) -> 339 | O40: =VLOOKUP(DropDownList!$B$47,CntyQryCensus!$A$54:$BY$96,O$1) -> 157 | P40: =VLOOKUP(DropDownList!$B$47,CntyQryCensus!$A$54:$BY$96,P$1) -> 5407 | Q40: =VLOOKUP(DropDownList!$B$47,CntyQryCensus!$A$54:$BY$96,Q$1) -> 496 | R40: =VLOOKUP(DropDownList!$B$47,CntyQryCensus!$A$54:$BY$96,R$1) -> 2009 | S40: =VLOOKUP(DropDownList!$B$47,CntyQryCensus!$A$54:$BY$96,S$1) -> 185 | T40: =VLOOKUP(DropDownList!$B$47,CntyQryCensus!$A$54:$BY$96,T$1) -> 5434 | U40: =VLOOKUP(DropDownList!$B$47,CntyQryCensus!$A$54:$BY$96,U$1) -> 1454 | V40: =VLOOKUP(DropDownList!$B$47,CntyQryCensus!$A$54:$BY$96,V$1) -> 2169 | W40: =VLOOKUP(DropDownList!$B$47,CntyQryCensus!$A$54:$BY$96,W$1) -> 1094 | X40: =VLOOKUP(DropDownList!$B$47,CntyQryCensus!$A$54:$BY$96,X$1) -> 9800 | Y40: =VLOOKUP(DropDownList!$B$47,CntyQryCensus!$A$54:$BY$96,Y$1) -> 6457 | Z40: =VLOOKUP(DropDownList!$B$47,CntyQryCensus!$A$54:$BY$96,Z$1) -> 3316 | AA40: =VLOOKUP(DropDownList!$B$47,CntyQryCensus!$A$54:$BY$96,AA$1) -> 2519 | AB40: =VLOOKUP(DropDownList!$B$47,CntyQryCensus!$A$54:$BY$96,AB$1) -> 797 | AC40: =VLOOKUP(DropDownList!$B$47,CntyQryCensus!$A$54:$BY$96,AC$1) -> 10331 | AD40: =VLOOKUP(DropDownList!$B$47,CntyQryCensus!$A$54:$BY$96,AD$1) -> 9858 | AE40: =VLOOKUP(DropDownList!$B$47,CntyQryCensus!$A$54:$BY$96,AE$1) -> 9788 | AF40: =VLOOKUP(DropDownList!$B$47,CntyQryCensus!$A$54:$BY$96,AF$1) -> 7823 | AG40: =VLOOKUP(DropDownList!$B$47,CntyQryCensus!$A$54:$BY$96,AG$1) -> 1965 | AH40: =VLOOKUP(DropDownList!$B$47,CntyQryCensus!$A$54:$BY$96,AH$1) -> 70 | AI40: =VLOOKUP(DropDownList!$B$47,CntyQryCensus!$A$54:$BY$96,AI$1) -> 473 | AJ40: =VLOOKUP(DropDownList!$B$47,CntyQryCensus!$A$54:$BY$96,AJ$1) -> 57 | AK40: =VLOOKUP(DropDownList!$B$47,CntyQryCensus!$A$54:$BY$96,AK$1) -> 345 | AL40: =VLOOKUP(DropDownList!$B$47,CntyQryCensus!$A$54:$BY$96,AL$1) -> 128 | AM40: =VLOOKUP(DropDownList!$B$47,CntyQryCensus!$A$54:$BY$96,AM$1) -> 4555 | AN40: =VLOOKUP(DropDownList!$B$47,CntyQryCensus!$A$54:$BY$96,AN$1) -> 677 | AO40: =VLOOKUP(DropDownList!$B$47,CntyQryCensus!$A$54:$BY$96,AO$1) -> 494 | AP40: =VLOOKUP(DropDownList!$B$47,CntyQryCensus!$A$54:$BY$96,AP$1) -> 770 | AQ40: =VLOOKUP(DropDownList!$B$47,CntyQryCensus!$A$54:$BY$96,AQ$1) -> 671 | AR40: =VLOOKUP(DropDownList!$B$47,CntyQryCensus!$A$54:$BY$96,AR$1) -> 853 | AS40: =VLOOKUP(DropDownList!$B$47,CntyQryCensus!$A$54:$BY$96,AS$1) -> 776 | AT40: =VLOOKUP(DropDownList!$B$47,CntyQryCensus!$A$54:$BY$96,AT$1) -> 185 | AU40: =VLOOKUP(DropDownList!$B$47,CntyQryCensus!$A$54:$BY$96,AU$1) -> 107 | AV40: =VLOOKUP(DropDownList!$B$47,CntyQryCensus!$A$54:$BY$96,AV$1) -> 14 | AW40: =VLOOKUP(DropDownList!$B$47,CntyQryCensus!$A$54:$BY$96,AW$1) -> 8 | AX40: =VLOOKUP(DropDownList!$B$47,CntyQryCensus!$A$54:$BY$96,AX$1) -> 29647 | AY40: =VLOOKUP(DropDownList!$B$47,CntyQryCensus!$A$54:$BY$96,AY$1) -> 361 | AZ40: =VLOOKUP(DropDownList!$B$47,CntyQryCensus!$A$54:$BY$96,AZ$1) -> 1727 | BA40: =VLOOKUP(DropDownList!$B$47,CntyQryCensus!$A$54:$BY$96,BA$1) -> 2919 | BB40: =VLOOKUP(DropDownList!$B$47,CntyQryCensus!$A$54:$BY$96,BB$1) -> 182 | BC40: =VLOOKUP(DropDownList!$B$47,CntyQryCensus!$A$54:$BY$96,BC$1) -> 190 | BD40: =VLOOKUP(DropDownList!$B$47,CntyQryCensus!$A$54:$BY$96,BD$1) -> 407 | BE40: =VLOOKUP(DropDownList!$B$47,CntyQryCensus!$A$54:$BY$96,BE$1) -> 468 | BF40: =VLOOKUP(DropDownList!$B$47,CntyQryCensus!$A$54:$BY$96,BF$1) -> 726 | BG40: =VLOOKUP(DropDownList!$B$47,CntyQryCensus!$A$54:$BY$96,BG$1) -> 696 | BH40: =VLOOKUP(DropDownList!$B$47,CntyQryCensus!$A$54:$BY$96,BH$1) -> 154 | BI40: =VLOOKUP(DropDownList!$B$47,CntyQryCensus!$A$54:$BY$96,BI$1) -> 88 | BJ40: =VLOOKUP(DropDownList!$B$47,CntyQryCensus!$A$54:$BY$96,BJ$1) -> 8 | BK40: =VLOOKUP(DropDownList!$B$47,CntyQryCensus!$A$54:$BY$96,BK$1) -> 0 | BL40: =VLOOKUP(DropDownList!$B$47,CntyQryCensus!$A$54:$BY$96,BL$1) -> 38750 | BM40: =VLOOKUP(DropDownList!$B$47,CntyQryCensus!$A$54:$BY$96,BM$1) -> 15780 | BN40: =VLOOKUP(DropDownList!$B$47,CntyQryCensus!$A$54:$BY$96,BN$1) -> 265 | BO40: =VLOOKUP(DropDownList!$B$47,CntyQryCensus!$A$54:$BY$96,BO$1) -> 184 | BP40: =VLOOKUP(DropDownList!$B$47,CntyQryCensus!$A$54:$BY$96,BP$1) -> 89 | BQ40: =VLOOKUP(DropDownList!$B$47,CntyQryCensus!$A$54:$BY$96,BQ$1) -> 123 | BR40: =VLOOKUP(DropDownList!$B$47,CntyQryCensus!$A$54:$BY$96,BR$1) -> 108 | BS40: =VLOOKUP(DropDownList!$B$47,CntyQryCensus!$A$54:$BY$96,BS$1) -> 58 | BT40: =VLOOKUP(DropDownList!$B$47,CntyQryCensus!$A$54:$BY$96,BT$1) -> 1249 | BU40: =VLOOKUP(DropDownList!$B$47,CntyQryCensus!$A$54:$BY$96,BU$1) -> 937 | BV40: =VLOOKUP(DropDownList!$B$47,CntyQryCensus!$A$54:$BY$96,BV$1) -> 269 | BW40: =VLOOKUP(DropDownList!$B$47,CntyQryCensus!$A$54:$BY$96,BW$1) -> 284 | BX40: =VLOOKUP(DropDownList!$B$47,CntyQryCensus!$A$54:$BY$96,BX$1) -> 168 | BY40: =VLOOKUP(DropDownList!$B$47,CntyQryCensus!$A$54:$BY$96,BY$1) -> 567
A43: Census 2000 DemoProfile Sample Data Table 4 - DPTab4TownQry
A44: NAME | B44: COUSUB | C44: TotHousingUnits | D44: 1UnitDet | E44: 1UnitAtt | F44: 2Units | G44: 3to4Units | H44: 5to9Units | I44: 10to19Units | J44: 20orMoreUnits | K44: MobileHomes | L44: BoatRvVan | M44: SingleFamilyUnits | N44: MultiFamUnits | O44: MobileHomeUnits | P44: YearBuilt99to00 | Q44: YearBuilt95to98 | R44: YearBUilt90to94 | S44: YearBuilt80to89 | T44: YearBuilt70to79 | U44: YearBuilt60to69 | V44: YearBuilt40to59 | W44: YearBuilt39orEarlier | X44: Rooms1 | Y44: Rooms2 | Z44: Rooms3 | AA44: Rooms4 | AB44: Rooms5 | AC44: Rooms6 | AD44: Rooms7 | AE44: Rooms8 | AF44: Rooms9orMore | AG44: MedianRooms | AH44: OccHU1 | AI44: YrHHMvdIn99to00 | AJ44: YrHHMvdIn95to98 | AK44: YrHHMvdIn90to94 | AL44: YrHHMvdIn80to89 | AM44: YrHHMvdIn70to79 | AN44: YrHHMvdIn69orBefore | AO44: HeatFuelNatGas | AP44: HeatFuelBotGas | AQ44: HeatFuelElectric | AR44: HeatFuelOil | AS44: HeatFuelCoal | AT44: HeatFuelWood | AU44: HeatFuelSolar | AV44: HeatFuelOther | AW44: HeatFuelNone | AX44: LackCompPlumb | AY44: LackCompKit | AZ44: NoTelephone | BA44: OccHU | BB44: OccPerRm1orLess | BC44: OccPerRm1to1_5 | BD44: OccPerRm1_5orMore | BE44: SpecOwnOccUnits | BF44: Value<50K | BG44: Value50to100K | BH44: Value100to150K | BI44: Value150to200K | BJ44: Value200to300K | BK44: Value300to500K | BL44: Value500Kto1mil | BM44: Value1MilorMore | BN44: MedianValue | BO44: WithMortg | BP44: MnthOwnCst<300 | BQ44: MnthOwnCst300to500 | BR44: MnthOwnCst500to700 | BS44: MnthOwnCst700to1000 | BT44: MnthOwnCst1000to1500 | BU44: MnthOwnCst1500to2000 | BV44: MnthOwnCst2000orMore | BW44: MediMnthOwnCst | BX44: NotMrtg | BY44: NotMrtgMediMnthOwnCst | BZ44: OwnCst%HHInc<15 | CA44: OwnCst%HHInc15to20 | CB44: OwnCst%HHInc20to25 | CC44: OwnCst%HHInc25to30 | CD44: OwnCst%HHInc30to35 | CE44: OwnCst%HHInc35orMor | CF44: NotComputed | CG44: SpecRntOccUnits | CH44: Rnt<200 | CI44: Rnt200to300 | CJ44: Rnt300to500 | CK44: Rnt500to750 | CL44: Rnt750to1000 | CM44: Rnt1000to1500 | CN44: Rnt1500orMore | CO44: NoRent | CP44: MedianRent | CQ44: Rnt%HHInc<15 | CR44: Rnt%HHInc15to20 | CS44: Rnt%HHInc20to25 | CT44: Rnt%HHInc25to30 | CU44: Rnt%HHInc30to35 | CV44: Rnt%HHInc35orMore | CW44: Rnt%NotCompute
A45: =VLOOKUP(DropDownList!$B$47,CntyQryCensus!$A$104:$CX$146,A$1) -> Berlin | B45: =VLOOKUP(DropDownList!$B$47,CntyQryCensus!$A$104:$CX$146,B$1) -> 05140 | C45: =VLOOKUP(DropDownList!$B$47,CntyQryCensus!$A$104:$CX$146,C$1) -> 5111 | D45: =VLOOKUP(DropDownList!$B$47,CntyQryCensus!$A$104:$CX$146,D$1) -> 2454 | E45: =VLOOKUP(DropDownList!$B$47,CntyQryCensus!$A$104:$CX$146,E$1) -> 43 | F45: =VLOOKUP(DropDownList!$B$47,CntyQryCensus!$A$104:$CX$146,F$1) -> 1072 | G45: =VLOOKUP(DropDownList!$B$47,CntyQryCensus!$A$104:$CX$146,G$1) -> 824 | H45: =VLOOKUP(DropDownList!$B$47,CntyQryCensus!$A$104:$CX$146,H$1) -> 415 | I45: =VLOOKUP(DropDownList!$B$47,CntyQryCensus!$A$104:$CX$146,I$1) -> 78 | J45: =VLOOKUP(DropDownList!$B$47,CntyQryCensus!$A$104:$CX$146,J$1) -> 135 | K45: =VLOOKUP(DropDownList!$B$47,CntyQryCensus!$A$104:$CX$146,K$1) -> 90 | L45: =VLOOKUP(DropDownList!$B$47,CntyQryCensus!$A$104:$CX$146,L$1) -> 0 | M45: =VLOOKUP(DropDownList!$B$47,CntyQryCensus!$A$104:$CX$146,M$1) -> 2454 | N45: =VLOOKUP(DropDownList!$B$47,CntyQryCensus!$A$104:$CX$146,N$1) -> 2567 | O45: =VLOOKUP(DropDownList!$B$47,CntyQryCensus!$A$104:$CX$146,O$1) -> 90 | P45: =VLOOKUP(DropDownList!$B$47,CntyQryCensus!$A$104:$CX$146,P$1) -> 7 | Q45: =VLOOKUP(DropDownList!$B$47,CntyQryCensus!$A$104:$CX$146,Q$1) -> 7 | R45: =VLOOKUP(DropDownList!$B$47,CntyQryCensus!$A$104:$CX$146,R$1) -> 11 | S45: =VLOOKUP(DropDownList!$B$47,CntyQryCensus!$A$104:$CX$146,S$1) -> 152 | T45: =VLOOKUP(DropDownList!$B$47,CntyQryCensus!$A$104:$CX$146,T$1) -> 394 | U45: =VLOOKUP(DropDownList!$B$47,CntyQryCensus!$A$104:$CX$146,U$1) -> 288 | V45: =VLOOKUP(DropDownList!$B$47,CntyQryCensus!$A$104:$CX$146,V$1) -> 1201 | W45: =VLOOKUP(DropDownList!$B$47,CntyQryCensus!$A$104:$CX$146,W$1) -> 3051 | X45: =VLOOKUP(DropDownList!$B$47,CntyQryCensus!$A$104:$CX$146,X$1) -> 18 | Y45: =VLOOKUP(DropDownList!$B$47,CntyQryCensus!$A$104:$CX$146,Y$1) -> 99 | Z45: =VLOOKUP(DropDownList!$B$47,CntyQryCensus!$A$104:$CX$146,Z$1) -> 475 | AA45: =VLOOKUP(DropDownList!$B$47,CntyQryCensus!$A$104:$CX$146,AA$1) -> 1059 | AB45: =VLOOKUP(DropDownList!$B$47,CntyQryCensus!$A$104:$CX$146,AB$1) -> 1417 | AC45: =VLOOKUP(DropDownList!$B$47,CntyQryCensus!$A$104:$CX$146,AC$1) -> 1017 | AD45: =VLOOKUP(DropDownList!$B$47,CntyQryCensus!$A$104:$CX$146,AD$1) -> 489 | AE45: =VLOOKUP(DropDownList!$B$47,CntyQryCensus!$A$104:$CX$146,AE$1) -> 260 | AF45: =VLOOKUP(DropDownList!$B$47,CntyQryCensus!$A$104:$CX$146,AF$1) -> 277 | AG45: =VLOOKUP(DropDownList!$B$47,CntyQryCensus!$A$104:$CX$146,AG$1) -> 5.1 | AH45: =VLOOKUP(DropDownList!$B$47,CntyQryCensus!$A$104:$CX$146,AH$1) -> 4555 | AI45: =VLOOKUP(DropDownList!$B$47,CntyQryCensus!$A$104:$CX$146,AI$1) -> 743 | AJ45: =VLOOKUP(DropDownList!$B$47,CntyQryCensus!$A$104:$CX$146,AJ$1) -> 899 | AK45: =VLOOKUP(DropDownList!$B$47,CntyQryCensus!$A$104:$CX$146,AK$1) -> 493 | AL45: =VLOOKUP(DropDownList!$B$47,CntyQryCensus!$A$104:$CX$146,AL$1) -> 806 | AM45: =VLOOKUP(DropDownList!$B$47,CntyQryCensus!$A$104:$CX$146,AM$1) -> 601 | AN45: =VLOOKUP(DropDownList!$B$47,CntyQryCensus!$A$104:$CX$146,AN$1) -> 1013 | AO45: =VLOOKUP(DropDownList!$B$47,CntyQryCensus!$A$104:$CX$146,AO$1) -> 0 | AP45: =VLOOKUP(DropDownList!$B$47,CntyQryCensus!$A$104:$CX$146,AP$1) -> 45 | AQ45: =VLOOKUP(DropDownList!$B$47,CntyQryCensus!$A$104:$CX$146,AQ$1) -> 104 | AR45: =VLOOKUP(DropDownList!$B$47,CntyQryCensus!$A$104:$CX$146,AR$1) -> 4315 | AS45: =VLOOKUP(DropDownList!$B$47,CntyQryCensus!$A$104:$CX$146,AS$1) -> 6 | AT45: =VLOOKUP(DropDownList!$B$47,CntyQryCensus!$A$104:$CX$146,AT$1) -> 54 | AU45: =VLOOKUP(DropDownList!$B$47,CntyQryCensus!$A$104:$CX$146,AU$1) -> 0 | AV45: =VLOOKUP(DropDownList!$B$47,CntyQryCensus!$A$104:$CX$146,AV$1) -> 22 | AW45: =VLOOKUP(DropDownList!$B$47,CntyQryCensus!$A$104:$CX$146,AW$1) -> 9 | AX45: =VLOOKUP(DropDownList!$B$47,CntyQryCensus!$A$104:$CX$146,AX$1) -> 12 | AY45: =VLOOKUP(DropDownList!$B$47,CntyQryCensus!$A$104:$CX$146,AY$1) -> 6 | AZ45: =VLOOKUP(DropDownList!$B$47,CntyQryCensus!$A$104:$CX$146,AZ$1) -> 159 | BA45: =VLOOKUP(DropDownList!$B$47,CntyQryCensus!$A$104:$CX$146,BA$1) -> 4555 | BB45: =VLOOKUP(DropDownList!$B$47,CntyQryCensus!$A$104:$CX$146,BB$1) -> 4486 | BC45: =VLOOKUP(DropDownList!$B$47,CntyQryCensus!$A$104:$CX$146,BC$1) -> 57 | BD45: =VLOOKUP(DropDownList!$B$47,CntyQryCensus!$A$104:$CX$146,BD$1) -> 12 | BE45: =VLOOKUP(DropDownList!$B$47,CntyQryCensus!$A$104:$CX$146,BE$1) -> 2110 | BF45: =VLOOKUP(DropDownList!$B$47,CntyQryCensus!$A$104:$CX$146,BF$1) -> 751 | BG45: =VLOOKUP(DropDownList!$B$47,CntyQryCensus!$A$104:$CX$146,BG$1) -> 1253 | BH45: =VLOOKUP(DropDownList!$B$47,CntyQryCensus!$A$104:$CX$146,BH$1) -> 93 | BI45: =VLOOKUP(DropDownList!$B$47,CntyQryCensus!$A$104:$CX$146,BI$1) -> 8 | BJ45: =VLOOKUP(DropDownList!$B$47,CntyQryCensus!$A$104:$CX$146,BJ$1) -> 5 | BK45: =VLOOKUP(DropDownList!$B$47,CntyQryCensus!$A$104:$CX$146,BK$1) -> 0 | BL45: =VLOOKUP(DropDownList!$B$47,CntyQryCensus!$A$104:$CX$146,BL$1) -> 0 | BM45: =VLOOKUP(DropDownList!$B$47,CntyQryCensus!$A$104:$CX$146,BM$1) -> 0 | BN45: =VLOOKUP(DropDownList!$B$47,CntyQryCensus!$A$104:$CX$146,BN$1) -> 59100 | BO45: =VLOOKUP(DropDownList!$B$47,CntyQryCensus!$A$104:$CX$146,BO$1) -> 1119 | BP45: =VLOOKUP(DropDownList!$B$47,CntyQryCensus!$A$104:$CX$146,BP$1) -> 0 | BQ45: =VLOOKUP(DropDownList!$B$47,CntyQryCensus!$A$104:$CX$146,BQ$1) -> 103 | BR45: =VLOOKUP(DropDownList!$B$47,CntyQryCensus!$A$104:$CX$146,BR$1) -> 321 | BS45: =VLOOKUP(DropDownList!$B$47,CntyQryCensus!$A$104:$CX$146,BS$1) -> 510 | BT45: =VLOOKUP(DropDownList!$B$47,CntyQryCensus!$A$104:$CX$146,BT$1) -> 161 | BU45: =VLOOKUP(DropDownList!$B$47,CntyQryCensus!$A$104:$CX$146,BU$1) -> 24 | BV45: =VLOOKUP(DropDownList!$B$47,CntyQryCensus!$A$104:$CX$146,BV$1) -> 0 | BW45: =VLOOKUP(DropDownList!$B$47,CntyQryCensus!$A$104:$CX$146,BW$1) -> 769 | BX45: =VLOOKUP(DropDownList!$B$47,CntyQryCensus!$A$104:$CX$146,BX$1) -> 991 | BY45: =VLOOKUP(DropDownList!$B$47,CntyQryCensus!$A$104:$CX$146,BY$1) -> 384 | BZ45: =VLOOKUP(DropDownList!$B$47,CntyQryCensus!$A$104:$CX$146,BZ$1) -> 768 | CA45: =VLOOKUP(DropDownList!$B$47,CntyQryCensus!$A$104:$CX$146,CA$1) -> 497 | CB45: =VLOOKUP(DropDownList!$B$47,CntyQryCensus!$A$104:$CX$146,CB$1) -> 308 | CC45: =VLOOKUP(DropDownList!$B$47,CntyQryCensus!$A$104:$CX$146,CC$1) -> 165 | CD45: =VLOOKUP(DropDownList!$B$47,CntyQryCensus!$A$104:$CX$146,CD$1) -> 93 | CE45: =VLOOKUP(DropDownList!$B$47,CntyQryCensus!$A$104:$CX$146,CE$1) -> 252 | CF45: =VLOOKUP(DropDownList!$B$47,CntyQryCensus!$A$104:$CX$146,CF$1) -> 27 | CG45: =VLOOKUP(DropDownList!$B$47,CntyQryCensus!$A$104:$CX$146,CG$1) -> 1754 | CH45: =VLOOKUP(DropDownList!$B$47,CntyQryCensus!$A$104:$CX$146,CH$1) -> 183 | CI45: =VLOOKUP(DropDownList!$B$47,CntyQryCensus!$A$104:$CX$146,CI$1) -> 220 | CJ45: =VLOOKUP(DropDownList!$B$47,CntyQryCensus!$A$104:$CX$146,CJ$1) -> 1007 | CK45: =VLOOKUP(DropDownList!$B$47,CntyQryCensus!$A$104:$CX$146,CK$1) -> 208 | CL45: =VLOOKUP(DropDownList!$B$47,CntyQryCensus!$A$104:$CX$146,CL$1) -> 32 | CM45: =VLOOKUP(DropDownList!$B$47,CntyQryCensus!$A$104:$CX$146,CM$1) -> 5 | CN45: =VLOOKUP(DropDownList!$B$47,CntyQryCensus!$A$104:$CX$146,CN$1) -> 0 | CO45: =VLOOKUP(DropDownList!$B$47,CntyQryCensus!$A$104:$CX$146,CO$1) -> 99 | CP45: =VLOOKUP(DropDownList!$B$47,CntyQryCensus!$A$104:$CX$146,CP$1) -> 382 | CQ45: =VLOOKUP(DropDownList!$B$47,CntyQryCensus!$A$104:$CX$146,CQ$1) -> 339 | CR45: =VLOOKUP(DropDownList!$B$47,CntyQryCensus!$A$104:$CX$146,CR$1) -> 248 | CS45: =VLOOKUP(DropDownList!$B$47,CntyQryCensus!$A$104:$CX$146,CS$1) -> 190 | CT45: =VLOOKUP(DropDownList!$B$47,CntyQryCensus!$A$104:$CX$146,CT$1) -> 152 | CU45: =VLOOKUP(DropDownList!$B$47,CntyQryCensus!$A$104:$CX$146,CU$1) -> 176 | CV45: =VLOOKUP(DropDownList!$B$47,CntyQryCensus!$A$104:$CX$146,CV$1) -> 536 | CW45: =VLOOKUP(DropDownList!$B$47,CntyQryCensus!$A$104:$CX$146,CW$1) -> 113
A48: Census 2000 SummaryFile3 Sample Data - SF3TownQry1SocialChar
A49: NAME | B49: LOGRECNO | C49: COUNTY | D49: P01TotalPopulation | E49: P02SampleCountOfPop | F49: P03Pop100pctCount | G49: P05UrbanPopulation | H49: P05RuralPopulation | I49: P06WhiteAlone | J49: P06BlackOrAfAm | K49: P06AmIndAlone | L49: P06AsianAlone | M49: P06HawaiianOrPI | N49: P06OtherRace | O49: P06TwoPlusRaces | P49: P07NotHispanicOrLatino | Q49: P07HispanicOrLatino | R49: P08MalePop | S49: P08FemalePop | T49: P09PopInHouseholds | U49: P09PopInFamHH | V49: P09PopInNonFamHH | W49: P09PopInGroupQtr | X49: P13TotalHH | Y49: P13FamilyHH | Z49: P13FamHHolder15to24yrs | AA49: P13FamHHolder25to34yrs | AB49: P13FamHHolder35to44yrs | AC49: P13FamHHolder45to54yrs | AD49: P13FamHHolder55to64yrs | AE49: P13FamHHolder65to74yrs | AF49: P13FamHHolder75to84yrs | AG49: P13FamHHolder85yrsOver | AH49: P13NonFamilyHH | AI49: P13NonFamHHolder15to24yrs | AJ49: P13NonFamHHolder25to34yrs | AK49: P13NonFamHHolder35to44yrs | AL49: P13NonFamHHolder45to54yrs | AM49: P13NonFamHHolder55to64yrs | AN49: P13NonFamHHolder65to74yrs | AO49: P13NonFamHHolder75to84yrs | AP49: P13NonFamHHolder85yrsOver | AQ49: P18Pop15yrsOver | AR49: P18MaritalStatNeverMarried | AS49: P18MaritalStatNowMarried | AT49: P18MaritalStatSeparated | AU49: P18MaritalStatWidowed | AV49: P18MaritalStatWidowFemale | AW49: P18MaritalStatDivorced | AX49: P18MaritalStatDivorcedFemale | AY49: P21NativeBornPop | AZ49: P21NatPopBornInState | BA49: P21NatPopBornOtherState | BB49: P021005 | BC49: P021006 | BD49: P021007 | BE49: P021008 | BF49: P21NatPopBornOutUS | BG49: P21ForeignBornPop | BH49: P021014 | BI49: P021015 | BJ49: P24Pop5YrsPlus | BK49: P24ResSameHouseIn95 | BL49: P24ResDiffHouseIn95 | BM49: P24ResDiffHouseInUSIn95 | BN49: P24ResDiffHouseSameCountyIn95 | BO49: P24ResDiffHouseDiffCountyIn95 | BP49: P24ResDiffHouseDiffCntySamStIn95 | BQ49: P24ResDiffHouseDiffCntyDifStIn95 | BR49: P24ResDiffHouseDiffCntyNEStIn95 | BS49: P24ResDiffHouseDiffCntyMWStIn95 | BT49: P24ResDiffHouseDiffCntySoStIn95 | BU49: P24ResDiffHouseDiffCntyWstStIn95 | BV49: P24ResDiffInPR | BW49: P24ResDiffElsewhereIn95 | BX49: P26Workers16yrsOver | BY49: P26WorkedInState | BZ49: P26WorkedInCnty | CA49: P26WorkedOutsideCnty | CB49: P26WorkedOutsideState | CC49: P30Workers16Over | CD49: P30TranspToWrkCar | CE49: P30TranspToWrkPublic | CF49: P30TranspToWrkOther | CG49: P30WrkdAtHome | CH49: P31WrkrsNotWrkAtHom | CI49: P31TravTim<5min | CJ49: P31TravTim5to9Min | CK49: P31TravTim10to14Min | CL49: P31TravTim15to19Min | CM49: P31TravTim20to24Min | CN49: P31TravTim25to29Min | CO49: P31TravTim30to34Min | CP49: P31TravTim35to39Min | CQ49: P31TravTim40to44Min | CR49: P31TravTim45to59Min | CS49: P31TravTim60to89Min | CT49: P31TravTim90MinMore | CU49: P31WorkAtHome | CV49: P36SchEnrlPop3yrOver | CW49: P36NurserSchEnrl | CX49: P36KinderSchEnrl | CY49: P36ElemSchEnrl | CZ49: P36HighSchEnrl | DA49: P36CollGradSchEnrl | DB49: P37Pop25yrsOver | DC49: P37EduAtain<9grd | DD49: P37EduAtainHSnoDip | DE49: P37EduAtainHSgrad | DF49: P37EduAtainCollNoDeg | DG49: P37EduAtainAssocDeg | DH49: P37EduAtainBachDeg | DI49: P37EduAtainGradProfDeg | DJ49: P42NIPop5to15 | DK49: P42NIPop5to15wDisabl | DL49: P42NIPop16to20 | DM49: P42NIPop16to20wDisab | DN49: P42NIPop16to20wDisEmp | DO49: P42NIPop16to21NoDis | DP49: P42NIPop16to21NoDisEmpl | DQ49: P42NIPop21to64 | DR49: P42NIPop21to64wDis | DS49: P42NIPop21to64wDisEmp | DT49: P42NIPop21to64NoDis | DU49: P42NIPop21to64NoDisEmp | DV49: P42NIPop65to74 | DW49: P42NIPop65to74wDis | DX49: P42NIPop75Over | DY49: P42NIPop75OverwDis | DZ49: P43Pop16YrsOver | EA49: P43Pop16OvrInLaborForce | EB49: P43Pop16OvrCivlLabFrc | EC49: P43Pop16OvrCivlLbrFrcEmp | ED49: P48Families | EE49: P48MarriedFam | EF49: P48MarrFamNoWorkers | EG49: P48MarrFam1Worker | EH49: P48MarrFam2Worker | EI49: P48MarrFamHusbWifeWorked | EJ49: P48MarrFamOther | EK49: P48MarrFam3PlusWorker | EL49: P48MarrFam3WorkHsbWif | EM49: P48MarrFam3PlsWrkOther | EN49: P48OtherFam | EO49: P48MaleHHNoWif | EP49: P48MaleHHNoWifNoWorker | EQ49: P48MaleHHNoWif1Worker | ER49: P48MaleHHNoWif2Worker | ES49: P48MaleHHNoWif3PlusWorker | ET49: P48FemaleHHNoHsb | EU49: P48FemaleHHNoHsbNoWorker | EV49: P48FemaleHHNoHsb1Worker | EW49: P48FemaleHHNoHsb2Worker | EX49: P48FemaleHHNoHsb3Worker | EY49: P49EmpCivPop16YrOver | EZ49: P49IndustAgricult | FA49: P49IndustConst | FB49: P49IndustMnftg | FC49: P49IndustWhlslTrd | FD49: P49IndustRtlTrd | FE49: P49IndustTrspWrhsUtlt | FF49: P49IndustInfrm | FG49: P49IndustFinInsRE | FH49: P49IndustPrfsScntfMngmt | FI49: P49IndustEduHlthSocSrv | FJ49: P49IndustArtsEntRec | FK49: P49IndustOthrSrvc | FL49: P49IndustPubAdm | FM49: P50OccupMngmtProfs | FN49: P50OccupService | FO49: P50OccupSalesOff | FP49: P50OccupFarmFishForest | FQ49: P50OccupConstExtrctMaint | FR49: P50OccupPrdctTrnspMatMv
A50: =VLOOKUP(DropDownList!$B$47,CntyQryCensus!$A$156:$FR$198,A$1) -> Berlin | B50: =VLOOKUP(DropDownList!$B$47,CntyQryCensus!$A$156:$FR$198,B$1) -> 0000833 | C50: =VLOOKUP(DropDownList!$B$47,CntyQryCensus!$A$156:$FR$198,C$1) -> 05140 | D50: =VLOOKUP(DropDownList!$B$47,CntyQryCensus!$A$156:$FR$198,D$1) -> 10331 | E50: =VLOOKUP(DropDownList!$B$47,CntyQryCensus!$A$156:$FR$198,E$1) -> 1706 | F50: =VLOOKUP(DropDownList!$B$47,CntyQryCensus!$A$156:$FR$198,F$1) -> 10331 | G50: =VLOOKUP(DropDownList!$B$47,CntyQryCensus!$A$156:$FR$198,G$1) -> 8964 | H50: =VLOOKUP(DropDownList!$B$47,CntyQryCensus!$A$156:$FR$198,H$1) -> 1367 | I50: =VLOOKUP(DropDownList!$B$47,CntyQryCensus!$A$156:$FR$198,I$1) -> 10241 | J50: =VLOOKUP(DropDownList!$B$47,CntyQryCensus!$A$156:$FR$198,J$1) -> 12 | K50: =VLOOKUP(DropDownList!$B$47,CntyQryCensus!$A$156:$FR$198,K$1) -> 7 | L50: =VLOOKUP(DropDownList!$B$47,CntyQryCensus!$A$156:$FR$198,L$1) -> 0 | M50: =VLOOKUP(DropDownList!$B$47,CntyQryCensus!$A$156:$FR$198,M$1) -> 0 | N50: =VLOOKUP(DropDownList!$B$47,CntyQryCensus!$A$156:$FR$198,N$1) -> 0 | O50: =VLOOKUP(DropDownList!$B$47,CntyQryCensus!$A$156:$FR$198,O$1) -> 71 | P50: =VLOOKUP(DropDownList!$B$47,CntyQryCensus!$A$156:$FR$198,P$1) -> 10288 | Q50: =VLOOKUP(DropDownList!$B$47,CntyQryCensus!$A$156:$FR$198,Q$1) -> 43 | R50: =VLOOKUP(DropDownList!$B$47,CntyQryCensus!$A$156:$FR$198,R$1) -> 4927 | S50: =VLOOKUP(DropDownList!$B$47,CntyQryCensus!$A$156:$FR$198,S$1) -> 5404 | T50: =VLOOKUP(DropDownList!$B$47,CntyQryCensus!$A$156:$FR$198,T$1) -> 10132 | U50: =VLOOKUP(DropDownList!$B$47,CntyQryCensus!$A$156:$FR$198,U$1) -> 8277 | V50: =VLOOKUP(DropDownList!$B$47,CntyQryCensus!$A$156:$FR$198,V$1) -> 1855 | W50: =VLOOKUP(DropDownList!$B$47,CntyQryCensus!$A$156:$FR$198,W$1) -> 199 | X50: =VLOOKUP(DropDownList!$B$47,CntyQryCensus!$A$156:$FR$198,X$1) -> 4555 | Y50: =VLOOKUP(DropDownList!$B$47,CntyQryCensus!$A$156:$FR$198,Y$1) -> 2919 | Z50: =VLOOKUP(DropDownList!$B$47,CntyQryCensus!$A$156:$FR$198,Z$1) -> 103 | AA50: =VLOOKUP(DropDownList!$B$47,CntyQryCensus!$A$156:$FR$198,AA$1) -> 449 | AB50: =VLOOKUP(DropDownList!$B$47,CntyQryCensus!$A$156:$FR$198,AB$1) -> 635 | AC50: =VLOOKUP(DropDownList!$B$47,CntyQryCensus!$A$156:$FR$198,AC$1) -> 635 | AD50: =VLOOKUP(DropDownList!$B$47,CntyQryCensus!$A$156:$FR$198,AD$1) -> 409 | AE50: =VLOOKUP(DropDownList!$B$47,CntyQryCensus!$A$156:$FR$198,AE$1) -> 417 | AF50: =VLOOKUP(DropDownList!$B$47,CntyQryCensus!$A$156:$FR$198,AF$1) -> 186 | AG50: =VLOOKUP(DropDownList!$B$47,CntyQryCensus!$A$156:$FR$198,AG$1) -> 85 | AH50: =VLOOKUP(DropDownList!$B$47,CntyQryCensus!$A$156:$FR$198,AH$1) -> 1636 | AI50: =VLOOKUP(DropDownList!$B$47,CntyQryCensus!$A$156:$FR$198,AI$1) -> 94 | AJ50: =VLOOKUP(DropDownList!$B$47,CntyQryCensus!$A$156:$FR$198,AJ$1) -> 122 | AK50: =VLOOKUP(DropDownList!$B$47,CntyQryCensus!$A$156:$FR$198,AK$1) -> 178 | AL50: =VLOOKUP(DropDownList!$B$47,CntyQryCensus!$A$156:$FR$198,AL$1) -> 195 | AM50: =VLOOKUP(DropDownList!$B$47,CntyQryCensus!$A$156:$FR$198,AM$1) -> 144 | AN50: =VLOOKUP(DropDownList!$B$47,CntyQryCensus!$A$156:$FR$198,AN$1) -> 374 | AO50: =VLOOKUP(DropDownList!$B$47,CntyQryCensus!$A$156:$FR$198,AO$1) -> 378 | AP50: =VLOOKUP(DropDownList!$B$47,CntyQryCensus!$A$156:$FR$198,AP$1) -> 151 | AQ50: =VLOOKUP(DropDownList!$B$47,CntyQryCensus!$A$156:$FR$198,AQ$1) -> 8532 | AR50: =VLOOKUP(DropDownList!$B$47,CntyQryCensus!$A$156:$FR$198,AR$1) -> 1863 | AS50: =VLOOKUP(DropDownList!$B$47,CntyQryCensus!$A$156:$FR$198,AS$1) -> 4560 | AT50: =VLOOKUP(DropDownList!$B$47,CntyQryCensus!$A$156:$FR$198,AT$1) -> 107 | AU50: =VLOOKUP(DropDownList!$B$47,CntyQryCensus!$A$156:$FR$198,AU$1) -> 1066 | AV50: =VLOOKUP(DropDownList!$B$47,CntyQryCensus!$A$156:$FR$198,AV$1) -> 893 | AW50: =VLOOKUP(DropDownList!$B$47,CntyQryCensus!$A$156:$FR$198,AW$1) -> 936 | AX50: =VLOOKUP(DropDownList!$B$47,CntyQryCensus!$A$156:$FR$198,AX$1) -> 471 | AY50: =VLOOKUP(DropDownList!$B$47,CntyQryCensus!$A$156:$FR$198,AY$1) -> 9858 | AZ50: =VLOOKUP(DropDownList!$B$47,CntyQryCensus!$A$156:$FR$198,AZ$1) -> 7823 | BA50: =VLOOKUP(DropDownList!$B$47,CntyQryCensus!$A$156:$FR$198,BA$1) -> 1965 | BB50: =VLOOKUP(DropDownList!$B$47,CntyQryCensus!$A$156:$FR$198,BB$1) -> 1553 | BC50: =VLOOKUP(DropDownList!$B$47,CntyQryCensus!$A$156:$FR$198,BC$1) -> 87 | BD50: =VLOOKUP(DropDownList!$B$47,CntyQryCensus!$A$156:$FR$198,BD$1) -> 213 | BE50: =VLOOKUP(DropDownList!$B$47,CntyQryCensus!$A$156:$FR$198,BE$1) -> 112 | BF50: =VLOOKUP(DropDownList!$B$47,CntyQryCensus!$A$156:$FR$198,BF$1) -> 70 | BG50: =VLOOKUP(DropDownList!$B$47,CntyQryCensus!$A$156:$FR$198,BG$1) -> 473 | BH50: =VLOOKUP(DropDownList!$B$47,CntyQryCensus!$A$156:$FR$198,BH$1) -> 345 | BI50: =VLOOKUP(DropDownList!$B$47,CntyQryCensus!$A$156:$FR$198,BI$1) -> 128 | BJ50: =VLOOKUP(DropDownList!$B$47,CntyQryCensus!$A$156:$FR$198,BJ$1) -> 9800 | BK50: =VLOOKUP(DropDownList!$B$47,CntyQryCensus!$A$156:$FR$198,BK$1) -> 6457 | BL50: =VLOOKUP(DropDownList!$B$47,CntyQryCensus!$A$156:$FR$198,BL$1) -> 3343 | BM50: =VLOOKUP(DropDownList!$B$47,CntyQryCensus!$A$156:$FR$198,BM$1) -> 3316 | BN50: =VLOOKUP(DropDownList!$B$47,CntyQryCensus!$A$156:$FR$198,BN$1) -> 2519 | BO50: =VLOOKUP(DropDownList!$B$47,CntyQryCensus!$A$156:$FR$198,BO$1) -> 797 | BP50: =VLOOKUP(DropDownList!$B$47,CntyQryCensus!$A$156:$FR$198,BP$1) -> 294 | BQ50: =VLOOKUP(DropDownList!$B$47,CntyQryCensus!$A$156:$FR$198,BQ$1) -> 503 | BR50: =VLOOKUP(DropDownList!$B$47,CntyQryCensus!$A$156:$FR$198,BR$1) -> 295 | BS50: =VLOOKUP(DropDownList!$B$47,CntyQryCensus!$A$156:$FR$198,BS$1) -> 47 | BT50: =VLOOKUP(DropDownList!$B$47,CntyQryCensus!$A$156:$FR$198,BT$1) -> 156 | BU50: =VLOOKUP(DropDownList!$B$47,CntyQryCensus!$A$156:$FR$198,BU$1) -> 5 | BV50: =VLOOKUP(DropDownList!$B$47,CntyQryCensus!$A$156:$FR$198,BV$1) -> 0 | BW50: =VLOOKUP(DropDownList!$B$47,CntyQryCensus!$A$156:$FR$198,BW$1) -> 27 | BX50: =VLOOKUP(DropDownList!$B$47,CntyQryCensus!$A$156:$FR$198,BX$1) -> 4381 | BY50: =VLOOKUP(DropDownList!$B$47,CntyQryCensus!$A$156:$FR$198,BY$1) -> 4287 | BZ50: =VLOOKUP(DropDownList!$B$47,CntyQryCensus!$A$156:$FR$198,BZ$1) -> 4075 | CA50: =VLOOKUP(DropDownList!$B$47,CntyQryCensus!$A$156:$FR$198,CA$1) -> 212 | CB50: =VLOOKUP(DropDownList!$B$47,CntyQryCensus!$A$156:$FR$198,CB$1) -> 94 | CC50: =VLOOKUP(DropDownList!$B$47,CntyQryCensus!$A$156:$FR$198,CC$1) -> 4381 | CD50: =VLOOKUP(DropDownList!$B$47,CntyQryCensus!$A$156:$FR$198,CD$1) -> 4096 | CE50: =VLOOKUP(DropDownList!$B$47,CntyQryCensus!$A$156:$FR$198,CE$1) -> 18 | CF50: =VLOOKUP(DropDownList!$B$47,CntyQryCensus!$A$156:$FR$198,CF$1) -> 19 | CG50: =VLOOKUP(DropDownList!$B$47,CntyQryCensus!$A$156:$FR$198,CG$1) -> 32 | CH50: =VLOOKUP(DropDownList!$B$47,CntyQryCensus!$A$156:$FR$198,CH$1) -> 4349 | CI50: =VLOOKUP(DropDownList!$B$47,CntyQryCensus!$A$156:$FR$198,CI$1) -> 398 | CJ50: =VLOOKUP(DropDownList!$B$47,CntyQryCensus!$A$156:$FR$198,CJ$1) -> 1407 | CK50: =VLOOKUP(DropDownList!$B$47,CntyQryCensus!$A$156:$FR$198,CK$1) -> 1220 | CL50: =VLOOKUP(DropDownList!$B$47,CntyQryCensus!$A$156:$FR$198,CL$1) -> 609 | CM50: =VLOOKUP(DropDownList!$B$47,CntyQryCensus!$A$156:$FR$198,CM$1) -> 171 | CN50: =VLOOKUP(DropDownList!$B$47,CntyQryCensus!$A$156:$FR$198,CN$1) -> 23 | CO50: =VLOOKUP(DropDownList!$B$47,CntyQryCensus!$A$156:$FR$198,CO$1) -> 120 | CP50: =VLOOKUP(DropDownList!$B$47,CntyQryCensus!$A$156:$FR$198,CP$1) -> 18 | CQ50: =VLOOKUP(DropDownList!$B$47,CntyQryCensus!$A$156:$FR$198,CQ$1) -> 50 | CR50: =VLOOKUP(DropDownList!$B$47,CntyQryCensus!$A$156:$FR$198,CR$1) -> 119 | CS50: =VLOOKUP(DropDownList!$B$47,CntyQryCensus!$A$156:$FR$198,CS$1) -> 93 | CT50: =VLOOKUP(DropDownList!$B$47,CntyQryCensus!$A$156:$FR$198,CT$1) -> 121 | CU50: =VLOOKUP(DropDownList!$B$47,CntyQryCensus!$A$156:$FR$198,CU$1) -> 32 | CV50: =VLOOKUP(DropDownList!$B$47,CntyQryCensus!$A$156:$FR$198,CV$1) -> 9972 | CW50: =VLOOKUP(DropDownList!$B$47,CntyQryCensus!$A$156:$FR$198,CW$1) -> 147 | CX50: =VLOOKUP(DropDownList!$B$47,CntyQryCensus!$A$156:$FR$198,CX$1) -> 144 | CY50: =VLOOKUP(DropDownList!$B$47,CntyQryCensus!$A$156:$FR$198,CY$1) -> 996 | CZ50: =VLOOKUP(DropDownList!$B$47,CntyQryCensus!$A$156:$FR$198,CZ$1) -> 630 | DA50: =VLOOKUP(DropDownList!$B$47,CntyQryCensus!$A$156:$FR$198,DA$1) -> 343 | DB50: =VLOOKUP(DropDownList!$B$47,CntyQryCensus!$A$156:$FR$198,DB$1) -> 7445 | DC50: =VLOOKUP(DropDownList!$B$47,CntyQryCensus!$A$156:$FR$198,DC$1) -> 938 | DD50: =VLOOKUP(DropDownList!$B$47,CntyQryCensus!$A$156:$FR$198,DD$1) -> 1100 | DE50: =VLOOKUP(DropDownList!$B$47,CntyQryCensus!$A$156:$FR$198,DE$1) -> 2987 | DF50: =VLOOKUP(DropDownList!$B$47,CntyQryCensus!$A$156:$FR$198,DF$1) -> 1316 | DG50: =VLOOKUP(DropDownList!$B$47,CntyQryCensus!$A$156:$FR$198,DG$1) -> 608 | DH50: =VLOOKUP(DropDownList!$B$47,CntyQryCensus!$A$156:$FR$198,DH$1) -> 339 | DI50: =VLOOKUP(DropDownList!$B$47,CntyQryCensus!$A$156:$FR$198,DI$1) -> 157 | DJ50: =VLOOKUP(DropDownList!$B$47,CntyQryCensus!$A$156:$FR$198,DJ$1) -> 1393 | DK50: =VLOOKUP(DropDownList!$B$47,CntyQryCensus!$A$156:$FR$198,DK$1) -> 115 | DL50: =VLOOKUP(DropDownList!$B$47,CntyQryCensus!$A$156:$FR$198,DL$1) -> 616 | DM50: =VLOOKUP(DropDownList!$B$47,CntyQryCensus!$A$156:$FR$198,DM$1) -> 70 | DN50: =VLOOKUP(DropDownList!$B$47,CntyQryCensus!$A$156:$FR$198,DN$1) -> 46 | DO50: =VLOOKUP(DropDownList!$B$47,CntyQryCensus!$A$156:$FR$198,DO$1) -> 546 | DP50: =VLOOKUP(DropDownList!$B$47,CntyQryCensus!$A$156:$FR$198,DP$1) -> 296 | DQ50: =VLOOKUP(DropDownList!$B$47,CntyQryCensus!$A$156:$FR$198,DQ$1) -> 5434 | DR50: =VLOOKUP(DropDownList!$B$47,CntyQryCensus!$A$156:$FR$198,DR$1) -> 1454 | DS50: =VLOOKUP(DropDownList!$B$47,CntyQryCensus!$A$156:$FR$198,DS$1) -> 725 | DT50: =VLOOKUP(DropDownList!$B$47,CntyQryCensus!$A$156:$FR$198,DT$1) -> 3980 | DU50: =VLOOKUP(DropDownList!$B$47,CntyQryCensus!$A$156:$FR$198,DU$1) -> 3258 | DV50: =VLOOKUP(DropDownList!$B$47,CntyQryCensus!$A$156:$FR$198,DV$1) -> 1144 | DW50: =VLOOKUP(DropDownList!$B$47,CntyQryCensus!$A$156:$FR$198,DW$1) -> 522 | DX50: =VLOOKUP(DropDownList!$B$47,CntyQryCensus!$A$156:$FR$198,DX$1) -> 1025 | DY50: =VLOOKUP(DropDownList!$B$47,CntyQryCensus!$A$156:$FR$198,DY$1) -> 572 | DZ50: =VLOOKUP(DropDownList!$B$47,CntyQryCensus!$A$156:$FR$198,DZ$1) -> 8407 | EA50: =VLOOKUP(DropDownList!$B$47,CntyQryCensus!$A$156:$FR$198,EA$1) -> 4844 | EB50: =VLOOKUP(DropDownList!$B$47,CntyQryCensus!$A$156:$FR$198,EB$1) -> 4837 | EC50: =VLOOKUP(DropDownList!$B$47,CntyQryCensus!$A$156:$FR$198,EC$1) -> 4492 | ED50: =VLOOKUP(DropDownList!$B$47,CntyQryCensus!$A$156:$FR$198,ED$1) -> 2919 | EE50: =VLOOKUP(DropDownList!$B$47,CntyQryCensus!$A$156:$FR$198,EE$1) -> 2161 | EF50: =VLOOKUP(DropDownList!$B$47,CntyQryCensus!$A$156:$FR$198,EF$1) -> 449 | EG50: =VLOOKUP(DropDownList!$B$47,CntyQryCensus!$A$156:$FR$198,EG$1) -> 432 | EH50: =VLOOKUP(DropDownList!$B$47,CntyQryCensus!$A$156:$FR$198,EH$1) -> 1009 | EI50: =VLOOKUP(DropDownList!$B$47,CntyQryCensus!$A$156:$FR$198,EI$1) -> 945 | EJ50: =VLOOKUP(DropDownList!$B$47,CntyQryCensus!$A$156:$FR$198,EJ$1) -> 64 | EK50: =VLOOKUP(DropDownList!$B$47,CntyQryCensus!$A$156:$FR$198,EK$1) -> 271 | EL50: =VLOOKUP(DropDownList!$B$47,CntyQryCensus!$A$156:$FR$198,EL$1) -> 243 | EM50: =VLOOKUP(DropDownList!$B$47,CntyQryCensus!$A$156:$FR$198,EM$1) -> 28 | EN50: =VLOOKUP(DropDownList!$B$47,CntyQryCensus!$A$156:$FR$198,EN$1) -> 758 | EO50: =VLOOKUP(DropDownList!$B$47,CntyQryCensus!$A$156:$FR$198,EO$1) -> 270 | EP50: =VLOOKUP(DropDownList!$B$47,CntyQryCensus!$A$156:$FR$198,EP$1) -> 35 | EQ50: =VLOOKUP(DropDownList!$B$47,CntyQryCensus!$A$156:$FR$198,EQ$1) -> 156 | ER50: =VLOOKUP(DropDownList!$B$47,CntyQryCensus!$A$156:$FR$198,ER$1) -> 79 | ES50: =VLOOKUP(DropDownList!$B$47,CntyQryCensus!$A$156:$FR$198,ES$1) -> 0 | ET50: =VLOOKUP(DropDownList!$B$47,CntyQryCensus!$A$156:$FR$198,ET$1) -> 488 | EU50: =VLOOKUP(DropDownList!$B$47,CntyQryCensus!$A$156:$FR$198,EU$1) -> 57 | EV50: =VLOOKUP(DropDownList!$B$47,CntyQryCensus!$A$156:$FR$198,EV$1) -> 268 | EW50: =VLOOKUP(DropDownList!$B$47,CntyQryCensus!$A$156:$FR$198,EW$1) -> 134 | EX50: =VLOOKUP(DropDownList!$B$47,CntyQryCensus!$A$156:$FR$198,EX$1) -> 29 | EY50: =VLOOKUP(DropDownList!$B$47,CntyQryCensus!$A$156:$FR$198,EY$1) -> 4492 | EZ50: =VLOOKUP(DropDownList!$B$47,CntyQryCensus!$A$156:$FR$198,EZ$1) -> 59 | FA50: =VLOOKUP(DropDownList!$B$47,CntyQryCensus!$A$156:$FR$198,FA$1) -> 243 | FB50: =VLOOKUP(DropDownList!$B$47,CntyQryCensus!$A$156:$FR$198,FB$1) -> 997 | FC50: =VLOOKUP(DropDownList!$B$47,CntyQryCensus!$A$156:$FR$198,FC$1) -> 96 | FD50: =VLOOKUP(DropDownList!$B$47,CntyQryCensus!$A$156:$FR$198,FD$1) -> 651 | FE50: =VLOOKUP(DropDownList!$B$47,CntyQryCensus!$A$156:$FR$198,FE$1) -> 168 | FF50: =VLOOKUP(DropDownList!$B$47,CntyQryCensus!$A$156:$FR$198,FF$1) -> 39 | FG50: =VLOOKUP(DropDownList!$B$47,CntyQryCensus!$A$156:$FR$198,FG$1) -> 212 | FH50: =VLOOKUP(DropDownList!$B$47,CntyQryCensus!$A$156:$FR$198,FH$1) -> 172 | FI50: =VLOOKUP(DropDownList!$B$47,CntyQryCensus!$A$156:$FR$198,FI$1) -> 1018 | FJ50: =VLOOKUP(DropDownList!$B$47,CntyQryCensus!$A$156:$FR$198,FJ$1) -> 399 | FK50: =VLOOKUP(DropDownList!$B$47,CntyQryCensus!$A$156:$FR$198,FK$1) -> 243 | FL50: =VLOOKUP(DropDownList!$B$47,CntyQryCensus!$A$156:$FR$198,FL$1) -> 195 | FM50: =VLOOKUP(DropDownList!$B$47,CntyQryCensus!$A$156:$FR$198,FM$1) -> 1036 | FN50: =VLOOKUP(DropDownList!$B$47,CntyQryCensus!$A$156:$FR$198,FN$1) -> 874 | FO50: =VLOOKUP(DropDownList!$B$47,CntyQryCensus!$A$156:$FR$198,FO$1) -> 1055 | FP50: =VLOOKUP(DropDownList!$B$47,CntyQryCensus!$A$156:$FR$198,FP$1) -> 34 | FQ50: =VLOOKUP(DropDownList!$B$47,CntyQryCensus!$A$156:$FR$198,FQ$1) -> 515 | FR50: =VLOOKUP(DropDownList!$B$47,CntyQryCensus!$A$156:$FR$198,FR$1) -> 978
A53: Census 2000 SummaryFile3 Sample Data - SF3TownQry2aIncomeChar
A54: NAME | B54: LOGRECNO | C54: COUNTY | D54: TotalPop | E54: P52Households1 | F54: P52HHInc<10K | G54: P52HHInc10to15K | H54: P52HHInc15to20K | I54: P52HHInc20to25K | J54: P52HHInc25to30K | K54: P52HHInc30to35K | L54: P52HHInc35to40K | M54: P52HHInc40to45K | N54: P52HHInc45to50K | O54: P52HHInc50to60K | P54: P52HHInc60to75K | Q54: P52HHInc75to100K | R54: P52HHInc100to125K | S54: P52HHInc125to150K | T54: P52HHInc150to200K | U54: P52HHInc>200K | V54: P53MedianHHInc | W54: P54AggregHHInc | X54: P55Households2 | Y54: P55HHUnder25yrs | Z54: P55HH<25HHInc<10K | AA54: P55HH<25HHInc10to15K | AB54: P55HH<25HHInc15to20K | AC54: P55HH<25HHInc20to25K | AD54: P55HH<25HHInc25to30K | AE54: P55HH<25HHInc30to35K | AF54: P55HH<25HHInc35to40K | AG54: P55HH<25HHInc40to45K | AH54: P55HH<25HHInc45to50K | AI54: P55HH<25HHInc50to60K | AJ54: P55HH<25HHInc60to75K | AK54: P55HH<25HHInc75to100K | AL54: P55HH<25HHInc100to125K | AM54: P55HH<25HHInc125to150K | AN54: P55HH<25HHInc150to200K | AO54: P55HH<25HHInc>200K | AP54: P55HH25to34yrs | AQ54: P55HH25to34HHInc<10K | AR54: P55HH25to34HHInc10to15K | AS54: P55HH25to34HHInc15to20K | AT54: P55HH25to34HHInc20to25K | AU54: P55HH25to34HHInc25to30K | AV54: P55HH25to34HHInc30to35K | AW54: P55HH25to34HHInc35to40K | AX54: P55HH25to34HHInc40to45K | AY54: P55HH25to34HHInc45to50K | AZ54: P55HH25to34HHInc50to60K | BA54: P55HH25to34HHInc60to75K | BB54: P55HH25to34HHInc75to100K | BC54: P55HH25to34HHInc100to125K | BD54: P55HH25to34HHInc125to150K | BE54: P55HH25to34HHInc150to200K | BF54: P55HH25to34HHInc>200K | BG54: P55HH35to44yrs | BH54: P55HH35to44HHInc<10K | BI54: P55HH35to44HHInc10to15K | BJ54: P55HH35to44HHInc15to20K | BK54: P55HH35to44HHInc20to25K | BL54: P55HH35to44HHInc25to30K | BM54: P55HH35to44HHInc30to35K | BN54: P55HH35to44HHInc35to40K | BO54: P55HH35to44HHInc40to45K | BP54: P55HH35to44HHInc45to50K | BQ54: P55HH35to44HHInc50to60K | BR54: P55HH35to44HHInc60to75K | BS54: P55HH35to44HHInc75to100K | BT54: P55HH35to44HHInc100to125K | BU54: P55HH35to44HHInc125to150K | BV54: P55HH35to44HHInc150to200K | BW54: P55HH35to44HHInc>200K | BX54: P55HH45to54yrs | BY54: P55HH45to55HHInc<10K | BZ54: P55HH45to55HHInc10to15K | CA54: P55HH45to55HHInc15to20K | CB54: P55HH45to55HHInc20to25K | CC54: P55HH45to55HHInc25to30K | CD54: P55HH45to55HHInc30to35K | CE54: P55HH45to55HHInc35to40K | CF54: P55HH45to55HHInc40to45K | CG54: P55HH45to55HHInc45to50K | CH54: P55HH45to55HHInc50to60K | CI54: P55HH45to55HHInc60to75K | CJ54: P55HH45to55HHInc75to100K | CK54: P55HH45to55HHInc100to125K | CL54: P55HH45to55HHInc125to150K | CM54: P55HH45to55HHInc150to200K | CN54: P55HH45to55HHInc>200K | CO54: P55HH55to64yrs | CP54: P55HH55to64HHInc<10K | CQ54: P55HH55to64HHInc10to15K | CR54: P55HH55to64HHInc15to20K | CS54: P55HH55to64HHInc20to25K | CT54: P55HH55to64HHInc25to30K | CU54: P55HH55to64HHInc30to35K | CV54: P55HH55to64HHInc35to40K | CW54: P55HH55to64HHInc40to45K | CX54: P55HH55to64HHInc45to50K | CY54: P55HH55to64HHInc50to60K | CZ54: P55HH55to64HHInc60to75K | DA54: P55HH55to64HHInc75to100K | DB54: P55HH55to64HHInc100to125K | DC54: P55HH55to64HHInc125to150K | DD54: P55HH55to64HHInc150to200K | DE54: P55HH55to64HHInc>200K | DF54: P55HH65to74yrs | DG54: P55HH65to74HHInc<10K | DH54: P55HH65to74HHInc10to15K | DI54: P55HH65to74HHInc15to20K | DJ54: P55HH65to74HHInc20to25K | DK54: P55HH65to74HHInc25to30K | DL54: P55HH65to74HHInc30to35K | DM54: P55HH65to74HHInc35to40K | DN54: P55HH65to74HHInc40to45K | DO54: P55HH65to74HHInc45to50K | DP54: P55HH65to74HHInc50to60K | DQ54: P55HH65to74HHInc60to75K | DR54: P55HH65to74HHInc75to100K | DS54: P55HH65to74HHInc100to125K | DT54: P55HH65to74HHInc125to150K | DU54: P55HH65to74HHInc150to200K | DV54: P55HH65to74HHInc>200K | DW54: P55HH>75yrs | DX54: P55HH>75HHInc<10K | DY54: P55HH>75HHInc10to15K | DZ54: P55HH>75HHInc15to20K | EA54: P55HH>75HHInc20to25K | EB54: P55HH>75HHInc25to30K | EC54: P55HH>75HHInc30to35K | ED54: P55HH>75HHInc35to40K | EE54: P55HH>75HHInc40to45K | EF54: P55HH>75HHInc45to50K | EG54: P55HH>75HHInc50to60K | EH54: P55HH>75HHInc60to75K | EI54: P55HH>75HHInc75to100K | EJ54: P55HH>75HHInc100to125K | EK54: P55HH>75HHInc125to150K | EL54: P55HH>75HHInc150to200K | EM54: P55HH>75HHInc>200K | EN54: P56MedHHInc | EO54: P56MedHHIncHH<25y | EP54: P56MedHHIncHH25to34y | EQ54: P56MedHHIncHH35to44y | ER54: P56MedHHIncHH45to54y | ES54: P56MedHHIncHH55to64y | ET54: P56MedHHIncHH65to74y | EU54: P56MedHHIncHH>75y | EV54: P58Households3 | EW54: P58HHwithEarnings | EX54: P58HHNoEarnings | EY54: P59HHwWageSalInc | EZ54: P59HHNoWageSalInc | FA54: P60HHwSelfEmpInc | FB54: P60HHNoSelfEmpInc | FC54: P61HHwIndDivInc | FD54: P61HHNoIndDivInc | FE54: P62HHwSocSecInc | FF54: P62HHNoSocSecInc | FG54: P63HHwSSI | FH54: P63HHNoSSI | FI54: P64HHwPubAssInc | FJ54: P64HHNoPubAssInc | FK54: P65HHwRetInc | FL54: P65HHNoRetInc | FM54: P66HHwOtherTypInc | FN54: P66HHNoOtherTypInc | FO54: P67AggregEarnings | FP54: P68AggregWageSalInc | FQ54: P69AggregSelfEmpInc | FR54: P70AggregIntDivInc | FS54: P71AggregSocSecInc | FT54: P72AggregSSIInc | FU54: P73AggregPublicAssInc | FV54: P74AggregRetireInc | FW54: P76Families1 | FX54: P76FamInc<10K | FY54: P76FamInc10to15K | FZ54: P76FamInc15to20K | GA54: P76FamInc20to25K | GB54: P76FamInc25to30K | GC54: P76FamInc30to35K | GD54: P76FamInc35to40K | GE54: P76FamInc40to45K | GF54: P76FamInc45to50K | GG54: P76FamInc50to60K | GH54: P76FamInc60to75K | GI54: P76FamInc75to100K | GJ54: P76FamInc100to125K | GK54: P76FamInc125to150K | GL54: P76FamInc150to200K | GM54: P76FamInc>200K | GN54: P77MedFamInc | GO54: P78AggregFamInc | GP54: P79NonFamHH | GQ54: P79NonFamHHwInc<10K | GR54: P79NonFamHHwInc10to15K | GS54: P79NonFamHHwInc15to20K | GT54: P79NonFamHHwInc20to25K | GU54: P79NonFamHHwInc25to30K | GV54: P79NonFamHHwInc30to35K | GW54: P79NonFamHHwInc35to40K | GX54: P79NonFamHHwInc40to45K | GY54: P79NonFamHHwInc45to50K | GZ54: P79NonFamHHwInc50to60K | HA54: P79NonFamHHwInc60to75K | HB54: P79NonFamHHwInc75to100K | HC54: P79NonFamHHwInc100to125K | HD54: P79NonFamHHwInc125to150K | HE54: P79NonFamHHwInc150to200K | HF54: P79NonFamHHwInc200KorMore | HG54: P80MedNonFamInc | HH54: P82PerCapitaInc
A55: =VLOOKUP(DropDownList!$B$47,CntyQryCensus!$A$206:$HH$248,A$1) -> Berlin | B55: =VLOOKUP(DropDownList!$B$47,CntyQryCensus!$A$206:$HH$248,B$1) -> 0000833 | C55: =VLOOKUP(DropDownList!$B$47,CntyQryCensus!$A$206:$HH$248,C$1) -> 05140 | D55: =VLOOKUP(DropDownList!$B$47,CntyQryCensus!$A$206:$HH$248,D$1) -> 10331 | E55: =VLOOKUP(DropDownList!$B$47,CntyQryCensus!$A$206:$HH$248,E$1) -> 4555 | F55: =VLOOKUP(DropDownList!$B$47,CntyQryCensus!$A$206:$HH$248,F$1) -> 677 | G55: =VLOOKUP(DropDownList!$B$47,CntyQryCensus!$A$206:$HH$248,G$1) -> 494 | H55: =VLOOKUP(DropDownList!$B$47,CntyQryCensus!$A$206:$HH$248,H$1) -> 415 | I55: =VLOOKUP(DropDownList!$B$47,CntyQryCensus!$A$206:$HH$248,I$1) -> 355 | J55: =VLOOKUP(DropDownList!$B$47,CntyQryCensus!$A$206:$HH$248,J$1) -> 357 | K55: =VLOOKUP(DropDownList!$B$47,CntyQryCensus!$A$206:$HH$248,K$1) -> 314 | L55: =VLOOKUP(DropDownList!$B$47,CntyQryCensus!$A$206:$HH$248,L$1) -> 316 | M55: =VLOOKUP(DropDownList!$B$47,CntyQryCensus!$A$206:$HH$248,M$1) -> 254 | N55: =VLOOKUP(DropDownList!$B$47,CntyQryCensus!$A$206:$HH$248,N$1) -> 283 | O55: =VLOOKUP(DropDownList!$B$47,CntyQryCensus!$A$206:$HH$248,O$1) -> 407 | P55: =VLOOKUP(DropDownList!$B$47,CntyQryCensus!$A$206:$HH$248,P$1) -> 369 | Q55: =VLOOKUP(DropDownList!$B$47,CntyQryCensus!$A$206:$HH$248,Q$1) -> 185 | R55: =VLOOKUP(DropDownList!$B$47,CntyQryCensus!$A$206:$HH$248,R$1) -> 87 | S55: =VLOOKUP(DropDownList!$B$47,CntyQryCensus!$A$206:$HH$248,S$1) -> 20 | T55: =VLOOKUP(DropDownList!$B$47,CntyQryCensus!$A$206:$HH$248,T$1) -> 14 | U55: =VLOOKUP(DropDownList!$B$47,CntyQryCensus!$A$206:$HH$248,U$1) -> 8 | V55: =VLOOKUP(DropDownList!$B$47,CntyQryCensus!$A$206:$HH$248,V$1) -> 29647 | W55: =VLOOKUP(DropDownList!$B$47,CntyQryCensus!$A$206:$HH$248,W$1) -> 160522700 | X55: =VLOOKUP(DropDownList!$B$47,CntyQryCensus!$A$206:$HH$248,X$1) -> 4555 | Y55: =VLOOKUP(DropDownList!$B$47,CntyQryCensus!$A$206:$HH$248,Y$1) -> 197 | Z55: =VLOOKUP(DropDownList!$B$47,CntyQryCensus!$A$206:$HH$248,Z$1) -> 42 | AA55: =VLOOKUP(DropDownList!$B$47,CntyQryCensus!$A$206:$HH$248,AA$1) -> 23 | AB55: =VLOOKUP(DropDownList!$B$47,CntyQryCensus!$A$206:$HH$248,AB$1) -> 29 | AC55: =VLOOKUP(DropDownList!$B$47,CntyQryCensus!$A$206:$HH$248,AC$1) -> 5 | AD55: =VLOOKUP(DropDownList!$B$47,CntyQryCensus!$A$206:$HH$248,AD$1) -> 32 | AE55: =VLOOKUP(DropDownList!$B$47,CntyQryCensus!$A$206:$HH$248,AE$1) -> 17 | AF55: =VLOOKUP(DropDownList!$B$47,CntyQryCensus!$A$206:$HH$248,AF$1) -> 16 | AG55: =VLOOKUP(DropDownList!$B$47,CntyQryCensus!$A$206:$HH$248,AG$1) -> 8 | AH55: =VLOOKUP(DropDownList!$B$47,CntyQryCensus!$A$206:$HH$248,AH$1) -> 14 | AI55: =VLOOKUP(DropDownList!$B$47,CntyQryCensus!$A$206:$HH$248,AI$1) -> 11 | AJ55: =VLOOKUP(DropDownList!$B$47,CntyQryCensus!$A$206:$HH$248,AJ$1) -> 0 | AK55: =VLOOKUP(DropDownList!$B$47,CntyQryCensus!$A$206:$HH$248,AK$1) -> 0 | AL55: =VLOOKUP(DropDownList!$B$47,CntyQryCensus!$A$206:$HH$248,AL$1) -> 0 | AM55: =VLOOKUP(DropDownList!$B$47,CntyQryCensus!$A$206:$HH$248,AM$1) -> 0 | AN55: =VLOOKUP(DropDownList!$B$47,CntyQryCensus!$A$206:$HH$248,AN$1) -> 0 | AO55: =VLOOKUP(DropDownList!$B$47,CntyQryCensus!$A$206:$HH$248,AO$1) -> 0 | AP55: =VLOOKUP(DropDownList!$B$47,CntyQryCensus!$A$206:$HH$248,AP$1) -> 571 | AQ55: =VLOOKUP(DropDownList!$B$47,CntyQryCensus!$A$206:$HH$248,AQ$1) -> 25 | AR55: =VLOOKUP(DropDownList!$B$47,CntyQryCensus!$A$206:$HH$248,AR$1) -> 24 | AS55: =VLOOKUP(DropDownList!$B$47,CntyQryCensus!$A$206:$HH$248,AS$1) -> 41 | AT55: =VLOOKUP(DropDownList!$B$47,CntyQryCensus!$A$206:$HH$248,AT$1) -> 50 | AU55: =VLOOKUP(DropDownList!$B$47,CntyQryCensus!$A$206:$HH$248,AU$1) -> 63 | AV55: =VLOOKUP(DropDownList!$B$47,CntyQryCensus!$A$206:$HH$248,AV$1) -> 80 | AW55: =VLOOKUP(DropDownList!$B$47,CntyQryCensus!$A$206:$HH$248,AW$1) -> 89 | AX55: =VLOOKUP(DropDownList!$B$47,CntyQryCensus!$A$206:$HH$248,AX$1) -> 34 | AY55: =VLOOKUP(DropDownList!$B$47,CntyQryCensus!$A$206:$HH$248,AY$1) -> 43 | AZ55: =VLOOKUP(DropDownList!$B$47,CntyQryCensus!$A$206:$HH$248,AZ$1) -> 70 | BA55: =VLOOKUP(DropDownList!$B$47,CntyQryCensus!$A$206:$HH$248,BA$1) -> 28 | BB55: =VLOOKUP(DropDownList!$B$47,CntyQryCensus!$A$206:$HH$248,BB$1) -> 5 | BC55: =VLOOKUP(DropDownList!$B$47,CntyQryCensus!$A$206:$HH$248,BC$1) -> 15 | BD55: =VLOOKUP(DropDownList!$B$47,CntyQryCensus!$A$206:$HH$248,BD$1) -> 4 | BE55: =VLOOKUP(DropDownList!$B$47,CntyQryCensus!$A$206:$HH$248,BE$1) -> 0 | BF55: =VLOOKUP(DropDownList!$B$47,CntyQryCensus!$A$206:$HH$248,BF$1) -> 0 | BG55: =VLOOKUP(DropDownList!$B$47,CntyQryCensus!$A$206:$HH$248,BG$1) -> 813 | BH55: =VLOOKUP(DropDownList!$B$47,CntyQryCensus!$A$206:$HH$248,BH$1) -> 82 | BI55: =VLOOKUP(DropDownList!$B$47,CntyQryCensus!$A$206:$HH$248,BI$1) -> 42 | BJ55: =VLOOKUP(DropDownList!$B$47,CntyQryCensus!$A$206:$HH$248,BJ$1) -> 24 | BK55: =VLOOKUP(DropDownList!$B$47,CntyQryCensus!$A$206:$HH$248,BK$1) -> 38 | BL55: =VLOOKUP(DropDownList!$B$47,CntyQryCensus!$A$206:$HH$248,BL$1) -> 53 | BM55: =VLOOKUP(DropDownList!$B$47,CntyQryCensus!$A$206:$HH$248,BM$1) -> 65 | BN55: =VLOOKUP(DropDownList!$B$47,CntyQryCensus!$A$206:$HH$248,BN$1) -> 34 | BO55: =VLOOKUP(DropDownList!$B$47,CntyQryCensus!$A$206:$HH$248,BO$1) -> 80 | BP55: =VLOOKUP(DropDownList!$B$47,CntyQryCensus!$A$206:$HH$248,BP$1) -> 63 | BQ55: =VLOOKUP(DropDownList!$B$47,CntyQryCensus!$A$206:$HH$248,BQ$1) -> 126 | BR55: =VLOOKUP(DropDownList!$B$47,CntyQryCensus!$A$206:$HH$248,BR$1) -> 119 | BS55: =VLOOKUP(DropDownList!$B$47,CntyQryCensus!$A$206:$HH$248,BS$1) -> 53 | BT55: =VLOOKUP(DropDownList!$B$47,CntyQryCensus!$A$206:$HH$248,BT$1) -> 12 | BU55: =VLOOKUP(DropDownList!$B$47,CntyQryCensus!$A$206:$HH$248,BU$1) -> 16 | BV55: =VLOOKUP(DropDownList!$B$47,CntyQryCensus!$A$206:$HH$248,BV$1) -> 6 | BW55: =VLOOKUP(DropDownList!$B$47,CntyQryCensus!$A$206:$HH$248,BW$1) -> 0 | BX55: =VLOOKUP(DropDownList!$B$47,CntyQryCensus!$A$206:$HH$248,BX$1) -> 830 | BY55: =VLOOKUP(DropDownList!$B$47,CntyQryCensus!$A$206:$HH$248,BY$1) -> 77 | BZ55: =VLOOKUP(DropDownList!$B$47,CntyQryCensus!$A$206:$HH$248,BZ$1) -> 38 | CA55: =VLOOKUP(DropDownList!$B$47,CntyQryCensus!$A$206:$HH$248,CA$1) -> 39 | CB55: =VLOOKUP(DropDownList!$B$47,CntyQryCensus!$A$206:$HH$248,CB$1) -> 56 | CC55: =VLOOKUP(DropDownList!$B$47,CntyQryCensus!$A$206:$HH$248,CC$1) -> 32 | CD55: =VLOOKUP(DropDownList!$B$47,CntyQryCensus!$A$206:$HH$248,CD$1) -> 29 | CE55: =VLOOKUP(DropDownList!$B$47,CntyQryCensus!$A$206:$HH$248,CE$1) -> 51 | CF55: =VLOOKUP(DropDownList!$B$47,CntyQryCensus!$A$206:$HH$248,CF$1) -> 62 | CG55: =VLOOKUP(DropDownList!$B$47,CntyQryCensus!$A$206:$HH$248,CG$1) -> 70 | CH55: =VLOOKUP(DropDownList!$B$47,CntyQryCensus!$A$206:$HH$248,CH$1) -> 123 | CI55: =VLOOKUP(DropDownList!$B$47,CntyQryCensus!$A$206:$HH$248,CI$1) -> 135 | CJ55: =VLOOKUP(DropDownList!$B$47,CntyQryCensus!$A$206:$HH$248,CJ$1) -> 91 | CK55: =VLOOKUP(DropDownList!$B$47,CntyQryCensus!$A$206:$HH$248,CK$1) -> 25 | CL55: =VLOOKUP(DropDownList!$B$47,CntyQryCensus!$A$206:$HH$248,CL$1) -> 0 | CM55: =VLOOKUP(DropDownList!$B$47,CntyQryCensus!$A$206:$HH$248,CM$1) -> 2 | CN55: =VLOOKUP(DropDownList!$B$47,CntyQryCensus!$A$206:$HH$248,CN$1) -> 0 | CO55: =VLOOKUP(DropDownList!$B$47,CntyQryCensus!$A$206:$HH$248,CO$1) -> 553 | CP55: =VLOOKUP(DropDownList!$B$47,CntyQryCensus!$A$206:$HH$248,CP$1) -> 85 | CQ55: =VLOOKUP(DropDownList!$B$47,CntyQryCensus!$A$206:$HH$248,CQ$1) -> 32 | CR55: =VLOOKUP(DropDownList!$B$47,CntyQryCensus!$A$206:$HH$248,CR$1) -> 47 | CS55: =VLOOKUP(DropDownList!$B$47,CntyQryCensus!$A$206:$HH$248,CS$1) -> 37 | CT55: =VLOOKUP(DropDownList!$B$47,CntyQryCensus!$A$206:$HH$248,CT$1) -> 54 | CU55: =VLOOKUP(DropDownList!$B$47,CntyQryCensus!$A$206:$HH$248,CU$1) -> 34 | CV55: =VLOOKUP(DropDownList!$B$47,CntyQryCensus!$A$206:$HH$248,CV$1) -> 44 | CW55: =VLOOKUP(DropDownList!$B$47,CntyQryCensus!$A$206:$HH$248,CW$1) -> 31 | CX55: =VLOOKUP(DropDownList!$B$47,CntyQryCensus!$A$206:$HH$248,CX$1) -> 59 | CY55: =VLOOKUP(DropDownList!$B$47,CntyQryCensus!$A$206:$HH$248,CY$1) -> 37 | CZ55: =VLOOKUP(DropDownList!$B$47,CntyQryCensus!$A$206:$HH$248,CZ$1) -> 43 | DA55: =VLOOKUP(DropDownList!$B$47,CntyQryCensus!$A$206:$HH$248,DA$1) -> 31 | DB55: =VLOOKUP(DropDownList!$B$47,CntyQryCensus!$A$206:$HH$248,DB$1) -> 11 | DC55: =VLOOKUP(DropDownList!$B$47,CntyQryCensus!$A$206:$HH$248,DC$1) -> 0 | DD55: =VLOOKUP(DropDownList!$B$47,CntyQryCensus!$A$206:$HH$248,DD$1) -> 0 | DE55: =VLOOKUP(DropDownList!$B$47,CntyQryCensus!$A$206:$HH$248,DE$1) -> 8 | DF55: =VLOOKUP(DropDownList!$B$47,CntyQryCensus!$A$206:$HH$248,DF$1) -> 791 | DG55: =VLOOKUP(DropDownList!$B$47,CntyQryCensus!$A$206:$HH$248,DG$1) -> 155 | DH55: =VLOOKUP(DropDownList!$B$47,CntyQryCensus!$A$206:$HH$248,DH$1) -> 169 | DI55: =VLOOKUP(DropDownList!$B$47,CntyQryCensus!$A$206:$HH$248,DI$1) -> 77 | DJ55: =VLOOKUP(DropDownList!$B$47,CntyQryCensus!$A$206:$HH$248,DJ$1) -> 95 | DK55: =VLOOKUP(DropDownList!$B$47,CntyQryCensus!$A$206:$HH$248,DK$1) -> 70 | DL55: =VLOOKUP(DropDownList!$B$47,CntyQryCensus!$A$206:$HH$248,DL$1) -> 64 | DM55: =VLOOKUP(DropDownList!$B$47,CntyQryCensus!$A$206:$HH$248,DM$1) -> 55 | DN55: =VLOOKUP(DropDownList!$B$47,CntyQryCensus!$A$206:$HH$248,DN$1) -> 17 | DO55: =VLOOKUP(DropDownList!$B$47,CntyQryCensus!$A$206:$HH$248,DO$1) -> 23 | DP55: =VLOOKUP(DropDownList!$B$47,CntyQryCensus!$A$206:$HH$248,DP$1) -> 32 | DQ55: =VLOOKUP(DropDownList!$B$47,CntyQryCensus!$A$206:$HH$248,DQ$1) -> 24 | DR55: =VLOOKUP(DropDownList!$B$47,CntyQryCensus!$A$206:$HH$248,DR$1) -> 0 | DS55: =VLOOKUP(DropDownList!$B$47,CntyQryCensus!$A$206:$HH$248,DS$1) -> 10 | DT55: =VLOOKUP(DropDownList!$B$47,CntyQryCensus!$A$206:$HH$248,DT$1) -> 0 | DU55: =VLOOKUP(DropDownList!$B$47,CntyQryCensus!$A$206:$HH$248,DU$1) -> 0 | DV55: =VLOOKUP(DropDownList!$B$47,CntyQryCensus!$A$206:$HH$248,DV$1) -> 0 | DW55: =VLOOKUP(DropDownList!$B$47,CntyQryCensus!$A$206:$HH$248,DW$1) -> 800 | DX55: =VLOOKUP(DropDownList!$B$47,CntyQryCensus!$A$206:$HH$248,DX$1) -> 211 | DY55: =VLOOKUP(DropDownList!$B$47,CntyQryCensus!$A$206:$HH$248,DY$1) -> 166 | DZ55: =VLOOKUP(DropDownList!$B$47,CntyQryCensus!$A$206:$HH$248,DZ$1) -> 158 | EA55: =VLOOKUP(DropDownList!$B$47,CntyQryCensus!$A$206:$HH$248,EA$1) -> 74 | EB55: =VLOOKUP(DropDownList!$B$47,CntyQryCensus!$A$206:$HH$248,EB$1) -> 53 | EC55: =VLOOKUP(DropDownList!$B$47,CntyQryCensus!$A$206:$HH$248,EC$1) -> 25 | ED55: =VLOOKUP(DropDownList!$B$47,CntyQryCensus!$A$206:$HH$248,ED$1) -> 27 | EE55: =VLOOKUP(DropDownList!$B$47,CntyQryCensus!$A$206:$HH$248,EE$1) -> 22 | EF55: =VLOOKUP(DropDownList!$B$47,CntyQryCensus!$A$206:$HH$248,EF$1) -> 11 | EG55: =VLOOKUP(DropDownList!$B$47,CntyQryCensus!$A$206:$HH$248,EG$1) -> 8 | EH55: =VLOOKUP(DropDownList!$B$47,CntyQryCensus!$A$206:$HH$248,EH$1) -> 20 | EI55: =VLOOKUP(DropDownList!$B$47,CntyQryCensus!$A$206:$HH$248,EI$1) -> 5 | EJ55: =VLOOKUP(DropDownList!$B$47,CntyQryCensus!$A$206:$HH$248,EJ$1) -> 14 | EK55: =VLOOKUP(DropDownList!$B$47,CntyQryCensus!$A$206:$HH$248,EK$1) -> 0 | EL55: =VLOOKUP(DropDownList!$B$47,CntyQryCensus!$A$206:$HH$248,EL$1) -> 6 | EM55: =VLOOKUP(DropDownList!$B$47,CntyQryCensus!$A$206:$HH$248,EM$1) -> 0 | EN55: =VLOOKUP(DropDownList!$B$47,CntyQryCensus!$A$206:$HH$248,EN$1) -> 29647 | EO55: =VLOOKUP(DropDownList!$B$47,CntyQryCensus!$A$206:$HH$248,EO$1) -> 24750 | EP55: =VLOOKUP(DropDownList!$B$47,CntyQryCensus!$A$206:$HH$248,EP$1) -> 35174 | EQ55: =VLOOKUP(DropDownList!$B$47,CntyQryCensus!$A$206:$HH$248,EQ$1) -> 44154 | ER55: =VLOOKUP(DropDownList!$B$47,CntyQryCensus!$A$206:$HH$248,ER$1) -> 47926 | ES55: =VLOOKUP(DropDownList!$B$47,CntyQryCensus!$A$206:$HH$248,ES$1) -> 33512 | ET55: =VLOOKUP(DropDownList!$B$47,CntyQryCensus!$A$206:$HH$248,ET$1) -> 19596 | EU55: =VLOOKUP(DropDownList!$B$47,CntyQryCensus!$A$206:$HH$248,EU$1) -> 15575 | EV55: =VLOOKUP(DropDownList!$B$47,CntyQryCensus!$A$206:$HH$248,EV$1) -> 4555 | EW55: =VLOOKUP(DropDownList!$B$47,CntyQryCensus!$A$206:$HH$248,EW$1) -> 2988 | EX55: =VLOOKUP(DropDownList!$B$47,CntyQryCensus!$A$206:$HH$248,EX$1) -> 1567 | EY55: =VLOOKUP(DropDownList!$B$47,CntyQryCensus!$A$206:$HH$248,EY$1) -> 2921 | EZ55: =VLOOKUP(DropDownList!$B$47,CntyQryCensus!$A$206:$HH$248,EZ$1) -> 1634 | FA55: =VLOOKUP(DropDownList!$B$47,CntyQryCensus!$A$206:$HH$248,FA$1) -> 309 | FB55: =VLOOKUP(DropDownList!$B$47,CntyQryCensus!$A$206:$HH$248,FB$1) -> 4246 | FC55: =VLOOKUP(DropDownList!$B$47,CntyQryCensus!$A$206:$HH$248,FC$1) -> 1763 | FD55: =VLOOKUP(DropDownList!$B$47,CntyQryCensus!$A$206:$HH$248,FD$1) -> 2792 | FE55: =VLOOKUP(DropDownList!$B$47,CntyQryCensus!$A$206:$HH$248,FE$1) -> 1936 | FF55: =VLOOKUP(DropDownList!$B$47,CntyQryCensus!$A$206:$HH$248,FF$1) -> 2619 | FG55: =VLOOKUP(DropDownList!$B$47,CntyQryCensus!$A$206:$HH$248,FG$1) -> 264 | FH55: =VLOOKUP(DropDownList!$B$47,CntyQryCensus!$A$206:$HH$248,FH$1) -> 4291 | FI55: =VLOOKUP(DropDownList!$B$47,CntyQryCensus!$A$206:$HH$248,FI$1) -> 361 | FJ55: =VLOOKUP(DropDownList!$B$47,CntyQryCensus!$A$206:$HH$248,FJ$1) -> 4194 | FK55: =VLOOKUP(DropDownList!$B$47,CntyQryCensus!$A$206:$HH$248,FK$1) -> 978 | FL55: =VLOOKUP(DropDownList!$B$47,CntyQryCensus!$A$206:$HH$248,FL$1) -> 3577 | FM55: =VLOOKUP(DropDownList!$B$47,CntyQryCensus!$A$206:$HH$248,FM$1) -> 586 | FN55: =VLOOKUP(DropDownList!$B$47,CntyQryCensus!$A$206:$HH$248,FN$1) -> 3969 | FO55: =VLOOKUP(DropDownList!$B$47,CntyQryCensus!$A$206:$HH$248,FO$1) -> 117467500 | FP55: =VLOOKUP(DropDownList!$B$47,CntyQryCensus!$A$206:$HH$248,FP$1) -> 112269600 | FQ55: =VLOOKUP(DropDownList!$B$47,CntyQryCensus!$A$206:$HH$248,FQ$1) -> 5197800 | FR55: =VLOOKUP(DropDownList!$B$47,CntyQryCensus!$A$206:$HH$248,FR$1) -> 8308100 | FS55: =VLOOKUP(DropDownList!$B$47,CntyQryCensus!$A$206:$HH$248,FS$1) -> 20131700 | FT55: =VLOOKUP(DropDownList!$B$47,CntyQryCensus!$A$206:$HH$248,FT$1) -> 1615400 | FU55: =VLOOKUP(DropDownList!$B$47,CntyQryCensus!$A$206:$HH$248,FU$1) -> 623300 | FV55: =VLOOKUP(DropDownList!$B$47,CntyQryCensus!$A$206:$HH$248,FV$1) -> 8677100 | FW55: =VLOOKUP(DropDownList!$B$47,CntyQryCensus!$A$206:$HH$248,FW$1) -> 2919 | FX55: =VLOOKUP(DropDownList!$B$47,CntyQryCensus!$A$206:$HH$248,FX$1) -> 182 | FY55: =VLOOKUP(DropDownList!$B$47,CntyQryCensus!$A$206:$HH$248,FY$1) -> 190 | FZ55: =VLOOKUP(DropDownList!$B$47,CntyQryCensus!$A$206:$HH$248,FZ$1) -> 212 | GA55: =VLOOKUP(DropDownList!$B$47,CntyQryCensus!$A$206:$HH$248,GA$1) -> 195 | GB55: =VLOOKUP(DropDownList!$B$47,CntyQryCensus!$A$206:$HH$248,GB$1) -> 206 | GC55: =VLOOKUP(DropDownList!$B$47,CntyQryCensus!$A$206:$HH$248,GC$1) -> 262 | GD55: =VLOOKUP(DropDownList!$B$47,CntyQryCensus!$A$206:$HH$248,GD$1) -> 276 | GE55: =VLOOKUP(DropDownList!$B$47,CntyQryCensus!$A$206:$HH$248,GE$1) -> 217 | GF55: =VLOOKUP(DropDownList!$B$47,CntyQryCensus!$A$206:$HH$248,GF$1) -> 233 | GG55: =VLOOKUP(DropDownList!$B$47,CntyQryCensus!$A$206:$HH$248,GG$1) -> 358 | GH55: =VLOOKUP(DropDownList!$B$47,CntyQryCensus!$A$206:$HH$248,GH$1) -> 338 | GI55: =VLOOKUP(DropDownList!$B$47,CntyQryCensus!$A$206:$HH$248,GI$1) -> 154 | GJ55: =VLOOKUP(DropDownList!$B$47,CntyQryCensus!$A$206:$HH$248,GJ$1) -> 72 | GK55: =VLOOKUP(DropDownList!$B$47,CntyQryCensus!$A$206:$HH$248,GK$1) -> 16 | GL55: =VLOOKUP(DropDownList!$B$47,CntyQryCensus!$A$206:$HH$248,GL$1) -> 8 | GM55: =VLOOKUP(DropDownList!$B$47,CntyQryCensus!$A$206:$HH$248,GM$1) -> 0 | GN55: =VLOOKUP(DropDownList!$B$47,CntyQryCensus!$A$206:$HH$248,GN$1) -> 38750 | GO55: =VLOOKUP(DropDownList!$B$47,CntyQryCensus!$A$206:$HH$248,GO$1) -> 122418600 | GP55: =VLOOKUP(DropDownList!$B$47,CntyQryCensus!$A$206:$HH$248,GP$1) -> 1636 | GQ55: =VLOOKUP(DropDownList!$B$47,CntyQryCensus!$A$206:$HH$248,GQ$1) -> 532 | GR55: =VLOOKUP(DropDownList!$B$47,CntyQryCensus!$A$206:$HH$248,GR$1) -> 315 | GS55: =VLOOKUP(DropDownList!$B$47,CntyQryCensus!$A$206:$HH$248,GS$1) -> 197 | GT55: =VLOOKUP(DropDownList!$B$47,CntyQryCensus!$A$206:$HH$248,GT$1) -> 157 | GU55: =VLOOKUP(DropDownList!$B$47,CntyQryCensus!$A$206:$HH$248,GU$1) -> 140 | GV55: =VLOOKUP(DropDownList!$B$47,CntyQryCensus!$A$206:$HH$248,GV$1) -> 67 | GW55: =VLOOKUP(DropDownList!$B$47,CntyQryCensus!$A$206:$HH$248,GW$1) -> 66 | GX55: =VLOOKUP(DropDownList!$B$47,CntyQryCensus!$A$206:$HH$248,GX$1) -> 34 | GY55: =VLOOKUP(DropDownList!$B$47,CntyQryCensus!$A$206:$HH$248,GY$1) -> 46 | GZ55: =VLOOKUP(DropDownList!$B$47,CntyQryCensus!$A$206:$HH$248,GZ$1) -> 20 | HA55: =VLOOKUP(DropDownList!$B$47,CntyQryCensus!$A$206:$HH$248,HA$1) -> 29 | HB55: =VLOOKUP(DropDownList!$B$47,CntyQryCensus!$A$206:$HH$248,HB$1) -> 9 | HC55: =VLOOKUP(DropDownList!$B$47,CntyQryCensus!$A$206:$HH$248,HC$1) -> 10 | HD55: =VLOOKUP(DropDownList!$B$47,CntyQryCensus!$A$206:$HH$248,HD$1) -> 0 | HE55: =VLOOKUP(DropDownList!$B$47,CntyQryCensus!$A$206:$HH$248,HE$1) -> 6 | HF55: =VLOOKUP(DropDownList!$B$47,CntyQryCensus!$A$206:$HH$248,HF$1) -> 8 | HG55: =VLOOKUP(DropDownList!$B$47,CntyQryCensus!$A$206:$HH$248,HG$1) -> 14520 | HH55: =VLOOKUP(DropDownList!$B$47,CntyQryCensus!$A$206:$HH$248,HH$1) -> 15780
A58: Census 2000 SummaryFile3 Sample Data - SF3TownQry2bPovertyChar
A59: NAME | B59: LOGRECNO | C59: COUNTY | D59: TotalPop | E59: P52Households1 | F59: P82PerCapitaInc | G59: P87PopForPovStatus | H59: P87PopWIncBelowPovStatus | I59: P87PopUnder5yrBelowPoverty | J59: P87Pop5yrBelowPoverty | K59: P87Pop5to11yrBelowPoverty | L59: P87Pop12to17yrBelowPoverty | M59: P87Pop18to64yrBelowPoverty | N59: P87Pop65to74yrBelowPoverty | O59: P87PopOver75yrBelowPoverty | P59: P87PopWIncAbovePovStatus | Q59: P87PopUnder5yrAbovePoverty | R59: P87Pop5yrAbovePoverty | S59: P87Pop5to11yrAbovePoverty | T59: P87Pop12to17yrAbovePoverty | U59: P87Pop18to64yrAbovePoverty | V59: P87Pop65to74yrAbovePoverty | W59: P87PopOver75yrAbovePoverty | X59: P90Families | Y59: P90FamWIncBelowPov | Z59: P90MarCupFamWIncBelowPov | AA59: P90MCFamWRltdChld<18WIncBelowPov | AB59: P90MCFamWRltdChld<5WIncBelowPov | AC59: P90MaleHhlrWIncBelowPov | AD59: P90MaleHhlrWRltdChld<18yrWIncBelowPov | AE59: P90MaleHhlrWRltdChld<5yrWIncBelowPov | AF59: P90FemaleHhlrWIncBelowPov | AG59: P90FemaleHhlrWRltdChld<18yWIncBelowPov | AH59: P90FemaleHhlrWRltdChld<5yWIncBelowPov | AI59: P90FamWIncAbovePov | AJ59: P90MarCupFamWIncAbovePov | AK59: P90MCFamWRltdChld<18WIncAbovePov | AL59: P90MCFamWRltdChld<5WIncAbovePov | AM59: P90MaleHhlrWIncAbovePov | AN59: P90MaleHhlrWRltdChld<18yrWIncAbovePov | AO59: P90MaleHhlrWRltdChld<5yrWIncAbovePov | AP59: P90FemaleHhlrWIncAbovePov | AQ59: P90FemaleHhlrWRltdChld<18yWIncAbovePov | AR59: P90FemaleHhlrWRltdChld<5yWIncAbovePov | AS59: P92Households | AT59: P92HHwIncBelowPov | AU59: P92FamHHwIncBelowPov | AV59: P92MCFamHHwIncBelowPov | AW59: P92MaleFamHHwIncBelowPov | AX59: P92FemaleFamHHwIncBelowPov | AY59: P92NonFamHHwIncBelowPov | AZ59: P92NonFamMaleHHwIncBelowPov | BA59: P92NonFamFemaleHHwIncBelowPov | BB59: P92HHwIncAbovePov | BC59: P92FamHHwIncAbovePov | BD59: P92MCFamHHwIncAbovePov | BE59: P92MaleFamHHwIncAbovePov | BF59: P92FemaleFamHHwIncAbovePov | BG59: P92NonFamHHwIncAbovePov | BH59: P92NonFamMaleHHwIncAbovePov | BI59: P92NonFamFemaleHHwIncAbovePov
A60: =VLOOKUP(DropDownList!$B$47,CntyQryCensus!$A$256:$BI$298,A$1) -> Berlin | B60: =VLOOKUP(DropDownList!$B$47,CntyQryCensus!$A$256:$BI$298,B$1) -> 0000833 | C60: =VLOOKUP(DropDownList!$B$47,CntyQryCensus!$A$256:$BI$298,C$1) -> 05140 | D60: =VLOOKUP(DropDownList!$B$47,CntyQryCensus!$A$256:$BI$298,D$1) -> 10331 | E60: =VLOOKUP(DropDownList!$B$47,CntyQryCensus!$A$256:$BI$298,E$1) -> 4555 | F60: =VLOOKUP(DropDownList!$B$47,CntyQryCensus!$A$256:$BI$298,F$1) -> 15780 | G60: =VLOOKUP(DropDownList!$B$47,CntyQryCensus!$A$256:$BI$298,G$1) -> 10093 | H60: =VLOOKUP(DropDownList!$B$47,CntyQryCensus!$A$256:$BI$298,H$1) -> 1249 | I60: =VLOOKUP(DropDownList!$B$47,CntyQryCensus!$A$256:$BI$298,I$1) -> 116 | J60: =VLOOKUP(DropDownList!$B$47,CntyQryCensus!$A$256:$BI$298,J$1) -> 19 | K60: =VLOOKUP(DropDownList!$B$47,CntyQryCensus!$A$256:$BI$298,K$1) -> 84 | L60: =VLOOKUP(DropDownList!$B$47,CntyQryCensus!$A$256:$BI$298,L$1) -> 93 | M60: =VLOOKUP(DropDownList!$B$47,CntyQryCensus!$A$256:$BI$298,M$1) -> 668 | N60: =VLOOKUP(DropDownList!$B$47,CntyQryCensus!$A$256:$BI$298,N$1) -> 119 | O60: =VLOOKUP(DropDownList!$B$47,CntyQryCensus!$A$256:$BI$298,O$1) -> 150 | P60: =VLOOKUP(DropDownList!$B$47,CntyQryCensus!$A$256:$BI$298,P$1) -> 8844 | Q60: =VLOOKUP(DropDownList!$B$47,CntyQryCensus!$A$256:$BI$298,Q$1) -> 402 | R60: =VLOOKUP(DropDownList!$B$47,CntyQryCensus!$A$256:$BI$298,R$1) -> 117 | S60: =VLOOKUP(DropDownList!$B$47,CntyQryCensus!$A$256:$BI$298,S$1) -> 621 | T60: =VLOOKUP(DropDownList!$B$47,CntyQryCensus!$A$256:$BI$298,T$1) -> 692 | U60: =VLOOKUP(DropDownList!$B$47,CntyQryCensus!$A$256:$BI$298,U$1) -> 5112 | V60: =VLOOKUP(DropDownList!$B$47,CntyQryCensus!$A$256:$BI$298,V$1) -> 1025 | W60: =VLOOKUP(DropDownList!$B$47,CntyQryCensus!$A$256:$BI$298,W$1) -> 875 | X60: =VLOOKUP(DropDownList!$B$47,CntyQryCensus!$A$256:$BI$298,X$1) -> 2919 | Y60: =VLOOKUP(DropDownList!$B$47,CntyQryCensus!$A$256:$BI$298,Y$1) -> 265 | Z60: =VLOOKUP(DropDownList!$B$47,CntyQryCensus!$A$256:$BI$298,Z$1) -> 88 | AA60: =VLOOKUP(DropDownList!$B$47,CntyQryCensus!$A$256:$BI$298,AA$1) -> 35 | AB60: =VLOOKUP(DropDownList!$B$47,CntyQryCensus!$A$256:$BI$298,AB$1) -> 10 | AC60: =VLOOKUP(DropDownList!$B$47,CntyQryCensus!$A$256:$BI$298,AC$1) -> 54 | AD60: =VLOOKUP(DropDownList!$B$47,CntyQryCensus!$A$256:$BI$298,AD$1) -> 41 | AE60: =VLOOKUP(DropDownList!$B$47,CntyQryCensus!$A$256:$BI$298,AE$1) -> 4 | AF60: =VLOOKUP(DropDownList!$B$47,CntyQryCensus!$A$256:$BI$298,AF$1) -> 123 | AG60: =VLOOKUP(DropDownList!$B$47,CntyQryCensus!$A$256:$BI$298,AG$1) -> 108 | AH60: =VLOOKUP(DropDownList!$B$47,CntyQryCensus!$A$256:$BI$298,AH$1) -> 48 | AI60: =VLOOKUP(DropDownList!$B$47,CntyQryCensus!$A$256:$BI$298,AI$1) -> 2654 | AJ60: =VLOOKUP(DropDownList!$B$47,CntyQryCensus!$A$256:$BI$298,AJ$1) -> 2073 | AK60: =VLOOKUP(DropDownList!$B$47,CntyQryCensus!$A$256:$BI$298,AK$1) -> 748 | AL60: =VLOOKUP(DropDownList!$B$47,CntyQryCensus!$A$256:$BI$298,AL$1) -> 133 | AM60: =VLOOKUP(DropDownList!$B$47,CntyQryCensus!$A$256:$BI$298,AM$1) -> 216 | AN60: =VLOOKUP(DropDownList!$B$47,CntyQryCensus!$A$256:$BI$298,AN$1) -> 138 | AO60: =VLOOKUP(DropDownList!$B$47,CntyQryCensus!$A$256:$BI$298,AO$1) -> 31 | AP60: =VLOOKUP(DropDownList!$B$47,CntyQryCensus!$A$256:$BI$298,AP$1) -> 365 | AQ60: =VLOOKUP(DropDownList!$B$47,CntyQryCensus!$A$256:$BI$298,AQ$1) -> 165 | AR60: =VLOOKUP(DropDownList!$B$47,CntyQryCensus!$A$256:$BI$298,AR$1) -> 31 | AS60: =VLOOKUP(DropDownList!$B$47,CntyQryCensus!$A$256:$BI$298,AS$1) -> 4555 | AT60: =VLOOKUP(DropDownList!$B$47,CntyQryCensus!$A$256:$BI$298,AT$1) -> 673 | AU60: =VLOOKUP(DropDownList!$B$47,CntyQryCensus!$A$256:$BI$298,AU$1) -> 265 | AV60: =VLOOKUP(DropDownList!$B$47,CntyQryCensus!$A$256:$BI$298,AV$1) -> 88 | AW60: =VLOOKUP(DropDownList!$B$47,CntyQryCensus!$A$256:$BI$298,AW$1) -> 54 | AX60: =VLOOKUP(DropDownList!$B$47,CntyQryCensus!$A$256:$BI$298,AX$1) -> 123 | AY60: =VLOOKUP(DropDownList!$B$47,CntyQryCensus!$A$256:$BI$298,AY$1) -> 408 | AZ60: =VLOOKUP(DropDownList!$B$47,CntyQryCensus!$A$256:$BI$298,AZ$1) -> 123 | BA60: =VLOOKUP(DropDownList!$B$47,CntyQryCensus!$A$256:$BI$298,BA$1) -> 285 | BB60: =VLOOKUP(DropDownList!$B$47,CntyQryCensus!$A$256:$BI$298,BB$1) -> 3882 | BC60: =VLOOKUP(DropDownList!$B$47,CntyQryCensus!$A$256:$BI$298,BC$1) -> 2654 | BD60: =VLOOKUP(DropDownList!$B$47,CntyQryCensus!$A$256:$BI$298,BD$1) -> 2073 | BE60: =VLOOKUP(DropDownList!$B$47,CntyQryCensus!$A$256:$BI$298,BE$1) -> 216 | BF60: =VLOOKUP(DropDownList!$B$47,CntyQryCensus!$A$256:$BI$298,BF$1) -> 365 | BG60: =VLOOKUP(DropDownList!$B$47,CntyQryCensus!$A$256:$BI$298,BG$1) -> 1228 | BH60: =VLOOKUP(DropDownList!$B$47,CntyQryCensus!$A$256:$BI$298,BH$1) -> 527 | BI60: =VLOOKUP(DropDownList!$B$47,CntyQryCensus!$A$256:$BI$298,BI$1) -> 701
S61: =SUM(R60:T60) -> 1430
A63: Census 2000 SummaryFile3 Sample Data - SF3TownQry7HousingA
A64: NAME | B64: LOGRECNO | C64: COUNTY | D64: TotalPop | E64: H1HousingUnitsTotal | F64: H2SampleHU | G64: H2SampleOccHU | H64: H2SampleVacHU | I64: H3HU100pctCount | J64: H5HUTotal | K64: H5HUUrban | L64: H5HUUrbanInUrbanAreas | M64: H5HUUrbanInUrbanClusters | N64: H5HURural | O64: H5HURuralFarm | P64: H5HURuralNonFarm | Q64: H7HUOcc | R64: H7HUOwnrOcc | S64: H7HURentrOcc | T64: H8HUVacant | U64: H8HUVacantForRent | V64: H8HUVacantForSale | W64: H8HUVacRentedorSold | X64: H8HUVacSeasonal | Y64: H8HUVacForMigrantWrkrs | Z64: H8HUOtherVacant | AA64: H14OccHUa | AB64: H14OwnerOccHU | AC64: H14OwnOccHuHh15to24 | AD64: H14OwnOccHuHh25to34 | AE64: H14OwnOccHuHh35to44 | AF64: H14OwnOccHuHh45to54 | AG64: H14OwnOccHuHh55to59 | AH64: H14OwnOccHuHh60to64 | AI64: H14OwnOccHuHh65to74 | AJ64: H14OwnOccHuHh75to84 | AK64: H14OwnOccHuHh85Over | AL64: H14RenterOccHU1 | AM64: H14RntrOccHuHh15to24 | AN64: H14RntrOccHuHh25to34 | AO64: H14RntrOccHuHh35to44 | AP64: H14RntrOccHuHh45to54 | AQ64: H14RntrOccHuHh55to59 | AR64: H14RntrOccHuHh60to64 | AS64: H14RntrOccHuHh65to74 | AT64: H14RntrOccHuHh75to84 | AU64: H14RntrOccHuHh85Over | AV64: H15PopInOccHU | AW64: H15PopInOwnOccHU1 | AX64: H15PopInRentOccHU1 | AY64: H17OccupHUb | AZ64: H17OwnOccHU2 | BA64: H17OwnOccHU1PersonHH | BB64: H17OwnOccHU2PersonHH | BC64: H17OwnOccHU3PersonHH | BD64: H17OwnOccHU4PersonHH | BE64: H17OwnOccHU5PersonHH | BF64: H17OwnOccHU6PersonHH | BG64: H17OwnOccHU7PlusPersonHH | BH64: H17RentOccHU2 | BI64: H17RntOccHU1PersonHH | BJ64: H17RntOccHU2PersonHH | BK64: H17RntOccHU3PersonHH | BL64: H17RntOccHU4PersonHH | BM64: H17RntOccHU5PersonHH | BN64: H17RntOccHU6PersonHH | BO64: H17RntOccHU7PlusPersonHH | BP64: H18AvgHHSize | BQ64: H18AvgHHSizeOwnOcc | BR64: H18AvgHHSizeRentOcc | BS64: H23TotHU | BT64: H23HU1Room | BU64: H23HU2Room | BV64: H23HU3Room | BW64: H23HU4Room | BX64: H23HU5Room | BY64: H23HU6Room | BZ64: H23HU7Room | CA64: H23HU8Room | CB64: H23HU9orMoreRoom | CC64: H24MedianNumRooms | CD64: H25AggregNumRooms | CE64: H30TotalHU | CF64: H30Det1HU | CG64: H30Att1HU | CH64: H30Units2 | CI64: H30Units3or4 | CJ64: H30Units5to9 | CK64: H30Units10to19 | CL64: H30Units20to49 | CM64: H30Units50orMore | CN64: H30UnitsMobileHome | CO64: H30UnitsBoatRv | CP64: H32OccHUcTotal | CQ64: H32OwnerOccHU3 | CR64: H32OwnOccHU1Det | CS64: H32OwnOccHU1Att | CT64: H32OwnOccHU2Unit | CU64: H32OwnOccHU3to4Unit | CV64: H32OwnOccHU5to9Unit | CW64: H32OwnOccHU10to19Unit | CX64: H32OwnOccHU20to49Unit | CY64: H32OwnOccHU50plusUnit | CZ64: H32OwnOccHUMobHom | DA64: H32OwnOccHUBoatRVOth | DB64: H32RentrOccHU3 | DC64: H32RntrOccHU1Det | DD64: H32RntrOccHU1Att | DE64: H32RntrOccHU2Unit | DF64: H32RntrOccHU3to4Unit | DG64: H32RntrOccHU5to9Unit | DH64: H32RntrOccHU10to19Unit | DI64: H32RntrOccHU20to49Unit | DJ64: H32RntrOccHU50PlusUnit | DK64: H32RntrOccHUMobHom | DL64: H32RntrOccHUBoatRVOth | DM64: H33TotPopInOccHU | DN64: H33PopInOwnOccHU2 | DO64: H33PopInOOHU1Det | DP64: H33PopInOOHU1Att | DQ64: H33PopInOOHU2unit | DR64: H33PopInOOHU3to4Unit | DS64: H33PopInOOHU5to9Unit | DT64: H33PopInOOHU10to19Unit | DU64: H33PopInOOHU20to49Unit | DV64: H33PopInOOHU50PlusUnit | DW64: H33PopInOOHUMobilHome | DX64: H33PopInOOHUOtherUnit | DY64: H33PopInRentOccHU2 | DZ64: H33PopInROHU1Det | EA64: H33PopInROHU1Att | EB64: H33PopInROHU2Unit | EC64: H33PopInROHU3to4Unit | ED64: H33PopInROHU5to9Unit | EE64: H33PopInROHU10to19Unit | EF64: H33PopInROHU20to49Unit | EG64: H33PopInROHU50PlusUnit | EH64: H33PopInROHUMobilHome | EI64: H33PopInROHUOtherUnit | EJ64: H36OccHousingUnitsdTotal | EK64: H36OwnerOccHU4 | EL64: H36OOHUBuilt99to0300 | EM64: H36OOHUBuilt95to98 | EN64: H36OOHUBuilt90to94 | EO64: H36OOHUBuilt80to89 | EP64: H36OOHUBuilt70to79 | EQ64: H36OOHUBuilt60to69 | ER64: H36OOHUBuilt50to59 | ES64: H36OOHUBuilt40to49 | ET64: H36OOHUBuilt39Earlier | EU64: H36RentOccHU4 | EV64: H36ROHUBuilt99to0300 | EW64: H36ROHUBuilt95to98 | EX64: H36ROHUBuilt90to94 | EY64: H36ROHUBuilt80to89 | EZ64: H36ROHUBuilt70to79 | FA64: H36ROHUBuilt60to69 | FB64: H36ROHUBuilt50to59 | FC64: H36ROHUBuilt40to49 | FD64: H36ROHUBuilt39Earlier | FE64: H40OccupHousUnitse | FF64: H40HeatFuelUtilGas | FG64: H40HeatFuelBotGas | FH64: H40HeatFuelElect | FI64: H40HeatFuelOilKero | FJ64: H40HeatFuelCoal | FK64: H40HeatFuelWood | FL64: H40HeatFuelSolar | FM64: H40HeatFuelOther | FN64: H40HeatFuelNone | FO64: H41TotalHU | FP64: H41HUNoBdrm | FQ64: H41HU1Bdrm | FR64: H41HU2Bdrm | FS64: H41HU3Bdrm | FT64: H41HU4Bdrm | FU64: H41HU5MoreBdrm | FV64: H42OccuHousUnitf | FW64: H42OwnerOccHU5 | FX64: H42OOHUNoBdrm | FY64: H42OOHU1Bdrm | FZ64: H42OOHU2Bdrm | GA64: H42OOHU3Bdrm | GB64: H42OOHU4Bdrm | GC64: H42OOHU5PlusBdrm | GD64: H42RentOccHU5 | GE64: H42ROHUNoBdrm | GF64: H42ROHU1Bdrm | GG64: H42ROHU2Bdrm | GH64: H42ROHU3Bdrm | GI64: H42ROHU4Bdrm | GJ64: H42ROHU5PlusBdrm | GK64: H48OccupHousUnitsg | GL64: H48OwnerOccHU6 | GM64: H48OOHUwCompltPlumFacil | GN64: H48OOHULackCompltPlumFacil | GO64: H48RentOccHU6 | GP64: H48ROHUwCompltPlumFacil | GQ64: H48ROHULackCompltPlumFacil | GR64: H51OccupHousUnitf | GS64: H51OwnerOccHU7 | GT64: H51OOHUwCompleteKitFacil | GU64: H51OOHULackCompleteKitFacil | GV64: H51RenterOccHU7 | GW64: H51ROHUwCompleteKitFacil | GX64: H51ROHULackCompleteKitFacil
A65: =VLOOKUP(DropDownList!$B47,CntyQryCensus!$A$306:$GX$348,A$1) -> Berlin | B65: =VLOOKUP(DropDownList!$B47,CntyQryCensus!$A$306:$GX$348,B$1) -> 0000833 | C65: =VLOOKUP(DropDownList!$B47,CntyQryCensus!$A$306:$GX$348,C$1) -> 05140 | D65: =VLOOKUP(DropDownList!$B47,CntyQryCensus!$A$306:$GX$348,D$1) -> 10331 | E65: =VLOOKUP(DropDownList!$B47,CntyQryCensus!$A$306:$GX$348,E$1) -> 5111 | F65: =VLOOKUP(DropDownList!$B47,CntyQryCensus!$A$306:$GX$348,F$1) -> 827 | G65: =VLOOKUP(DropDownList!$B47,CntyQryCensus!$A$306:$GX$348,G$1) -> 732 | H65: =VLOOKUP(DropDownList!$B47,CntyQryCensus!$A$306:$GX$348,H$1) -> 95 | I65: =VLOOKUP(DropDownList!$B47,CntyQryCensus!$A$306:$GX$348,I$1) -> 5111 | J65: =VLOOKUP(DropDownList!$B47,CntyQryCensus!$A$306:$GX$348,J$1) -> 5111 | K65: =VLOOKUP(DropDownList!$B47,CntyQryCensus!$A$306:$GX$348,K$1) -> 4497 | L65: =VLOOKUP(DropDownList!$B47,CntyQryCensus!$A$306:$GX$348,L$1) -> 0 | M65: =VLOOKUP(DropDownList!$B47,CntyQryCensus!$A$306:$GX$348,M$1) -> 4497 | N65: =VLOOKUP(DropDownList!$B47,CntyQryCensus!$A$306:$GX$348,N$1) -> 614 | O65: =VLOOKUP(DropDownList!$B47,CntyQryCensus!$A$306:$GX$348,O$1) -> 0 | P65: =VLOOKUP(DropDownList!$B47,CntyQryCensus!$A$306:$GX$348,P$1) -> 614 | Q65: =VLOOKUP(DropDownList!$B47,CntyQryCensus!$A$306:$GX$348,Q$1) -> 4555 | R65: =VLOOKUP(DropDownList!$B47,CntyQryCensus!$A$306:$GX$348,R$1) -> 2788 | S65: =VLOOKUP(DropDownList!$B47,CntyQryCensus!$A$306:$GX$348,S$1) -> 1767 | T65: =VLOOKUP(DropDownList!$B47,CntyQryCensus!$A$306:$GX$348,T$1) -> 556 | U65: =VLOOKUP(DropDownList!$B47,CntyQryCensus!$A$306:$GX$348,U$1) -> 219 | V65: =VLOOKUP(DropDownList!$B47,CntyQryCensus!$A$306:$GX$348,V$1) -> 84 | W65: =VLOOKUP(DropDownList!$B47,CntyQryCensus!$A$306:$GX$348,W$1) -> 22 | X65: =VLOOKUP(DropDownList!$B47,CntyQryCensus!$A$306:$GX$348,X$1) -> 60 | Y65: =VLOOKUP(DropDownList!$B47,CntyQryCensus!$A$306:$GX$348,Y$1) -> 0 | Z65: =VLOOKUP(DropDownList!$B47,CntyQryCensus!$A$306:$GX$348,Z$1) -> 171 | AA65: =VLOOKUP(DropDownList!$B47,CntyQryCensus!$A$306:$GX$348,AA$1) -> 4555 | AB65: =VLOOKUP(DropDownList!$B47,CntyQryCensus!$A$306:$GX$348,AB$1) -> 2788 | AC65: =VLOOKUP(DropDownList!$B47,CntyQryCensus!$A$306:$GX$348,AC$1) -> 20 | AD65: =VLOOKUP(DropDownList!$B47,CntyQryCensus!$A$306:$GX$348,AD$1) -> 274 | AE65: =VLOOKUP(DropDownList!$B47,CntyQryCensus!$A$306:$GX$348,AE$1) -> 492 | AF65: =VLOOKUP(DropDownList!$B47,CntyQryCensus!$A$306:$GX$348,AF$1) -> 597 | AG65: =VLOOKUP(DropDownList!$B47,CntyQryCensus!$A$306:$GX$348,AG$1) -> 169 | AH65: =VLOOKUP(DropDownList!$B47,CntyQryCensus!$A$306:$GX$348,AH$1) -> 178 | AI65: =VLOOKUP(DropDownList!$B47,CntyQryCensus!$A$306:$GX$348,AI$1) -> 561 | AJ65: =VLOOKUP(DropDownList!$B47,CntyQryCensus!$A$306:$GX$348,AJ$1) -> 344 | AK65: =VLOOKUP(DropDownList!$B47,CntyQryCensus!$A$306:$GX$348,AK$1) -> 153 | AL65: =VLOOKUP(DropDownList!$B47,CntyQryCensus!$A$306:$GX$348,AL$1) -> 1767 | AM65: =VLOOKUP(DropDownList!$B47,CntyQryCensus!$A$306:$GX$348,AM$1) -> 188 | AN65: =VLOOKUP(DropDownList!$B47,CntyQryCensus!$A$306:$GX$348,AN$1) -> 323 | AO65: =VLOOKUP(DropDownList!$B47,CntyQryCensus!$A$306:$GX$348,AO$1) -> 289 | AP65: =VLOOKUP(DropDownList!$B47,CntyQryCensus!$A$306:$GX$348,AP$1) -> 207 | AQ65: =VLOOKUP(DropDownList!$B47,CntyQryCensus!$A$306:$GX$348,AQ$1) -> 62 | AR65: =VLOOKUP(DropDownList!$B47,CntyQryCensus!$A$306:$GX$348,AR$1) -> 106 | AS65: =VLOOKUP(DropDownList!$B47,CntyQryCensus!$A$306:$GX$348,AS$1) -> 242 | AT65: =VLOOKUP(DropDownList!$B47,CntyQryCensus!$A$306:$GX$348,AT$1) -> 256 | AU65: =VLOOKUP(DropDownList!$B47,CntyQryCensus!$A$306:$GX$348,AU$1) -> 94 | AV65: =VLOOKUP(DropDownList!$B47,CntyQryCensus!$A$306:$GX$348,AV$1) -> 10132 | AW65: =VLOOKUP(DropDownList!$B47,CntyQryCensus!$A$306:$GX$348,AW$1) -> 6743 | AX65: =VLOOKUP(DropDownList!$B47,CntyQryCensus!$A$306:$GX$348,AX$1) -> 3389 | AY65: =VLOOKUP(DropDownList!$B47,CntyQryCensus!$A$306:$GX$348,AY$1) -> 4555 | AZ65: =VLOOKUP(DropDownList!$B47,CntyQryCensus!$A$306:$GX$348,AZ$1) -> 2788 | BA65: =VLOOKUP(DropDownList!$B47,CntyQryCensus!$A$306:$GX$348,BA$1) -> 605 | BB65: =VLOOKUP(DropDownList!$B47,CntyQryCensus!$A$306:$GX$348,BB$1) -> 1179 | BC65: =VLOOKUP(DropDownList!$B47,CntyQryCensus!$A$306:$GX$348,BC$1) -> 443 | BD65: =VLOOKUP(DropDownList!$B47,CntyQryCensus!$A$306:$GX$348,BD$1) -> 383 | BE65: =VLOOKUP(DropDownList!$B47,CntyQryCensus!$A$306:$GX$348,BE$1) -> 112 | BF65: =VLOOKUP(DropDownList!$B47,CntyQryCensus!$A$306:$GX$348,BF$1) -> 38 | BG65: =VLOOKUP(DropDownList!$B47,CntyQryCensus!$A$306:$GX$348,BG$1) -> 28 | BH65: =VLOOKUP(DropDownList!$B47,CntyQryCensus!$A$306:$GX$348,BH$1) -> 1767 | BI65: =VLOOKUP(DropDownList!$B47,CntyQryCensus!$A$306:$GX$348,BI$1) -> 848 | BJ65: =VLOOKUP(DropDownList!$B47,CntyQryCensus!$A$306:$GX$348,BJ$1) -> 512 | BK65: =VLOOKUP(DropDownList!$B47,CntyQryCensus!$A$306:$GX$348,BK$1) -> 240 | BL65: =VLOOKUP(DropDownList!$B47,CntyQryCensus!$A$306:$GX$348,BL$1) -> 118 | BM65: =VLOOKUP(DropDownList!$B47,CntyQryCensus!$A$306:$GX$348,BM$1) -> 32 | BN65: =VLOOKUP(DropDownList!$B47,CntyQryCensus!$A$306:$GX$348,BN$1) -> 17 | BO65: =VLOOKUP(DropDownList!$B47,CntyQryCensus!$A$306:$GX$348,BO$1) -> 0 | BP65: =VLOOKUP(DropDownList!$B47,CntyQryCensus!$A$306:$GX$348,BP$1) -> 2 | BQ65: =VLOOKUP(DropDownList!$B47,CntyQryCensus!$A$306:$GX$348,BQ$1) -> 2 | BR65: =VLOOKUP(DropDownList!$B47,CntyQryCensus!$A$306:$GX$348,BR$1) -> 2 | BS65: =VLOOKUP(DropDownList!$B47,CntyQryCensus!$A$306:$GX$348,BS$1) -> 5111 | BT65: =VLOOKUP(DropDownList!$B47,CntyQryCensus!$A$306:$GX$348,BT$1) -> 18 | BU65: =VLOOKUP(DropDownList!$B47,CntyQryCensus!$A$306:$GX$348,BU$1) -> 99 | BV65: =VLOOKUP(DropDownList!$B47,CntyQryCensus!$A$306:$GX$348,BV$1) -> 475 | BW65: =VLOOKUP(DropDownList!$B47,CntyQryCensus!$A$306:$GX$348,BW$1) -> 1059 | BX65: =VLOOKUP(DropDownList!$B47,CntyQryCensus!$A$306:$GX$348,BX$1) -> 1417 | BY65: =VLOOKUP(DropDownList!$B47,CntyQryCensus!$A$306:$GX$348,BY$1) -> 1017 | BZ65: =VLOOKUP(DropDownList!$B47,CntyQryCensus!$A$306:$GX$348,BZ$1) -> 489 | CA65: =VLOOKUP(DropDownList!$B47,CntyQryCensus!$A$306:$GX$348,CA$1) -> 260 | CB65: =VLOOKUP(DropDownList!$B47,CntyQryCensus!$A$306:$GX$348,CB$1) -> 277 | CC65: =VLOOKUP(DropDownList!$B47,CntyQryCensus!$A$306:$GX$348,CC$1) -> 5 | CD65: =VLOOKUP(DropDownList!$B47,CntyQryCensus!$A$306:$GX$348,CD$1) -> 27337 | CE65: =VLOOKUP(DropDownList!$B47,CntyQryCensus!$A$306:$GX$348,CE$1) -> 5111 | CF65: =VLOOKUP(DropDownList!$B47,CntyQryCensus!$A$306:$GX$348,CF$1) -> 2454 | CG65: =VLOOKUP(DropDownList!$B47,CntyQryCensus!$A$306:$GX$348,CG$1) -> 43 | CH65: =VLOOKUP(DropDownList!$B47,CntyQryCensus!$A$306:$GX$348,CH$1) -> 1072 | CI65: =VLOOKUP(DropDownList!$B47,CntyQryCensus!$A$306:$GX$348,CI$1) -> 824 | CJ65: =VLOOKUP(DropDownList!$B47,CntyQryCensus!$A$306:$GX$348,CJ$1) -> 415 | CK65: =VLOOKUP(DropDownList!$B47,CntyQryCensus!$A$306:$GX$348,CK$1) -> 78 | CL65: =VLOOKUP(DropDownList!$B47,CntyQryCensus!$A$306:$GX$348,CL$1) -> 33 | CM65: =VLOOKUP(DropDownList!$B47,CntyQryCensus!$A$306:$GX$348,CM$1) -> 102 | CN65: =VLOOKUP(DropDownList!$B47,CntyQryCensus!$A$306:$GX$348,CN$1) -> 90 | CO65: =VLOOKUP(DropDownList!$B47,CntyQryCensus!$A$306:$GX$348,CO$1) -> 0 | CP65: =VLOOKUP(DropDownList!$B47,CntyQryCensus!$A$306:$GX$348,CP$1) -> 4555 | CQ65: =VLOOKUP(DropDownList!$B47,CntyQryCensus!$A$306:$GX$348,CQ$1) -> 2788 | CR65: =VLOOKUP(DropDownList!$B47,CntyQryCensus!$A$306:$GX$348,CR$1) -> 2146 | CS65: =VLOOKUP(DropDownList!$B47,CntyQryCensus!$A$306:$GX$348,CS$1) -> 19 | CT65: =VLOOKUP(DropDownList!$B47,CntyQryCensus!$A$306:$GX$348,CT$1) -> 432 | CU65: =VLOOKUP(DropDownList!$B47,CntyQryCensus!$A$306:$GX$348,CU$1) -> 107 | CV65: =VLOOKUP(DropDownList!$B47,CntyQryCensus!$A$306:$GX$348,CV$1) -> 0 | CW65: =VLOOKUP(DropDownList!$B47,CntyQryCensus!$A$306:$GX$348,CW$1) -> 0 | CX65: =VLOOKUP(DropDownList!$B47,CntyQryCensus!$A$306:$GX$348,CX$1) -> 0 | CY65: =VLOOKUP(DropDownList!$B47,CntyQryCensus!$A$306:$GX$348,CY$1) -> 0 | CZ65: =VLOOKUP(DropDownList!$B47,CntyQryCensus!$A$306:$GX$348,CZ$1) -> 84 | DA65: =VLOOKUP(DropDownList!$B47,CntyQryCensus!$A$306:$GX$348,DA$1) -> 0 | DB65: =VLOOKUP(DropDownList!$B47,CntyQryCensus!$A$306:$GX$348,DB$1) -> 1767 | DC65: =VLOOKUP(DropDownList!$B47,CntyQryCensus!$A$306:$GX$348,DC$1) -> 217 | DD65: =VLOOKUP(DropDownList!$B47,CntyQryCensus!$A$306:$GX$348,DD$1) -> 24 | DE65: =VLOOKUP(DropDownList!$B47,CntyQryCensus!$A$306:$GX$348,DE$1) -> 481 | DF65: =VLOOKUP(DropDownList!$B47,CntyQryCensus!$A$306:$GX$348,DF$1) -> 537 | DG65: =VLOOKUP(DropDownList!$B47,CntyQryCensus!$A$306:$GX$348,DG$1) -> 305 | DH65: =VLOOKUP(DropDownList!$B47,CntyQryCensus!$A$306:$GX$348,DH$1) -> 70 | DI65: =VLOOKUP(DropDownList!$B47,CntyQryCensus!$A$306:$GX$348,DI$1) -> 33 | DJ65: =VLOOKUP(DropDownList!$B47,CntyQryCensus!$A$306:$GX$348,DJ$1) -> 94 | DK65: =VLOOKUP(DropDownList!$B47,CntyQryCensus!$A$306:$GX$348,DK$1) -> 6 | DL65: =VLOOKUP(DropDownList!$B47,CntyQryCensus!$A$306:$GX$348,DL$1) -> 0 | DM65: =VLOOKUP(DropDownList!$B47,CntyQryCensus!$A$306:$GX$348,DM$1) -> 10132 | DN65: =VLOOKUP(DropDownList!$B47,CntyQryCensus!$A$306:$GX$348,DN$1) -> 6743 | DO65: =VLOOKUP(DropDownList!$B47,CntyQryCensus!$A$306:$GX$348,DO$1) -> 5423 | DP65: =VLOOKUP(DropDownList!$B47,CntyQryCensus!$A$306:$GX$348,DP$1) -> 46 | DQ65: =VLOOKUP(DropDownList!$B47,CntyQryCensus!$A$306:$GX$348,DQ$1) -> 895 | DR65: =VLOOKUP(DropDownList!$B47,CntyQryCensus!$A$306:$GX$348,DR$1) -> 245 | DS65: =VLOOKUP(DropDownList!$B47,CntyQryCensus!$A$306:$GX$348,DS$1) -> 0 | DT65: =VLOOKUP(DropDownList!$B47,CntyQryCensus!$A$306:$GX$348,DT$1) -> 0 | DU65: =VLOOKUP(DropDownList!$B47,CntyQryCensus!$A$306:$GX$348,DU$1) -> 0 | DV65: =VLOOKUP(DropDownList!$B47,CntyQryCensus!$A$306:$GX$348,DV$1) -> 0 | DW65: =VLOOKUP(DropDownList!$B47,CntyQryCensus!$A$306:$GX$348,DW$1) -> 134 | DX65: =VLOOKUP(DropDownList!$B47,CntyQryCensus!$A$306:$GX$348,DX$1) -> 0 | DY65: =VLOOKUP(DropDownList!$B47,CntyQryCensus!$A$306:$GX$348,DY$1) -> 3389 | DZ65: =VLOOKUP(DropDownList!$B47,CntyQryCensus!$A$306:$GX$348,DZ$1) -> 689 | EA65: =VLOOKUP(DropDownList!$B47,CntyQryCensus!$A$306:$GX$348,EA$1) -> 52 | EB65: =VLOOKUP(DropDownList!$B47,CntyQryCensus!$A$306:$GX$348,EB$1) -> 856 | EC65: =VLOOKUP(DropDownList!$B47,CntyQryCensus!$A$306:$GX$348,EC$1) -> 1031 | ED65: =VLOOKUP(DropDownList!$B47,CntyQryCensus!$A$306:$GX$348,ED$1) -> 444 | EE65: =VLOOKUP(DropDownList!$B47,CntyQryCensus!$A$306:$GX$348,EE$1) -> 134 | EF65: =VLOOKUP(DropDownList!$B47,CntyQryCensus!$A$306:$GX$348,EF$1) -> 33 | EG65: =VLOOKUP(DropDownList!$B47,CntyQryCensus!$A$306:$GX$348,EG$1) -> 134 | EH65: =VLOOKUP(DropDownList!$B47,CntyQryCensus!$A$306:$GX$348,EH$1) -> 16 | EI65: =VLOOKUP(DropDownList!$B47,CntyQryCensus!$A$306:$GX$348,EI$1) -> 0 | EJ65: =VLOOKUP(DropDownList!$B47,CntyQryCensus!$A$306:$GX$348,EJ$1) -> 4555 | EK65: =VLOOKUP(DropDownList!$B47,CntyQryCensus!$A$306:$GX$348,EK$1) -> 2788 | EL65: =VLOOKUP(DropDownList!$B47,CntyQryCensus!$A$306:$GX$348,EL$1) -> 7 | EM65: =VLOOKUP(DropDownList!$B47,CntyQryCensus!$A$306:$GX$348,EM$1) -> 7 | EN65: =VLOOKUP(DropDownList!$B47,CntyQryCensus!$A$306:$GX$348,EN$1) -> 11 | EO65: =VLOOKUP(DropDownList!$B47,CntyQryCensus!$A$306:$GX$348,EO$1) -> 93 | EP65: =VLOOKUP(DropDownList!$B47,CntyQryCensus!$A$306:$GX$348,EP$1) -> 236 | EQ65: =VLOOKUP(DropDownList!$B47,CntyQryCensus!$A$306:$GX$348,EQ$1) -> 127 | ER65: =VLOOKUP(DropDownList!$B47,CntyQryCensus!$A$306:$GX$348,ER$1) -> 499 | ES65: =VLOOKUP(DropDownList!$B47,CntyQryCensus!$A$306:$GX$348,ES$1) -> 255 | ET65: =VLOOKUP(DropDownList!$B47,CntyQryCensus!$A$306:$GX$348,ET$1) -> 1553 | EU65: =VLOOKUP(DropDownList!$B47,CntyQryCensus!$A$306:$GX$348,EU$1) -> 1767 | EV65: =VLOOKUP(DropDownList!$B47,CntyQryCensus!$A$306:$GX$348,EV$1) -> 0 | EW65: =VLOOKUP(DropDownList!$B47,CntyQryCensus!$A$306:$GX$348,EW$1) -> 0 | EX65: =VLOOKUP(DropDownList!$B47,CntyQryCensus!$A$306:$GX$348,EX$1) -> 0 | EY65: =VLOOKUP(DropDownList!$B47,CntyQryCensus!$A$306:$GX$348,EY$1) -> 45 | EZ65: =VLOOKUP(DropDownList!$B47,CntyQryCensus!$A$306:$GX$348,EZ$1) -> 149 | FA65: =VLOOKUP(DropDownList!$B47,CntyQryCensus!$A$306:$GX$348,FA$1) -> 152 | FB65: =VLOOKUP(DropDownList!$B47,CntyQryCensus!$A$306:$GX$348,FB$1) -> 182 | FC65: =VLOOKUP(DropDownList!$B47,CntyQryCensus!$A$306:$GX$348,FC$1) -> 187 | FD65: =VLOOKUP(DropDownList!$B47,CntyQryCensus!$A$306:$GX$348,FD$1) -> 1052 | FE65: =VLOOKUP(DropDownList!$B47,CntyQryCensus!$A$306:$GX$348,FE$1) -> 4555 | FF65: =VLOOKUP(DropDownList!$B47,CntyQryCensus!$A$306:$GX$348,FF$1) -> 0 | FG65: =VLOOKUP(DropDownList!$B47,CntyQryCensus!$A$306:$GX$348,FG$1) -> 45 | FH65: =VLOOKUP(DropDownList!$B47,CntyQryCensus!$A$306:$GX$348,FH$1) -> 104 | FI65: =VLOOKUP(DropDownList!$B47,CntyQryCensus!$A$306:$GX$348,FI$1) -> 4315 | FJ65: =VLOOKUP(DropDownList!$B47,CntyQryCensus!$A$306:$GX$348,FJ$1) -> 6 | FK65: =VLOOKUP(DropDownList!$B47,CntyQryCensus!$A$306:$GX$348,FK$1) -> 54 | FL65: =VLOOKUP(DropDownList!$B47,CntyQryCensus!$A$306:$GX$348,FL$1) -> 0 | FM65: =VLOOKUP(DropDownList!$B47,CntyQryCensus!$A$306:$GX$348,FM$1) -> 22 | FN65: =VLOOKUP(DropDownList!$B47,CntyQryCensus!$A$306:$GX$348,FN$1) -> 9 | FO65: =VLOOKUP(DropDownList!$B47,CntyQryCensus!$A$306:$GX$348,FO$1) -> 5111 | FP65: =VLOOKUP(DropDownList!$B47,CntyQryCensus!$A$306:$GX$348,FP$1) -> 25 | FQ65: =VLOOKUP(DropDownList!$B47,CntyQryCensus!$A$306:$GX$348,FQ$1) -> 726 | FR65: =VLOOKUP(DropDownList!$B47,CntyQryCensus!$A$306:$GX$348,FR$1) -> 1776 | FS65: =VLOOKUP(DropDownList!$B47,CntyQryCensus!$A$306:$GX$348,FS$1) -> 1851 | FT65: =VLOOKUP(DropDownList!$B47,CntyQryCensus!$A$306:$GX$348,FT$1) -> 580 | FU65: =VLOOKUP(DropDownList!$B47,CntyQryCensus!$A$306:$GX$348,FU$1) -> 153 | FV65: =VLOOKUP(DropDownList!$B47,CntyQryCensus!$A$306:$GX$348,FV$1) -> 4555 | FW65: =VLOOKUP(DropDownList!$B47,CntyQryCensus!$A$306:$GX$348,FW$1) -> 2788 | FX65: =VLOOKUP(DropDownList!$B47,CntyQryCensus!$A$306:$GX$348,FX$1) -> 0 | FY65: =VLOOKUP(DropDownList!$B47,CntyQryCensus!$A$306:$GX$348,FY$1) -> 115 | FZ65: =VLOOKUP(DropDownList!$B47,CntyQryCensus!$A$306:$GX$348,FZ$1) -> 750 | GA65: =VLOOKUP(DropDownList!$B47,CntyQryCensus!$A$306:$GX$348,GA$1) -> 1315 | GB65: =VLOOKUP(DropDownList!$B47,CntyQryCensus!$A$306:$GX$348,GB$1) -> 489 | GC65: =VLOOKUP(DropDownList!$B47,CntyQryCensus!$A$306:$GX$348,GC$1) -> 119 | GD65: =VLOOKUP(DropDownList!$B47,CntyQryCensus!$A$306:$GX$348,GD$1) -> 1767 | GE65: =VLOOKUP(DropDownList!$B47,CntyQryCensus!$A$306:$GX$348,GE$1) -> 25 | GF65: =VLOOKUP(DropDownList!$B47,CntyQryCensus!$A$306:$GX$348,GF$1) -> 475 | GG65: =VLOOKUP(DropDownList!$B47,CntyQryCensus!$A$306:$GX$348,GG$1) -> 775 | GH65: =VLOOKUP(DropDownList!$B47,CntyQryCensus!$A$306:$GX$348,GH$1) -> 421 | GI65: =VLOOKUP(DropDownList!$B47,CntyQryCensus!$A$306:$GX$348,GI$1) -> 56 | GJ65: =VLOOKUP(DropDownList!$B47,CntyQryCensus!$A$306:$GX$348,GJ$1) -> 15 | GK65: =VLOOKUP(DropDownList!$B47,CntyQryCensus!$A$306:$GX$348,GK$1) -> 4555 | GL65: =VLOOKUP(DropDownList!$B47,CntyQryCensus!$A$306:$GX$348,GL$1) -> 2788 | GM65: =VLOOKUP(DropDownList!$B47,CntyQryCensus!$A$306:$GX$348,GM$1) -> 2776 | GN65: =VLOOKUP(DropDownList!$B47,CntyQryCensus!$A$306:$GX$348,GN$1) -> 12 | GO65: =VLOOKUP(DropDownList!$B47,CntyQryCensus!$A$306:$GX$348,GO$1) -> 1767 | GP65: =VLOOKUP(DropDownList!$B47,CntyQryCensus!$A$306:$GX$348,GP$1) -> 1767 | GQ65: =VLOOKUP(DropDownList!$B47,CntyQryCensus!$A$306:$GX$348,GQ$1) -> 0 | GR65: =VLOOKUP(DropDownList!$B47,CntyQryCensus!$A$306:$GX$348,GR$1) -> 4555 | GS65: =VLOOKUP(DropDownList!$B47,CntyQryCensus!$A$306:$GX$348,GS$1) -> 2788 | GT65: =VLOOKUP(DropDownList!$B47,CntyQryCensus!$A$306:$GX$348,GT$1) -> 2782 | GU65: =VLOOKUP(DropDownList!$B47,CntyQryCensus!$A$306:$GX$348,GU$1) -> 6 | GV65: =VLOOKUP(DropDownList!$B47,CntyQryCensus!$A$306:$GX$348,GV$1) -> 1767 | GW65: =VLOOKUP(DropDownList!$B47,CntyQryCensus!$A$306:$GX$348,GW$1) -> 1767 | GX65: =VLOOKUP(DropDownList!$B47,CntyQryCensus!$A$306:$GX$348,GX$1) -> 0
A68: Census 2000 SummaryFile3 Sample Data - SF3TownQry8HousingCostA
A69: NAME | B69: LOGRECNO | C69: COUNTY | D69: TotalPop | E69: H62RntrOccHU | F69: H62RntrOccHUwRent | G69: H62ROHUGRent<100 | H69: H62ROHUGRent100to149 | I69: H62ROHUGRent150to199 | J69: H62ROHUGRent200to249 | K69: H62ROHUGRent250to299 | L69: H62ROHUGRent300to349 | M69: H62ROHUGRent350to399 | N69: H62ROHUGRent400to449 | O69: H62ROHUGRent450to499 | P69: H62ROHUGRent500to549 | Q69: H62ROHUGRent550to599 | R69: H62ROHUGRent600to649 | S69: H62ROHUGRent650to699 | T69: H62ROHUGRent700to749 | U69: H62ROHUGRent750to799 | V69: H62ROHUGRent800to899 | W69: H62ROHUGRent900to999 | X69: H62ROHUGRent1000to1249 | Y69: H62ROHUGRent1250to1499 | Z69: H62ROHUGRent1500to1999 | AA69: H62ROHUGRent2000> | AB69: H62ROHUNoGRent | AC69: H63MedianGrossRnt | AD69: H69RenterOccHsU | AE69: H69GRnt<10PctHHInc | AF69: H69GRnt10to15PctHHInc | AG69: H69GRnt15to20PctHHInc | AH69: H69GRnt20to25PctHHInc | AI69: H69GRnt25to30PctHHInc | AJ69: H69GRnt30to35PctHHInc | AK69: H69GRnt35to40PctHHInc | AL69: H69GRnt40to50PctHHInc | AM69: H69GRnt>50PctHHInc | AN69: H69GRntPctNotcomputed | AO69: H73RenterOccHU | AP69: H73ROHUHhInc<10k | AQ69: H73ROHUHhInc<10kRnt<20pct | AR69: H73ROHUHhInc<10kRnt20to25pct | AS69: H73ROHUHhInc<10kRnt25to30pct | AT69: H73ROHUHhInc<10kRnt30to35pct | AU69: H73ROHUHhInc<10kRnt>35pct | AV69: H73ROHUHhInc<10kPctNotComput | AW69: H73ROHUHhInc10to20k | AX69: H73ROHUHhInc10to20kRnt<20pct | AY69: H73ROHUHhInc10to20kRnt20to25pct | AZ69: H73ROHUHhInc10to20kRnt25to30pct | BA69: H73ROHUHhInc10to20kRnt30to35pct | BB69: H73ROHUHhInc10to20kRnt>35pct | BC69: H73ROHUHhInc10to20kRntPctNC | BD69: H73ROHUHhInc20to35k | BE69: H73ROHUHhInc20to35kRnt<20pct | BF69: H73ROHUHhInc20to35kRnt20to25pct | BG69: H73ROHUHhInc20to35kRnt25to30pct | BH69: H73ROHUHhInc20to35kRnt30to35pct | BI69: H73ROHUHhInc20to35kRnt>35pct | BJ69: H73ROHUHhInc20to35kRntPctNC | BK69: H73ROHUHhInc35to40k | BL69: H73ROHUHhInc35to40kRnt<20pct | BM69: H73ROHUHhInc35to40kRnt20to25pct | BN69: H73ROHUHhInc35to40kRnt25to30pct | BO69: H73ROHUHhInc35to40kRnt30to35pct | BP69: H73ROHUHhInc35to40kRnt>35pct | BQ69: H73ROHUHhInc35to40kRntPctNC | BR69: H73ROHUHhInc50to75k | BS69: H73ROHUHhInc50to75kRnt<20pct | BT69: H73ROHUHhInc50to75kRnt20to25pct | BU69: H73ROHUHhInc50to75kRnt25to30pct | BV69: H73ROHUHhInc50to75kRnt30to35pct | BW69: H73ROHUHhInc50to75kRnt>35pct | BX69: H73ROHUHhInc50to75kRntPctNC | BY69: H73ROHUHhInc75to100k | BZ69: H73ROHUHhInc75to100kRnt<20pct | CA69: H73ROHUHhInc75to100kRnt20to25pct | CB69: H73ROHUHhInc75to100kRnt25to30pct | CC69: H73ROHUHhInc75to100kRnt30to35pct | CD69: H73ROHUHhInc75to100kRnt>35pct | CE69: H73ROHUHhInc75to100kRntPctNC | CF69: H73ROHUHhInc>100k | CG69: H73ROHUHhInc>100kRnt<20pct | CH69: H73ROHUHhInc>100kRnt20to25pct | CI69: H73ROHUHhInc>100kRnt25to30pct | CJ69: H73ROHUHhInc>100kRnt30to35pct | CK69: H73ROHUHhInc>100kRnt>35pct | CL69: H73ROHUHhInc>100kRntPctNC | CM69: H73ROHUHhInc>100kRntPctNC
A70: =VLOOKUP(DropDownList!$B$47,CntyQryCensus!$A$357:$CM$399,A$1) -> Berlin | B70: =VLOOKUP(DropDownList!$B$47,CntyQryCensus!$A$357:$CM$399,B$1) -> 0000833 | C70: =VLOOKUP(DropDownList!$B$47,CntyQryCensus!$A$357:$CM$399,C$1) -> 05140 | D70: =VLOOKUP(DropDownList!$B$47,CntyQryCensus!$A$357:$CM$399,D$1) -> 10331 | E70: =VLOOKUP(DropDownList!$B$47,CntyQryCensus!$A$357:$CM$399,E$1) -> 1754 | F70: =VLOOKUP(DropDownList!$B$47,CntyQryCensus!$A$357:$CM$399,F$1) -> 1655 | G70: =VLOOKUP(DropDownList!$B$47,CntyQryCensus!$A$357:$CM$399,G$1) -> 31 | H70: =VLOOKUP(DropDownList!$B$47,CntyQryCensus!$A$357:$CM$399,H$1) -> 70 | I70: =VLOOKUP(DropDownList!$B$47,CntyQryCensus!$A$357:$CM$399,I$1) -> 82 | J70: =VLOOKUP(DropDownList!$B$47,CntyQryCensus!$A$357:$CM$399,J$1) -> 54 | K70: =VLOOKUP(DropDownList!$B$47,CntyQryCensus!$A$357:$CM$399,K$1) -> 166 | L70: =VLOOKUP(DropDownList!$B$47,CntyQryCensus!$A$357:$CM$399,L$1) -> 253 | M70: =VLOOKUP(DropDownList!$B$47,CntyQryCensus!$A$357:$CM$399,M$1) -> 268 | N70: =VLOOKUP(DropDownList!$B$47,CntyQryCensus!$A$357:$CM$399,N$1) -> 331 | O70: =VLOOKUP(DropDownList!$B$47,CntyQryCensus!$A$357:$CM$399,O$1) -> 155 | P70: =VLOOKUP(DropDownList!$B$47,CntyQryCensus!$A$357:$CM$399,P$1) -> 67 | Q70: =VLOOKUP(DropDownList!$B$47,CntyQryCensus!$A$357:$CM$399,Q$1) -> 57 | R70: =VLOOKUP(DropDownList!$B$47,CntyQryCensus!$A$357:$CM$399,R$1) -> 48 | S70: =VLOOKUP(DropDownList!$B$47,CntyQryCensus!$A$357:$CM$399,S$1) -> 11 | T70: =VLOOKUP(DropDownList!$B$47,CntyQryCensus!$A$357:$CM$399,T$1) -> 25 | U70: =VLOOKUP(DropDownList!$B$47,CntyQryCensus!$A$357:$CM$399,U$1) -> 11 | V70: =VLOOKUP(DropDownList!$B$47,CntyQryCensus!$A$357:$CM$399,V$1) -> 21 | W70: =VLOOKUP(DropDownList!$B$47,CntyQryCensus!$A$357:$CM$399,W$1) -> 0 | X70: =VLOOKUP(DropDownList!$B$47,CntyQryCensus!$A$357:$CM$399,X$1) -> 5 | Y70: =VLOOKUP(DropDownList!$B$47,CntyQryCensus!$A$357:$CM$399,Y$1) -> 0 | Z70: =VLOOKUP(DropDownList!$B$47,CntyQryCensus!$A$357:$CM$399,Z$1) -> 0 | AA70: =VLOOKUP(DropDownList!$B$47,CntyQryCensus!$A$357:$CM$399,AA$1) -> 0 | AB70: =VLOOKUP(DropDownList!$B$47,CntyQryCensus!$A$357:$CM$399,AB$1) -> 99 | AC70: =VLOOKUP(DropDownList!$B$47,CntyQryCensus!$A$357:$CM$399,AC$1) -> 382 | AD70: =VLOOKUP(DropDownList!$B$47,CntyQryCensus!$A$357:$CM$399,AD$1) -> 1754 | AE70: =VLOOKUP(DropDownList!$B$47,CntyQryCensus!$A$357:$CM$399,AE$1) -> 110 | AF70: =VLOOKUP(DropDownList!$B$47,CntyQryCensus!$A$357:$CM$399,AF$1) -> 229 | AG70: =VLOOKUP(DropDownList!$B$47,CntyQryCensus!$A$357:$CM$399,AG$1) -> 248 | AH70: =VLOOKUP(DropDownList!$B$47,CntyQryCensus!$A$357:$CM$399,AH$1) -> 190 | AI70: =VLOOKUP(DropDownList!$B$47,CntyQryCensus!$A$357:$CM$399,AI$1) -> 152 | AJ70: =VLOOKUP(DropDownList!$B$47,CntyQryCensus!$A$357:$CM$399,AJ$1) -> 176 | AK70: =VLOOKUP(DropDownList!$B$47,CntyQryCensus!$A$357:$CM$399,AK$1) -> 111 | AL70: =VLOOKUP(DropDownList!$B$47,CntyQryCensus!$A$357:$CM$399,AL$1) -> 135 | AM70: =VLOOKUP(DropDownList!$B$47,CntyQryCensus!$A$357:$CM$399,AM$1) -> 290 | AN70: =VLOOKUP(DropDownList!$B$47,CntyQryCensus!$A$357:$CM$399,AN$1) -> 113 | AO70: =VLOOKUP(DropDownList!$B$47,CntyQryCensus!$A$357:$CM$399,AO$1) -> 1754 | AP70: =VLOOKUP(DropDownList!$B$47,CntyQryCensus!$A$357:$CM$399,AP$1) -> 494 | AQ70: =VLOOKUP(DropDownList!$B$47,CntyQryCensus!$A$357:$CM$399,AQ$1) -> 34 | AR70: =VLOOKUP(DropDownList!$B$47,CntyQryCensus!$A$357:$CM$399,AR$1) -> 7 | AS70: =VLOOKUP(DropDownList!$B$47,CntyQryCensus!$A$357:$CM$399,AS$1) -> 37 | AT70: =VLOOKUP(DropDownList!$B$47,CntyQryCensus!$A$357:$CM$399,AT$1) -> 52 | AU70: =VLOOKUP(DropDownList!$B$47,CntyQryCensus!$A$357:$CM$399,AU$1) -> 350 | AV70: =VLOOKUP(DropDownList!$B$47,CntyQryCensus!$A$357:$CM$399,AV$1) -> 14 | AW70: =VLOOKUP(DropDownList!$B$47,CntyQryCensus!$A$357:$CM$399,AW$1) -> 500 | AX70: =VLOOKUP(DropDownList!$B$47,CntyQryCensus!$A$357:$CM$399,AX$1) -> 54 | AY70: =VLOOKUP(DropDownList!$B$47,CntyQryCensus!$A$357:$CM$399,AY$1) -> 62 | AZ70: =VLOOKUP(DropDownList!$B$47,CntyQryCensus!$A$357:$CM$399,AZ$1) -> 101 | BA70: =VLOOKUP(DropDownList!$B$47,CntyQryCensus!$A$357:$CM$399,BA$1) -> 77 | BB70: =VLOOKUP(DropDownList!$B$47,CntyQryCensus!$A$357:$CM$399,BB$1) -> 174 | BC70: =VLOOKUP(DropDownList!$B$47,CntyQryCensus!$A$357:$CM$399,BC$1) -> 32 | BD70: =VLOOKUP(DropDownList!$B$47,CntyQryCensus!$A$357:$CM$399,BD$1) -> 450 | BE70: =VLOOKUP(DropDownList!$B$47,CntyQryCensus!$A$357:$CM$399,BE$1) -> 221 | BF70: =VLOOKUP(DropDownList!$B$47,CntyQryCensus!$A$357:$CM$399,BF$1) -> 121 | BG70: =VLOOKUP(DropDownList!$B$47,CntyQryCensus!$A$357:$CM$399,BG$1) -> 10 | BH70: =VLOOKUP(DropDownList!$B$47,CntyQryCensus!$A$357:$CM$399,BH$1) -> 47 | BI70: =VLOOKUP(DropDownList!$B$47,CntyQryCensus!$A$357:$CM$399,BI$1) -> 12 | BJ70: =VLOOKUP(DropDownList!$B$47,CntyQryCensus!$A$357:$CM$399,BJ$1) -> 39 | BK70: =VLOOKUP(DropDownList!$B$47,CntyQryCensus!$A$357:$CM$399,BK$1) -> 181 | BL70: =VLOOKUP(DropDownList!$B$47,CntyQryCensus!$A$357:$CM$399,BL$1) -> 165 | BM70: =VLOOKUP(DropDownList!$B$47,CntyQryCensus!$A$357:$CM$399,BM$1) -> 0 | BN70: =VLOOKUP(DropDownList!$B$47,CntyQryCensus!$A$357:$CM$399,BN$1) -> 4 | BO70: =VLOOKUP(DropDownList!$B$47,CntyQryCensus!$A$357:$CM$399,BO$1) -> 0 | BP70: =VLOOKUP(DropDownList!$B$47,CntyQryCensus!$A$357:$CM$399,BP$1) -> 0 | BQ70: =VLOOKUP(DropDownList!$B$47,CntyQryCensus!$A$357:$CM$399,BQ$1) -> 12 | BR70: =VLOOKUP(DropDownList!$B$47,CntyQryCensus!$A$357:$CM$399,BR$1) -> 86 | BS70: =VLOOKUP(DropDownList!$B$47,CntyQryCensus!$A$357:$CM$399,BS$1) -> 80 | BT70: =VLOOKUP(DropDownList!$B$47,CntyQryCensus!$A$357:$CM$399,BT$1) -> 0 | BU70: =VLOOKUP(DropDownList!$B$47,CntyQryCensus!$A$357:$CM$399,BU$1) -> 0 | BV70: =VLOOKUP(DropDownList!$B$47,CntyQryCensus!$A$357:$CM$399,BV$1) -> 0 | BW70: =VLOOKUP(DropDownList!$B$47,CntyQryCensus!$A$357:$CM$399,BW$1) -> 0 | BX70: =VLOOKUP(DropDownList!$B$47,CntyQryCensus!$A$357:$CM$399,BX$1) -> 6 | BY70: =VLOOKUP(DropDownList!$B$47,CntyQryCensus!$A$357:$CM$399,BY$1) -> 17 | BZ70: =VLOOKUP(DropDownList!$B$47,CntyQryCensus!$A$357:$CM$399,BZ$1) -> 7 | CA70: =VLOOKUP(DropDownList!$B$47,CntyQryCensus!$A$357:$CM$399,CA$1) -> 0 | CB70: =VLOOKUP(DropDownList!$B$47,CntyQryCensus!$A$357:$CM$399,CB$1) -> 0 | CC70: =VLOOKUP(DropDownList!$B$47,CntyQryCensus!$A$357:$CM$399,CC$1) -> 0 | CD70: =VLOOKUP(DropDownList!$B$47,CntyQryCensus!$A$357:$CM$399,CD$1) -> 0 | CE70: =VLOOKUP(DropDownList!$B$47,CntyQryCensus!$A$357:$CM$399,CE$1) -> 10 | CF70: =VLOOKUP(DropDownList!$B$47,CntyQryCensus!$A$357:$CM$399,CF$1) -> 26 | CG70: =VLOOKUP(DropDownList!$B$47,CntyQryCensus!$A$357:$CM$399,CG$1) -> 26 | CH70: =VLOOKUP(DropDownList!$B$47,CntyQryCensus!$A$357:$CM$399,CH$1) -> 0 | CI70: =VLOOKUP(DropDownList!$B$47,CntyQryCensus!$A$357:$CM$399,CI$1) -> 0 | CJ70: =VLOOKUP(DropDownList!$B$47,CntyQryCensus!$A$357:$CM$399,CJ$1) -> 0 | CK70: =VLOOKUP(DropDownList!$B$47,CntyQryCensus!$A$357:$CM$399,CK$1) -> 0 | CL70: =VLOOKUP(DropDownList!$B$47,CntyQryCensus!$A$357:$CM$399,CL$1) -> 0 | CM70: =VLOOKUP(DropDownList!$B$47,CntyQryCensus!$A$357:$CM$399,CM$1) -> 0
A73: Census 2000 SummaryFile3 Sample Data - SF3TownQry8HousingCostB
A74: NAME | B74: LOGRECNO | C74: COUNTY | D74: TotalPop | E74: H74SpecOwnerOccHU | F74: H74OOHU<10k | G74: H74OOHU10to15k | H74: H74OOHU15to20k | I74: H74OOHU20to25k | J74: H74OOHU25to30k | K74: H74OOHU30to35k | L74: H74OOHU35to40k | M74: H74OOHU40to50k | N74: H74OOHU50to60k | O74: H74OOHU60to70k | P74: H74OOHU70to80k | Q74: H74OOHU80to90k | R74: H74OOHU90to100k | S74: H74OOHU100to125k | T74: H74OOHU125to150k | U74: H74OOHU150to175k | V74: H74OOHU175to200k | W74: H74OOHU200to250k | X74: H74OOHU250to300k | Y74: H74OOHU300to400k | Z74: H74OOHU400to500k | AA74: H74OOHU500to750k | AB74: H74OOHU750to1000k | AC74: H74OOHU1000kmore | AD74: H76OOHUMedianVal | AE74: H84OwnerOccHU | AF74: H84AllOOHU<10k | AG74: H84AllOOHU10to15k | AH74: H84AllOOHU15to20k | AI74: H84AllOOHU20to25k | AJ74: H84AllOOHU25to30k | AK74: H84AllOOHU30to35k | AL74: H84AllOOHU35to40k | AM74: H84AllOOHU40to50k | AN74: H84AllOOHU50to60k | AO74: H84AllOOHU60to70k | AP74: H84AllOOHU70to80k | AQ74: H84AllOOHU80to90k | AR74: H84AllOOHU90to100k | AS74: H84AllOOHU100to125k | AT74: H84AllOOHU125to150k | AU74: H84AllOOHU150to175k | AV74: H84AllOOHU175to200k | AW74: H84AllOOHU200to250k | AX74: H84AllOOHU250to300k | AY74: H84AllOOHU300to400k | AZ74: H84AllOOHU400to500k | BA74: H84AllOOHU500to750k | BB74: H84AllOOHU750to1000k | BC74: H84AllOOHU1000kmore | BD74: H85OOHUMedVal | BE74: H90SOOHU | BF74: H90HUwMorgt | BG74: H90HUwMtgHC<200 | BH74: H90HUwMtgHC200to300 | BI74: H90HUwMtgHC300to400 | BJ74: H90HUwMtgHC400to500 | BK74: H90HUwMtgHC500to600 | BL74: H90HUwMtgHC600to700 | BM74: H90HUwMtgHC700to800 | BN74: H90HUwMtgHC800to900 | BO74: H90HUwMtgHC900to1000 | BP74: H90HUwMtgHC1000to1250 | BQ74: H90HUwMtgHC1250to1500 | BR74: H90HUwMtgHC1500to2000 | BS74: H90HUwMtgHC2000to2500 | BT74: H90HUwMtgHC2500to3000 | BU74: H90HUwMtgHC3000orMore | BV74: H90HUwOutMorgt | BW74: H90HUwOutMtgHC<100 | BX74: H90HUwOutMtgHC100to150 | BY74: H90HUwOutMtgHC150to200 | BZ74: H90HUwOutMtgHC200to250 | CA74: H90HUwOutMtgHC250to300 | CB74: H90HUwOutMtgHC300to350 | CC74: H90HUwOutMtgHC350to400 | CD74: H90HUwOutMtgHC400to500 | CE74: H90HUwOutMtgHC500to600 | CF74: H90HUwOutMtgHC600to700 | CG74: H90HUwOutMtgHC700to800 | CH74: H90HUwOutMtgHC800to900 | CI74: H90HUwOutMtgHC900to1000 | CJ74: H90HUwOutMtgHC1000orMore | CK74: H91MedianOCHUwMtg | CL74: H91MedianOCHUwOutMtg | CM74: H94SpecOOHU | CN74: H94HUwMortg | CO74: H94HUwMtgHC<10pct | CP74: H94HUwMtgHC10to15pct | CQ74: H94HUwMtgHC15to20pct | CR74: H94HUwMtgHC20to25pct | CS74: H94HUwMtgHC25to30pct | CT74: H94HUwMtgHC30to35pct | CU74: H94HUwMtgHC35to40pct | CV74: H94HUwMtgHC40to50pct | CW74: H94HUwMtgHC50pctOrMore | CX74: H94HUwMtgHCpctNotComp | CY74: H94HUWOutMortg | CZ74: H94HUWOutMortgHC<10pct | DA74: H94HUWOutMortgHC10to15pct | DB74: H94HUWOutMortgHC15to20pct | DC74: H94HUWOutMortgHC20to25pct | DD74: H94HUWOutMortgHC25to30pct | DE74: H94HUWOutMortgHC30to35pct | DF74: H94HUWOutMortgHC35to40pct | DG74: H94HUWOutMortgHC40to50pct | DH74: H94HUWOutMortgHC50pctOrMore | DI74: H94HUWOutMortgHCpctNotComp | DJ74: H97SpecifOwnOccHU | DK74: H97SOOHUInc<10k | DL74: H97SOOHUInc<10kHC<20pct | DM74: H97SOOHUInc<10kHC20to25pct | DN74: H97SOOHUInc<10kHC25to30pct | DO74: H97SOOHUInc<10kHC30to35pct | DP74: H97SOOHUInc<10kHC>35pct | DQ74: H97SOOHUInc<10kHCpctNotComput | DR74: H97SOOHUInc10to20k | DS74: H97SOOHUInc10to20kHC<20pct | DT74: H97SOOHUInc10to20kHC20to25pct | DU74: H97SOOHUInc10to20kHC25to30pct | DV74: H97SOOHUInc10to20kHC30to35pct | DW74: H97SOOHUInc10to20kHC>35pct | DX74: H97SOOHUInc10to20kHCpctNotComput | DY74: H97SOOHUInc20to35k | DZ74: H97SOOHUInc20to35kRC<20pct | EA74: H97SOOHUInc20to35kRC20to25pct | EB74: H97SOOHUInc20to35kRC25to30pct | EC74: H97SOOHUInc20to35kRC30to35pct | ED74: H97SOOHUInc20to35kRC>35pct | EE74: H97SOOHUInc20to35kRCpctNotComput | EF74: H97SOOHUInc35to50k | EG74: H97SOOHUInc35to50kRC<20pct | EH74: H97SOOHUInc35to50kRC20to25pct | EI74: H97SOOHUInc35to50kRC25to30pct | EJ74: H97SOOHUInc35to50kRC30to35pct | EK74: H97SOOHUInc35to50kRC>35pct | EL74: H97SOOHUInc35to50kRCpctNotCompute | EM74: H97SOOHUInc50to75k | EN74: H97SOOHUInc50to75kRC<20pct | EO74: H97SOOHUInc50to75kRC20to25pct | EP74: H97SOOHUInc50to75kRC25to30pct | EQ74: H97SOOHUInc50to75kRC30to35pct | ER74: H97SOOHUInc50to75kRC>35pct | ES74: H97SOOHUInc50to75kRCpctNotComput | ET74: H97SOOHUInc75to100k | EU74: H97SOOHUInc75to100kRC<20pct | EV74: H97SOOHUInc75to100kRC20to25pct | EW74: H97SOOHUInc75to100kRC25to30pct | EX74: H97SOOHUInc75to100kRC30to35pct | EY74: H97SOOHUInc75to100kRC>35pct | EZ74: H97SOOHUInc75to100kRCpctNotCompute | FA74: H97SOOHUInc100to150k | FB74: H97SOOHUInc100to150kRC<20pct | FC74: H97SOOHUInc100to150kRC20to25pct | FD74: H97SOOHUInc100to150kRC25to30pct | FE74: H97SOOHUInc100to150kRC30to35pct | FF74: H97SOOHUInc100to150kRC>35pct | FG74: H97SOOHUInc100to150kRCpctNotCompute | FH74: H97SOOHUInc>150k | FI74: H97SOOHUInc>150kRC<20pct | FJ74: H97SOOHUInc>150kRC20to25pct | FK74: H97SOOHUInc>150kRC25to30pct | FL74: H97SOOHUInc>150kRC30to35pct | FM74: H97SOOHUInc>150kRC>35pct | FN74: H97SOOHUInc>150kRCpctNotCompute
A75: =VLOOKUP(DropDownList!$B$47,CntyQryCensus!$A$408:$FN$450,A$1) -> Berlin | B75: =VLOOKUP(DropDownList!$B$47,CntyQryCensus!$A$408:$FN$450,B$1) -> 0000833 | C75: =VLOOKUP(DropDownList!$B$47,CntyQryCensus!$A$408:$FN$450,C$1) -> 05140 | D75: =VLOOKUP(DropDownList!$B$47,CntyQryCensus!$A$408:$FN$450,D$1) -> 10331 | E75: =VLOOKUP(DropDownList!$B$47,CntyQryCensus!$A$408:$FN$450,E$1) -> 2110 | F75: =VLOOKUP(DropDownList!$B$47,CntyQryCensus!$A$408:$FN$450,F$1) -> 0 | G75: =VLOOKUP(DropDownList!$B$47,CntyQryCensus!$A$408:$FN$450,G$1) -> 0 | H75: =VLOOKUP(DropDownList!$B$47,CntyQryCensus!$A$408:$FN$450,H$1) -> 29 | I75: =VLOOKUP(DropDownList!$B$47,CntyQryCensus!$A$408:$FN$450,I$1) -> 80 | J75: =VLOOKUP(DropDownList!$B$47,CntyQryCensus!$A$408:$FN$450,J$1) -> 49 | K75: =VLOOKUP(DropDownList!$B$47,CntyQryCensus!$A$408:$FN$450,K$1) -> 102 | L75: =VLOOKUP(DropDownList!$B$47,CntyQryCensus!$A$408:$FN$450,L$1) -> 177 | M75: =VLOOKUP(DropDownList!$B$47,CntyQryCensus!$A$408:$FN$450,M$1) -> 314 | N75: =VLOOKUP(DropDownList!$B$47,CntyQryCensus!$A$408:$FN$450,N$1) -> 335 | O75: =VLOOKUP(DropDownList!$B$47,CntyQryCensus!$A$408:$FN$450,O$1) -> 389 | P75: =VLOOKUP(DropDownList!$B$47,CntyQryCensus!$A$408:$FN$450,P$1) -> 294 | Q75: =VLOOKUP(DropDownList!$B$47,CntyQryCensus!$A$408:$FN$450,Q$1) -> 146 | R75: =VLOOKUP(DropDownList!$B$47,CntyQryCensus!$A$408:$FN$450,R$1) -> 89 | S75: =VLOOKUP(DropDownList!$B$47,CntyQryCensus!$A$408:$FN$450,S$1) -> 64 | T75: =VLOOKUP(DropDownList!$B$47,CntyQryCensus!$A$408:$FN$450,T$1) -> 29 | U75: =VLOOKUP(DropDownList!$B$47,CntyQryCensus!$A$408:$FN$450,U$1) -> 8 | V75: =VLOOKUP(DropDownList!$B$47,CntyQryCensus!$A$408:$FN$450,V$1) -> 0 | W75: =VLOOKUP(DropDownList!$B$47,CntyQryCensus!$A$408:$FN$450,W$1) -> 0 | X75: =VLOOKUP(DropDownList!$B$47,CntyQryCensus!$A$408:$FN$450,X$1) -> 5 | Y75: =VLOOKUP(DropDownList!$B$47,CntyQryCensus!$A$408:$FN$450,Y$1) -> 0 | Z75: =VLOOKUP(DropDownList!$B$47,CntyQryCensus!$A$408:$FN$450,Z$1) -> 0 | AA75: =VLOOKUP(DropDownList!$B$47,CntyQryCensus!$A$408:$FN$450,AA$1) -> 0 | AB75: =VLOOKUP(DropDownList!$B$47,CntyQryCensus!$A$408:$FN$450,AB$1) -> 0 | AC75: =VLOOKUP(DropDownList!$B$47,CntyQryCensus!$A$408:$FN$450,AC$1) -> 0 | AD75: =VLOOKUP(DropDownList!$B$47,CntyQryCensus!$A$408:$FN$450,AD$1) -> 59100 | AE75: =VLOOKUP(DropDownList!$B$47,CntyQryCensus!$A$408:$FN$450,AE$1) -> 2788 | AF75: =VLOOKUP(DropDownList!$B$47,CntyQryCensus!$A$408:$FN$450,AF$1) -> 14 | AG75: =VLOOKUP(DropDownList!$B$47,CntyQryCensus!$A$408:$FN$450,AG$1) -> 31 | AH75: =VLOOKUP(DropDownList!$B$47,CntyQryCensus!$A$408:$FN$450,AH$1) -> 43 | AI75: =VLOOKUP(DropDownList!$B$47,CntyQryCensus!$A$408:$FN$450,AI$1) -> 126 | AJ75: =VLOOKUP(DropDownList!$B$47,CntyQryCensus!$A$408:$FN$450,AJ$1) -> 81 | AK75: =VLOOKUP(DropDownList!$B$47,CntyQryCensus!$A$408:$FN$450,AK$1) -> 165 | AL75: =VLOOKUP(DropDownList!$B$47,CntyQryCensus!$A$408:$FN$450,AL$1) -> 224 | AM75: =VLOOKUP(DropDownList!$B$47,CntyQryCensus!$A$408:$FN$450,AM$1) -> 387 | AN75: =VLOOKUP(DropDownList!$B$47,CntyQryCensus!$A$408:$FN$450,AN$1) -> 431 | AO75: =VLOOKUP(DropDownList!$B$47,CntyQryCensus!$A$408:$FN$450,AO$1) -> 519 | AP75: =VLOOKUP(DropDownList!$B$47,CntyQryCensus!$A$408:$FN$450,AP$1) -> 349 | AQ75: =VLOOKUP(DropDownList!$B$47,CntyQryCensus!$A$408:$FN$450,AQ$1) -> 168 | AR75: =VLOOKUP(DropDownList!$B$47,CntyQryCensus!$A$408:$FN$450,AR$1) -> 101 | AS75: =VLOOKUP(DropDownList!$B$47,CntyQryCensus!$A$408:$FN$450,AS$1) -> 71 | AT75: =VLOOKUP(DropDownList!$B$47,CntyQryCensus!$A$408:$FN$450,AT$1) -> 29 | AU75: =VLOOKUP(DropDownList!$B$47,CntyQryCensus!$A$408:$FN$450,AU$1) -> 13 | AV75: =VLOOKUP(DropDownList!$B$47,CntyQryCensus!$A$408:$FN$450,AV$1) -> 6 | AW75: =VLOOKUP(DropDownList!$B$47,CntyQryCensus!$A$408:$FN$450,AW$1) -> 0 | AX75: =VLOOKUP(DropDownList!$B$47,CntyQryCensus!$A$408:$FN$450,AX$1) -> 25 | AY75: =VLOOKUP(DropDownList!$B$47,CntyQryCensus!$A$408:$FN$450,AY$1) -> 0 | AZ75: =VLOOKUP(DropDownList!$B$47,CntyQryCensus!$A$408:$FN$450,AZ$1) -> 5 | BA75: =VLOOKUP(DropDownList!$B$47,CntyQryCensus!$A$408:$FN$450,BA$1) -> 0 | BB75: =VLOOKUP(DropDownList!$B$47,CntyQryCensus!$A$408:$FN$450,BB$1) -> 0 | BC75: =VLOOKUP(DropDownList!$B$47,CntyQryCensus!$A$408:$FN$450,BC$1) -> 0 | BD75: =VLOOKUP(DropDownList!$B$47,CntyQryCensus!$A$408:$FN$450,BD$1) -> 57500 | BE75: =VLOOKUP(DropDownList!$B$47,CntyQryCensus!$A$408:$FN$450,BE$1) -> 2110 | BF75: =VLOOKUP(DropDownList!$B$47,CntyQryCensus!$A$408:$FN$450,BF$1) -> 1119 | BG75: =VLOOKUP(DropDownList!$B$47,CntyQryCensus!$A$408:$FN$450,BG$1) -> 0 | BH75: =VLOOKUP(DropDownList!$B$47,CntyQryCensus!$A$408:$FN$450,BH$1) -> 0 | BI75: =VLOOKUP(DropDownList!$B$47,CntyQryCensus!$A$408:$FN$450,BI$1) -> 20 | BJ75: =VLOOKUP(DropDownList!$B$47,CntyQryCensus!$A$408:$FN$450,BJ$1) -> 83 | BK75: =VLOOKUP(DropDownList!$B$47,CntyQryCensus!$A$408:$FN$450,BK$1) -> 172 | BL75: =VLOOKUP(DropDownList!$B$47,CntyQryCensus!$A$408:$FN$450,BL$1) -> 149 | BM75: =VLOOKUP(DropDownList!$B$47,CntyQryCensus!$A$408:$FN$450,BM$1) -> 197 | BN75: =VLOOKUP(DropDownList!$B$47,CntyQryCensus!$A$408:$FN$450,BN$1) -> 215 | BO75: =VLOOKUP(DropDownList!$B$47,CntyQryCensus!$A$408:$FN$450,BO$1) -> 98 | BP75: =VLOOKUP(DropDownList!$B$47,CntyQryCensus!$A$408:$FN$450,BP$1) -> 102 | BQ75: =VLOOKUP(DropDownList!$B$47,CntyQryCensus!$A$408:$FN$450,BQ$1) -> 59 | BR75: =VLOOKUP(DropDownList!$B$47,CntyQryCensus!$A$408:$FN$450,BR$1) -> 24 | BS75: =VLOOKUP(DropDownList!$B$47,CntyQryCensus!$A$408:$FN$450,BS$1) -> 0 | BT75: =VLOOKUP(DropDownList!$B$47,CntyQryCensus!$A$408:$FN$450,BT$1) -> 0 | BU75: =VLOOKUP(DropDownList!$B$47,CntyQryCensus!$A$408:$FN$450,BU$1) -> 0 | BV75: =VLOOKUP(DropDownList!$B$47,CntyQryCensus!$A$408:$FN$450,BV$1) -> 991 | BW75: =VLOOKUP(DropDownList!$B$47,CntyQryCensus!$A$408:$FN$450,BW$1) -> 0 | BX75: =VLOOKUP(DropDownList!$B$47,CntyQryCensus!$A$408:$FN$450,BX$1) -> 0 | BY75: =VLOOKUP(DropDownList!$B$47,CntyQryCensus!$A$408:$FN$450,BY$1) -> 29 | BZ75: =VLOOKUP(DropDownList!$B$47,CntyQryCensus!$A$408:$FN$450,BZ$1) -> 46 | CA75: =VLOOKUP(DropDownList!$B$47,CntyQryCensus!$A$408:$FN$450,CA$1) -> 74 | CB75: =VLOOKUP(DropDownList!$B$47,CntyQryCensus!$A$408:$FN$450,CB$1) -> 181 | CC75: =VLOOKUP(DropDownList!$B$47,CntyQryCensus!$A$408:$FN$450,CC$1) -> 240 | CD75: =VLOOKUP(DropDownList!$B$47,CntyQryCensus!$A$408:$FN$450,CD$1) -> 310 | CE75: =VLOOKUP(DropDownList!$B$47,CntyQryCensus!$A$408:$FN$450,CE$1) -> 99 | CF75: =VLOOKUP(DropDownList!$B$47,CntyQryCensus!$A$408:$FN$450,CF$1) -> 7 | CG75: =VLOOKUP(DropDownList!$B$47,CntyQryCensus!$A$408:$FN$450,CG$1) -> 0 | CH75: =VLOOKUP(DropDownList!$B$47,CntyQryCensus!$A$408:$FN$450,CH$1) -> 0 | CI75: =VLOOKUP(DropDownList!$B$47,CntyQryCensus!$A$408:$FN$450,CI$1) -> 0 | CJ75: =VLOOKUP(DropDownList!$B$47,CntyQryCensus!$A$408:$FN$450,CJ$1) -> 5 | CK75: =VLOOKUP(DropDownList!$B$47,CntyQryCensus!$A$408:$FN$450,CK$1) -> 769 | CL75: =VLOOKUP(DropDownList!$B$47,CntyQryCensus!$A$408:$FN$450,CL$1) -> 384 | CM75: =VLOOKUP(DropDownList!$B$47,CntyQryCensus!$A$408:$FN$450,CM$1) -> 2110 | CN75: =VLOOKUP(DropDownList!$B$47,CntyQryCensus!$A$408:$FN$450,CN$1) -> 1119 | CO75: =VLOOKUP(DropDownList!$B$47,CntyQryCensus!$A$408:$FN$450,CO$1) -> 47 | CP75: =VLOOKUP(DropDownList!$B$47,CntyQryCensus!$A$408:$FN$450,CP$1) -> 236 | CQ75: =VLOOKUP(DropDownList!$B$47,CntyQryCensus!$A$408:$FN$450,CQ$1) -> 366 | CR75: =VLOOKUP(DropDownList!$B$47,CntyQryCensus!$A$408:$FN$450,CR$1) -> 193 | CS75: =VLOOKUP(DropDownList!$B$47,CntyQryCensus!$A$408:$FN$450,CS$1) -> 89 | CT75: =VLOOKUP(DropDownList!$B$47,CntyQryCensus!$A$408:$FN$450,CT$1) -> 45 | CU75: =VLOOKUP(DropDownList!$B$47,CntyQryCensus!$A$408:$FN$450,CU$1) -> 34 | CV75: =VLOOKUP(DropDownList!$B$47,CntyQryCensus!$A$408:$FN$450,CV$1) -> 44 | CW75: =VLOOKUP(DropDownList!$B$47,CntyQryCensus!$A$408:$FN$450,CW$1) -> 51 | CX75: =VLOOKUP(DropDownList!$B$47,CntyQryCensus!$A$408:$FN$450,CX$1) -> 14 | CY75: =VLOOKUP(DropDownList!$B$47,CntyQryCensus!$A$408:$FN$450,CY$1) -> 991 | CZ75: =VLOOKUP(DropDownList!$B$47,CntyQryCensus!$A$408:$FN$450,CZ$1) -> 213 | DA75: =VLOOKUP(DropDownList!$B$47,CntyQryCensus!$A$408:$FN$450,DA$1) -> 272 | DB75: =VLOOKUP(DropDownList!$B$47,CntyQryCensus!$A$408:$FN$450,DB$1) -> 131 | DC75: =VLOOKUP(DropDownList!$B$47,CntyQryCensus!$A$408:$FN$450,DC$1) -> 115 | DD75: =VLOOKUP(DropDownList!$B$47,CntyQryCensus!$A$408:$FN$450,DD$1) -> 76 | DE75: =VLOOKUP(DropDownList!$B$47,CntyQryCensus!$A$408:$FN$450,DE$1) -> 48 | DF75: =VLOOKUP(DropDownList!$B$47,CntyQryCensus!$A$408:$FN$450,DF$1) -> 29 | DG75: =VLOOKUP(DropDownList!$B$47,CntyQryCensus!$A$408:$FN$450,DG$1) -> 48 | DH75: =VLOOKUP(DropDownList!$B$47,CntyQryCensus!$A$408:$FN$450,DH$1) -> 46 | DI75: =VLOOKUP(DropDownList!$B$47,CntyQryCensus!$A$408:$FN$450,DI$1) -> 13 | DJ75: =VLOOKUP(DropDownList!$B$47,CntyQryCensus!$A$408:$FN$450,DJ$1) -> 2110 | DK75: =VLOOKUP(DropDownList!$B$47,CntyQryCensus!$A$408:$FN$450,DK$1) -> 139 | DL75: =VLOOKUP(DropDownList!$B$47,CntyQryCensus!$A$408:$FN$450,DL$1) -> 0 | DM75: =VLOOKUP(DropDownList!$B$47,CntyQryCensus!$A$408:$FN$450,DM$1) -> 8 | DN75: =VLOOKUP(DropDownList!$B$47,CntyQryCensus!$A$408:$FN$450,DN$1) -> 0 | DO75: =VLOOKUP(DropDownList!$B$47,CntyQryCensus!$A$408:$FN$450,DO$1) -> 16 | DP75: =VLOOKUP(DropDownList!$B$47,CntyQryCensus!$A$408:$FN$450,DP$1) -> 88 | DQ75: =VLOOKUP(DropDownList!$B$47,CntyQryCensus!$A$408:$FN$450,DQ$1) -> 27 | DR75: =VLOOKUP(DropDownList!$B$47,CntyQryCensus!$A$408:$FN$450,DR$1) -> 268 | DS75: =VLOOKUP(DropDownList!$B$47,CntyQryCensus!$A$408:$FN$450,DS$1) -> 37 | DT75: =VLOOKUP(DropDownList!$B$47,CntyQryCensus!$A$408:$FN$450,DT$1) -> 29 | DU75: =VLOOKUP(DropDownList!$B$47,CntyQryCensus!$A$408:$FN$450,DU$1) -> 58 | DV75: =VLOOKUP(DropDownList!$B$47,CntyQryCensus!$A$408:$FN$450,DV$1) -> 43 | DW75: =VLOOKUP(DropDownList!$B$47,CntyQryCensus!$A$408:$FN$450,DW$1) -> 101 | DX75: =VLOOKUP(DropDownList!$B$47,CntyQryCensus!$A$408:$FN$450,DX$1) -> 0 | DY75: =VLOOKUP(DropDownList!$B$47,CntyQryCensus!$A$408:$FN$450,DY$1) -> 384 | DZ75: =VLOOKUP(DropDownList!$B$47,CntyQryCensus!$A$408:$FN$450,DZ$1) -> 181 | EA75: =VLOOKUP(DropDownList!$B$47,CntyQryCensus!$A$408:$FN$450,EA$1) -> 106 | EB75: =VLOOKUP(DropDownList!$B$47,CntyQryCensus!$A$408:$FN$450,EB$1) -> 63 | EC75: =VLOOKUP(DropDownList!$B$47,CntyQryCensus!$A$408:$FN$450,EC$1) -> 6 | ED75: =VLOOKUP(DropDownList!$B$47,CntyQryCensus!$A$408:$FN$450,ED$1) -> 28 | EE75: =VLOOKUP(DropDownList!$B$47,CntyQryCensus!$A$408:$FN$450,EE$1) -> 0 | EF75: =VLOOKUP(DropDownList!$B$47,CntyQryCensus!$A$408:$FN$450,EF$1) -> 528 | EG75: =VLOOKUP(DropDownList!$B$47,CntyQryCensus!$A$408:$FN$450,EG$1) -> 339 | EH75: =VLOOKUP(DropDownList!$B$47,CntyQryCensus!$A$408:$FN$450,EH$1) -> 103 | EI75: =VLOOKUP(DropDownList!$B$47,CntyQryCensus!$A$408:$FN$450,EI$1) -> 23 | EJ75: =VLOOKUP(DropDownList!$B$47,CntyQryCensus!$A$408:$FN$450,EJ$1) -> 28 | EK75: =VLOOKUP(DropDownList!$B$47,CntyQryCensus!$A$408:$FN$450,EK$1) -> 35 | EL75: =VLOOKUP(DropDownList!$B$47,CntyQryCensus!$A$408:$FN$450,EL$1) -> 0 | EM75: =VLOOKUP(DropDownList!$B$47,CntyQryCensus!$A$408:$FN$450,EM$1) -> 586 | EN75: =VLOOKUP(DropDownList!$B$47,CntyQryCensus!$A$408:$FN$450,EN$1) -> 508 | EO75: =VLOOKUP(DropDownList!$B$47,CntyQryCensus!$A$408:$FN$450,EO$1) -> 57 | EP75: =VLOOKUP(DropDownList!$B$47,CntyQryCensus!$A$408:$FN$450,EP$1) -> 21 | EQ75: =VLOOKUP(DropDownList!$B$47,CntyQryCensus!$A$408:$FN$450,EQ$1) -> 0 | ER75: =VLOOKUP(DropDownList!$B$47,CntyQryCensus!$A$408:$FN$450,ER$1) -> 0 | ES75: =VLOOKUP(DropDownList!$B$47,CntyQryCensus!$A$408:$FN$450,ES$1) -> 0 | ET75: =VLOOKUP(DropDownList!$B$47,CntyQryCensus!$A$408:$FN$450,ET$1) -> 135 | EU75: =VLOOKUP(DropDownList!$B$47,CntyQryCensus!$A$408:$FN$450,EU$1) -> 130 | EV75: =VLOOKUP(DropDownList!$B$47,CntyQryCensus!$A$408:$FN$450,EV$1) -> 5 | EW75: =VLOOKUP(DropDownList!$B$47,CntyQryCensus!$A$408:$FN$450,EW$1) -> 0 | EX75: =VLOOKUP(DropDownList!$B$47,CntyQryCensus!$A$408:$FN$450,EX$1) -> 0 | EY75: =VLOOKUP(DropDownList!$B$47,CntyQryCensus!$A$408:$FN$450,EY$1) -> 0 | EZ75: =VLOOKUP(DropDownList!$B$47,CntyQryCensus!$A$408:$FN$450,EZ$1) -> 0 | FA75: =VLOOKUP(DropDownList!$B$47,CntyQryCensus!$A$408:$FN$450,FA$1) -> 61 | FB75: =VLOOKUP(DropDownList!$B$47,CntyQryCensus!$A$408:$FN$450,FB$1) -> 61 | FC75: =VLOOKUP(DropDownList!$B$47,CntyQryCensus!$A$408:$FN$450,FC$1) -> 0 | FD75: =VLOOKUP(DropDownList!$B$47,CntyQryCensus!$A$408:$FN$450,FD$1) -> 0 | FE75: =VLOOKUP(DropDownList!$B$47,CntyQryCensus!$A$408:$FN$450,FE$1) -> 0 | FF75: =VLOOKUP(DropDownList!$B$47,CntyQryCensus!$A$408:$FN$450,FF$1) -> 0 | FG75: =VLOOKUP(DropDownList!$B$47,CntyQryCensus!$A$408:$FN$450,FG$1) -> 0 | FH75: =VLOOKUP(DropDownList!$B$47,CntyQryCensus!$A$408:$FN$450,FH$1) -> 9 | FI75: =VLOOKUP(DropDownList!$B$47,CntyQryCensus!$A$408:$FN$450,FI$1) -> 9 | FJ75: =VLOOKUP(DropDownList!$B$47,CntyQryCensus!$A$408:$FN$450,FJ$1) -> 0 | FK75: =VLOOKUP(DropDownList!$B$47,CntyQryCensus!$A$408:$FN$450,FK$1) -> 0 | FL75: =VLOOKUP(DropDownList!$B$47,CntyQryCensus!$A$408:$FN$450,FL$1) -> 0 | FM75: =VLOOKUP(DropDownList!$B$47,CntyQryCensus!$A$408:$FN$450,FM$1) -> 0 | FN75: =VLOOKUP(DropDownList!$B$47,CntyQryCensus!$A$408:$FN$450,FN$1) -> 0
A78: Census 2000 SummaryFile3 Sample Data - SF3TownQry9HHIncomeByTenure
A79: NAME | B79: LOGRECNO | C79: COUNTY | D79: TotalPop | E79: HCT11OccHU | F79: HCT11OwnOccHU | G79: HCT11OOHUInc<5K | H79: HCT11OOHUInc5to10K | I79: HCT11OOHUInc10to15K | J79: HCT11OOHUInc15to20K | K79: HCT11OOHUInc20to25K | L79: HCT11OOHUInc25to35K | M79: HCT11OOHUInc35to50K | N79: HCT11OOHUInc50to75K | O79: HCT11OOHUInc75to100K | P79: HCT11OOHUInc100to150K | Q79: HCT11OOHUInc>150K | R79: HCT11RentOccHU | S79: HCT11ROHUInc<5K | T79: HCT11ROHUInc5to10K | U79: HCT11ROHUInc10to15K | V79: HCT11ROHUInc15to20K | W79: HCT11ROHUInc20to25K | X79: HCT11ROHUInc25to35K | Y79: HCT11ROHUInc35to50K | Z79: HCT11ROHUInc50to75K | AA79: HCT11ROHUInc75to100K | AB79: HCT11ROHUInc100to150K | AC79: HCT11ROHUInc>150K | AD79: HCT12MedHHInc | AE79: HCT12MedOwnOccHHInc | AF79: HCT12MedRentOccHHInc | AG79: Summary Level
A80: =VLOOKUP(DropDownList!$B$47,CntyQryCensus!$A$459:$AG$501,A$1) -> Berlin | B80: =VLOOKUP(DropDownList!$B$47,CntyQryCensus!$A$459:$AG$501,B$1) -> 0000833 | C80: =VLOOKUP(DropDownList!$B$47,CntyQryCensus!$A$459:$AG$501,C$1) -> 05140 | D80: =VLOOKUP(DropDownList!$B$47,CntyQryCensus!$A$459:$AG$501,D$1) -> 10331 | E80: =VLOOKUP(DropDownList!$B$47,CntyQryCensus!$A$459:$AG$501,E$1) -> 4555 | F80: =VLOOKUP(DropDownList!$B$47,CntyQryCensus!$A$459:$AG$501,F$1) -> 2788 | G80: =VLOOKUP(DropDownList!$B$47,CntyQryCensus!$A$459:$AG$501,G$1) -> 45 | H80: =VLOOKUP(DropDownList!$B$47,CntyQryCensus!$A$459:$AG$501,H$1) -> 140 | I80: =VLOOKUP(DropDownList!$B$47,CntyQryCensus!$A$459:$AG$501,I$1) -> 221 | J80: =VLOOKUP(DropDownList!$B$47,CntyQryCensus!$A$459:$AG$501,J$1) -> 199 | K80: =VLOOKUP(DropDownList!$B$47,CntyQryCensus!$A$459:$AG$501,K$1) -> 191 | L80: =VLOOKUP(DropDownList!$B$47,CntyQryCensus!$A$459:$AG$501,L$1) -> 365 | M80: =VLOOKUP(DropDownList!$B$47,CntyQryCensus!$A$459:$AG$501,M$1) -> 681 | N80: =VLOOKUP(DropDownList!$B$47,CntyQryCensus!$A$459:$AG$501,N$1) -> 678 | O80: =VLOOKUP(DropDownList!$B$47,CntyQryCensus!$A$459:$AG$501,O$1) -> 158 | P80: =VLOOKUP(DropDownList!$B$47,CntyQryCensus!$A$459:$AG$501,P$1) -> 93 | Q80: =VLOOKUP(DropDownList!$B$47,CntyQryCensus!$A$459:$AG$501,Q$1) -> 17 | R80: =VLOOKUP(DropDownList!$B$47,CntyQryCensus!$A$459:$AG$501,R$1) -> 1767 | S80: =VLOOKUP(DropDownList!$B$47,CntyQryCensus!$A$459:$AG$501,S$1) -> 92 | T80: =VLOOKUP(DropDownList!$B$47,CntyQryCensus!$A$459:$AG$501,T$1) -> 402 | U80: =VLOOKUP(DropDownList!$B$47,CntyQryCensus!$A$459:$AG$501,U$1) -> 278 | V80: =VLOOKUP(DropDownList!$B$47,CntyQryCensus!$A$459:$AG$501,V$1) -> 222 | W80: =VLOOKUP(DropDownList!$B$47,CntyQryCensus!$A$459:$AG$501,W$1) -> 166 | X80: =VLOOKUP(DropDownList!$B$47,CntyQryCensus!$A$459:$AG$501,X$1) -> 290 | Y80: =VLOOKUP(DropDownList!$B$47,CntyQryCensus!$A$459:$AG$501,Y$1) -> 181 | Z80: =VLOOKUP(DropDownList!$B$47,CntyQryCensus!$A$459:$AG$501,Z$1) -> 93 | AA80: =VLOOKUP(DropDownList!$B$47,CntyQryCensus!$A$459:$AG$501,AA$1) -> 17 | AB80: =VLOOKUP(DropDownList!$B$47,CntyQryCensus!$A$459:$AG$501,AB$1) -> 19 | AC80: =VLOOKUP(DropDownList!$B$47,CntyQryCensus!$A$459:$AG$501,AC$1) -> 7 | AD80: =VLOOKUP(DropDownList!$B$47,CntyQryCensus!$A$459:$AG$501,AD$1) -> 29566 | AE80: =VLOOKUP(DropDownList!$B$47,CntyQryCensus!$A$459:$AG$501,AE$1) -> 40000 | AF80: =VLOOKUP(DropDownList!$B$47,CntyQryCensus!$A$459:$AG$501,AF$1) -> 17080 | AG80: =VLOOKUP(DropDownList!$B$47,CntyQryCensus!$A$459:$AG$501,AG$1) -> 060
A86: =VLOOKUP(DropDownList!$B$47,CntyQryCensus!$A$510:$DA$552,A$1) -> Berlin
A94: Census 2000 SummaryFile3 Sample Data - SF3TownQry10Disabil
A95: NAME | B95: LOGRECNO | C95: COUNTY | D95: TotalPop | E95: PCT026001-NonInstPop5yrs+ | F95: PCT026002-MaleNonInstPop5yrs+ | G95: PCT026003 | H95: PCT026004 | I95: PCT026005 | J95: PCT026006 | K95: PCT026007 | L95: PCT026008 | M95: PCT026009 | N95: PCT026010 | O95: PCT026011 | P95: PCT026012 | Q95: PCT026013 | R95: PCT026014 | S95: PCT026015 | T95: PCT026016 | U95: PCT026017 | V95: PCT026018 | W95: PCT026019 | X95: PCT026020 | Y95: PCT026021 | Z95: PCT026022 | AA95: PCT026023 | AB95: PCT026024 | AC95: PCT026025 | AD95: PCT026026 | AE95: PCT026027 | AF95: PCT026028 | AG95: PCT026029 | AH95: PCT026030 | AI95: PCT026031 | AJ95: PCT026032 | AK95: PCT026033 | AL95: PCT026034 | AM95: PCT026035 | AN95: PCT026036 | AO95: PCT026037 | AP95: PCT026038 | AQ95: PCT026039 | AR95: PCT026040 | AS95: PCT026041 | AT95: PCT026042 | AU95: PCT026043 | AV95: PCT026044 | AW95: PCT026045 | AX95: PCT026046 | AY95: PCT026047 | AZ95: PCT026048 | BA95: PCT026049 | BB95: PCT026050 | BC95: PCT026051 | BD95: PCT026052 | BE95: PCT026053 | BF95: PCT026054 | BG95: PCT026055 | BH95: PCT026056 | BI95: PCT026057 | BJ95: PCT026058 | BK95: PCT026059 | BL95: PCT026060 | BM95: PCT026061 | BN95: PCT026062 | BO95: PCT026063 | BP95: PCT026064 | BQ95: PCT026065 | BR95: PCT026066 | BS95: PCT026067 | BT95: PCT026068 | BU95: PCT026069 | BV95: PCT026070 | BW95: PCT026071 | BX95: PCT026072 | BY95: PCT026073 | BZ95: PCT026074 | CA95: PCT026075 | CB95: PCT026076 | CC95: PCT026077 | CD95: PCT026078 | CE95: PCT026079 | CF95: PCT026080 | CG95: PCT026081 | CH95: PCT026082 | CI95: PCT026083 | CJ95: PCT026084 | CK95: PCT026085 | CL95: PCT026086 | CM95: PCT026087 | CN95: PCT026088 | CO95: PCT026089 | CP95: PCT026090 | CQ95: PCT026091 | CR95: PCT026092 | CS95: PCT026093 | CT95: PCT026094 | CU95: PCT026095 | CV95: PCT026096 | CW95: PCT026097 | CX95: PCT026098 | CY95: PCT026099 | CZ95: PCT026100 | DA95: PCT026101
A96: =VLOOKUP(DropDownList!$B$47,CntyQryCensus!$A$510:$DA$552,A$1) -> Berlin | B96: =VLOOKUP(DropDownList!$B$47,CntyQryCensus!$A$510:$DA$552,B$1) -> 0000833 | C96: =VLOOKUP(DropDownList!$B$47,CntyQryCensus!$A$510:$DA$552,C$1) -> 05140 | D96: =VLOOKUP(DropDownList!$B$47,CntyQryCensus!$A$510:$DA$552,D$1) -> 10331 | E96: =VLOOKUP(DropDownList!$B$47,CntyQryCensus!$A$510:$DA$552,E$1) -> 9612 | F96: =VLOOKUP(DropDownList!$B$47,CntyQryCensus!$A$510:$DA$552,F$1) -> 4593 | G96: =VLOOKUP(DropDownList!$B$47,CntyQryCensus!$A$510:$DA$552,G$1) -> 750 | H96: =VLOOKUP(DropDownList!$B$47,CntyQryCensus!$A$510:$DA$552,H$1) -> 79 | I96: =VLOOKUP(DropDownList!$B$47,CntyQryCensus!$A$510:$DA$552,I$1) -> 11 | J96: =VLOOKUP(DropDownList!$B$47,CntyQryCensus!$A$510:$DA$552,J$1) -> 0 | K96: =VLOOKUP(DropDownList!$B$47,CntyQryCensus!$A$510:$DA$552,K$1) -> 68 | L96: =VLOOKUP(DropDownList!$B$47,CntyQryCensus!$A$510:$DA$552,L$1) -> 0 | M96: =VLOOKUP(DropDownList!$B$47,CntyQryCensus!$A$510:$DA$552,M$1) -> 0 | N96: =VLOOKUP(DropDownList!$B$47,CntyQryCensus!$A$510:$DA$552,N$1) -> 0 | O96: =VLOOKUP(DropDownList!$B$47,CntyQryCensus!$A$510:$DA$552,O$1) -> 0 | P96: =VLOOKUP(DropDownList!$B$47,CntyQryCensus!$A$510:$DA$552,P$1) -> 671 | Q96: =VLOOKUP(DropDownList!$B$47,CntyQryCensus!$A$510:$DA$552,Q$1) -> 291 | R96: =VLOOKUP(DropDownList!$B$47,CntyQryCensus!$A$510:$DA$552,R$1) -> 20 | S96: =VLOOKUP(DropDownList!$B$47,CntyQryCensus!$A$510:$DA$552,S$1) -> 5 | T96: =VLOOKUP(DropDownList!$B$47,CntyQryCensus!$A$510:$DA$552,T$1) -> 0 | U96: =VLOOKUP(DropDownList!$B$47,CntyQryCensus!$A$510:$DA$552,U$1) -> 0 | V96: =VLOOKUP(DropDownList!$B$47,CntyQryCensus!$A$510:$DA$552,V$1) -> 0 | W96: =VLOOKUP(DropDownList!$B$47,CntyQryCensus!$A$510:$DA$552,W$1) -> 5 | X96: =VLOOKUP(DropDownList!$B$47,CntyQryCensus!$A$510:$DA$552,X$1) -> 10 | Y96: =VLOOKUP(DropDownList!$B$47,CntyQryCensus!$A$510:$DA$552,Y$1) -> 17 | Z96: =VLOOKUP(DropDownList!$B$47,CntyQryCensus!$A$510:$DA$552,Z$1) -> 0 | AA96: =VLOOKUP(DropDownList!$B$47,CntyQryCensus!$A$510:$DA$552,AA$1) -> 17 | AB96: =VLOOKUP(DropDownList!$B$47,CntyQryCensus!$A$510:$DA$552,AB$1) -> 0 | AC96: =VLOOKUP(DropDownList!$B$47,CntyQryCensus!$A$510:$DA$552,AC$1) -> 17 | AD96: =VLOOKUP(DropDownList!$B$47,CntyQryCensus!$A$510:$DA$552,AD$1) -> 254 | AE96: =VLOOKUP(DropDownList!$B$47,CntyQryCensus!$A$510:$DA$552,AE$1) -> 2687 | AF96: =VLOOKUP(DropDownList!$B$47,CntyQryCensus!$A$510:$DA$552,AF$1) -> 433 | AG96: =VLOOKUP(DropDownList!$B$47,CntyQryCensus!$A$510:$DA$552,AG$1) -> 71 | AH96: =VLOOKUP(DropDownList!$B$47,CntyQryCensus!$A$510:$DA$552,AH$1) -> 93 | AI96: =VLOOKUP(DropDownList!$B$47,CntyQryCensus!$A$510:$DA$552,AI$1) -> 16 | AJ96: =VLOOKUP(DropDownList!$B$47,CntyQryCensus!$A$510:$DA$552,AJ$1) -> 0 | AK96: =VLOOKUP(DropDownList!$B$47,CntyQryCensus!$A$510:$DA$552,AK$1) -> 7 | AL96: =VLOOKUP(DropDownList!$B$47,CntyQryCensus!$A$510:$DA$552,AL$1) -> 246 | AM96: =VLOOKUP(DropDownList!$B$47,CntyQryCensus!$A$510:$DA$552,AM$1) -> 341 | AN96: =VLOOKUP(DropDownList!$B$47,CntyQryCensus!$A$510:$DA$552,AN$1) -> 50 | AO96: =VLOOKUP(DropDownList!$B$47,CntyQryCensus!$A$510:$DA$552,AO$1) -> 291 | AP96: =VLOOKUP(DropDownList!$B$47,CntyQryCensus!$A$510:$DA$552,AP$1) -> 91 | AQ96: =VLOOKUP(DropDownList!$B$47,CntyQryCensus!$A$510:$DA$552,AQ$1) -> 200 | AR96: =VLOOKUP(DropDownList!$B$47,CntyQryCensus!$A$510:$DA$552,AR$1) -> 1913 | AS96: =VLOOKUP(DropDownList!$B$47,CntyQryCensus!$A$510:$DA$552,AS$1) -> 865 | AT96: =VLOOKUP(DropDownList!$B$47,CntyQryCensus!$A$510:$DA$552,AT$1) -> 206 | AU96: =VLOOKUP(DropDownList!$B$47,CntyQryCensus!$A$510:$DA$552,AU$1) -> 10 | AV96: =VLOOKUP(DropDownList!$B$47,CntyQryCensus!$A$510:$DA$552,AV$1) -> 104 | AW96: =VLOOKUP(DropDownList!$B$47,CntyQryCensus!$A$510:$DA$552,AW$1) -> 18 | AX96: =VLOOKUP(DropDownList!$B$47,CntyQryCensus!$A$510:$DA$552,AX$1) -> 0 | AY96: =VLOOKUP(DropDownList!$B$47,CntyQryCensus!$A$510:$DA$552,AY$1) -> 74 | AZ96: =VLOOKUP(DropDownList!$B$47,CntyQryCensus!$A$510:$DA$552,AZ$1) -> 231 | BA96: =VLOOKUP(DropDownList!$B$47,CntyQryCensus!$A$510:$DA$552,BA$1) -> 102 | BB96: =VLOOKUP(DropDownList!$B$47,CntyQryCensus!$A$510:$DA$552,BB$1) -> 129 | BC96: =VLOOKUP(DropDownList!$B$47,CntyQryCensus!$A$510:$DA$552,BC$1) -> 428 | BD96: =VLOOKUP(DropDownList!$B$47,CntyQryCensus!$A$510:$DA$552,BD$1) -> 5019 | BE96: =VLOOKUP(DropDownList!$B$47,CntyQryCensus!$A$510:$DA$552,BE$1) -> 643 | BF96: =VLOOKUP(DropDownList!$B$47,CntyQryCensus!$A$510:$DA$552,BF$1) -> 36 | BG96: =VLOOKUP(DropDownList!$B$47,CntyQryCensus!$A$510:$DA$552,BG$1) -> 0 | BH96: =VLOOKUP(DropDownList!$B$47,CntyQryCensus!$A$510:$DA$552,BH$1) -> 5 | BI96: =VLOOKUP(DropDownList!$B$47,CntyQryCensus!$A$510:$DA$552,BI$1) -> 31 | BJ96: =VLOOKUP(DropDownList!$B$47,CntyQryCensus!$A$510:$DA$552,BJ$1) -> 0 | BK96: =VLOOKUP(DropDownList!$B$47,CntyQryCensus!$A$510:$DA$552,BK$1) -> 0 | BL96: =VLOOKUP(DropDownList!$B$47,CntyQryCensus!$A$510:$DA$552,BL$1) -> 0 | BM96: =VLOOKUP(DropDownList!$B$47,CntyQryCensus!$A$510:$DA$552,BM$1) -> 0 | BN96: =VLOOKUP(DropDownList!$B$47,CntyQryCensus!$A$510:$DA$552,BN$1) -> 607 | BO96: =VLOOKUP(DropDownList!$B$47,CntyQryCensus!$A$510:$DA$552,BO$1) -> 325 | BP96: =VLOOKUP(DropDownList!$B$47,CntyQryCensus!$A$510:$DA$552,BP$1) -> 23 | BQ96: =VLOOKUP(DropDownList!$B$47,CntyQryCensus!$A$510:$DA$552,BQ$1) -> 0 | BR96: =VLOOKUP(DropDownList!$B$47,CntyQryCensus!$A$510:$DA$552,BR$1) -> 6 | BS96: =VLOOKUP(DropDownList!$B$47,CntyQryCensus!$A$510:$DA$552,BS$1) -> 0 | BT96: =VLOOKUP(DropDownList!$B$47,CntyQryCensus!$A$510:$DA$552,BT$1) -> 0 | BU96: =VLOOKUP(DropDownList!$B$47,CntyQryCensus!$A$510:$DA$552,BU$1) -> 0 | BV96: =VLOOKUP(DropDownList!$B$47,CntyQryCensus!$A$510:$DA$552,BV$1) -> 17 | BW96: =VLOOKUP(DropDownList!$B$47,CntyQryCensus!$A$510:$DA$552,BW$1) -> 10 | BX96: =VLOOKUP(DropDownList!$B$47,CntyQryCensus!$A$510:$DA$552,BX$1) -> 5 | BY96: =VLOOKUP(DropDownList!$B$47,CntyQryCensus!$A$510:$DA$552,BY$1) -> 5 | BZ96: =VLOOKUP(DropDownList!$B$47,CntyQryCensus!$A$510:$DA$552,BZ$1) -> 5 | CA96: =VLOOKUP(DropDownList!$B$47,CntyQryCensus!$A$510:$DA$552,CA$1) -> 0 | CB96: =VLOOKUP(DropDownList!$B$47,CntyQryCensus!$A$510:$DA$552,CB$1) -> 292 | CC96: =VLOOKUP(DropDownList!$B$47,CntyQryCensus!$A$510:$DA$552,CC$1) -> 2747 | CD96: =VLOOKUP(DropDownList!$B$47,CntyQryCensus!$A$510:$DA$552,CD$1) -> 381 | CE96: =VLOOKUP(DropDownList!$B$47,CntyQryCensus!$A$510:$DA$552,CE$1) -> 12 | CF96: =VLOOKUP(DropDownList!$B$47,CntyQryCensus!$A$510:$DA$552,CF$1) -> 64 | CG96: =VLOOKUP(DropDownList!$B$47,CntyQryCensus!$A$510:$DA$552,CG$1) -> 70 | CH96: =VLOOKUP(DropDownList!$B$47,CntyQryCensus!$A$510:$DA$552,CH$1) -> 0 | CI96: =VLOOKUP(DropDownList!$B$47,CntyQryCensus!$A$510:$DA$552,CI$1) -> 51 | CJ96: =VLOOKUP(DropDownList!$B$47,CntyQryCensus!$A$510:$DA$552,CJ$1) -> 184 | CK96: =VLOOKUP(DropDownList!$B$47,CntyQryCensus!$A$510:$DA$552,CK$1) -> 299 | CL96: =VLOOKUP(DropDownList!$B$47,CntyQryCensus!$A$510:$DA$552,CL$1) -> 92 | CM96: =VLOOKUP(DropDownList!$B$47,CntyQryCensus!$A$510:$DA$552,CM$1) -> 207 | CN96: =VLOOKUP(DropDownList!$B$47,CntyQryCensus!$A$510:$DA$552,CN$1) -> 61 | CO96: =VLOOKUP(DropDownList!$B$47,CntyQryCensus!$A$510:$DA$552,CO$1) -> 146 | CP96: =VLOOKUP(DropDownList!$B$47,CntyQryCensus!$A$510:$DA$552,CP$1) -> 2067 | CQ96: =VLOOKUP(DropDownList!$B$47,CntyQryCensus!$A$510:$DA$552,CQ$1) -> 1304 | CR96: =VLOOKUP(DropDownList!$B$47,CntyQryCensus!$A$510:$DA$552,CR$1) -> 333 | CS96: =VLOOKUP(DropDownList!$B$47,CntyQryCensus!$A$510:$DA$552,CS$1) -> 71 | CT96: =VLOOKUP(DropDownList!$B$47,CntyQryCensus!$A$510:$DA$552,CT$1) -> 110 | CU96: =VLOOKUP(DropDownList!$B$47,CntyQryCensus!$A$510:$DA$552,CU$1) -> 12 | CV96: =VLOOKUP(DropDownList!$B$47,CntyQryCensus!$A$510:$DA$552,CV$1) -> 11 | CW96: =VLOOKUP(DropDownList!$B$47,CntyQryCensus!$A$510:$DA$552,CW$1) -> 129 | CX96: =VLOOKUP(DropDownList!$B$47,CntyQryCensus!$A$510:$DA$552,CX$1) -> 324 | CY96: =VLOOKUP(DropDownList!$B$47,CntyQryCensus!$A$510:$DA$552,CY$1) -> 94 | CZ96: =VLOOKUP(DropDownList!$B$47,CntyQryCensus!$A$510:$DA$552,CZ$1) -> 230 | DA96: =VLOOKUP(DropDownList!$B$47,CntyQryCensus!$A$510:$DA$552,DA$1) -> 647
A101: =VLOOKUP(DropDownList!$B$47,CntyQryCensus!$A$510:$DA$552,A$1) -> Berlin
A105: ACS | B105: 2 | C105: =B105+1 -> 3 | D105: =C105+1 -> 4 | E105: 5 | F105: 6 | G105: 7 | H105: 8 | I105: 9 | J105: 10 | K105: 11 | L105: =K105+1 -> 12 | M105: 13 | N105: 14 | O105: 15 | P105: =O105+1 -> 16 | Q105: 17 | R105: 18 | S105: 19 | T105: 20 | U105: 21 | V105: 22 | W105: 23 | X105: 24 | Y105: 25 | Z105: 26 | AA105: 27 | AB105: 28 | AC105: 29 | AD105: 30 | AE105: 31 | AF105: 32 | AG105: 33 | AH105: 34 | AI105: 35 | AJ105: 36 | AK105: 37 | AL105: 38 | AM105: 39 | AN105: 40 | AO105: 41 | AP105: 42 | AQ105: 43 | AR105: 44 | AS105: 45 | AT105: 46 | AU105: 47 | AV105: 48 | AW105: 49 | AX105: 50 | AY105: 51 | AZ105: 52 | BA105: 53 | BB105: 54 | BC105: 55 | BD105: 56 | BE105: 57 | BF105: 58 | BG105: 59 | BH105: 60 | BI105: 61 | BJ105: 62 | BK105: 63 | BL105: 64 | BM105: 65 | BN105: 66 | BO105: 67 | BP105: =BO105+1 -> 68 | BQ105: 69 | BR105: 70 | BS105: 71 | BT105: 72 | BU105: 73 | BV105: 74 | BW105: 75 | BX105: 76 | BY105: 77 | BZ105: 78 | CA105: 79 | CB105: 80 | CC105: 81 | CD105: 82 | CE105: 83 | CF105: 84 | CG105: 85 | CH105: 86 | CI105: 87 | CJ105: 88 | CK105: 89 | CL105: 90 | CM105: 91 | CN105: 92 | CO105: 93 | CP105: 94 | CQ105: 95 | CR105: 96 | CS105: 97 | CT105: 98 | CU105: 99 | CV105: 100 | CW105: 101 | CX105: 102 | CY105: 103 | CZ105: 104 | DA105: 105 | DB105: 106 | DC105: 107 | DD105: 108 | DE105: 109 | DF105: 110 | DG105: 111 | DH105: 112 | DI105: 113 | DJ105: 114 | DK105: 115 | DL105: 116 | DM105: 117 | DN105: 118 | DO105: 119 | DP105: 120 | DQ105: 121 | DR105: 122 | DS105: 123 | DT105: 124 | DU105: 125
A106: Househould Data (Housing Unit Type)
A107: NAME | B107: TotalHU | C107: ="MOE "&B107 -> MOE TotalHU | D107: TotalOccHU | E107: ="MOE "&D107 -> MOE TotalOccHU | F107: TotalOwnerOccUn | G107: ="MOE "&F107 -> MOE TotalOwnerOccUn | H107: TotalRenterOccn | I107: ="MOE "&H107 -> MOE TotalRenterOccn | J107: TotalVacantUntis | K107: ="MOE "&J107 -> MOE TotalVacantUntis | L107: VacantUnitsForRent | M107: ="MOE "&L107 -> MOE VacantUnitsForRent | N107: VacantUnitRentedNotOcc | O107: ="MOE "&N107 -> MOE VacantUnitRentedNotOcc | P107: VacantUnitForSale | Q107: ="MOE "&P107 -> MOE VacantUnitForSale | R107: VacantUnitSoldNotOcc | S107: ="MOE "&R107 -> MOE VacantUnitSoldNotOcc | T107: VacantUnitSeasonalRec | U107: ="MOE "&T107 -> MOE VacantUnitSeasonalRec | V107: TotalPopInHousingUnits | W107: ="MOE "&V107 -> MOE TotalPopInHousingUnits | X107: OwnerOccPopHousingUnits | Y107: ="MOE "&X107 -> MOE OwnerOccPopHousingUnits | Z107: RenterOccPopHousingUnits | AA107: ="MOE "&Z107 -> MOE RenterOccPopHousingUnits | AB107: TotalUntis | AC107: ="MOE "&AB107 -> MOE TotalUntis | AD107: TotalOwnerOccUnits | AE107: ="MOE "&AD107 -> MOE TotalOwnerOccUnits | AF107: SigFamOwnerOcc | AG107: ="MOE "&AF107 -> MOE SigFamOwnerOcc | AH107: MultiFamOwnerOcc | AI107: ="MOE "&AH107 -> MOE MultiFamOwnerOcc | AJ107: MobileOwnerOcc | AK107: ="MOE "&AJ107 -> MOE MobileOwnerOcc | AL107: TotalRenterOccUnits | AM107: ="MOE "&AL107 -> MOE TotalRenterOccUnits | AN107: SigFamRenterOcc | AO107: ="MOE "&AN107 -> MOE SigFamRenterOcc | AP107: MultiFamRenterOcc | AQ107: ="MOE "&AP107 -> MOE MultiFamRenterOcc | AR107: MobileRenterOcc | AS107: ="MOE "&AR107 -> MOE MobileRenterOcc | AT107: TotalSigFamilyUnits | AU107: ="MOE "&AT107 -> MOE TotalSigFamilyUnits | AV107: TotalMultiFamilyUnits | AW107: ="MOE "&AV107 -> MOE TotalMultiFamilyUnits | AX107: TotalMobileUnits | AY107: ="MOE "&AX107 -> MOE TotalMobileUnits | AZ107: YrHouseBuilt2014Later | BA107: ="MOE "&AZ107 -> MOE YrHouseBuilt2014Later | BB107: YrHouseBuilt2010-2013 | BC107: ="MOE "&BB107 -> MOE YrHouseBuilt2010-2013 | BD107: YrHouseBuilt2000-2009 | BE107: ="MOE "&BD107 -> MOE YrHouseBuilt2000-2009 | BF107: YrHouseBuilt1990-1999 | BG107: ="MOE "&BF107 -> MOE YrHouseBuilt1990-1999 | BH107: YrHouseBuilt1980-1989 | BI107: ="MOE "&BH107 -> MOE YrHouseBuilt1980-1989 | BJ107: YrHouseBuilt1970-1979 | BK107: ="MOE "&BJ107 -> MOE YrHouseBuilt1970-1979 | BL107: YrHouseBuilt1960-1969 | BM107: ="MOE "&BL107 -> MOE YrHouseBuilt1960-1969 | BN107: YrHouseBuilt1950-1959 | BO107: ="MOE "&BN107 -> MOE YrHouseBuilt1950-1959 | BP107: YrHouseBuilt1940-1949 | BQ107: ="MOE "&BP107 -> MOE YrHouseBuilt1940-1949 | BR107: YrHouseBuilt1939orEarlier | BS107: ="MOE "&BR107 -> MOE YrHouseBuilt1939orEarlier | BT107: NoBedrooms | BU107: ="MOE "&BT107 -> MOE NoBedrooms | BV107: 1Bedroom | BW107: ="MOE "&BV107 -> MOE 1Bedroom | BX107: 2Bedroom | BY107: ="MOE "&BX107 -> MOE 2Bedroom | BZ107: 3Bedroom | CA107: ="MOE "&BZ107 -> MOE 3Bedroom | CB107: 4+Bedroom | CC107: ="MOE "&CB107 -> MOE 4+Bedroom
A108: =VLOOKUP(DropDownList!$B$47,CntyQryCensus!$A$510:$DA$552,A$1) -> Berlin | B108: 4352 | C108: 266 | D108: 3759 | E108: 250 | F108: 2374 | G108: 212 | H108: 1385 | I108: 243 | J108: 593 | K108: 158 | L108: 74 | M108: 70 | N108: 0 | O108: 17 | P108: 57 | Q108: 52 | R108: 0 | S108: 17 | T108: 185 | U108: 103 | V108: 8090 | W108: 281 | X108: 5633 | Y108: 546 | Z108: 2457 | AA108: 517 | AB108: 3759 | AC108: 250 | AD108: 2374 | AE108: 212 | AF108: 2015 | AG108: 190 | AH108: 331 | AI108: 116.8973909 | AJ108: 28 | AK108: 27.80287755 | AL108: 1385 | AM108: 243 | AN108: 211 | AO108: 123 | AP108: 1174 | AQ108: 247.6812468 | AR108: 0 | AS108: 24.04163056 | AT108: 2505 | AU108: 215 | AV108: 1819 | AW108: 292.7268351 | AX108: 28 | AY108: 27.80287755 | AZ108: 0 | BA108: 17 | BB108: 14 | BC108: 16 | BD108: 99 | BE108: 97 | BF108: 60 | BG108: 40 | BH108: 169 | BI108: 76 | BJ108: 333 | BK108: 97 | BL108: 288 | BM108: 128 | BN108: 626 | BO108: 164 | BP108: 230 | BQ108: 79 | BR108: 2533 | BS108: 229 | BT108: 90 | BU108: 72 | BV108: 703 | BW108: 156 | BX108: 1652 | BY108: 224 | BZ108: 1908 | CA108: 209 | CB108: 788 | CC108: 155.4155719 | CL108: Lancaster | CN108: Estimate | CO108: Margin Of Error | CP108: 1776 | CQ108: 162
A110: Disability Data
A111: NAME | B111: TotalPop | C111: ="MOE "&B111 -> MOE TotalPop | D111: PopUnder 5 years: | E111: ="MOE "&D111 -> MOE PopUnder 5 years: | F111: =D$111&"-WithDisability" -> PopUnder 5 years:-WithDisability | G111: ="MOE "&F111 -> MOE PopUnder 5 years:-WithDisability | H111: =D111&"-NoDisability" -> PopUnder 5 years:-NoDisability | I111: ="MOE "&H111 -> MOE PopUnder 5 years:-NoDisability | J111: PopUnder 5 to 17years: | K111: ="MOE "&J111 -> MOE PopUnder 5 to 17years: | L111: =J$111&"-WithDisability" -> PopUnder 5 to 17years:-WithDisability | M111: ="MOE "&L111 -> MOE PopUnder 5 to 17years:-WithDisability | N111: =J111&"-NoDisability" -> PopUnder 5 to 17years:-NoDisability | O111: ="MOE "&N111 -> MOE PopUnder 5 to 17years:-NoDisability | P111: PopUnder 18 to 34 years: | Q111: ="MOE "&P111 -> MOE PopUnder 18 to 34 years: | R111: =P$111&"-WithDisability" -> PopUnder 18 to 34 years:-WithDisability | S111: ="MOE "&R111 -> MOE PopUnder 18 to 34 years:-WithDisability | T111: =P111&"-NoDisability" -> PopUnder 18 to 34 years:-NoDisability | U111: ="MOE "&T111 -> MOE PopUnder 18 to 34 years:-NoDisability | V111: Pop 35 years to 64: | W111: ="MOE "&V111 -> MOE Pop 35 years to 64: | X111: =$V$111&"-WithDisability" -> Pop 35 years to 64:-WithDisability | Y111: ="MOE "&X111 -> MOE Pop 35 years to 64:-WithDisability | Z111: =$V$111&"-NoDisability" -> Pop 35 years to 64:-NoDisability | AA111: ="MOE "&Z111 -> MOE Pop 35 years to 64:-NoDisability | AB111: Pop 65 years to 74: | AC111: ="MOE "&AB111 -> MOE Pop 65 years to 74: | AD111: =$AB$111&"-WithDisability" -> Pop 65 years to 74:-WithDisability | AE111: ="MOE "&AD111 -> MOE Pop 65 years to 74:-WithDisability | AF111: =$AB$111&"-NoDisability" -> Pop 65 years to 74:-NoDisability | AG111: ="MOE "&AF111 -> MOE Pop 65 years to 74:-NoDisability | AH111: Pop 75 and older: | AI111: ="MOE "&AH111 -> MOE Pop 75 and older: | AJ111: =$AH$111&"-WithDisability" -> Pop 75 and older:-WithDisability | AK111: ="MOE "&AJ111 -> MOE Pop 75 and older:-WithDisability | AL111: =$AH$111&"-NoDisability" -> Pop 75 and older:-NoDisability | AM111: ="MOE "&AL111 -> MOE Pop 75 and older:-NoDisability | AN111: TotalPopUnder5_HearingDisability | AO111: ="MOE "&AN111 -> MOE TotalPopUnder5_HearingDisability | AP111: TotalPopUnder5_HearingDisability | AQ111: ="MOE "&AP111 -> MOE TotalPopUnder5_HearingDisability | AR111: TotalPop18To34_HearingDisability | AS111: ="MOE "&AR111 -> MOE TotalPop18To34_HearingDisability | AT111: TotalPop35To64_HearingDisability | AU111: ="MOE "&AT111 -> MOE TotalPop35To64_HearingDisability | AV111: TotalPop65To74_HearingDisability | AW111: ="MOE "&AV111 -> MOE TotalPop65To74_HearingDisability | AX111: TotalPop75andOlder_HearingDisability | AY111: ="MOE "&AX111 -> MOE TotalPop75andOlder_HearingDisability | AZ111: TotalPopUnder5_VisionDisability | BA111: ="MOE "&AZ111 -> MOE TotalPopUnder5_VisionDisability | BB111: TotalPop5To17_VisionDisability | BC111: ="MOE "&BB111 -> MOE TotalPop5To17_VisionDisability | BD111: TotalPop18To34_VisionDisability | BE111: ="MOE "&BD111 -> MOE TotalPop18To34_VisionDisability | BF111: TotalPop35To64_VisionDisability | BG111: ="MOE "&BF111 -> MOE TotalPop35To64_VisionDisability | BH111: TotalPop65To74_VisionDisability | BI111: ="MOE "&BH111 -> MOE TotalPop65To74_VisionDisability | BJ111: TotalPop75andOlder_VisionDisability | BK111: ="MOE "&BJ111 -> MOE TotalPop75andOlder_VisionDisability | BL111: TotalPop5To17_CongnitiveDisability | BM111: ="MOE "&BL111 -> MOE TotalPop5To17_CongnitiveDisability | BN111: TotalPop18To34_CongnitiveDisability | BO111: ="MOE "&BN111 -> MOE TotalPop18To34_CongnitiveDisability | BP111: TotalPop35To64_CongnitiveDisability | BQ111: ="MOE "&BP111 -> MOE TotalPop35To64_CongnitiveDisability | BR111: TotalPop65To74_CongnitiveDisability | BS111: ="MOE "&BR111 -> MOE TotalPop65To74_CongnitiveDisability | BT111: TotalPop75andOlder_CongnitiveDisability | BU111: ="MOE "&BT111 -> MOE TotalPop75andOlder_CongnitiveDisability | BV111: TotalPop5To17_AmbulatoryDisability | BW111: ="MOE "&BV111 -> MOE TotalPop5To17_AmbulatoryDisability | BX111: TotalPop18To34_AmbulatoryDisability | BY111: ="MOE "&BX111 -> MOE TotalPop18To34_AmbulatoryDisability | BZ111: TotalPop35To64_AmbulatoryDisability | CA111: ="MOE "&BZ111 -> MOE TotalPop35To64_AmbulatoryDisability | CB111: TotalPop65To74_AmbulatoryDisability | CC111: ="MOE "&CB111 -> MOE TotalPop65To74_AmbulatoryDisability | CD111: TotalPop75andOlder_AmbulatoryDisability | CE111: ="MOE "&CD111 -> MOE TotalPop75andOlder_AmbulatoryDisability | CF111: TotalPop5To17_SelfCareDisability | CG111: ="MOE "&CF111 -> MOE TotalPop5To17_SelfCareDisability | CH111: TotalPop18To34_SelfCareDisability | CI111: ="MOE "&CH111 -> MOE TotalPop18To34_SelfCareDisability | CJ111: TotalPop35To64_SelfCareDisability | CK111: ="MOE "&CJ111 -> MOE TotalPop35To64_SelfCareDisability | CL111: TotalPop65To74_SelfCareDisability | CM111: ="MOE "&CL111 -> MOE TotalPop65To74_SelfCareDisability | CN111: TotalPop75andOlder_SelfCareDisability | CO111: ="MOE "&CN111 -> MOE TotalPop75andOlder_SelfCareDisability | CP111: TotalPop18To34_IndependantLivingDisability | CQ111: ="MOE "&CP111 -> MOE TotalPop18To34_IndependantLivingDisability | CR111: TotalPop35To64_IndependantLivingDisability | CS111: ="MOE "&CR111 -> MOE TotalPop35To64_IndependantLivingDisability | CT111: TotalPop65To74_IndependantLivingDisability | CU111: ="MOE "&CT111 -> MOE TotalPop65To74_IndependantLivingDisability | CV111: TotalPop75andOlder_IndependantLivingDisability | CW111: ="MOE "&CV111 -> MOE TotalPop75andOlder_IndependantLivingDisability | CX111: TotalUnder5_HearingorVisionDisability | CY111: ="MOE "&CX111 -> MOE TotalUnder5_HearingorVisionDisability | CZ111: TotalUnder5_HearingandVisionDisability | DA111: ="MOE "&CZ111 -> MOE TotalUnder5_HearingandVisionDisability | DB111: 5to17YearWIthOneDisability | DC111: ="MOE "&DB111 -> MOE 5to17YearWIthOneDisability | DD111: 5to17YearWIthTwoOrMoreDisability | DE111: ="MOE "&DD111 -> MOE 5to17YearWIthTwoOrMoreDisability | DF111: 18to34YearWIthOneDisability | DG111: ="MOE "&DF111 -> MOE 18to34YearWIthOneDisability | DH111: 18to34YearWIthTwoOrMoreDisability | DI111: ="MOE "&DH111 -> MOE 18to34YearWIthTwoOrMoreDisability | DJ111: 35to64YearWIthOneDisability | DK111: ="MOE "&DJ111 -> MOE 35to64YearWIthOneDisability | DL111: 35to64YearWIthTwoOrMoreDisability | DM111: ="MOE "&DL111 -> MOE 35to64YearWIthTwoOrMoreDisability | DN111: 65to74YearWIthOneDisability | DO111: ="MOE "&DN111 -> MOE 65to74YearWIthOneDisability | DP111: 65to74YearWIthTwoOrMoreDisability | DQ111: ="MOE "&DP111 -> MOE 65to74YearWIthTwoOrMoreDisability | DR111: 75AndOlderWIthOneDisability | DS111: ="MOE "&DR111 -> MOE 75AndOlderWIthOneDisability | DT111: 75AndOlderWIthTwoOrMoreDisability | DU111: ="MOE "&DT111 -> MOE 75AndOlderWIthTwoOrMoreDisability
A112: =VLOOKUP(DropDownList!$B$47,CntyQryCensus!$A$510:$DA$552,A$1) -> Berlin | B112: 8110 | C112: 280 | D112: 405 | E112: 113.8990781 | F112: 0 | G112: 24.04163056 | H112: 405 | I112: 113.8990781 | J112: 1164 | K112: 163.1103921 | L112: 245 | M112: 147.5974255 | N112: 919 | O112: 187.2965563 | P112: 1589 | Q112: 174.2699056 | R112: 216 | S112: 123.1787319 | T112: 1373 | U112: 183.883115 | V112: 3301 | W112: 238.0336111 | X112: 829 | Y112: 232.2003445 | Z112: 2472 | AA112: 238.4302833 | AB112: 1013 | AC112: 191.6585506 | AD112: 328 | AE112: 90.80198236 | AF112: 685 | AG112: 164.0487732 | AH112: 638 | AI112: 120.4325537 | AJ112: 353 | AK112: 103.9422917 | AL112: 285 | AM112: 75.74298647 | AN112: 0 | AO112: 24.04163056 | AP112: 0 | AQ112: 24.04163056 | AR112: 103 | AS112: 83.74365648 | AT112: 272 | AU112: 140.2069898 | AV112: 113 | AW112: 61.55485359 | AX112: 204 | AY112: 86.2670273 | AZ112: 0 | BA112: 24.04163056 | BB112: 22 | BC112: 37.12142239 | BD112: 10 | BE112: 23.34523506 | BF112: 231 | BG112: 130 | BH112: 42 | BI112: 43.46262762 | BJ112: 72 | BK112: 48.25971405 | BL112: 174 | BM112: 82.56512581 | BN112: 189 | BO112: 84.21995013 | BP112: 348 | BQ112: 112.4855546 | BR112: 26 | BS112: 23.43074903 | BT112: 198 | BU112: 79.20227269 | BV112: 18 | BW112: 31.38470965 | BX112: 69 | BY112: 49.36598019 | BZ112: 327 | CA112: 101.8233765 | CB112: 79 | CC112: 39.39543121 | CD112: 329 | CE112: 99.2975327 | CF112: 28 | CG112: 38.48376281 | CH112: 48 | CI112: 45.607017 | CJ112: 46 | CK112: 30.61045573 | CL112: 35 | CM112: 31.38470965 | CN112: 122 | CO112: 68.02940541 | CP112: 116 | CQ112: 59.80802622 | CR112: 223 | CS112: 92.96235797 | CT112: 23 | CU112: 26.40075756 | CV112: 282 | CW112: 93.23089617 | CX112: 188 | CY112: 137 | CZ112: 57 | DA112: 56 | DB112: 557 | DC112: 215 | DD112: 488 | DE112: 165 | DF112: 381 | DG112: 118 | DH112: 300 | DI112: 100
A114: Househould Income By Age
A115: NAME | B115: TotalHouseholds | C115: ="MOE "&B115 -> MOE TotalHouseholds | D115: HHInc<10K | E115: ="MOE "&D115 -> MOE HHInc<10K | F115: HHInc10to15K | G115: ="MOE "&F115 -> MOE HHInc10to15K | H115: HHInc15to20K | I115: ="MOE "&H115 -> MOE HHInc15to20K | J115: HHInc20to25K | K115: ="MOE "&J115 -> MOE HHInc20to25K | L115: HHInc25to30K | M115: ="MOE "&L115 -> MOE HHInc25to30K | N115: HHInc30to35K | O115: ="MOE "&N115 -> MOE HHInc30to35K | P115: HHInc35to40K | Q115: ="MOE "&P115 -> MOE HHInc35to40K | R115: HHInc40to45K | S115: ="MOE "&R115 -> MOE HHInc40to45K | T115: HHInc45to50K | U115: ="MOE "&T115 -> MOE HHInc45to50K | V115: HHInc50to60K | W115: ="MOE "&V115 -> MOE HHInc50to60K | X115: HHInc60to75K | Y115: ="MOE "&X115 -> MOE HHInc60to75K | Z115: HHInc75to100K | AA115: ="MOE "&Z115 -> MOE HHInc75to100K | AB115: HHInc100to125K | AC115: ="MOE "&AB115 -> MOE HHInc100to125K | AD115: HHInc125to150K | AE115: ="MOE "&AD115 -> MOE HHInc125to150K | AF115: HHInc150to200K | AG115: ="MOE "&AF115 -> MOE HHInc150to200K | AH115: HHInc>200K | AI115: ="MOE "&AH115 -> MOE HHInc>200K | AJ115: TotalHH | AK115: ="MOE "&AJ115 -> MOE TotalHH | AL115: HHAgeHHUnder25yrs | AM115: ="MOE "&AL115 -> MOE HHAgeHHUnder25yrs | AN115: HHAgeHH<25HHInc<10K | AO115: ="MOE "&AN115 -> MOE HHAgeHH<25HHInc<10K | AP115: HHAgeHH<25HHInc10to15K | AQ115: ="MOE "&AP115 -> MOE HHAgeHH<25HHInc10to15K | AR115: HHAgeHH<25HHInc15to20K | AS115: ="MOE "&AR115 -> MOE HHAgeHH<25HHInc15to20K | AT115: HHAgeHH<25HHInc20to25K | AU115: ="MOE "&AT115 -> MOE HHAgeHH<25HHInc20to25K | AV115: HHAgeHH<25HHInc25to30K | AW115: ="MOE "&AV115 -> MOE HHAgeHH<25HHInc25to30K | AX115: HHAgeHH<25HHInc30to35K | AY115: ="MOE "&AX115 -> MOE HHAgeHH<25HHInc30to35K | AZ115: HHAgeHH<25HHInc35to40K | BA115: ="MOE "&AZ115 -> MOE HHAgeHH<25HHInc35to40K | BB115: HHAgeHH<25HHInc40to45K | BC115: ="MOE "&BB115 -> MOE HHAgeHH<25HHInc40to45K | BD115: HHAgeHH<25HHInc45to50K | BE115: ="MOE "&BD115 -> MOE HHAgeHH<25HHInc45to50K | BF115: HHAgeHH<25HHInc50to60K | BG115: ="MOE "&BF115 -> MOE HHAgeHH<25HHInc50to60K | BH115: HHAgeHH<25HHInc60to75K | BI115: ="MOE "&BH115 -> MOE HHAgeHH<25HHInc60to75K | BJ115: HHAgeHH<25HHInc75to100K | BK115: ="MOE "&BJ115 -> MOE HHAgeHH<25HHInc75to100K | BL115: HHAgeHH<25HHInc100to125K | BM115: ="MOE "&BL115 -> MOE HHAgeHH<25HHInc100to125K | BN115: HHAgeHH<25HHInc125to150K | BO115: ="MOE "&BN115 -> MOE HHAgeHH<25HHInc125to150K | BP115: HHAgeHH<25HHInc150to200K | BQ115: ="MOE "&BP115 -> MOE HHAgeHH<25HHInc150to200K | BR115: HHAge<25HHInc>200K | BS115: ="MOE "&BR115 -> MOE HHAge<25HHInc>200K | BT115: HHAgeHH25to44yrs | BU115: ="MOE "&BT115 -> MOE HHAgeHH25to44yrs | BV115: HHAgeHH25To44yrsHHInc<10K | BW115: ="MOE "&BV115 -> MOE HHAgeHH25To44yrsHHInc<10K | BX115: HHAgeHH25To44yrsHHInc10to15K | BY115: ="MOE "&BX115 -> MOE HHAgeHH25To44yrsHHInc10to15K | BZ115: HHAgeHH25To44yrsHHInc15to20K | CA115: ="MOE "&BZ115 -> MOE HHAgeHH25To44yrsHHInc15to20K | CB115: HHAgeHH25To44yrsHHInc20to25K | CC115: ="MOE "&CB115 -> MOE HHAgeHH25To44yrsHHInc20to25K | CD115: HHAgeHH25To44yrsHHInc25to30K | CE115: ="MOE "&CD115 -> MOE HHAgeHH25To44yrsHHInc25to30K | CF115: HHAgeHH25To44yrsHHInc30to35K | CG115: ="MOE "&CF115 -> MOE HHAgeHH25To44yrsHHInc30to35K | CH115: HHAgeHH25To44yrsHHInc35to40K | CI115: ="MOE "&CH115 -> MOE HHAgeHH25To44yrsHHInc35to40K | CJ115: HHAgeHH25To44yrsHHInc40to45K | CK115: ="MOE "&CJ115 -> MOE HHAgeHH25To44yrsHHInc40to45K | CL115: HHAgeHH25To44yrsHHInc45to50K | CM115: ="MOE "&CL115 -> MOE HHAgeHH25To44yrsHHInc45to50K | CN115: HHAgeHH25To44yrsHHInc50to60K | CO115: ="MOE "&CN115 -> MOE HHAgeHH25To44yrsHHInc50to60K | CP115: HHAgeHH25To44yrsHHInc60to75K | CQ115: ="MOE "&CP115 -> MOE HHAgeHH25To44yrsHHInc60to75K | CR115: HHAgeHH25To44yrsHHInc75to100K | CS115: ="MOE "&CR115 -> MOE HHAgeHH25To44yrsHHInc75to100K | CT115: HHAgeHH25To44yrsHHInc100to125K | CU115: ="MOE "&CT115 -> MOE HHAgeHH25To44yrsHHInc100to125K | CV115: HHAgeHH25To44yrsHHInc125to150K | CW115: ="MOE "&CV115 -> MOE HHAgeHH25To44yrsHHInc125to150K | CX115: HHAgeHH25To44yrsHHInc150to200K | CY115: ="MOE "&CX115 -> MOE HHAgeHH25To44yrsHHInc150to200K | CZ115: HHAge25To44yrsHHInc>200K | DA115: ="MOE "&CZ115 -> MOE HHAge25To44yrsHHInc>200K | DB115: HHAgeHH45To64yrs | DC115: ="MOE "&DB115 -> MOE HHAgeHH45To64yrs | DD115: HHAgeHH45To64yrsHHInc<10K | DE115: ="MOE "&DD115 -> MOE HHAgeHH45To64yrsHHInc<10K | DF115: HHAgeHH45To64yrsHHInc10to15K | DG115: ="MOE "&DF115 -> MOE HHAgeHH45To64yrsHHInc10to15K | DH115: HHAgeHH45To64yrsHHInc15to20K | DI115: ="MOE "&DH115 -> MOE HHAgeHH45To64yrsHHInc15to20K | DJ115: HHAgeHH45To64yrsHHInc20to25K | DK115: ="MOE "&DJ115 -> MOE HHAgeHH45To64yrsHHInc20to25K | DL115: HHAgeHH45To64yrsHHInc25to30K | DM115: ="MOE "&DL115 -> MOE HHAgeHH45To64yrsHHInc25to30K | DN115: HHAgeHH45To64yrsHHInc30to35K | DO115: ="MOE "&DN115 -> MOE HHAgeHH45To64yrsHHInc30to35K | DP115: HHAgeHH45To64yrsHHInc35to40K | DQ115: ="MOE "&DP115 -> MOE HHAgeHH45To64yrsHHInc35to40K | DR115: HHAgeHH45To64yrsHHInc40to45K | DS115: ="MOE "&DR115 -> MOE HHAgeHH45To64yrsHHInc40to45K | DT115: HHAgeHH45To64yrsHHInc45to50K | DU115: ="MOE "&DT115 -> MOE HHAgeHH45To64yrsHHInc45to50K | DV115: HHAgeHH45To64yrsHHInc50to60K | DW115: ="MOE "&DV115 -> MOE HHAgeHH45To64yrsHHInc50to60K | DX115: HHAgeHH45To64yrsHHInc60to75K | DY115: ="MOE "&DX115 -> MOE HHAgeHH45To64yrsHHInc60to75K | DZ115: HHAgeHH45To64yrsHHInc75to100K | EA115: ="MOE "&DZ115 -> MOE HHAgeHH45To64yrsHHInc75to100K | EB115: HHAgeHH45To64yrsHHInc100to125K | EC115: ="MOE "&EB115 -> MOE HHAgeHH45To64yrsHHInc100to125K | ED115: HHAgeHH45To64yrsHHInc125to150K | EE115: ="MOE "&ED115 -> MOE HHAgeHH45To64yrsHHInc125to150K | EF115: HHAgeHH45To64yrsHHInc150to200K | EG115: ="MOE "&EF115 -> MOE HHAgeHH45To64yrsHHInc150to200K | EH115: HHAge45To64yrsHHInc>200K | EI115: ="MOE "&EH115 -> MOE HHAge45To64yrsHHInc>200K | EJ115: HHAgeHH65yrsorOlder | EK115: ="MOE "&EJ115 -> MOE HHAgeHH65yrsorOlder | EL115: HHAgeHH65yrsorOlderHHInc<10K | EM115: ="MOE "&EL115 -> MOE HHAgeHH65yrsorOlderHHInc<10K | EN115: HHAgeHH65yrsorOlderHHInc10to15K | EO115: ="MOE "&EN115 -> MOE HHAgeHH65yrsorOlderHHInc10to15K | EP115: HHAgeHH65yrsorOlderHHInc15to20K | EQ115: ="MOE "&EP115 -> MOE HHAgeHH65yrsorOlderHHInc15to20K | ER115: HHAgeHH65yrsorOlderHHInc20to25K | ES115: ="MOE "&ER115 -> MOE HHAgeHH65yrsorOlderHHInc20to25K | ET115: HHAgeHH65yrsorOlderHHInc25to30K | EU115: ="MOE "&ET115 -> MOE HHAgeHH65yrsorOlderHHInc25to30K | EV115: HHAgeHH65yrsorOlderHHInc30to35K | EW115: ="MOE "&EV115 -> MOE HHAgeHH65yrsorOlderHHInc30to35K | EX115: HHAgeHH65yrsorOlderHHInc35to40K | EY115: ="MOE "&EX115 -> MOE HHAgeHH65yrsorOlderHHInc35to40K | EZ115: HHAgeHH65yrsorOlderHHInc40to45K | FA115: ="MOE "&EZ115 -> MOE HHAgeHH65yrsorOlderHHInc40to45K | FB115: HHAgeHH65yrsorOlderHHInc45to50K | FC115: ="MOE "&FB115 -> MOE HHAgeHH65yrsorOlderHHInc45to50K | FD115: HHAgeHH65yrsorOlderHHInc50to60K | FE115: ="MOE "&FD115 -> MOE HHAgeHH65yrsorOlderHHInc50to60K | FF115: HHAgeHH65yrsorOlderHHInc60to75K | FG115: ="MOE "&FF115 -> MOE HHAgeHH65yrsorOlderHHInc60to75K | FH115: HHAgeHH65yrsorOlderHHInc75to100K | FI115: ="MOE "&FH115 -> MOE HHAgeHH65yrsorOlderHHInc75to100K | FJ115: HHAgeHH65yrsorOlderHHInc100to125K | FK115: ="MOE "&FJ115 -> MOE HHAgeHH65yrsorOlderHHInc100to125K | FL115: HHAgeHH65yrsorOlderHHInc125to150K | FM115: ="MOE "&FL115 -> MOE HHAgeHH65yrsorOlderHHInc125to150K | FN115: HHAgeHH65yrsorOlderHHInc150to200K | FO115: ="MOE "&FN115 -> MOE HHAgeHH65yrsorOlderHHInc150to200K | FP115: HHAge65yrsorOlderHHInc>200K | FQ115: ="MOE "&FP115 -> MOE HHAge65yrsorOlderHHInc>200K | FR115: MedianHHInc | FS115: ="MOE "&FR115 -> MOE MedianHHInc | FT115: HH under 25 years | FU115: ="MOE "&FT115 -> MOE HH under 25 years | FV115: Householder 25 to 44 years | FW115: ="MOE "&FV115 -> MOE Householder 25 to 44 years | FX115: Householder 45 to 64 years | FY115: ="MOE "&FX115 -> MOE Householder 45 to 64 years | FZ115: Householder 65 years and over | GA115: ="MOE "&FZ115 -> MOE Householder 65 years and over
A116: =VLOOKUP(DropDownList!$B$47,CntyQryCensus!$A$510:$DA$552,A$1) -> Berlin | B116: 3638 | C116: 212 | D116: 192 | E116: 91 | F116: 323 | G116: 120 | H116: 204 | I116: 91 | J116: 410 | K116: 147 | L116: 281 | M116: 86 | N116: 190 | O116: 117 | P116: 143 | Q116: 62 | R116: 175 | S116: 87 | T116: 206 | U116: 73 | V116: 212 | W116: 80 | X116: 199 | Y116: 93 | Z116: 426 | AA116: 124 | AB116: 341 | AC116: 93 | AD116: 47 | AE116: 36 | AF116: 177 | AG116: 72 | AH116: 112 | AI116: 55 | AJ116: 3638 | AK116: 212 | AL116: 129 | AM116: 91 | AN116: 27 | AO116: 42 | AP116: 0 | AQ116: 17 | AR116: 0 | AS116: 17 | AT116: 50 | AU116: 73 | AV116: 0 | AW116: 17 | AX116: 11 | AY116: 18 | AZ116: 5 | BA116: 10 | BB116: 14 | BC116: 22 | BD116: 22 | BE116: 35 | BF116: 0 | BG116: 17 | BH116: 0 | BI116: 17 | BJ116: 0 | BK116: 17 | BL116: 0 | BM116: 17 | BN116: 0 | BO116: 17 | BP116: 0 | BQ116: 17 | BR116: 0 | BS116: 17 | BT116: 937 | BU116: 140 | BV116: 0 | BW116: 17 | BX116: 75 | BY116: 53 | BZ116: 51 | CA116: 58 | CB116: 132 | CC116: 94 | CD116: 11 | CE116: 18 | CF116: 11 | CG116: 15 | CH116: 17 | CI116: 24 | CJ116: 36 | CK116: 37 | CL116: 89 | CM116: 55 | CN116: 81 | CO116: 56 | CP116: 23 | CQ116: 23 | CR116: 166 | CS116: 66 | CT116: 134 | CU116: 82 | CV116: 21 | CW116: 22 | CX116: 83 | CY116: 48 | CZ116: 7 | DA116: 11 | DB116: 1431 | DC116: 155 | DD116: 51 | DE116: 43 | DF116: 126 | DG116: 99 | DH116: 33 | DI116: 27 | DJ116: 89 | DK116: 54 | DL116: 130 | DM116: 69 | DN116: 115 | DO116: 100 | DP116: 37 | DQ116: 27 | DR116: 75 | DS116: 58 | DT116: 44 | DU116: 39 | DV116: 73 | DW116: 45 | DX116: 104 | DY116: 71 | DZ116: 215 | EA116: 99 | EB116: 182 | EC116: 63 | ED116: 16 | EE116: 18 | EF116: 72 | EG116: 48 | EH116: 69 | EI116: 44 | EJ116: 1141 | EK116: 164 | EL116: 114 | EM116: 69 | EN116: 122 | EO116: 63 | EP116: 120 | EQ116: 67 | ER116: 139 | ES116: 85 | ET116: 140 | EU116: 57 | EV116: 53 | EW116: 46 | EX116: 84 | EY116: 49 | EZ116: 50 | FA116: 44 | FB116: 51 | FC116: 31 | FD116: 58 | FE116: 34 | FF116: 72 | FG116: 40 | FH116: 45 | FI116: 28 | FJ116: 25 | FK116: 21 | FL116: 10 | FM116: 23 | FN116: 22 | FO116: 22 | FP116: 36 | FQ116: 35 | FR116: 41638 | FS116: 5184 | FT116: 21875 | FU116: 21317 | FV116: 52193 | FW116: 21709 | FX116: 51550 | FY116: 18012 | FZ116: 26888 | GA116: 3356
A118: Number of Households by Income
A119: NAME | B119: HHIncLessThn10k | C119: ="MOE "&B119 -> MOE HHIncLessThn10k | D119: HHInc10to15K | E119: ="MOE "&D119 -> MOE HHInc10to15K | F119: HHInc15to25K | G119: ="MOE "&F119 -> MOE HHInc15to25K | H119: HHInc25to35K | I119: ="MOE "&H119 -> MOE HHInc25to35K | J119: HHInc35to50K | K119: ="MOE "&J119 -> MOE HHInc35to50K | L119: HHInc50to75K | M119: ="MOE "&L119 -> MOE HHInc50to75K | N119: HHInc75to100K | O119: ="MOE "&N119 -> MOE HHInc75to100K | P119: HHInc100to150K | Q119: ="MOE "&P119 -> MOE HHInc100to150K | R119: HHInc150to200K | S119: ="MOE "&R119 -> MOE HHInc150to200K | T119: HHIncOver200K | U119: ="MOE "&T119 -> MOE HHIncOver200K
A120: =VLOOKUP(DropDownList!$B$47,CntyQryCensus!$A$510:$DA$552,A$1) -> Berlin | B120: 192 | C120: 91 | D120: 323 | E120: 120 | F120: 614 | G120: 172.8872465 | H120: 471 | I120: 145.2067492 | J120: 524 | K120: 129.3908807 | L120: 411 | M120: 122.6743657 | N120: 426 | O120: 124 | P120: 388 | Q120: 99.72462083 | R120: 177 | S120: 72 | T120: 112 | U120: 55 | V120: 469 | W120: 121 | X120: 540 | Y120: 119 | Z120: 112 | AA120: 48 | AB120: 94 | AC120: 56 | AD120: 44 | AE120: 41 | AF120: 21 | AG120: 24
A123: NAME | B123: TotalPop | C123: ="MOE "&B123 -> MOE TotalPop | D123: Total Individuals living in Poverty | E123: ="MOE "&D123 -> MOE Total Individuals living in Poverty | F123: Under 5 yrs. | G123: ="MOE "&F123 -> MOE Under 5 yrs. | H123: 5 to 17 yrs. | I123: ="MOE "&H123 -> MOE 5 to 17 yrs. | J123: 18 to 64 yrs. | K123: ="MOE "&J123 -> MOE 18 to 64 yrs. | L123: 65 to 74 yrs. | M123: ="MOE "&L123 -> MOE 65 to 74 yrs. | N123: 75 yrs. & Over | O123: ="MOE "&N123 -> MOE 75 yrs. & Over | P123: Total Individuals Not living Poverty | Q123: ="MOE "&P123 -> MOE Total Individuals Not living Poverty | R123: Under 5 yrs. | S123: ="MOE "&R123 -> MOE Under 5 yrs. | T123: 5 to 17 yrs. | U123: ="MOE "&T123 -> MOE 5 to 17 yrs. | V123: 18 to 64 yrs. | W123: ="MOE "&V123 -> MOE 18 to 64 yrs. | X123: 65 to 74 yrs. | Y123: ="MOE "&X123 -> MOE 65 to 74 yrs. | Z123: 75 yrs. & Over | AA123: ="MOE "&Z123 -> MOE 75 yrs. & Over | AB123: Total HH | AC123: ="MOE "&AB123 -> MOE Total HH | AD123: Total Households Below Poverty | AE123: ="MOE "&AD123 -> MOE Total Households Below Poverty | AF123: Family Households in Poverty | AG123: ="MOE "&AF123 -> MOE Family Households in Poverty | AH123: Married Couple Fam HH | AI123: ="MOE "&AH123 -> MOE Married Couple Fam HH | AJ123: Other Family | AK123: ="MOE "&AJ123 -> MOE Other Family | AL123: Male Head of Family HH no wife | AM123: ="MOE "&AL123 -> MOE Male Head of Family HH no wife | AN123: Female Head of Family HH no husband | AO123: ="MOE "&AN123 -> MOE Female Head of Family HH no husband | AP123: Non-Family HH | AQ123: ="MOE "&AP123 -> MOE Non-Family HH | AR123: Non-Family Male HH | AS123: ="MOE "&AR123 -> MOE Non-Family Male HH | AT123: Non-Family Female HH | AU123: ="MOE "&AT123 -> MOE Non-Family Female HH | AV123: Total Households at or Above Poverty | AW123: ="MOE "&AV123 -> MOE Total Households at or Above Poverty | AX123: Family Households above Poverty | AY123: ="MOE "&AX123 -> MOE Family Households above Poverty | AZ123: Married Couple Fam HH | BA123: ="MOE "&AZ123 -> MOE Married Couple Fam HH | BB123: Other Family | BC123: ="MOE "&BB123 -> MOE Other Family | BD123: Male Head of Family HH no wife | BE123: ="MOE "&BD123 -> MOE Male Head of Family HH no wife | BF123: Female Head of Family HH no husband | BG123: ="MOE "&BF123 -> MOE Female Head of Family HH no husband | BH123: Non-Family HH | BI123: ="MOE "&BH123 -> MOE Non-Family HH | BJ123: Non-Family Male HH | BK123: ="MOE "&BJ123 -> MOE Non-Family Male HH | BL123: Non-Family Female HH | BM123: ="MOE "&BL123 -> MOE Non-Family Female HH | BN123: Married Couple with Children Below Poverty | BO123: ="MOE "&BN123 -> MOE Married Couple with Children Below Poverty | BP123: Male HH with children below poverty | BQ123: ="MOE "&BP123 -> MOE Male HH with children below poverty | BR123: Female HH with children below poverty | BS123: ="MOE "&BR123 -> MOE Female HH with children below poverty | BT123: Married Couple with Children At or Above Poverty | BU123: ="MOE "&BT123 -> MOE Married Couple with Children At or Above Poverty | BV123: Male HH with children at or above poverty | BW123: ="MOE "&BV123 -> MOE Male HH with children at or above poverty | BX123: Female HH with children at or above poverty | BY123: ="MOE "&BX123 -> MOE Female HH with children at or above poverty
A124: =VLOOKUP(DropDownList!$B$47,CntyQryCensus!$A$510:$DA$552,A$1) -> Berlin | B124: 7903 | C124: 76 | D124: 1155 | E124: 334 | F124: 89 | G124: 67.11929678 | H124: 142 | I124: 103.7304198 | J124: 617 | K124: 173.031789 | L124: 165 | M124: 106.9626103 | N124: 142 | O124: 69.52697318 | P124: 6748 | Q124: 351 | R124: 325 | S124: 100.7670581 | T124: 917 | U124: 215.3857005 | V124: 4179 | W124: 348.5598944 | X124: 808 | Y124: 153.2220611 | Z124: 519 | AA124: 104.3168251 | AB124: 3638 | AC124: 212 | AD124: 638 | AE124: 164 | AF124: 237 | AG124: 131 | AH124: 136 | AI124: 107 | AJ124: 101 | AK124: 67 | AL124: 34 | AM124: 46 | AN124: 67 | AO124: 52 | AP124: 401 | AQ124: 125 | AR124: 231 | AS124: 96 | AT124: 170 | AU124: 80 | AV124: 3000 | AW124: 228 | AX124: 1858 | AY124: 165 | AZ124: 1337 | BA124: 160 | BB124: 521 | BC124: 138 | BD124: 211 | BE124: 91 | BF124: 310 | BG124: 121 | BH124: 1142 | BI124: 194 | BJ124: 593 | BK124: 132 | BL124: 549 | BM124: 141 | BN124: 18 | BO124: 29 | BP124: 34 | BQ124: 46 | BR124: 55 | BS124: 49 | BT124: 495 | BU124: 124 | BV124: 98 | BW124: 62 | BX124: 223 | BY124: 111
A126: Household Income By Tenure
A127: NAME | B127: TotalOccHU | C127: ="MOE "&B127 -> MOE TotalOccHU | D127: OwnOccHU | E127: ="MOE "&D127 -> MOE OwnOccHU | F127: OOHUInc<5K | G127: ="MOE "&F127 -> MOE OOHUInc<5K | H127: OOHUInc5to10K | I127: ="MOE "&H127 -> MOE OOHUInc5to10K | J127: OOHUInc10to15K | K127: ="MOE "&J127 -> MOE OOHUInc10to15K | L127: OOHUInc15to20K | M127: ="MOE "&L127 -> MOE OOHUInc15to20K | N127: OOHUInc20to25K | O127: ="MOE "&N127 -> MOE OOHUInc20to25K | P127: OOHUInc25to35K | Q127: ="MOE "&P127 -> MOE OOHUInc25to35K | R127: OOHUInc35to50K | S127: ="MOE "&R127 -> MOE OOHUInc35to50K | T127: OOHUInc50to75K | U127: ="MOE "&T127 -> MOE OOHUInc50to75K | V127: OOHUInc75to100K | W127: ="MOE "&V127 -> MOE OOHUInc75to100K | X127: OOHUInc100to150K | Y127: ="MOE "&X127 -> MOE OOHUInc100to150K | Z127: OOHUInc>150K | AA127: ="MOE "&Z127 -> MOE OOHUInc>150K | AB127: RentOccHU | AC127: ="MOE "&AB127 -> MOE RentOccHU | AD127: ROHUInc<5K | AE127: ="MOE "&AD127 -> MOE ROHUInc<5K | AF127: ROHUInc5to10K | AG127: ="MOE "&AF127 -> MOE ROHUInc5to10K | AH127: ROHUInc10to15K | AI127: ="MOE "&AH127 -> MOE ROHUInc10to15K | AJ127: ROHUInc15to20K | AK127: ="MOE "&AJ127 -> MOE ROHUInc15to20K | AL127: ROHUInc20to25K | AM127: ="MOE "&AL127 -> MOE ROHUInc20to25K | AN127: ROHUInc25to35K | AO127: ="MOE "&AN127 -> MOE ROHUInc25to35K | AP127: ROHUInc35to50K | AQ127: ="MOE "&AP127 -> MOE ROHUInc35to50K | AR127: ROHUInc50to75K | AS127: ="MOE "&AR127 -> MOE ROHUInc50to75K | AT127: ROHUInc75to100K | AU127: ="MOE "&AT127 -> MOE ROHUInc75to100K | AV127: ROHUInc100to150K | AW127: ="MOE "&AV127 -> MOE ROHUInc100to150K | AX127: ROHUInc>150K | AY127: ="MOE "&AX127 -> MOE ROHUInc>150K | AZ127: Total OCC HUInc<5K | BA127: ="MOE "&AZ127 -> MOE Total OCC HUInc<5K | BB127: Total OCC HUInc5to10K | BC127: ="MOE "&BB127 -> MOE Total OCC HUInc5to10K | BD127: Total OCC HUInc10to15K | BE127: ="MOE "&BD127 -> MOE Total OCC HUInc10to15K | BF127: Total OCC HUInc15to20K | BG127: ="MOE "&BF127 -> MOE Total OCC HUInc15to20K | BH127: Total OCC HUInc20to25K | BI127: ="MOE "&BH127 -> MOE Total OCC HUInc20to25K | BJ127: Total OCC HUInc25to35K | BK127: ="MOE "&BJ127 -> MOE Total OCC HUInc25to35K | BL127: Total OCC HUInc35to50K | BM127: ="MOE "&BL127 -> MOE Total OCC HUInc35to50K | BN127: Total OCC HUInc50to75K | BO127: ="MOE "&BN127 -> MOE Total OCC HUInc50to75K | BP127: Total OCC HUInc75to100K | BQ127: ="MOE "&BP127 -> MOE Total OCC HUInc75to100K | BR127: Total OCC HUInc100to150K | BS127: ="MOE "&BR127 -> MOE Total OCC HUInc100to150K | BT127: Total OCC HUInc>150K | BU127: ="MOE "&BT127 -> MOE Total OCC HUInc>150K | BV127: MedHHInc | BW127: ="MOE "&BV127 -> MOE MedHHInc | BX127: MedOwnOccHHInc | BY127: ="MOE "&BX127 -> MOE MedOwnOccHHInc | BZ127: MedRentOccHHInc | CA127: ="MOE "&BZ127 -> MOE MedRentOccHHInc
A128: =VLOOKUP(DropDownList!$B$47,CntyQryCensus!$A$510:$DA$552,A$1) -> Berlin | B128: 3638 | C128: 212 | D128: 2161 | E128: 203 | F128: 15 | G128: 18 | H128: 21 | I128: 27 | J128: 133 | K128: 95 | L128: 105 | M128: 70 | N128: 128 | O128: 60 | P128: 207 | Q128: 81 | R128: 265 | S128: 98 | T128: 257 | U128: 80 | V128: 383 | W128: 121 | X128: 369 | Y128: 87 | Z128: 278 | AA128: 87 | AB128: 1477 | AC128: 229 | AD128: 85 | AE128: 65 | AF128: 71 | AG128: 53 | AH128: 190 | AI128: 74 | AJ128: 99 | AK128: 66 | AL128: 282 | AM128: 147 | AN128: 264 | AO128: 119 | AP128: 259 | AQ128: 102 | AR128: 154 | AS128: 74 | AT128: 43 | AU128: 39 | AV128: 19 | AW128: 29 | AX128: 11 | AY128: 18 | AZ128: 171 | BA128: 82.66196223 | BB128: 296 | BC128: 112.8716085 | BD128: 420 | BE128: 120.4408569 | BF128: 341 | BG128: 103.754518 | BH128: 310 | BI128: 106.3014581 | BJ128: 516 | BK128: 136.8831619 | BL128: 745 | BM128: 162.4130537 | BN128: 774 | BO128: 130.2689526 | BP128: 548 | BQ128: 116.7090399 | BR128: 254 | BS128: 89.28605714 | BT128: 82 | BU128: 98.61541462 | BV128: 41638 | BW128: 5184 | BX128: 66875 | BY128: 15049 | BZ128: 25271 | CA128: 2870
A130: Population Data
A131: NAME | B131: Total Population | C131: MOE Total Population | D131: Under 15 Years | E131: MOE Under 15 yrs. | F131: 15 to 24 yrs. | G131: MOE 15 to 24 yrs. | H131: 25 to 34 yrs. | I131: MOE 25 to 34 yrs. | J131: 35 to 44 yrs. | K131: MOE 35 to 44 yrs. | L131: 45 to 54 yrs. | M131: MOE 45 to 54 yrs. | N131: 55 to 64 yrs. | O131: MOE 55 to 64 yrs. | P131: 65 to 74 yrs. | Q131: MOE 65 to 74 yrs. | R131: Over 74 yrs. | S131: MOE Over 74 yrs. | T131: TotalHH | U131: MOE TotalHH | V131: FamilyHH | W131: MOE FamilyHH | X131: MarriedFamilyHH | Y131: MOE MarriedFamilyHH | Z131: SingleFamilyHH | AA131: MOE SingleFamilyHH | AB131: Sfamily-MaleHH | AC131: MOE Sfamily-MaleHH | AD131: Sfamily-FemaleHH | AE131: MOE Sfamily-FemaleHH | AF131: NonFamilyHH | AG131: MOE NonFamilyHH | AH131: NonFamilyHH-LivingAlone | AI131: MOE NonFamilyHH-LivingAlone | AJ131: NonFamilyHH-NotLivingAlone | AK131: MOE NonFamilyHH-NotLivingAlone | AL131: PopRaceWhite | AM131: MOE PopRaceWhite | AN131: PopRaceBlack | AO131: MOE PopRaceBlack | AP131: PopRaceAmerican Indian | AQ131: MOE PopRaceAmerican Indian | AR131: PopRaceAsian &Pacific Is. | AS131: MOE PopRaceAsian &Pacific Is. | AT131: PopRaceOther* | AU131: MOE PopRaceOther* | AV131: PopRaceHispanic or Latino: | AW131: MOE PopRaceHispanic or Latino: | AX131: MedianAgeTotalPop | AY131: MOE MedianAgeTotalPop | AZ131: MedianAgeMale | BA131: MOE MedianAgeMale | BB131: MedianAgeFemale | BC131: MOE MedianAgeFemale | BD131: AvgHHSizeTotal | BE131: MOE AvgHHSizeTotal | BF131: AvgHHSizeFamilyHH | BG131: MOE AvgHHSizeFamilyHH | BH131: AvgHHSizeNonFamilyHH | BI131: MOE AvgHHSizeNonFamilyHH
A132: =VLOOKUP(DropDownList!$B$47,CntyQryCensus!$A$510:$DA$552,A$1) -> Berlin | B132: 9710 | C132: 32 | D132: 1232 | E132: 240.5015592 | F132: 907 | G132: 182.6362505 | H132: 1540 | I132: 197.3170038 | J132: 1288 | K132: 231.5124187 | L132: 1588 | M132: 225.2887037 | N132: 1331 | O132: 238.1029189 | P132: 1039 | Q132: 208.2378448 | R132: 785 | S132: 151.4826723 | T132: 3759 | U132: 250 | V132: 2263 | W132: 162 | X132: 1583 | Y132: 197 | Z132: 680 | AA132: 183 | AB132: 278 | AC132: 113 | AD132: 402 | AE132: 147 | AF132: 1496 | AG132: 249 | AH132: 1330 | AI132: 237 | AJ132: 166 | AK132: 80 | AL132: 8599 | AM132: 200 | AN132: 581 | AO132: 223 | AP132: 1 | AQ132: 5 | AR132: 31 | AS132: 39.05124838 | AT132: 130 | AU132: 72.03471385 | AV132: 368 | AW132: 77 | AX132: 43.9 | AY132: 2.9 | AZ132: 40.4 | BA132: 2.4 | BB132: 50.4 | BC132: 3.1 | BD132: 2.15216813 | BE132: 0.161479386 | BF132: 2.840919134 | BG132: 0.2536393058 | BH132: 1.110294118 | BI132: 0.2683079812
A134: Nativity and Prior Place of Residence
A135: NAME | B135: TotalPop | C135: ="MOE "&B135 -> MOE TotalPop | D135: Native: | E135: ="MOE "&D135 -> MOE Native: | F135: NatBornInStateOfResidence | G135: ="MOE "&F135 -> MOE NatBornInStateOfResidence | H135: Born in other state in the United States: | I135: ="MOE "&H135 -> MOE Born in other state in the United States: | J135: Northeast | K135: ="MOE "&J135 -> MOE Northeast | L135: Midwest | M135: ="MOE "&L135 -> MOE Midwest | N135: South | O135: ="MOE "&N135 -> MOE South | P135: West | Q135: ="MOE "&P135 -> MOE West | R135: Born outside the United States: | S135: ="MOE "&R135 -> MOE Born outside the United States: | T135: Puerto Rico | U135: ="MOE "&T135 -> MOE Puerto Rico | V135: U.S. Island Areas | W135: ="MOE "&V135 -> MOE U.S. Island Areas | X135: Born abroad of American parent(s) | Y135: ="MOE "&X135 -> MOE Born abroad of American parent(s) | Z135: Foreign born: | AA135: ="MOE "&Z135 -> MOE Foreign born: | AB135: Naturalized U.S. citizen | AC135: ="MOE "&AB135 -> MOE Naturalized U.S. citizen | AD135: Not a U.S. citizen | AE135: ="MOE "&AD135 -> MOE Not a U.S. citizen | AF135: CurrentResidenceTotal: | AG135: ="MOE "&AF135 -> MOE CurrentResidenceTotal: | AH135: SameHouse: | AI135: ="MOE "&AH135 -> MOE SameHouse: | AJ135: DifferentHouse: | AK135: ="MOE "&AJ135 -> MOE DifferentHouse: | AL135: DiffHouseInNH | AM135: ="MOE "&AL135 -> MOE DiffHouseInNH | AN135: DiffHouseInNHSameCnty | AO135: ="MOE "&AN135 -> MOE DiffHouseInNHSameCnty | AP135: DiffHouseInNHDiffCnty | AQ135: ="MOE "&AP135 -> MOE DiffHouseInNHDiffCnty | AR135: DiffHouseInDiffState | AS135: ="MOE "&AR135 -> MOE DiffHouseInDiffState | AT135: DiffHouseInElsewhere | AU135: ="MOE "&AT135 -> MOE DiffHouseInElsewhere
A136: =VLOOKUP(DropDownList!$B$47,CntyQryCensus!$A$510:$DA$552,A$1) -> Berlin | B136: 9710 | C136: 32 | D136: 9469 | E136: 107 | F136: 5818 | G136: 474 | H136: 3465 | I136: 479 | J136: 2338 | K136: 409 | L136: 278 | M136: 108 | N136: 593 | O136: 225 | P136: 256 | Q136: 167 | R136: 186 | S136: 96 | T136: 129 | U136: 70 | V136: 0 | W136: 17 | X136: 57 | Y136: 65 | Z136: 241 | AA136: 106 | AB136: 115 | AC136: 52 | AD136: 126 | AE136: 78 | AF136: 9638 | AG136: 57 | AH136: 8003 | AI136: 329 | AJ136: 1635 | AK136: 356.3228873 | AL136: 1191 | AM136: 319.9077992 | AN136: 740 | AO136: 271 | AP136: 451 | AQ136: 170 | AR136: 444 | AS136: 156 | AT136: 0 | AU136: 17
A138: School Enrollment - Education
